Workbook

Sheet title
B7: Options Analysis Software for Excel
C8: DEMO datafeed limited
B11: COPYRIGHT 2022 ALL RIGHTS RESERVED
B12: STAR RESEARCH, INC.
C13: http://www.optionstar.com
B19: END USER LICENSE AGREEMENT:
B20: I AGREE THAT BY USING THIS SOFTWARE, I WILL NOT HOLD THE DEVELOPER OR
B21: STAR RESEARCH INC. LIABLE FOR ANY TRADING DECISIONS MADE BY USING OPTIONSTAR.
B23: * Data feed web downloads are subject to change. Data is believed to be accurate, but use it at your
B24: own risk.
B26: Star Research Inc. provides to you Optionstar as is and with all faults; and disclaims all
B27: warranties and conditions whether express implied or statutory including but not limited to any
B28: (if any) warranties or conditions of or related to: title non-infringement merchantability fitness
B29: for a particular purpose lack of viruses accuracy or completeness of responses results lack of
B30: negligence or lack of workmanlike effort quiet enjoyment quiet possession and correspondence to
B31: description.
B33: The entire risk arising out of use or performance of Optionstar remains with you.
B34: In no event shall Star Research Inc. be liable for any
B35: special incidental indirect or consequential damages whatsoever (including but not limited to
B36: damages for: loss of profits and failure to meet any duty (including of good faith or reasonable care)
B37: or negligence arising out of or in any way related to use of or inability to use the software.
B40: STREAMER: QUICK SETUP <td-ameritrade THINK or SWIM accounts>
B42: 1. Open and Login to TOS platform
B43: 2 Select datafeed stocks1, click update button D4
B68: 3 Select datafeed: tos stream (acct reqd)
B120: STREAMER: QUICK SETUP <IB>
B123: 1. Download and install the latest version of TWS API onto your PC.
B124: http://interactivebrokers.github.io/#
B125: Click on Proprietary API tab, download latest version
B126: 2. Login to TWS workstation and enable dde, Menu: Edit, Global Config, API
B127: http://www.interactivebrokers.com/en/software/twsDisclaimer.php?ib_entity=llc
B128: OR if you don't yet have an IB account.. Start tws demo
B129: http://www.interactivebrokers.com/en/software/twsDisclaimer.php?twsdemo=1
B130: enable dde: Menu: Edit, Global Config, API
B133: 3. Type in underlying symbol in green cell b2
B134: 4. Select ib stream (acct reqd): realtime stream (ib)
B135: 5. Type in your IB Username in cell b7 | K135: 6. Click on the update options button. d4
K141: 7. Click update stream button d8
B144: Trouble shooting if update stream button d8 hangs up..
B145: 1. make sure you have enable dde's in tws | L145: 2. windows 7, tws browser based:
L146: make sure you are running 64bit java
L147: http://www.java.com/en/download/manual.jsp

Sheet sum
A1: =VLOOKUP(C2,$AG$225:$AH$233,2) -> 10 | B1: symbol | C1: price | D1: expiration | E1: =s!F2 -> 12:16PM EDT | F1: CUSTOM SPREAD | L1: =1-NORMSDIST(LN(ABS(B8)/$C$2)/(B6*SQRT((D2-NOW())/365))) -> 0.5 | M1: =NORMSDIST(LN(ABS(B8)/$C$2)/(B6*SQRT((D2-NOW())/365))) -> 0.5 | O1: 1 | P1: =VLOOKUP($O$1,all!$P$2:$R$6,3) -> 0 | Q1: 1 | R1: 1 | AA1: =C2/10 -> 16.792 | AD1: =all!AQ1 -> 1 | AE1: =all!AP3 -> 1 | AF1: 1 | AG1: =NOW() -> 2022-08-28T09:32:01.130 | AH1: =Q3 -> 83.96 | AI1: =(AJ1-AH1)/2+AH1 -> 92.356 | AJ1: =R3 -> 100.752 | AK1: =(AL1-AJ1)/2+AJ1 -> 109.148 | AL1: =S3 -> 117.544 | AM1: =(AN1-AL1)/2+AL1 -> 125.94 | AN1: =T3 -> 134.336 | AO1: =(AP1-AN1)/2+AN1 -> 142.732 | AP1: =U3 -> 151.128 | AQ1: =(AR1-AP1)/2+AP1 -> 159.524 | AR1: =V3 -> 167.92 | AS1: =(AT1-AR1)/2+AR1 -> 176.316 | AT1: =W3 -> 184.712 | AU1: =(AV1-AT1)/2+AT1 -> 193.108 | AV1: =X3 -> 201.504 | AW1: =(AX1-AV1)/2+AV1 -> 209.9 | AX1: =Y3 -> 218.296 | AY1: =(AZ1-AX1)/2+AX1 -> 226.692 | AZ1: =Z3 -> 235.088 | BA1: =(BB1-AZ1)/2+AZ1 -> 243.484 | BB1: =AA3 -> 251.88 | BD1: strike interv | BF1: 4
B2: AAPL | C2: 167.92 | D2: 2022-09-16 | E2: =LEFT(B2,(LEN(B2)-2))&RIGHT(B2,1) -> AAL | H2: contract units | J2: 100 | L2: commission per contract | N2: 1 | Q2: Profit and (Loss) AT: | S2: =VLOOKUP(R1,AF1:AG8,2) -> 2022-08-28T09:32:01.130 | Y2: Price Interval: | AA2: =C2/10 -> 16.792 | AF2: 2 | AG2: =AG1+($AG$8-$AG$1)/8 -> 2022-08-30T17:20:30.989 | AH2: =IF(AND($AF$18<5,OR($J4=0,$K4=0)),0,AH18) -> -17700 | AI2: =IF(AND($AF$18<5,OR($J4=0,$K4=0)),0,AI18) -> -17700 | AJ2: -17700 | AK2: -17700 | AL2: -17700 | AM2: -17700 | AN2: -17700 | AO2: -17700 | AP2: -17700 | AQ2: -17700 | AR2: -17700 | AS2: -17700 | AT2: -17700 | AU2: -17700 | AV2: -17700 | AW2: -17700 | AX2: -17700 | AY2: -17700 | AZ2: -17700 | BA2: -17700 | BB2: -17700 | BD2: 0 | BE2: 0.001 | BF2: =VLOOKUP($C$2,$BD$2:$BE$13,2)
E3: =NOW() -> 2022-08-28T09:32:01.130 | H3: qty | I3: expiration | J3: strike | K3: prem | L3: theo | M3: Implied Volatility | N3: time value | O3: delta | P3: cost | Q3: =R3-$AA$2 -> 83.96 | R3: =S3-$AA$2 -> 100.752 | S3: =T3-$AA$2 -> 117.544 | T3: =U3-$AA$2 -> 134.336 | U3: =V3-$AA$2 -> 151.128 | V3: =C2 -> 167.92 | W3: =V3+$AA$2 -> 184.712 | X3: =W3+$AA$2 -> 201.504 | Y3: =X3+$AA$2 -> 218.296 | Z3: =Y3+$AA$2 -> 235.088 | AA3: =Z3+$AA$2 -> 251.88 | AF3: 3 | AG3: 2022-09-02T01:09:00.847 | AH3: =IF(AND($AF$26<5,OR($J5=0,$K5=0)),0,AH26) -> 16390 | AI3: =IF(AND($AF$26<5,OR($J5=0,$K5=0)),0,AI26) -> 16390 | AJ3: 16390 | AK3: 16390 | AL3: 16390 | AM3: 16390 | AN3: 16390 | AO3: 16390 | AP3: 16390 | AQ3: 16390 | AR3: 16390 | AS3: 16390 | AT3: 16390 | AU3: 16390 | AV3: 16390 | AW3: 16390 | AX3: 16390 | AY3: 16390 | AZ3: 16390 | BA3: 16390 | BB3: 16390 | BD3: 0.1 | BE3: 0.01
F4: 1 | G4: buy call | H4: 1 | I4: =AC4 -> 2022-09-16 | J4: 370 | K4: 177 | L4: =IF(OR(K4="",K4=0),"",PB(IF(AF18<=2,"C","P"),$C$2,J4,($I$4-NOW())/365,$C$6,$D$6,$B$6)) -> 0 | M4: =IF(L4="","",V(IF(AF18<=2,"C","P"),$C$2,J4,($I$4-NOW())/365,$C$6,$D$6,K4)) -> 1.999969482 | N4: =IF(OR($AF$18>4,K4=""),"",IF(OR($AF$18=1,$AF$18=3),1,-1)*IF($AF$18>2,IF(J4<=$C$2,K4,K4-(J4-$C$2)),IF(J4>=$C$2,K4,K4-($C$2-J4)))) -> 177 | O4: =IF(L4="","",IF($AF$18=5,1*H4,IF($AF$18=6,-1*H4,IF($O$1=1,D(IF($AF$18<=2,"C","P"),$C$2,J4,($D$2-NOW())/365,$C$6,$D$6,$B$6),Chg(IF($AF$18<=2,"C","P"),VLOOKUP($O$1,all!$P$2:$R$6,3),$C$2,J4,($D$2-NOW())/365,$C$6,$D$6,$B$6)/IF($O$1>2,100,1))*H4*IF(OR($AF$18=1,$AF$18=3),1,-1)))) -> 0 | P4: =IF(K4="",0,IF($AF$18>4,$C$2,K4)*(H4*$J$2)*IF(OR($AF$18=1,$AF$18=3,$AF$18=5),1,-1)+(H4*$N$2)) -> 17701 | Q4: =IF(AND($AF$18<5,OR($J4=0,$K4=0)),0,AH71) -> -17698.95764 | R4: =IF(AND($AF$18<5,OR($J4=0,$K4=0)),0,AJ71) -> -17695.09501 | S4: =IF(AND($AF$18<5,OR($J4=0,$K4=0)),0,AL71) -> -17683.74738 | T4: =IF(AND($AF$18<5,OR($J4=0,$K4=0)),0,AN71) -> -17657.68089 | U4: =IF(AND($AF$18<5,OR($J4=0,$K4=0)),0,AP71) -> -17607.37882 | V4: =IF(AND($AF$18<5,OR($J4=0,$K4=0)),0,AR71) -> -17521.96379 | W4: =IF(AND($AF$18<5,OR($J4=0,$K4=0)),0,AT71) -> -17390.28571 | X4: =IF(AND($AF$18<5,OR($J4=0,$K4=0)),0,AV71) -> -17201.90232 | Y4: =IF(AND($AF$18<5,OR($J4=0,$K4=0)),0,AX71) -> -16947.80626 | Z4: =IF(AND($AF$18<5,OR($J4=0,$K4=0)),0,AZ71) -> -16620.86054 | AA4: =IF(AND($AF$18<5,OR($J4=0,$K4=0)),0,BB71) -> -16215.97156 | AB4: 96 | AC4: =IF(AB4="","",IF(AB4<105,$D$2,$D$116)) -> 2022-09-16 | AD4: =IF(AB4="","",VLOOKUP($AB4,all!$A$6:$D$214,2)) -> 370 | AE4: =IF(AB4="","",VLOOKUP($AB4,all!$A$6:$D$214,IF(AF18<=2,3,4))) -> 177 | AF4: 4 | AG4: 2022-09-04T08:57:30.706 | AH4: =IF(AND($AF$34<5,OR($J6=0,$K6=0)),0,AH34) -> 15044 | AI4: =IF(AND($AF$34<5,OR($J6=0,$K6=0)),0,AI34) -> 15044 | AJ4: 15044 | AK4: 15044 | AL4: 15044 | AM4: 15044 | AN4: 15044 | AO4: 15044 | AP4: 15044 | AQ4: 15044 | AR4: 15044 | AS4: 15044 | AT4: 15044 | AU4: 15044 | AV4: 15044 | AW4: 15044 | AX4: 15044 | AY4: 15044 | AZ4: 15044 | BA4: 15044 | BB4: 15044 | BD4: 5 | BE4: 0.25
B5: volatility | C5: interest | D5: dividend | F5: 2 | H5: 1 | I5: 2022-09-16 | J5: 390 | K5: 163.9 | L5: =IF(OR(K5="",K5=0),"",PB(IF(AF26<=2,"C","P"),$C$2,J5,($I$5-NOW())/365,$C$6,$D$6,$B$6)) -> 0 | M5: =IF(L5="","",V(IF(AF26<=2,"C","P"),$C$2,J5,($I$5-NOW())/365,$C$6,$D$6,K5)) -> 1.999969482 | N5: =IF(OR($AF$26>4,K5=""),"",IF(OR($AF$26=1,$AF$26=3),1,-1)*IF($AF$26>2,IF(J5<=$C$2,K5,K5-(J5-$C$2)),IF(J5>=$C$2,K5,K5-($C$2-J5)))) -> -163.9 | O5: =IF(L5="","",IF($AF$26=5,1*H5,IF($AF$26=6,-1*H5,IF($O$1=1,D(IF($AF$26<=2,"C","P"),$C$2,J5,($D$2-NOW())/365,$C$6,$D$6,$B$6),Chg(IF($AF$26<=2,"C","P"),VLOOKUP($O$1,all!$P$2:$R$6,3),$C$2,J5,($D$2-NOW())/365,$C$6,$D$6,$B$6)/IF($O$1>2,100,1))*H5*IF(OR($AF$26=1,$AF$26=3),1,-1)))) -> 0 | P5: =IF(K5="",0,IF($AF$26=0,0,IF($AF$26>4,$C$2,K5)*(H5*$J$2)*IF(OR($AF$26=1,$AF$26=3,$AF$26=5),1,-1)+(H5*$N$2))) -> -16389 | Q5: =IF(AND($AF$26<5,OR($J5=0,$K5=0)),0,AH79) -> 16389.31618 | R5: =IF(AND($AF$26<5,OR($J5=0,$K5=0)),0,AJ79) -> 16386.64483 | S5: =IF(AND($AF$26<5,OR($J5=0,$K5=0)),0,AL79) -> 16378.49119 | T5: =IF(AND($AF$26<5,OR($J5=0,$K5=0)),0,AN79) -> 16359.14061 | U5: =IF(AND($AF$26<5,OR($J5=0,$K5=0)),0,AP79) -> 16320.72862 | V5: =IF(AND($AF$26<5,OR($J5=0,$K5=0)),0,AR79) -> 16253.868 | W5: =IF(AND($AF$26<5,OR($J5=0,$K5=0)),0,AT79) -> 16148.50969 | X5: =IF(AND($AF$26<5,OR($J5=0,$K5=0)),0,AV79) -> 15994.80434 | Y5: =IF(AND($AF$26<5,OR($J5=0,$K5=0)),0,AX79) -> 15783.81209 | Z5: =IF(AND($AF$26<5,OR($J5=0,$K5=0)),0,AZ79) -> 15507.9945 | AA5: =IF(AND($AF$26<5,OR($J5=0,$K5=0)),0,BB79) -> 15161.48568 | AB5: 98 | AC5: 2022-09-16 | AD5: =IF(AB5="","",VLOOKUP($AB5,all!$A$6:$D$214,2)) -> 390 | AE5: =IF(AB5="","",VLOOKUP($AB5,all!$A$6:$D$214,IF(AF26<=2,3,4))) -> 163.9 | AF5: 5 | AG5: 2022-09-06T16:46:00.565 | AH5: =IF(AND($AF$42<5,OR($J7=0,$K7=0)),0,AH42) -> -15044 | AI5: =IF(AND($AF$42<5,OR($J7=0,$K7=0)),0,AI42) -> -15044 | AJ5: -15044 | AK5: -15044 | AL5: -15044 | AM5: -15044 | AN5: -15044 | AO5: -15044 | AP5: -15044 | AQ5: -15044 | AR5: -15044 | AS5: -15044 | AT5: -15044 | AU5: -15044 | AV5: -15044 | AW5: -15044 | AX5: -15044 | AY5: -15044 | AZ5: -15044 | BA5: -15044 | BB5: -15044 | BD5: 10 | BE5: 0.25
B6: 0.2389762681 | C6: 0.01 | D6: 0.02 | F6: 3 | H6: 1 | I6: 2022-09-16 | J6: 410 | K6: 150.44 | L6: =IF(OR(K6="",K6=0),"",PB(IF(AF34<=2,"C","P"),$C$2,J6,($I$6-NOW())/365,$C$6,$D$6,$B$6)) -> 0 | M6: =IF(L6="","",V(IF(AF34<=2,"C","P"),$C$2,J6,($I$6-NOW())/365,$C$6,$D$6,K6)) -> 1.999969482 | N6: =IF(OR($AF$34>4,K6="",K6=0),"",IF(OR($AF$34=1,$AF$34=3),1,-1)*IF($AF$34>2,IF(J6<=$C$2,K6,K6-(J6-$C$2)),IF(J6>=$C$2,K6,K6-($C$2-J6)))) -> -150.44 | O6: =IF(L6="","",IF($AF$34=5,1*H6,IF($AF$34=6,-1*H6,IF($O$1=1,D(IF($AF$34<=2,"C","P"),$C$2,J6,($D$2-NOW())/365,$C$6,$D$6,$B$6),Chg(IF($AF$34<=2,"C","P"),VLOOKUP($O$1,all!$P$2:$R$6,3),$C$2,J6,($D$2-NOW())/365,$C$6,$D$6,$B$6)/IF($O$1>2,100,1))*H6*IF(OR($AF$34=1,$AF$34=3),1,-1)))) -> 0 | P6: =IF(K6="",0,IF($AF$34=0,0,IF($AF$34>4,$C$2,K6)*(H6*$J$2)*IF(OR($AF$34=1,$AF$34=3,$AF$34=5),1,-1)+(H6*$N$2))) -> -15043 | Q6: =IF(AND($AF$34<5,OR($J6=0,$K6=0)),0,AH87) -> 15043.54698 | R6: =IF(AND($AF$34<5,OR($J6=0,$K6=0)),0,AJ87) -> 15041.68676 | S6: =IF(AND($AF$34<5,OR($J6=0,$K6=0)),0,AL87) -> 15035.7981 | T6: =IF(AND($AF$34<5,OR($J6=0,$K6=0)),0,AN87) -> 15021.38083 | U6: =IF(AND($AF$34<5,OR($J6=0,$K6=0)),0,AP87) -> 14991.97806 | V6: =IF(AND($AF$34<5,OR($J6=0,$K6=0)),0,AR87) -> 14939.57069 | W6: =IF(AND($AF$34<5,OR($J6=0,$K6=0)),0,AT87) -> 14855.23285 | X6: =IF(AND($AF$34<5,OR($J6=0,$K6=0)),0,AV87) -> 14729.86022 | Y6: =IF(AND($AF$34<5,OR($J6=0,$K6=0)),0,AX87) -> 14554.82749 | Z6: =IF(AND($AF$34<5,OR($J6=0,$K6=0)),0,AZ87) -> 14322.49466 | AA6: =IF(AND($AF$34<5,OR($J6=0,$K6=0)),0,BB87) -> 14026.53722 | AB6: 100 | AC6: 2022-09-16 | AD6: =IF(AB6="","",VLOOKUP($AB6,all!$A$6:$D$214,2)) -> 410 | AE6: =IF(AB6="","",VLOOKUP($AB6,all!$A$6:$D$214,IF(AF34<=2,3,4))) -> 150.44 | AF6: 6 | AG6: 2022-09-09T00:34:30.424 | AH6: =IF(AND($AF$50<5,OR($J8=0,$K8=0)),0,AH50) -> 0 | AI6: =IF(AND($AF$50<5,OR($J8=0,$K8=0)),0,AI50) -> 0 | AJ6: 0 | AK6: 0 | AL6: 0 | AM6: 0 | AN6: 0 | AO6: 0 | AP6: 0 | AQ6: 0 | AR6: 0 | AS6: 0 | AT6: 0 | AU6: 0 | AV6: 0 | AW6: 0 | AX6: 0 | AY6: 0 | AZ6: 0 | BA6: 0 | BB6: 0 | BD6: 20 | BE6: 0.5
B7: target price | C7: probability | E7: =IF(C4="","",YEAR(C4)-2000&IF(MONTH(C4)<10,"0","")&MONTH(C4)&IF(DAY(C4)<10,"0","")&DAY(C4)) ->  | F7: 4 | H7: 1 | I7: 2022-09-16 | J7: 410 | K7: 150.44 | L7: =IF(OR(K7="",K7=0),"",PB(IF(AF42<=2,"C","P"),$C$2,J7,($I$7-NOW())/365,$C$6,$D$6,$B$6)) -> 0 | M7: =IF(L7="","",V(IF(AF42<=2,"C","P"),$C$2,J7,($I$7-NOW())/365,$C$6,$D$6,K7)) -> 1.999969482 | N7: =IF(OR($AF$42>4,K7=""),"",IF(OR($AF$42=1,$AF$42=3),1,-1)*IF($AF$42>2,IF(J7<=$C$2,K7,K7-(J7-$C$2)),IF(J7>=$C$2,K7,K7-($C$2-J7)))) -> 150.44 | O7: =IF(L7="","",IF($AF$42=5,1*H7,IF($AF$42=6,-1*H7,IF($O$1=1,D(IF($AF$42<=2,"C","P"),$C$2,J7,($D$2-NOW())/365,$C$6,$D$6,$B$6),Chg(IF($AF$42<=2,"C","P"),VLOOKUP($O$1,all!$P$2:$R$6,3),$C$2,J7,($D$2-NOW())/365,$C$6,$D$6,$B$6)/IF($O$1>2,100,1))*H7*IF(OR($AF$42=1,$AF$42=3),1,-1)))) -> 0 | P7: =IF(K7="",0,IF($AF$42=0,0,IF($AF$42>4,$C$2,K7)*(H7*$J$2)*IF(OR($AF$42=1,$AF$42=3,$AF$42=5),1,-1)+(H7*$N$2))) -> 15045 | Q7: =IF(AND($AF$42<5,OR($J7=0,$K7=0)),0,AH95) -> -15043.54698 | R7: =IF(AND($AF$42<5,OR($J7=0,$K7=0)),0,AJ95) -> -15041.68676 | S7: =IF(AND($AF$42<5,OR($J7=0,$K7=0)),0,AL95) -> -15035.7981 | T7: =IF(AND($AF$42<5,OR($J7=0,$K7=0)),0,AN95) -> -15021.38083 | U7: =IF(AND($AF$42<5,OR($J7=0,$K7=0)),0,AP95) -> -14991.97806 | V7: =IF(AND($AF$42<5,OR($J7=0,$K7=0)),0,AR95) -> -14939.57069 | W7: =IF(AND($AF$42<5,OR($J7=0,$K7=0)),0,AT95) -> -14855.23285 | X7: =IF(AND($AF$42<5,OR($J7=0,$K7=0)),0,AV95) -> -14729.86022 | Y7: =IF(AND($AF$42<5,OR($J7=0,$K7=0)),0,AX95) -> -14554.82749 | Z7: =IF(AND($AF$42<5,OR($J7=0,$K7=0)),0,AZ95) -> -14322.49466 | AA7: =IF(AND($AF$42<5,OR($J7=0,$K7=0)),0,BB95) -> -14026.53722 | AB7: 100 | AC7: 2022-09-16 | AD7: =IF(AB7="","",VLOOKUP($AB7,all!$A$6:$D$214,2)) -> 410 | AE7: =IF(AB7="","",VLOOKUP($AB7,all!$A$6:$D$214,IF(AF42<=2,3,4))) -> 150.44 | AF7: 7 | AG7: 2022-09-11T08:23:00.283 | AH7: =IF(AND($AF$58<5,OR($J9=0,$K9=0)),0,AH58) -> 0 | AI7: =IF(AND($AF$58<5,OR($J9=0,$K9=0)),0,AI58) -> 0 | AJ7: 0 | AK7: 0 | AL7: 0 | AM7: 0 | AN7: 0 | AO7: 0 | AP7: 0 | AQ7: 0 | AR7: 0 | AS7: 0 | AT7: 0 | AU7: 0 | AV7: 0 | AW7: 0 | AX7: 0 | AY7: 0 | AZ7: 0 | BA7: 0 | BB7: 0 | BD7: 50 | BE7: 0.5
A8: =VLOOKUP($C$2,$BD$2:$BE$13,2) -> 1 | B8: =C2 -> 167.92 | C8: =IF(B8>C2,IF(all!$T$1=1,L1,CONCATENATE(MID(TEXT(L1/(1-L1),"00/00"),FIND("/",TEXT(L1/(1-L1),"00/00"))+1,2)," to ",LEFT(TEXT(L1/(1-L1),"00/00"),FIND("/",TEXT(L1/(1-L1),"00/00"))-1))),IF(all!$T$1=1,M1,CONCATENATE(MID(TEXT(M1/(1-M1),"00/00"),FIND("/",TEXT(M1/(1-M1),"00/00"))+1,2)," to ",LEFT(TEXT(M1/(1-M1),"00/00"),FIND("/",TEXT(M1/(1-M1),"00/00"))-1)))) -> 0.5 | E8: =IF(C4="","",YEAR(C4)&IF(MONTH(C4)<10,"0","")&MONTH(C4)&IF(DAY(C4)<10,"0","")&DAY(C4)) ->  | F8: 5 | L8: =IF(OR(K8="",K8=0),"",PB(IF(AF50<=2,"C","P"),$C$2,J8,($I$8-NOW())/365,$C$6,$D$6,$B$6)) ->  | M8: =IF(L8="","",V(IF(AF50<=2,"C","P"),$C$2,J8,($I$8-NOW())/365,$C$6,$D$6,K8)) ->  | N8: =IF(OR($AF$50>4,K8=""),"",IF(OR($AF$50=1,$AF$50=3),1,-1)*IF($AF$50>2,IF(J8<=$C$2,K8,K8-(J8-$C$2)),IF(J8>=$C$2,K8,K8-($C$2-J8)))) ->  | O8: =IF(L8="","",IF($AF$50=5,1*H8,IF($AF$50=6,-1*H8,IF($O$1=1,D(IF($AF$50<=2,"C","P"),$C$2,J8,($D$2-NOW())/365,$C$6,$D$6,$B$6),Chg(IF($AF$50<=2,"C","P"),VLOOKUP($O$1,all!$P$2:$R$6,3),$C$2,J8,($D$2-NOW())/365,$C$6,$D$6,$B$6)/IF($O$1>2,100,1))*H8*IF(OR($AF$50=1,$AF$50=3),1,-1)))) ->  | P8: =IF(K8="",0,IF($AF$50>4,$C$2,K8)*(H8*$J$2)*IF(OR($AF$50=1,$AF$50=3,$AF$50=5),1,-1)+(H8*$N$2)) -> 0 | Q8: =IF(AND($AF$50<5,OR($J8=0,$K8=0)),0,AH103) -> 0 | R8: =IF(AND($AF$50<5,OR($J8=0,$K8=0)),0,AJ103) -> 0 | S8: =IF(AND($AF$50<5,OR($J8=0,$K8=0)),0,AL103) -> 0 | T8: =IF(AND($AF$50<5,OR($J8=0,$K8=0)),0,AN103) -> 0 | U8: =IF(AND($AF$50<5,OR($J8=0,$K8=0)),0,AP103) -> 0 | V8: =IF(AND($AF$50<5,OR($J8=0,$K8=0)),0,AR103) -> 0 | W8: =IF(AND($AF$50<5,OR($J8=0,$K8=0)),0,AT103) -> 0 | X8: =IF(AND($AF$50<5,OR($J8=0,$K8=0)),0,AV103) -> 0 | Y8: =IF(AND($AF$50<5,OR($J8=0,$K8=0)),0,AX103) -> 0 | Z8: =IF(AND($AF$50<5,OR($J8=0,$K8=0)),0,AZ103) -> 0 | AA8: =IF(AND($AF$50<5,OR($J8=0,$K8=0)),0,BB103) -> 0 | AD8: =IF(AB8="","",VLOOKUP($AB8,all!$A$6:$D$214,2)) ->  | AE8: =IF(AB8="","",VLOOKUP($AB8,all!$A$6:$D$214,IF(AF50<=2,3,4))) ->  | AF8: 8 | AG8: =MAX(D2,I4:I9) -> 2022-09-16 | AH8: =IF($Q$1=1,AH9,IF($P$10<0,0,AH9/$P$10)) -> -1310 | AI8: =IF($Q$1=1,AI9,IF($P$10<0,0,AI9/$P$10)) -> -1310 | AJ8: -1310 | AK8: -1310 | AL8: -1310 | AM8: -1310 | AN8: -1310 | AO8: -1310 | AP8: -1310 | AQ8: -1310 | AR8: -1310 | AS8: -1310 | AT8: -1310 | AU8: -1310 | AV8: -1310 | AW8: -1310 | AX8: -1310 | AY8: -1310 | AZ8: -1310 | BA8: -1310 | BB8: -1310 | BD8: 100 | BE8: 1
A9: =IF(C2<500,MROUND(C2*0.75,5),MROUND(C2*0.75,50)) -> 125 | B9: ='Y2'!Z2 -> AAPL | F9: 6 | L9: =IF(OR(K9="",K9=0),"",PB(IF(AF58<=2,"C","P"),$C$2,J9,($I$9-NOW())/365,$C$6,$D$6,$B$6)) ->  | M9: =IF(L9="","",V(IF(AF58<=2,"C","P"),$C$2,J9,($I$9-NOW())/365,$C$6,$D$6,K9)) ->  | N9: =IF(OR($AF$58>4,K9=""),"",IF(OR($AF$58=1,$AF$58=3),1,-1)*IF($AF$58>2,IF(J9<=$C$2,K9,K9-(J9-$C$2)),IF(J9>=$C$2,K9,K9-($C$2-J9)))) ->  | O9: =IF(L9="","",IF($AF$58=5,1*H9,IF($AF$58=6,-1*H9,IF($O$1=1,D(IF($AF$58<=2,"C","P"),$C$2,J9,($D$2-NOW())/365,$C$6,$D$6,$B$6),Chg(IF($AF$58<=2,"C","P"),VLOOKUP($O$1,all!$P$2:$R$6,3),$C$2,J9,($D$2-NOW())/365,$C$6,$D$6,$B$6)/IF($O$1>2,100,1))*H9*IF(OR($AF$58=1,$AF$58=3),1,-1)))) ->  | P9: =IF(K9="",0,IF($AF$58>4,$C$2,K9)*(H9*$J$2)*IF(OR($AF$58=1,$AF$58=3,$AF$58=5),1,-1)+(H9*$N$2)) -> 0 | Q9: =IF(AND($AF$50<5,OR($J9=0,$K9=0)),0,AH111) -> 0 | R9: =IF(AND($AF$50<5,OR($J9=0,$K9=0)),0,AJ111) -> 0 | S9: =IF(AND($AF$50<5,OR($J9=0,$K9=0)),0,AL111) -> 0 | T9: =IF(AND($AF$50<5,OR($J9=0,$K9=0)),0,AN111) -> 0 | U9: =IF(AND($AF$50<5,OR($J9=0,$K9=0)),0,AP111) -> 0 | V9: =IF(AND($AF$50<5,OR($J9=0,$K9=0)),0,AR111) -> 0 | W9: =IF(AND($AF$50<5,OR($J9=0,$K9=0)),0,AT111) -> 0 | X9: =IF(AND($AF$50<5,OR($J9=0,$K9=0)),0,AV111) -> 0 | Y9: =IF(AND($AF$50<5,OR($J9=0,$K9=0)),0,AX111) -> 0 | Z9: =IF(AND($AF$50<5,OR($J9=0,$K9=0)),0,AZ111) -> 0 | AA9: =IF(AND($AF$50<5,OR($J9=0,$K9=0)),0,BB111) -> 0 | AD9: =IF(AB9="","",VLOOKUP($AB9,all!$A$6:$D$214,2)) ->  | AE9: =IF(AB9="","",VLOOKUP($AB9,all!$A$6:$D$214,IF(AF58<=2,3,4))) ->  | AH9: =ROUND(SUM(AH2:AH7),1) -> -1310 | AI9: =ROUND(SUM(AI2:AI7),1) -> -1310 | AJ9: -1310 | AK9: -1310 | AL9: -1310 | AM9: -1310 | AN9: -1310 | AO9: -1310 | AP9: -1310 | AQ9: -1310 | AR9: -1310 | AS9: -1310 | AT9: -1310 | AU9: -1310 | AV9: -1310 | AW9: -1310 | AX9: -1310 | AY9: -1310 | AZ9: -1310 | BA9: -1310 | BB9: -1310 | BD9: 250 | BE9: 2.5
M10: total spread: | N10: =SUM(N4:N9) -> 13.1 | O10: =SUM(O4:O9) -> 0 | P10: =SUM(P4:P9) -> 1314 | Q10: =AH113 -> -1309.6 | R10: =AJ113 -> -1308.5 | S10: =AL113 -> -1305.3 | T10: =AN113 -> -1298.5 | U10: =AP113 -> -1286.7 | V10: =AR113 -> -1268.1 | W10: =AT113 -> -1241.8 | X10: =AV113 -> -1207.1 | Y10: =AX113 -> -1164 | Z10: =AZ113 -> -1112.9 | AA10: =BB113 -> -1054.5 | AH10: PL AT EXPIRATION | BD10: 500 | BE10: 5
A11: OPTIONS CHAIN | F11: SPREADS GENERATOR | H11: =IF(AC13="c",I11,IF(ISERROR(MATCH(H13,$A$14:$A$113,1)),0,MATCH(H13,$A$14:$A$113,1))) -> 53 | I11: =IF(ISERROR(MATCH(H13,$A$119:$A$217,1)),0,MATCH(H13,$A$119:$A$217,1)+105) -> 126 | J11: =IF(ISERROR(MATCH(J13,$A$14:$A$113,1)),0,MATCH(J13,$A$14:$A$113,1)) -> 55 | L11: =IF(ISERROR(IF(L13=0,0,MATCH(L13,$A$14:$A$113,1))),0,IF(L13=0,0,MATCH(L13,$A$14:$A$113,1))) -> 59 | N11: =IF(ISERROR(IF(N13=0,0,MATCH(N13,$A$14:$A$113,1))),0,IF(N13=0,0,MATCH(N13,$A$14:$A$113,1))) -> 61 | T11: =VLOOKUP($F$13,$F$14:$AE$513,15) -> 0 | Y11: =IF(Y13=0,0,1) -> 1 | Z11: =IF(Z13=0,0,IF(AC13="x",2,1)) -> 1 | AA11: =IF(AA13=0,0,IF($AC$13="m",2,1)) -> 1 | AB11: =IF(AB13=0,0,IF($AC$13="m",2,1)) -> 1 | AH11: =Q3 -> 83.96 | AI11: =AI1 -> 92.356 | AJ11: =R3 -> 100.752 | AK11: =AK1 -> 109.148 | AL11: =S3 -> 117.544 | AM11: =AM1 -> 125.94 | AN11: =T3 -> 134.336 | AO11: =AO1 -> 142.732 | AP11: =U3 -> 151.128 | AQ11: =AQ1 -> 159.524 | AR11: =V3 -> 167.92 | AS11: =AS1 -> 176.316 | AT11: =W3 -> 184.712 | AU11: =AU1 -> 193.108 | AV11: =X3 -> 201.504 | AW11: =AW1 -> 209.9 | AX11: =Y3 -> 218.296 | AY11: =AY1 -> 226.692 | AZ11: =Z3 -> 235.088 | BA11: =BA1 -> 243.484 | BB11: =AA3 -> 251.88 | BD11: 1000 | BE11: 10
A12: STRIKE | B12: CALLS | C12: =IF(#REF!="?",COUNTIF(#REF!,"?"),0) ->  | D12: PUTS | E12: =MATCH(C2,$A$14:$A$113) -> 56 | G12: custom | H12: strike 1 | I12: prem 1 | J12: strike 2 | K12: prem 2 | L12: strike 3 | M12: prem 3 | N12: strike 4 | O12: prem 4 | P12: max risk(cost) | Q12: max reward | R12: breakeven | S12: be 2 | T12: prob of profit | U12: rew / risk | V12: prob x rr | W12: cost | X12: max return | Y12: 1 | Z12: 2 | AA12: 3 | AB12: 4 | AC12: 2x | AF12: 1 | AG12: buy call _/ | AH12: =$H$4*$J$2*IF($J$4<AH$11,AH$11-$J$4-$K$4,-$K$4) -> -17700 | AI12: -17700 | AJ12: -17700 | AK12: -17700 | AL12: -17700 | AM12: -17700 | AN12: -17700 | AO12: -17700 | AP12: -17700 | AQ12: -17700 | AR12: -17700 | AS12: -17700 | AT12: -17700 | AU12: -17700 | AV12: -17700 | AW12: -17700 | AX12: -17700 | AY12: -17700 | AZ12: -17700 | BA12: -17700 | BB12: -17700 | BD12: 5000 | BE12: 50
B13: prem | C13: theo | D13: prem | E13: theo | F13: 85 | G13: =VLOOKUP($F$13,$F$14:$AE$513,2) -> butterfly call _/'''\_ (b160c+s165c + s175c+b180c) | H13: =VLOOKUP($F$13,$F$14:$AE$553,3) -> 160 | I13: =VLOOKUP($F$13,$F$14:$AE$553,4) -> 9.75 | J13: =VLOOKUP($F$13,$F$14:$AE$553,5) -> 165 | K13: =VLOOKUP($F$13,$F$14:$AE$553,6) -> 6.13 | L13: =VLOOKUP($F$13,$F$14:$AE$553,7) -> 175 | M13: =VLOOKUP($F$13,$F$14:$AE$553,8) -> 1.4 | N13: =VLOOKUP($F$13,$F$14:$AE$553,9) -> 180 | O13: =VLOOKUP($F$13,$F$14:$AE$553,10) -> 0.49 | P13: =VLOOKUP($F$13,$F$14:$AE$553,11) -> 0 | Q13: =VLOOKUP($F$13,$F$14:$AE$553,12) -> 0 | R13: =VLOOKUP($F$13,$F$14:$AE$553,13) -> 0 | S13: =VLOOKUP($F$13,$F$14:$AE$553,14) -> 0 | T13: =IF(all!$T$1=1,T11,CONCATENATE(MID(TEXT(T11/(1-T11),"00/00"),FIND("/",TEXT(T11/(1-T11),"00/00"))+1,2)," to ",LEFT(TEXT(T11/(1-T11),"00/00"),FIND("/",TEXT(T11/(1-T11),"00/00"))-1))) -> 0 | U13: =VLOOKUP($F$13,$F$14:$AE$553,16) -> 0 | V13: =VLOOKUP($F$13,$F$14:$AE$553,17) -> 0 | W13: =VLOOKUP($F$13,$F$14:$AE$553,18) -> 102.71 | X13: =VLOOKUP($F$13,$F$14:$AE$553,19) -> 0 | Y13: =VLOOKUP($F$13,$F$14:$AE$553,20) -> 1 | Z13: =VLOOKUP($F$13,$F$14:$AE$553,21) -> 2 | AA13: =VLOOKUP($F$13,$F$14:$AE$553,22) -> 2 | AB13: =VLOOKUP($F$13,$F$14:$AE$553,23) -> 1 | AC13: =VLOOKUP($F$13,$F$14:$AE$553,24) -> 0 | AF13: 2 | AG13: sell call '''\ | AH13: =-AH12 -> 17700 | AI13: =-AI12 -> 17700 | AJ13: 17700 | AK13: 17700 | AL13: 17700 | AM13: 17700 | AN13: 17700 | AO13: 17700 | AP13: 17700 | AQ13: 17700 | AR13: 17700 | AS13: 17700 | AT13: 17700 | AU13: 17700 | AV13: 17700 | AW13: 17700 | AX13: 17700 | AY13: 17700 | AZ13: 17700 | BA13: 17700 | BB13: 17700 | BD13: 10000 | BE13: 100
A14: =IF(OR('Y2'!$W$1=6,('Y2'!$W$1=7)),IF(OFFSET(#REF!,$C$12,0)="?","",OFFSET(#REF!,$C$12,0)),'Y2'!AA7) -> 40 | B14: =IF(OR('Y2'!$W$1=6,('Y2'!$W$1=7)),IF(A14="","",MAX(AVERAGE(OFFSET(#REF!,$C$12,0),OFFSET(#REF!,$C$12,0)),0)),'Y2'!AB7) -> 127 | C14: =IF(all!$AQ$1=1,all!AR6,IF(all!$AQ$1=2,all!AT6*100,IF(all!$AQ$1=3,all!AV6,all!AX6))) -> 127.7693028 | D14: =IF(OR('Y2'!$W$1=6,('Y2'!$W$1=7)),IF(A14="","",MAX(AVERAGE(OFFSET(#REF!,$C$12,0),OFFSET(#REF!,$C$12,0)),0)),'Y2'!AC7) -> 0.01 | E14: =IF(all!$AP$3=1,all!AS6,IF(all!$AP$3=2,all!AU6*100,IF(all!$AP$3=3,all!AW6,all!AY6))) -> 0 | G14: =CONCATENATE("") ->  | AF14: 3 | AG14: buy put \_ | AH14: =$H$4*$J$2*IF($J$4>AH$11,$J$4-AH$11-$K$4,-$K$4) -> 10904 | AI14: 10064.4 | AJ14: 9224.8 | AK14: 8385.2 | AL14: 7545.6 | AM14: 6706 | AN14: 5866.4 | AO14: 5026.8 | AP14: 4187.2 | AQ14: 3347.6 | AR14: 2508 | AS14: 1668.4 | AT14: 828.8 | AU14: -10.8 | AV14: -850.4 | AW14: -1690 | AX14: -2529.6 | AY14: -3369.2 | AZ14: -4208.8 | BA14: -5048.4 | BB14: -5888
A15: =IF(OR('Y2'!$W$1=6,('Y2'!$W$1=7)),IF(OFFSET(#REF!,$C$12,0)="?","",OFFSET(#REF!,$C$12,0)),'Y2'!AA8) -> 41.25 | B15: =IF(OR('Y2'!$W$1=6,('Y2'!$W$1=7)),IF(A15="","",MAX(AVERAGE(OFFSET(#REF!,$C$12,0),OFFSET(#REF!,$C$12,0)),0)),'Y2'!AB8) -> 125.95 | C15: =IF(all!$AQ$1=1,all!AR7,IF(all!$AQ$1=2,all!AT7*100,IF(all!$AQ$1=3,all!AV7,all!AX7))) -> 126.5199397 | D15: =IF(OR('Y2'!$W$1=6,('Y2'!$W$1=7)),IF(A15="","",MAX(AVERAGE(OFFSET(#REF!,$C$12,0),OFFSET(#REF!,$C$12,0)),0)),'Y2'!AC8) -> 0.01 | E15: =IF(all!$AP$3=1,all!AS7,IF(all!$AP$3=2,all!AU7*100,IF(all!$AP$3=3,all!AW7,all!AY7))) -> 0 | AF15: 4 | AG15: sell put /''' | AH15: =-AH14 -> -10904 | AI15: =-AI14 -> -10064.4 | AJ15: -9224.8 | AK15: -8385.2 | AL15: -7545.6 | AM15: -6706 | AN15: -5866.4 | AO15: -5026.8 | AP15: -4187.2 | AQ15: -3347.6 | AR15: -2508 | AS15: -1668.4 | AT15: -828.8 | AU15: 10.8 | AV15: 850.4 | AW15: 1690 | AX15: 2529.6 | AY15: 3369.2 | AZ15: 4208.8 | BA15: 5048.4 | BB15: 5888
A16: =IF(OR('Y2'!$W$1=6,('Y2'!$W$1=7)),IF(OFFSET(#REF!,$C$12,0)="?","",OFFSET(#REF!,$C$12,0)),'Y2'!AA9) -> 42.5 | B16: =IF(OR('Y2'!$W$1=6,('Y2'!$W$1=7)),IF(A16="","",MAX(AVERAGE(OFFSET(#REF!,$C$12,0),OFFSET(#REF!,$C$12,0)),0)),'Y2'!AB9) -> 125.1 | C16: =IF(all!$AQ$1=1,all!AR8,IF(all!$AQ$1=2,all!AT8*100,IF(all!$AQ$1=3,all!AV8,all!AX8))) -> 125.2705766 | D16: =IF(OR('Y2'!$W$1=6,('Y2'!$W$1=7)),IF(A16="","",MAX(AVERAGE(OFFSET(#REF!,$C$12,0),OFFSET(#REF!,$C$12,0)),0)),'Y2'!AC9) -> 0.02 | E16: =IF(all!$AP$3=1,all!AS8,IF(all!$AP$3=2,all!AU8*100,IF(all!$AP$3=3,all!AW8,all!AY8))) -> 0 | AF16: 5 | AG16: buy under \ | AH16: =$H$4*$J$2*(AH$11-$C$2) -> -8396 | AI16: -7556.4 | AJ16: -6716.8 | AK16: -5877.2 | AL16: -5037.6 | AM16: -4198 | AN16: -3358.4 | AO16: -2518.8 | AP16: -1679.2 | AQ16: -839.6 | AR16: 0 | AS16: 839.6 | AT16: 1679.2 | AU16: 2518.8 | AV16: 3358.4 | AW16: 4198 | AX16: 5037.6 | AY16: 5877.2 | AZ16: 6716.8 | BA16: 7556.4 | BB16: 8396
A17: =IF(OR('Y2'!$W$1=6,('Y2'!$W$1=7)),IF(OFFSET(#REF!,$C$12,0)="?","",OFFSET(#REF!,$C$12,0)),'Y2'!AA10) -> 43.75 | B17: =IF(OR('Y2'!$W$1=6,('Y2'!$W$1=7)),IF(A17="","",MAX(AVERAGE(OFFSET(#REF!,$C$12,0),OFFSET(#REF!,$C$12,0)),0)),'Y2'!AB10) -> 123.7 | C17: =IF(all!$AQ$1=1,all!AR9,IF(all!$AQ$1=2,all!AT9*100,IF(all!$AQ$1=3,all!AV9,all!AX9))) -> 124.0212136 | D17: =IF(OR('Y2'!$W$1=6,('Y2'!$W$1=7)),IF(A17="","",MAX(AVERAGE(OFFSET(#REF!,$C$12,0),OFFSET(#REF!,$C$12,0)),0)),'Y2'!AC10) -> 0.01 | E17: =IF(all!$AP$3=1,all!AS9,IF(all!$AP$3=2,all!AU9*100,IF(all!$AP$3=3,all!AW9,all!AY9))) -> 0 | AF17: 6 | AG17: sell under / | AH17: =-AH16 -> 8396 | AI17: =-AI16 -> 7556.4 | AJ17: 6716.8 | AK17: 5877.2 | AL17: 5037.6 | AM17: 4198 | AN17: 3358.4 | AO17: 2518.8 | AP17: 1679.2 | AQ17: 839.6 | AR17: 0 | AS17: -839.6 | AT17: -1679.2 | AU17: -2518.8 | AV17: -3358.4 | AW17: -4198 | AX17: -5037.6 | AY17: -5877.2 | AZ17: -6716.8 | BA17: -7556.4 | BB17: -8396
A18: =IF(OR('Y2'!$W$1=6,('Y2'!$W$1=7)),IF(OFFSET(#REF!,$C$12,0)="?","",OFFSET(#REF!,$C$12,0)),'Y2'!AA11) -> 45 | B18: =IF(OR('Y2'!$W$1=6,('Y2'!$W$1=7)),IF(A18="","",MAX(AVERAGE(OFFSET(#REF!,$C$12,0),OFFSET(#REF!,$C$12,0)),0)),'Y2'!AB11) -> 122.85 | C18: =IF(all!$AQ$1=1,all!AR10,IF(all!$AQ$1=2,all!AT10*100,IF(all!$AQ$1=3,all!AV10,all!AX10))) -> 122.7718505 | D18: =IF(OR('Y2'!$W$1=6,('Y2'!$W$1=7)),IF(A18="","",MAX(AVERAGE(OFFSET(#REF!,$C$12,0),OFFSET(#REF!,$C$12,0)),0)),'Y2'!AC11) -> 0.01 | E18: =IF(all!$AP$3=1,all!AS10,IF(all!$AP$3=2,all!AU10*100,IF(all!$AP$3=3,all!AW10,all!AY10))) -> 0 | AF18: 1 | AG18: one | AH18: =IF($AF$18=0,0,VLOOKUP($AF$18,$AF$12:$BB$17,AH$116)) -> -17700 | AI18: =IF($AF$18=0,0,VLOOKUP($AF$18,$AF$12:$BB$17,AI$116)) -> -17700 | AJ18: -17700 | AK18: -17700 | AL18: -17700 | AM18: -17700 | AN18: -17700 | AO18: -17700 | AP18: -17700 | AQ18: -17700 | AR18: -17700 | AS18: -17700 | AT18: -17700 | AU18: -17700 | AV18: -17700 | AW18: -17700 | AX18: -17700 | AY18: -17700 | AZ18: -17700 | BA18: -17700 | BB18: -17700
A19: =IF(OR('Y2'!$W$1=6,('Y2'!$W$1=7)),IF(OFFSET(#REF!,$C$12,0)="?","",OFFSET(#REF!,$C$12,0)),'Y2'!AA12) -> 46.25 | B19: =IF(OR('Y2'!$W$1=6,('Y2'!$W$1=7)),IF(A19="","",MAX(AVERAGE(OFFSET(#REF!,$C$12,0),OFFSET(#REF!,$C$12,0)),0)),'Y2'!AB12) -> 127.55 | C19: =IF(all!$AQ$1=1,all!AR11,IF(all!$AQ$1=2,all!AT11*100,IF(all!$AQ$1=3,all!AV11,all!AX11))) -> 121.5224874 | D19: =IF(OR('Y2'!$W$1=6,('Y2'!$W$1=7)),IF(A19="","",MAX(AVERAGE(OFFSET(#REF!,$C$12,0),OFFSET(#REF!,$C$12,0)),0)),'Y2'!AC12) -> 0.01 | E19: =IF(all!$AP$3=1,all!AS11,IF(all!$AP$3=2,all!AU11*100,IF(all!$AP$3=3,all!AW11,all!AY11))) -> 0
A20: =IF(OR('Y2'!$W$1=6,('Y2'!$W$1=7)),IF(OFFSET(#REF!,$C$12,0)="?","",OFFSET(#REF!,$C$12,0)),'Y2'!AA13) -> 47.5 | B20: =IF(OR('Y2'!$W$1=6,('Y2'!$W$1=7)),IF(A20="","",MAX(AVERAGE(OFFSET(#REF!,$C$12,0),OFFSET(#REF!,$C$12,0)),0)),'Y2'!AB13) -> 119.2 | C20: =IF(all!$AQ$1=1,all!AR12,IF(all!$AQ$1=2,all!AT12*100,IF(all!$AQ$1=3,all!AV12,all!AX12))) -> 120.2731243 | D20: =IF(OR('Y2'!$W$1=6,('Y2'!$W$1=7)),IF(A20="","",MAX(AVERAGE(OFFSET(#REF!,$C$12,0),OFFSET(#REF!,$C$12,0)),0)),'Y2'!AC13) -> 0.01 | E20: =IF(all!$AP$3=1,all!AS12,IF(all!$AP$3=2,all!AU12*100,IF(all!$AP$3=3,all!AW12,all!AY12))) -> 0 | AF20: 1 | AG20: buy call _/ | AH20: =$H$5*$J$2*IF($J$5<AH$11,AH$11-$J$5-$K$5,-$K$5) -> -16390 | AI20: -16390 | AJ20: -16390 | AK20: -16390 | AL20: -16390 | AM20: -16390 | AN20: -16390 | AO20: -16390 | AP20: -16390 | AQ20: -16390 | AR20: -16390 | AS20: -16390 | AT20: -16390 | AU20: -16390 | AV20: -16390 | AW20: -16390 | AX20: -16390 | AY20: -16390 | AZ20: -16390 | BA20: -16390 | BB20: -16390
A21: =IF(OR('Y2'!$W$1=6,('Y2'!$W$1=7)),IF(OFFSET(#REF!,$C$12,0)="?","",OFFSET(#REF!,$C$12,0)),'Y2'!AA14) -> 48.75 | B21: =IF(OR('Y2'!$W$1=6,('Y2'!$W$1=7)),IF(A21="","",MAX(AVERAGE(OFFSET(#REF!,$C$12,0),OFFSET(#REF!,$C$12,0)),0)),'Y2'!AB14) -> 123.05 | C21: =IF(all!$AQ$1=1,all!AR13,IF(all!$AQ$1=2,all!AT13*100,IF(all!$AQ$1=3,all!AV13,all!AX13))) -> 119.0237612 | D21: =IF(OR('Y2'!$W$1=6,('Y2'!$W$1=7)),IF(A21="","",MAX(AVERAGE(OFFSET(#REF!,$C$12,0),OFFSET(#REF!,$C$12,0)),0)),'Y2'!AC14) -> 0.01 | E21: =IF(all!$AP$3=1,all!AS13,IF(all!$AP$3=2,all!AU13*100,IF(all!$AP$3=3,all!AW13,all!AY13))) -> 0 | AF21: 2 | AG21: sell call '''\ | AH21: =-AH20 -> 16390 | AI21: 16390 | AJ21: 16390 | AK21: 16390 | AL21: 16390 | AM21: 16390 | AN21: 16390 | AO21: 16390 | AP21: 16390 | AQ21: 16390 | AR21: 16390 | AS21: 16390 | AT21: 16390 | AU21: 16390 | AV21: 16390 | AW21: 16390 | AX21: 16390 | AY21: 16390 | AZ21: 16390 | BA21: 16390 | BB21: 16390
A22: =IF(OR('Y2'!$W$1=6,('Y2'!$W$1=7)),IF(OFFSET(#REF!,$C$12,0)="?","",OFFSET(#REF!,$C$12,0)),'Y2'!AA15) -> 50 | B22: =IF(OR('Y2'!$W$1=6,('Y2'!$W$1=7)),IF(A22="","",MAX(AVERAGE(OFFSET(#REF!,$C$12,0),OFFSET(#REF!,$C$12,0)),0)),'Y2'!AB15) -> 116.8 | C22: =IF(all!$AQ$1=1,all!AR14,IF(all!$AQ$1=2,all!AT14*100,IF(all!$AQ$1=3,all!AV14,all!AX14))) -> 117.7743982 | D22: =IF(OR('Y2'!$W$1=6,('Y2'!$W$1=7)),IF(A22="","",MAX(AVERAGE(OFFSET(#REF!,$C$12,0),OFFSET(#REF!,$C$12,0)),0)),'Y2'!AC15) -> 0.01 | E22: =IF(all!$AP$3=1,all!AS14,IF(all!$AP$3=2,all!AU14*100,IF(all!$AP$3=3,all!AW14,all!AY14))) -> 0 | AF22: 3 | AG22: buy put \_ | AH22: =$H$5*$J$2*IF($J$5>AH$11,$J$5-AH$11-$K$5,-$K$5) -> 14214 | AI22: 13374.4 | AJ22: 12534.8 | AK22: 11695.2 | AL22: 10855.6 | AM22: 10016 | AN22: 9176.4 | AO22: 8336.8 | AP22: 7497.2 | AQ22: 6657.6 | AR22: 5818 | AS22: 4978.4 | AT22: 4138.8 | AU22: 3299.2 | AV22: 2459.6 | AW22: 1620 | AX22: 780.4 | AY22: -59.2 | AZ22: -898.8 | BA22: -1738.4 | BB22: -2578
A23: =IF(OR('Y2'!$W$1=6,('Y2'!$W$1=7)),IF(OFFSET(#REF!,$C$12,0)="?","",OFFSET(#REF!,$C$12,0)),'Y2'!AA16) -> 52.5 | B23: =IF(OR('Y2'!$W$1=6,('Y2'!$W$1=7)),IF(A23="","",MAX(AVERAGE(OFFSET(#REF!,$C$12,0),OFFSET(#REF!,$C$12,0)),0)),'Y2'!AB16) -> 115.35 | C23: =IF(all!$AQ$1=1,all!AR15,IF(all!$AQ$1=2,all!AT15*100,IF(all!$AQ$1=3,all!AV15,all!AX15))) -> 115.275672 | D23: =IF(OR('Y2'!$W$1=6,('Y2'!$W$1=7)),IF(A23="","",MAX(AVERAGE(OFFSET(#REF!,$C$12,0),OFFSET(#REF!,$C$12,0)),0)),'Y2'!AC16) -> 0.02 | E23: =IF(all!$AP$3=1,all!AS15,IF(all!$AP$3=2,all!AU15*100,IF(all!$AP$3=3,all!AW15,all!AY15))) -> 0 | AF23: 4 | AG23: sell put /''' | AH23: =-AH22 -> -14214 | AI23: -13374.4 | AJ23: -12534.8 | AK23: -11695.2 | AL23: -10855.6 | AM23: -10016 | AN23: -9176.4 | AO23: -8336.8 | AP23: -7497.2 | AQ23: -6657.6 | AR23: -5818 | AS23: -4978.4 | AT23: -4138.8 | AU23: -3299.2 | AV23: -2459.6 | AW23: -1620 | AX23: -780.4 | AY23: 59.2 | AZ23: 898.8 | BA23: 1738.4 | BB23: 2578
A24: =IF(OR('Y2'!$W$1=6,('Y2'!$W$1=7)),IF(OFFSET(#REF!,$C$12,0)="?","",OFFSET(#REF!,$C$12,0)),'Y2'!AA17) -> 55 | B24: =IF(OR('Y2'!$W$1=6,('Y2'!$W$1=7)),IF(A24="","",MAX(AVERAGE(OFFSET(#REF!,$C$12,0),OFFSET(#REF!,$C$12,0)),0)),'Y2'!AB17) -> 111.7 | C24: =IF(all!$AQ$1=1,all!AR16,IF(all!$AQ$1=2,all!AT16*100,IF(all!$AQ$1=3,all!AV16,all!AX16))) -> 112.7769458 | D24: =IF(OR('Y2'!$W$1=6,('Y2'!$W$1=7)),IF(A24="","",MAX(AVERAGE(OFFSET(#REF!,$C$12,0),OFFSET(#REF!,$C$12,0)),0)),'Y2'!AC17) -> 0.01 | E24: =IF(all!$AP$3=1,all!AS16,IF(all!$AP$3=2,all!AU16*100,IF(all!$AP$3=3,all!AW16,all!AY16))) -> 0 | AF24: 5 | AG24: buy under \ | AH24: =$H$5*$J$2*(AH$11-$C$2) -> -8396 | AI24: -7556.4 | AJ24: -6716.8 | AK24: -5877.2 | AL24: -5037.6 | AM24: -4198 | AN24: -3358.4 | AO24: -2518.8 | AP24: -1679.2 | AQ24: -839.6 | AR24: 0 | AS24: 839.6 | AT24: 1679.2 | AU24: 2518.8 | AV24: 3358.4 | AW24: 4198 | AX24: 5037.6 | AY24: 5877.2 | AZ24: 6716.8 | BA24: 7556.4 | BB24: 8396
A25: =IF(OR('Y2'!$W$1=6,('Y2'!$W$1=7)),IF(OFFSET(#REF!,$C$12,0)="?","",OFFSET(#REF!,$C$12,0)),'Y2'!AA18) -> 57.5 | B25: =IF(OR('Y2'!$W$1=6,('Y2'!$W$1=7)),IF(A25="","",MAX(AVERAGE(OFFSET(#REF!,$C$12,0),OFFSET(#REF!,$C$12,0)),0)),'Y2'!AB18) -> 110.55 | C25: =IF(all!$AQ$1=1,all!AR17,IF(all!$AQ$1=2,all!AT17*100,IF(all!$AQ$1=3,all!AV17,all!AX17))) -> 110.2782197 | D25: =IF(OR('Y2'!$W$1=6,('Y2'!$W$1=7)),IF(A25="","",MAX(AVERAGE(OFFSET(#REF!,$C$12,0),OFFSET(#REF!,$C$12,0)),0)),'Y2'!AC18) -> 0.01 | E25: =IF(all!$AP$3=1,all!AS17,IF(all!$AP$3=2,all!AU17*100,IF(all!$AP$3=3,all!AW17,all!AY17))) -> 0 | AF25: 6 | AG25: sell under / | AH25: =-AH24 -> 8396 | AI25: =-AI24 -> 7556.4 | AJ25: 6716.8 | AK25: 5877.2 | AL25: 5037.6 | AM25: 4198 | AN25: 3358.4 | AO25: 2518.8 | AP25: 1679.2 | AQ25: 839.6 | AR25: 0 | AS25: -839.6 | AT25: -1679.2 | AU25: -2518.8 | AV25: -3358.4 | AW25: -4198 | AX25: -5037.6 | AY25: -5877.2 | AZ25: -6716.8 | BA25: -7556.4 | BB25: -8396
A26: =IF(OR('Y2'!$W$1=6,('Y2'!$W$1=7)),IF(OFFSET(#REF!,$C$12,0)="?","",OFFSET(#REF!,$C$12,0)),'Y2'!AA19) -> 60 | B26: =IF(OR('Y2'!$W$1=6,('Y2'!$W$1=7)),IF(A26="","",MAX(AVERAGE(OFFSET(#REF!,$C$12,0),OFFSET(#REF!,$C$12,0)),0)),'Y2'!AB19) -> 107.6 | C26: =IF(all!$AQ$1=1,all!AR18,IF(all!$AQ$1=2,all!AT18*100,IF(all!$AQ$1=3,all!AV18,all!AX18))) -> 107.7794935 | D26: =IF(OR('Y2'!$W$1=6,('Y2'!$W$1=7)),IF(A26="","",MAX(AVERAGE(OFFSET(#REF!,$C$12,0),OFFSET(#REF!,$C$12,0)),0)),'Y2'!AC19) -> 0.01 | E26: =IF(all!$AP$3=1,all!AS18,IF(all!$AP$3=2,all!AU18*100,IF(all!$AP$3=3,all!AW18,all!AY18))) -> 0 | AF26: 2 | AG26: one | AH26: =IF($AF$26=0,0,VLOOKUP($AF$26,$AF$20:$BB$25,AH116)) -> 16390 | AI26: =IF($AF$26=0,0,VLOOKUP($AF$26,$AF$20:$BB$25,AI116)) -> 16390 | AJ26: 16390 | AK26: 16390 | AL26: 16390 | AM26: 16390 | AN26: 16390 | AO26: 16390 | AP26: 16390 | AQ26: 16390 | AR26: 16390 | AS26: 16390 | AT26: 16390 | AU26: 16390 | AV26: 16390 | AW26: 16390 | AX26: 16390 | AY26: 16390 | AZ26: 16390 | BA26: 16390 | BB26: 16390
A27: =IF(OR('Y2'!$W$1=6,('Y2'!$W$1=7)),IF(OFFSET(#REF!,$C$12,0)="?","",OFFSET(#REF!,$C$12,0)),'Y2'!AA20) -> 62.5 | B27: =IF(OR('Y2'!$W$1=6,('Y2'!$W$1=7)),IF(A27="","",MAX(AVERAGE(OFFSET(#REF!,$C$12,0),OFFSET(#REF!,$C$12,0)),0)),'Y2'!AB20) -> 104.6 | C27: =IF(all!$AQ$1=1,all!AR19,IF(all!$AQ$1=2,all!AT19*100,IF(all!$AQ$1=3,all!AV19,all!AX19))) -> 105.2807673 | D27: =IF(OR('Y2'!$W$1=6,('Y2'!$W$1=7)),IF(A27="","",MAX(AVERAGE(OFFSET(#REF!,$C$12,0),OFFSET(#REF!,$C$12,0)),0)),'Y2'!AC20) -> 0.01 | E27: =IF(all!$AP$3=1,all!AS19,IF(all!$AP$3=2,all!AU19*100,IF(all!$AP$3=3,all!AW19,all!AY19))) -> 0
A28: =IF(OR('Y2'!$W$1=6,('Y2'!$W$1=7)),IF(OFFSET(#REF!,$C$12,0)="?","",OFFSET(#REF!,$C$12,0)),'Y2'!AA21) -> 65 | B28: =IF(OR('Y2'!$W$1=6,('Y2'!$W$1=7)),IF(A28="","",MAX(AVERAGE(OFFSET(#REF!,$C$12,0),OFFSET(#REF!,$C$12,0)),0)),'Y2'!AB21) -> 102.93 | C28: =IF(all!$AQ$1=1,all!AR20,IF(all!$AQ$1=2,all!AT20*100,IF(all!$AQ$1=3,all!AV20,all!AX20))) -> 102.7820412 | D28: =IF(OR('Y2'!$W$1=6,('Y2'!$W$1=7)),IF(A28="","",MAX(AVERAGE(OFFSET(#REF!,$C$12,0),OFFSET(#REF!,$C$12,0)),0)),'Y2'!AC21) -> 0.01 | E28: =IF(all!$AP$3=1,all!AS20,IF(all!$AP$3=2,all!AU20*100,IF(all!$AP$3=3,all!AW20,all!AY20))) -> 0 | AF28: 1 | AG28: buy call _/ | AH28: =$H$6*$J$2*IF($J$6<AH$11,AH$11-$J$6-$K$6,-$K$6) -> -15044 | AI28: -15044 | AJ28: -15044 | AK28: -15044 | AL28: -15044 | AM28: -15044 | AN28: -15044 | AO28: -15044 | AP28: -15044 | AQ28: -15044 | AR28: -15044 | AS28: -15044 | AT28: -15044 | AU28: -15044 | AV28: -15044 | AW28: -15044 | AX28: -15044 | AY28: -15044 | AZ28: -15044 | BA28: -15044 | BB28: -15044
A29: =IF(OR('Y2'!$W$1=6,('Y2'!$W$1=7)),IF(OFFSET(#REF!,$C$12,0)="?","",OFFSET(#REF!,$C$12,0)),'Y2'!AA22) -> 67.5 | B29: =IF(OR('Y2'!$W$1=6,('Y2'!$W$1=7)),IF(A29="","",MAX(AVERAGE(OFFSET(#REF!,$C$12,0),OFFSET(#REF!,$C$12,0)),0)),'Y2'!AB22) -> 99.6 | C29: =IF(all!$AQ$1=1,all!AR21,IF(all!$AQ$1=2,all!AT21*100,IF(all!$AQ$1=3,all!AV21,all!AX21))) -> 100.283315 | D29: =IF(OR('Y2'!$W$1=6,('Y2'!$W$1=7)),IF(A29="","",MAX(AVERAGE(OFFSET(#REF!,$C$12,0),OFFSET(#REF!,$C$12,0)),0)),'Y2'!AC22) -> 0.04 | E29: =IF(all!$AP$3=1,all!AS21,IF(all!$AP$3=2,all!AU21*100,IF(all!$AP$3=3,all!AW21,all!AY21))) -> 0 | AF29: 2 | AG29: sell call '''\ | AH29: =-AH28 -> 15044 | AI29: 15044 | AJ29: 15044 | AK29: 15044 | AL29: 15044 | AM29: 15044 | AN29: 15044 | AO29: 15044 | AP29: 15044 | AQ29: 15044 | AR29: 15044 | AS29: 15044 | AT29: 15044 | AU29: 15044 | AV29: 15044 | AW29: 15044 | AX29: 15044 | AY29: 15044 | AZ29: 15044 | BA29: 15044 | BB29: 15044
A30: =IF(OR('Y2'!$W$1=6,('Y2'!$W$1=7)),IF(OFFSET(#REF!,$C$12,0)="?","",OFFSET(#REF!,$C$12,0)),'Y2'!AA23) -> 70 | B30: =IF(OR('Y2'!$W$1=6,('Y2'!$W$1=7)),IF(A30="","",MAX(AVERAGE(OFFSET(#REF!,$C$12,0),OFFSET(#REF!,$C$12,0)),0)),'Y2'!AB23) -> 101.8 | C30: =IF(all!$AQ$1=1,all!AR22,IF(all!$AQ$1=2,all!AT22*100,IF(all!$AQ$1=3,all!AV22,all!AX22))) -> 97.78458885 | D30: =IF(OR('Y2'!$W$1=6,('Y2'!$W$1=7)),IF(A30="","",MAX(AVERAGE(OFFSET(#REF!,$C$12,0),OFFSET(#REF!,$C$12,0)),0)),'Y2'!AC23) -> 0.02 | E30: =IF(all!$AP$3=1,all!AS22,IF(all!$AP$3=2,all!AU22*100,IF(all!$AP$3=3,all!AW22,all!AY22))) -> 0 | AF30: 3 | AG30: buy put \_ | AH30: =$H$6*$J$2*IF($J$6>AH$11,$J$6-AH$11-$K$6,-$K$6) -> 17560 | AI30: 16720.4 | AJ30: 15880.8 | AK30: 15041.2 | AL30: 14201.6 | AM30: 13362 | AN30: 12522.4 | AO30: 11682.8 | AP30: 10843.2 | AQ30: 10003.6 | AR30: 9164 | AS30: 8324.4 | AT30: 7484.8 | AU30: 6645.2 | AV30: 5805.6 | AW30: 4966 | AX30: 4126.4 | AY30: 3286.8 | AZ30: 2447.2 | BA30: 1607.6 | BB30: 768
A31: =IF(OR('Y2'!$W$1=6,('Y2'!$W$1=7)),IF(OFFSET(#REF!,$C$12,0)="?","",OFFSET(#REF!,$C$12,0)),'Y2'!AA24) -> 72.5 | B31: =IF(OR('Y2'!$W$1=6,('Y2'!$W$1=7)),IF(A31="","",MAX(AVERAGE(OFFSET(#REF!,$C$12,0),OFFSET(#REF!,$C$12,0)),0)),'Y2'!AB24) -> 95.7 | C31: =IF(all!$AQ$1=1,all!AR23,IF(all!$AQ$1=2,all!AT23*100,IF(all!$AQ$1=3,all!AV23,all!AX23))) -> 95.28586269 | D31: =IF(OR('Y2'!$W$1=6,('Y2'!$W$1=7)),IF(A31="","",MAX(AVERAGE(OFFSET(#REF!,$C$12,0),OFFSET(#REF!,$C$12,0)),0)),'Y2'!AC24) -> 0.01 | E31: =IF(all!$AP$3=1,all!AS23,IF(all!$AP$3=2,all!AU23*100,IF(all!$AP$3=3,all!AW23,all!AY23))) -> 0 | AF31: 4 | AG31: sell put /''' | AH31: =-AH30 -> -17560 | AI31: -16720.4 | AJ31: -15880.8 | AK31: -15041.2 | AL31: -14201.6 | AM31: -13362 | AN31: -12522.4 | AO31: -11682.8 | AP31: -10843.2 | AQ31: -10003.6 | AR31: -9164 | AS31: -8324.4 | AT31: -7484.8 | AU31: -6645.2 | AV31: -5805.6 | AW31: -4966 | AX31: -4126.4 | AY31: -3286.8 | AZ31: -2447.2 | BA31: -1607.6 | BB31: -768
A32: =IF(OR('Y2'!$W$1=6,('Y2'!$W$1=7)),IF(OFFSET(#REF!,$C$12,0)="?","",OFFSET(#REF!,$C$12,0)),'Y2'!AA25) -> 75 | B32: =IF(OR('Y2'!$W$1=6,('Y2'!$W$1=7)),IF(A32="","",MAX(AVERAGE(OFFSET(#REF!,$C$12,0),OFFSET(#REF!,$C$12,0)),0)),'Y2'!AB25) -> 92.45 | C32: =IF(all!$AQ$1=1,all!AR24,IF(all!$AQ$1=2,all!AT24*100,IF(all!$AQ$1=3,all!AV24,all!AX24))) -> 92.78713653 | D32: =IF(OR('Y2'!$W$1=6,('Y2'!$W$1=7)),IF(A32="","",MAX(AVERAGE(OFFSET(#REF!,$C$12,0),OFFSET(#REF!,$C$12,0)),0)),'Y2'!AC25) -> 0.01 | E32: =IF(all!$AP$3=1,all!AS24,IF(all!$AP$3=2,all!AU24*100,IF(all!$AP$3=3,all!AW24,all!AY24))) -> 0 | AF32: 5 | AG32: buy under \ | AH32: =$H$6*$J$2*(AH$11-$C$2) -> -8396 | AI32: -7556.4 | AJ32: -6716.8 | AK32: -5877.2 | AL32: -5037.6 | AM32: -4198 | AN32: -3358.4 | AO32: -2518.8 | AP32: -1679.2 | AQ32: -839.6 | AR32: 0 | AS32: 839.6 | AT32: 1679.2 | AU32: 2518.8 | AV32: 3358.4 | AW32: 4198 | AX32: 5037.6 | AY32: 5877.2 | AZ32: 6716.8 | BA32: 7556.4 | BB32: 8396
A33: =IF(OR('Y2'!$W$1=6,('Y2'!$W$1=7)),IF(OFFSET(#REF!,$C$12,0)="?","",OFFSET(#REF!,$C$12,0)),'Y2'!AA26) -> 76.25 | B33: =IF(OR('Y2'!$W$1=6,('Y2'!$W$1=7)),IF(A33="","",MAX(AVERAGE(OFFSET(#REF!,$C$12,0),OFFSET(#REF!,$C$12,0)),0)),'Y2'!AB26) -> 91.35 | C33: =IF(all!$AQ$1=1,all!AR25,IF(all!$AQ$1=2,all!AT25*100,IF(all!$AQ$1=3,all!AV25,all!AX25))) -> 91.53777345 | D33: =IF(OR('Y2'!$W$1=6,('Y2'!$W$1=7)),IF(A33="","",MAX(AVERAGE(OFFSET(#REF!,$C$12,0),OFFSET(#REF!,$C$12,0)),0)),'Y2'!AC26) -> 0.01 | E33: =IF(all!$AP$3=1,all!AS25,IF(all!$AP$3=2,all!AU25*100,IF(all!$AP$3=3,all!AW25,all!AY25))) -> 0 | F33: no | G33: custom | H33: buy strike | I33: prem | J33: sell strike | K33: prem | L33: strike 3 | M33: prem 3 | N33: strike 4 | O33: prem 4 | P33: max risk(cost) | Q33: max reward | R33: breakeven | S33: be 2 | T33: prob of profit | U33: rew / risk | V33: prob x rr | W33: cost | X33: max return | Y33: 1 | Z33: 2 | AA33: 3 | AB33: 4 | AC33: 2x | AE33: match | AF33: 6 | AG33: sell under / | AH33: =-AH32 -> 8396 | AI33: =-AI32 -> 7556.4 | AJ33: 6716.8 | AK33: 5877.2 | AL33: 5037.6 | AM33: 4198 | AN33: 3358.4 | AO33: 2518.8 | AP33: 1679.2 | AQ33: 839.6 | AR33: 0 | AS33: -839.6 | AT33: -1679.2 | AU33: -2518.8 | AV33: -3358.4 | AW33: -4198 | AX33: -5037.6 | AY33: -5877.2 | AZ33: -6716.8 | BA33: -7556.4 | BB33: -8396
A34: =IF(OR('Y2'!$W$1=6,('Y2'!$W$1=7)),IF(OFFSET(#REF!,$C$12,0)="?","",OFFSET(#REF!,$C$12,0)),'Y2'!AA27) -> 77.5 | B34: =IF(OR('Y2'!$W$1=6,('Y2'!$W$1=7)),IF(A34="","",MAX(AVERAGE(OFFSET(#REF!,$C$12,0),OFFSET(#REF!,$C$12,0)),0)),'Y2'!AB27) -> 89.85 | C34: =IF(all!$AQ$1=1,all!AR26,IF(all!$AQ$1=2,all!AT26*100,IF(all!$AQ$1=3,all!AV26,all!AX26))) -> 90.28841037 | D34: =IF(OR('Y2'!$W$1=6,('Y2'!$W$1=7)),IF(A34="","",MAX(AVERAGE(OFFSET(#REF!,$C$12,0),OFFSET(#REF!,$C$12,0)),0)),'Y2'!AC27) -> 0.01 | E34: =IF(all!$AP$3=1,all!AS26,IF(all!$AP$3=2,all!AU26*100,IF(all!$AP$3=3,all!AW26,all!AY26))) -> 0 | F34: 1 | G34: =IF($AE34=1,VLOOKUP($F34,all!$E$14:$AD$553,3),"") -> strangle otm /\ (s170c+s170p) | H34: =IF($AE34=1,VLOOKUP($F34,all!$E$14:$AD$553,4),"") -> 170 | I34: =IF($AE34=1,VLOOKUP($F34,all!$E$14:$AD$553,5),"") -> 3.3 | J34: =IF($AE34=1,VLOOKUP($F34,all!$E$14:$AD$553,6),"") -> 170 | K34: =IF($AE34=1,VLOOKUP($F34,all!$E$14:$AD$553,7),"") -> 5.45 | L34: =IF($AE34=1,VLOOKUP($F34,all!$E$14:$AD$553,8),"") -> 0 | M34: =IF($AE34=1,VLOOKUP($F34,all!$E$14:$AD$553,9),"") -> 0 | N34: =IF($AE34=1,VLOOKUP($F34,all!$E$14:$AD$553,10),"") -> 0 | O34: =IF($AE34=1,VLOOKUP($F34,all!$E$14:$AD$553,11),"") -> 0 | P34: =IF($AE34=1,VLOOKUP($F34,all!$E$14:$AD$553,12),"") -> unlim risk | Q34: =IF($AE34=1,VLOOKUP($F34,all!$E$14:$AD$553,13),"") -> 875 | R34: =IF($AE34=1,VLOOKUP($F34,all!$E$14:$AD$553,14),"") -> 161.25 | S34: =IF($AE34=1,VLOOKUP($F34,all!$E$14:$AD$553,15),"") -> 178.75 | T34: =IF($AE34=1,VLOOKUP($F34,all!$E$14:$AD$553,16),"") -> 0.6504207056 | U34: =IF($AE34=1,VLOOKUP($F34,all!$E$14:$AD$553,17),"") -> unlim risk | V34: =IF($AE34=1,VLOOKUP($F34,all!$E$14:$AD$553,18),"") -> unlim risk | W34: =IF($AE34=1,VLOOKUP($F34,all!$E$14:$AD$553,19),"") -> 16792 | X34: =IF($AE34=1,VLOOKUP($F34,all!$E$14:$AD$553,20),"") -> 0.05210814674 | Y34: =IF($AE34=1,VLOOKUP($F34,all!$E$14:$AD$553,21),"") -> 2 | Z34: =IF($AE34=1,VLOOKUP($F34,all!$E$14:$AD$553,22),"") -> 4 | AA34: =IF($AE34=1,VLOOKUP($F34,all!$E$14:$AD$553,23),"") -> 0 | AB34: =IF($AE34=1,VLOOKUP($F34,all!$E$14:$AD$553,24),"") -> 0 | AC34: =IF($AE34=1,VLOOKUP($F34,all!$E$14:$AD$553,25),"") -> 0 | AE34: =COUNTIF(all!$E$14:$E$553,F34) -> 1 | AF34: 2 | AG34: one | AH34: =IF($AF$34=0,0,VLOOKUP($AF$34,$AF$28:$BB$33,AH116)) -> 15044 | AI34: =IF($AF$34=0,0,VLOOKUP($AF$34,$AF$28:$BB$33,AI116)) -> 15044 | AJ34: 15044 | AK34: 15044 | AL34: 15044 | AM34: 15044 | AN34: 15044 | AO34: 15044 | AP34: 15044 | AQ34: 15044 | AR34: 15044 | AS34: 15044 | AT34: 15044 | AU34: 15044 | AV34: 15044 | AW34: 15044 | AX34: 15044 | AY34: 15044 | AZ34: 15044 | BA34: 15044 | BB34: 15044
A35: =IF(OR('Y2'!$W$1=6,('Y2'!$W$1=7)),IF(OFFSET(#REF!,$C$12,0)="?","",OFFSET(#REF!,$C$12,0)),'Y2'!AA28) -> 78.75 | B35: =IF(OR('Y2'!$W$1=6,('Y2'!$W$1=7)),IF(A35="","",MAX(AVERAGE(OFFSET(#REF!,$C$12,0),OFFSET(#REF!,$C$12,0)),0)),'Y2'!AB28) -> 89.5 | C35: =IF(all!$AQ$1=1,all!AR27,IF(all!$AQ$1=2,all!AT27*100,IF(all!$AQ$1=3,all!AV27,all!AX27))) -> 89.03904728 | D35: =IF(OR('Y2'!$W$1=6,('Y2'!$W$1=7)),IF(A35="","",MAX(AVERAGE(OFFSET(#REF!,$C$12,0),OFFSET(#REF!,$C$12,0)),0)),'Y2'!AC28) -> 0.01 | E35: =IF(all!$AP$3=1,all!AS27,IF(all!$AP$3=2,all!AU27*100,IF(all!$AP$3=3,all!AW27,all!AY27))) -> 0 | F35: 2 | G35: =IF($AE35=1,VLOOKUP($F35,all!$E$14:$AD$553,3),"") -> strangle otm /\ (s172.5c+s167.5p) | H35: =IF($AE35=1,VLOOKUP($F35,all!$E$14:$AD$553,4),"") -> 172.5 | I35: =IF($AE35=1,VLOOKUP($F35,all!$E$14:$AD$553,5),"") -> 2.21 | J35: =IF($AE35=1,VLOOKUP($F35,all!$E$14:$AD$553,6),"") -> 167.5 | K35: =IF($AE35=1,VLOOKUP($F35,all!$E$14:$AD$553,7),"") -> 4.25 | L35: =IF($AE35=1,VLOOKUP($F35,all!$E$14:$AD$553,8),"") -> 0 | M35: =IF($AE35=1,VLOOKUP($F35,all!$E$14:$AD$553,9),"") -> 0 | N35: =IF($AE35=1,VLOOKUP($F35,all!$E$14:$AD$553,10),"") -> 0 | O35: =IF($AE35=1,VLOOKUP($F35,all!$E$14:$AD$553,11),"") -> 0 | P35: =IF($AE35=1,VLOOKUP($F35,all!$E$14:$AD$553,12),"") -> unlim risk | Q35: =IF($AE35=1,VLOOKUP($F35,all!$E$14:$AD$553,13),"") -> 646 | R35: =IF($AE35=1,VLOOKUP($F35,all!$E$14:$AD$553,14),"") -> 161.04 | S35: =IF($AE35=1,VLOOKUP($F35,all!$E$14:$AD$553,15),"") -> 178.96 | T35: =IF($AE35=1,VLOOKUP($F35,all!$E$14:$AD$553,16),"") -> 0.6620038341 | U35: =IF($AE35=1,VLOOKUP($F35,all!$E$14:$AD$553,17),"") -> unlim risk | V35: =IF($AE35=1,VLOOKUP($F35,all!$E$14:$AD$553,18),"") -> unlim risk | W35: =IF($AE35=1,VLOOKUP($F35,all!$E$14:$AD$553,19),"") -> 16792 | X35: =IF($AE35=1,VLOOKUP($F35,all!$E$14:$AD$553,20),"") -> 0.03847070033 | Y35: =IF($AE35=1,VLOOKUP($F35,all!$E$14:$AD$553,21),"") -> 2 | Z35: =IF($AE35=1,VLOOKUP($F35,all!$E$14:$AD$553,22),"") -> 4 | AA35: =IF($AE35=1,VLOOKUP($F35,all!$E$14:$AD$553,23),"") -> 0 | AB35: =IF($AE35=1,VLOOKUP($F35,all!$E$14:$AD$553,24),"") -> 0 | AC35: =IF($AE35=1,VLOOKUP($F35,all!$E$14:$AD$553,25),"") -> 0 | AE35: =COUNTIF(all!$E$14:$E$553,F35) -> 1
A36: =IF(OR('Y2'!$W$1=6,('Y2'!$W$1=7)),IF(OFFSET(#REF!,$C$12,0)="?","",OFFSET(#REF!,$C$12,0)),'Y2'!AA29) -> 80 | B36: =IF(OR('Y2'!$W$1=6,('Y2'!$W$1=7)),IF(A36="","",MAX(AVERAGE(OFFSET(#REF!,$C$12,0),OFFSET(#REF!,$C$12,0)),0)),'Y2'!AB29) -> 87.6 | C36: =IF(all!$AQ$1=1,all!AR28,IF(all!$AQ$1=2,all!AT28*100,IF(all!$AQ$1=3,all!AV28,all!AX28))) -> 87.7896842 | D36: =IF(OR('Y2'!$W$1=6,('Y2'!$W$1=7)),IF(A36="","",MAX(AVERAGE(OFFSET(#REF!,$C$12,0),OFFSET(#REF!,$C$12,0)),0)),'Y2'!AC29) -> 0.01 | E36: =IF(all!$AP$3=1,all!AS28,IF(all!$AP$3=2,all!AU28*100,IF(all!$AP$3=3,all!AW28,all!AY28))) -> 0 | F36: 3 | G36: =IF($AE36=1,VLOOKUP($F36,all!$E$14:$AD$553,3),"") -> strangle otm /\ (s175c+s165p) | H36: =IF($AE36=1,VLOOKUP($F36,all!$E$14:$AD$553,4),"") -> 175 | I36: =IF($AE36=1,VLOOKUP($F36,all!$E$14:$AD$553,5),"") -> 1.4 | J36: =IF($AE36=1,VLOOKUP($F36,all!$E$14:$AD$553,6),"") -> 165 | K36: =IF($AE36=1,VLOOKUP($F36,all!$E$14:$AD$553,7),"") -> 3.26 | L36: =IF($AE36=1,VLOOKUP($F36,all!$E$14:$AD$553,8),"") -> 0 | M36: =IF($AE36=1,VLOOKUP($F36,all!$E$14:$AD$553,9),"") -> 0 | N36: =IF($AE36=1,VLOOKUP($F36,all!$E$14:$AD$553,10),"") -> 0 | O36: =IF($AE36=1,VLOOKUP($F36,all!$E$14:$AD$553,11),"") -> 0 | P36: =IF($AE36=1,VLOOKUP($F36,all!$E$14:$AD$553,12),"") -> unlim risk | Q36: =IF($AE36=1,VLOOKUP($F36,all!$E$14:$AD$553,13),"") -> 466 | R36: =IF($AE36=1,VLOOKUP($F36,all!$E$14:$AD$553,14),"") -> 160.34 | S36: =IF($AE36=1,VLOOKUP($F36,all!$E$14:$AD$553,15),"") -> 179.66 | T36: =IF($AE36=1,VLOOKUP($F36,all!$E$14:$AD$553,16),"") -> 0.6988727577 | U36: =IF($AE36=1,VLOOKUP($F36,all!$E$14:$AD$553,17),"") -> unlim risk | V36: =IF($AE36=1,VLOOKUP($F36,all!$E$14:$AD$553,18),"") -> unlim risk | W36: =IF($AE36=1,VLOOKUP($F36,all!$E$14:$AD$553,19),"") -> 16792 | X36: =IF($AE36=1,VLOOKUP($F36,all!$E$14:$AD$553,20),"") -> 0.02775131015 | Y36: =IF($AE36=1,VLOOKUP($F36,all!$E$14:$AD$553,21),"") -> 2 | Z36: =IF($AE36=1,VLOOKUP($F36,all!$E$14:$AD$553,22),"") -> 4 | AA36: =IF($AE36=1,VLOOKUP($F36,all!$E$14:$AD$553,23),"") -> 0 | AB36: =IF($AE36=1,VLOOKUP($F36,all!$E$14:$AD$553,24),"") -> 0 | AC36: =IF($AE36=1,VLOOKUP($F36,all!$E$14:$AD$553,25),"") -> 0 | AE36: =COUNTIF(all!$E$14:$E$553,F36) -> 1 | AF36: 1 | AG36: buy call _/ | AH36: =$H$7*$J$2*IF($J$7<AH$11,AH$11-$J$7-$K$7,-$K$7) -> -15044 | AI36: =$H$7*$J$2*IF($J$7<AI$11,AI$11-$J$7-$K$7,-$K$7) -> -15044 | AJ36: -15044 | AK36: -15044 | AL36: -15044 | AM36: -15044 | AN36: -15044 | AO36: -15044 | AP36: -15044 | AQ36: -15044 | AR36: -15044 | AS36: -15044 | AT36: -15044 | AU36: -15044 | AV36: -15044 | AW36: -15044 | AX36: -15044 | AY36: -15044 | AZ36: -15044 | BA36: -15044 | BB36: -15044
A37: =IF(OR('Y2'!$W$1=6,('Y2'!$W$1=7)),IF(OFFSET(#REF!,$C$12,0)="?","",OFFSET(#REF!,$C$12,0)),'Y2'!AA30) -> 81.25 | B37: =IF(OR('Y2'!$W$1=6,('Y2'!$W$1=7)),IF(A37="","",MAX(AVERAGE(OFFSET(#REF!,$C$12,0),OFFSET(#REF!,$C$12,0)),0)),'Y2'!AB30) -> 87 | C37: =IF(all!$AQ$1=1,all!AR29,IF(all!$AQ$1=2,all!AT29*100,IF(all!$AQ$1=3,all!AV29,all!AX29))) -> 86.54032112 | D37: =IF(OR('Y2'!$W$1=6,('Y2'!$W$1=7)),IF(A37="","",MAX(AVERAGE(OFFSET(#REF!,$C$12,0),OFFSET(#REF!,$C$12,0)),0)),'Y2'!AC30) -> 0.01 | E37: =IF(all!$AP$3=1,all!AS29,IF(all!$AP$3=2,all!AU29*100,IF(all!$AP$3=3,all!AW29,all!AY29))) -> 0 | F37: 4 | G37: =IF($AE37=1,VLOOKUP($F37,all!$E$14:$AD$553,3),"") -> strangle otm /\ (s177.5c+s162.5p) | H37: =IF($AE37=1,VLOOKUP($F37,all!$E$14:$AD$553,4),"") -> 177.5 | I37: =IF($AE37=1,VLOOKUP($F37,all!$E$14:$AD$553,5),"") -> 0.84 | J37: =IF($AE37=1,VLOOKUP($F37,all!$E$14:$AD$553,6),"") -> 162.5 | K37: =IF($AE37=1,VLOOKUP($F37,all!$E$14:$AD$553,7),"") -> 2.45 | L37: =IF($AE37=1,VLOOKUP($F37,all!$E$14:$AD$553,8),"") -> 0 | M37: =IF($AE37=1,VLOOKUP($F37,all!$E$14:$AD$553,9),"") -> 0 | N37: =IF($AE37=1,VLOOKUP($F37,all!$E$14:$AD$553,10),"") -> 0 | O37: =IF($AE37=1,VLOOKUP($F37,all!$E$14:$AD$553,11),"") -> 0 | P37: =IF($AE37=1,VLOOKUP($F37,all!$E$14:$AD$553,12),"") -> unlim risk | Q37: =IF($AE37=1,VLOOKUP($F37,all!$E$14:$AD$553,13),"") -> 329 | R37: =IF($AE37=1,VLOOKUP($F37,all!$E$14:$AD$553,14),"") -> 159.21 | S37: =IF($AE37=1,VLOOKUP($F37,all!$E$14:$AD$553,15),"") -> 180.79 | T37: =IF($AE37=1,VLOOKUP($F37,all!$E$14:$AD$553,16),"") -> 0.7527147105 | U37: =IF($AE37=1,VLOOKUP($F37,all!$E$14:$AD$553,17),"") -> unlim risk | V37: =IF($AE37=1,VLOOKUP($F37,all!$E$14:$AD$553,18),"") -> unlim risk | W37: =IF($AE37=1,VLOOKUP($F37,all!$E$14:$AD$553,19),"") -> 16792 | X37: =IF($AE37=1,VLOOKUP($F37,all!$E$14:$AD$553,20),"") -> 0.01959266317 | Y37: =IF($AE37=1,VLOOKUP($F37,all!$E$14:$AD$553,21),"") -> 2 | Z37: =IF($AE37=1,VLOOKUP($F37,all!$E$14:$AD$553,22),"") -> 4 | AA37: =IF($AE37=1,VLOOKUP($F37,all!$E$14:$AD$553,23),"") -> 0 | AB37: =IF($AE37=1,VLOOKUP($F37,all!$E$14:$AD$553,24),"") -> 0 | AC37: =IF($AE37=1,VLOOKUP($F37,all!$E$14:$AD$553,25),"") -> 0 | AE37: =COUNTIF(all!$E$14:$E$553,F37) -> 1 | AF37: 2 | AG37: sell call '''\ | AH37: =-AH36 -> 15044 | AI37: =-AI36 -> 15044 | AJ37: 15044 | AK37: 15044 | AL37: 15044 | AM37: 15044 | AN37: 15044 | AO37: 15044 | AP37: 15044 | AQ37: 15044 | AR37: 15044 | AS37: 15044 | AT37: 15044 | AU37: 15044 | AV37: 15044 | AW37: 15044 | AX37: 15044 | AY37: 15044 | AZ37: 15044 | BA37: 15044 | BB37: 15044
A38: =IF(OR('Y2'!$W$1=6,('Y2'!$W$1=7)),IF(OFFSET(#REF!,$C$12,0)="?","",OFFSET(#REF!,$C$12,0)),'Y2'!AA31) -> 82.5 | B38: =IF(OR('Y2'!$W$1=6,('Y2'!$W$1=7)),IF(A38="","",MAX(AVERAGE(OFFSET(#REF!,$C$12,0),OFFSET(#REF!,$C$12,0)),0)),'Y2'!AB31) -> 85.45 | C38: =IF(all!$AQ$1=1,all!AR30,IF(all!$AQ$1=2,all!AT30*100,IF(all!$AQ$1=3,all!AV30,all!AX30))) -> 85.29095804 | D38: =IF(OR('Y2'!$W$1=6,('Y2'!$W$1=7)),IF(A38="","",MAX(AVERAGE(OFFSET(#REF!,$C$12,0),OFFSET(#REF!,$C$12,0)),0)),'Y2'!AC31) -> 0.01 | E38: =IF(all!$AP$3=1,all!AS30,IF(all!$AP$3=2,all!AU30*100,IF(all!$AP$3=3,all!AW30,all!AY30))) -> 0 | F38: 5 | G38: =IF($AE38=1,VLOOKUP($F38,all!$E$14:$AD$553,3),"") -> strangle otm /\ (s180c+s160p) | H38: =IF($AE38=1,VLOOKUP($F38,all!$E$14:$AD$553,4),"") -> 180 | I38: =IF($AE38=1,VLOOKUP($F38,all!$E$14:$AD$553,5),"") -> 0.49 | J38: =IF($AE38=1,VLOOKUP($F38,all!$E$14:$AD$553,6),"") -> 160 | K38: =IF($AE38=1,VLOOKUP($F38,all!$E$14:$AD$553,7),"") -> 1.85 | L38: =IF($AE38=1,VLOOKUP($F38,all!$E$14:$AD$553,8),"") -> 0 | M38: =IF($AE38=1,VLOOKUP($F38,all!$E$14:$AD$553,9),"") -> 0 | N38: =IF($AE38=1,VLOOKUP($F38,all!$E$14:$AD$553,10),"") -> 0 | O38: =IF($AE38=1,VLOOKUP($F38,all!$E$14:$AD$553,11),"") -> 0 | P38: =IF($AE38=1,VLOOKUP($F38,all!$E$14:$AD$553,12),"") -> unlim risk | Q38: =IF($AE38=1,VLOOKUP($F38,all!$E$14:$AD$553,13),"") -> 234 | R38: =IF($AE38=1,VLOOKUP($F38,all!$E$14:$AD$553,14),"") -> 157.66 | S38: =IF($AE38=1,VLOOKUP($F38,all!$E$14:$AD$553,15),"") -> 182.34 | T38: =IF($AE38=1,VLOOKUP($F38,all!$E$14:$AD$553,16),"") -> 0.8153435726 | U38: =IF($AE38=1,VLOOKUP($F38,all!$E$14:$AD$553,17),"") -> unlim risk | V38: =IF($AE38=1,VLOOKUP($F38,all!$E$14:$AD$553,18),"") -> unlim risk | W38: =IF($AE38=1,VLOOKUP($F38,all!$E$14:$AD$553,19),"") -> 16792 | X38: =IF($AE38=1,VLOOKUP($F38,all!$E$14:$AD$553,20),"") -> 0.01393520724 | Y38: =IF($AE38=1,VLOOKUP($F38,all!$E$14:$AD$553,21),"") -> 2 | Z38: =IF($AE38=1,VLOOKUP($F38,all!$E$14:$AD$553,22),"") -> 4 | AA38: =IF($AE38=1,VLOOKUP($F38,all!$E$14:$AD$553,23),"") -> 0 | AB38: =IF($AE38=1,VLOOKUP($F38,all!$E$14:$AD$553,24),"") -> 0 | AC38: =IF($AE38=1,VLOOKUP($F38,all!$E$14:$AD$553,25),"") -> 0 | AE38: =COUNTIF(all!$E$14:$E$553,F38) -> 1 | AF38: 3 | AG38: buy put \_ | AH38: =$H$7*$J$2*IF($J$7>AH$11,$J$7-AH$11-$K$7,-$K$7) -> 17560 | AI38: =$H$7*$J$2*IF($J$7>AI$11,$J$7-AI$11-$K$7,-$K$7) -> 16720.4 | AJ38: 15880.8 | AK38: 15041.2 | AL38: 14201.6 | AM38: 13362 | AN38: 12522.4 | AO38: 11682.8 | AP38: 10843.2 | AQ38: 10003.6 | AR38: 9164 | AS38: 8324.4 | AT38: 7484.8 | AU38: 6645.2 | AV38: 5805.6 | AW38: 4966 | AX38: 4126.4 | AY38: 3286.8 | AZ38: 2447.2 | BA38: 1607.6 | BB38: 768
A39: =IF(OR('Y2'!$W$1=6,('Y2'!$W$1=7)),IF(OFFSET(#REF!,$C$12,0)="?","",OFFSET(#REF!,$C$12,0)),'Y2'!AA32) -> 83.75 | B39: =IF(OR('Y2'!$W$1=6,('Y2'!$W$1=7)),IF(A39="","",MAX(AVERAGE(OFFSET(#REF!,$C$12,0),OFFSET(#REF!,$C$12,0)),0)),'Y2'!AB32) -> 83.05 | C39: =IF(all!$AQ$1=1,all!AR31,IF(all!$AQ$1=2,all!AT31*100,IF(all!$AQ$1=3,all!AV31,all!AX31))) -> 84.04159496 | D39: =IF(OR('Y2'!$W$1=6,('Y2'!$W$1=7)),IF(A39="","",MAX(AVERAGE(OFFSET(#REF!,$C$12,0),OFFSET(#REF!,$C$12,0)),0)),'Y2'!AC32) -> 0.01 | E39: =IF(all!$AP$3=1,all!AS31,IF(all!$AP$3=2,all!AU31*100,IF(all!$AP$3=3,all!AW31,all!AY31))) -> 0 | F39: 6 | G39: =IF($AE39=1,VLOOKUP($F39,all!$E$14:$AD$553,3),"") -> strangle otm /\ (s182.5c+s157.5p) | H39: =IF($AE39=1,VLOOKUP($F39,all!$E$14:$AD$553,4),"") -> 182.5 | I39: =IF($AE39=1,VLOOKUP($F39,all!$E$14:$AD$553,5),"") -> 0.28 | J39: =IF($AE39=1,VLOOKUP($F39,all!$E$14:$AD$553,6),"") -> 157.5 | K39: =IF($AE39=1,VLOOKUP($F39,all!$E$14:$AD$553,7),"") -> 1.36 | L39: =IF($AE39=1,VLOOKUP($F39,all!$E$14:$AD$553,8),"") -> 0 | M39: =IF($AE39=1,VLOOKUP($F39,all!$E$14:$AD$553,9),"") -> 0 | N39: =IF($AE39=1,VLOOKUP($F39,all!$E$14:$AD$553,10),"") -> 0 | O39: =IF($AE39=1,VLOOKUP($F39,all!$E$14:$AD$553,11),"") -> 0 | P39: =IF($AE39=1,VLOOKUP($F39,all!$E$14:$AD$553,12),"") -> unlim risk | Q39: =IF($AE39=1,VLOOKUP($F39,all!$E$14:$AD$553,13),"") -> 164 | R39: =IF($AE39=1,VLOOKUP($F39,all!$E$14:$AD$553,14),"") -> 155.86 | S39: =IF($AE39=1,VLOOKUP($F39,all!$E$14:$AD$553,15),"") -> 184.14 | T39: =IF($AE39=1,VLOOKUP($F39,all!$E$14:$AD$553,16),"") -> 0.8727141568 | U39: =IF($AE39=1,VLOOKUP($F39,all!$E$14:$AD$553,17),"") -> unlim risk | V39: =IF($AE39=1,VLOOKUP($F39,all!$E$14:$AD$553,18),"") -> unlim risk | W39: =IF($AE39=1,VLOOKUP($F39,all!$E$14:$AD$553,19),"") -> 16792 | X39: =IF($AE39=1,VLOOKUP($F39,all!$E$14:$AD$553,20),"") -> 0.009766555503 | Y39: =IF($AE39=1,VLOOKUP($F39,all!$E$14:$AD$553,21),"") -> 2 | Z39: =IF($AE39=1,VLOOKUP($F39,all!$E$14:$AD$553,22),"") -> 4 | AA39: =IF($AE39=1,VLOOKUP($F39,all!$E$14:$AD$553,23),"") -> 0 | AB39: =IF($AE39=1,VLOOKUP($F39,all!$E$14:$AD$553,24),"") -> 0 | AC39: =IF($AE39=1,VLOOKUP($F39,all!$E$14:$AD$553,25),"") -> 0 | AE39: =COUNTIF(all!$E$14:$E$553,F39) -> 1 | AF39: 4 | AG39: sell put /''' | AH39: =-AH38 -> -17560 | AI39: =-AI38 -> -16720.4 | AJ39: -15880.8 | AK39: -15041.2 | AL39: -14201.6 | AM39: -13362 | AN39: -12522.4 | AO39: -11682.8 | AP39: -10843.2 | AQ39: -10003.6 | AR39: -9164 | AS39: -8324.4 | AT39: -7484.8 | AU39: -6645.2 | AV39: -5805.6 | AW39: -4966 | AX39: -4126.4 | AY39: -3286.8 | AZ39: -2447.2 | BA39: -1607.6 | BB39: -768
A40: =IF(OR('Y2'!$W$1=6,('Y2'!$W$1=7)),IF(OFFSET(#REF!,$C$12,0)="?","",OFFSET(#REF!,$C$12,0)),'Y2'!AA33) -> 85 | B40: =IF(OR('Y2'!$W$1=6,('Y2'!$W$1=7)),IF(A40="","",MAX(AVERAGE(OFFSET(#REF!,$C$12,0),OFFSET(#REF!,$C$12,0)),0)),'Y2'!AB33) -> 82.4 | C40: =IF(all!$AQ$1=1,all!AR32,IF(all!$AQ$1=2,all!AT32*100,IF(all!$AQ$1=3,all!AV32,all!AX32))) -> 82.79223187 | D40: =IF(OR('Y2'!$W$1=6,('Y2'!$W$1=7)),IF(A40="","",MAX(AVERAGE(OFFSET(#REF!,$C$12,0),OFFSET(#REF!,$C$12,0)),0)),'Y2'!AC33) -> 0.01 | E40: =IF(all!$AP$3=1,all!AS32,IF(all!$AP$3=2,all!AU32*100,IF(all!$AP$3=3,all!AW32,all!AY32))) -> 0 | F40: 7 | G40: =IF($AE40=1,VLOOKUP($F40,all!$E$14:$AD$553,3),"") -> strangle otm /\ (s185c+s155p) | H40: =IF($AE40=1,VLOOKUP($F40,all!$E$14:$AD$553,4),"") -> 185 | I40: =IF($AE40=1,VLOOKUP($F40,all!$E$14:$AD$553,5),"") -> 0.15 | J40: =IF($AE40=1,VLOOKUP($F40,all!$E$14:$AD$553,6),"") -> 155 | K40: =IF($AE40=1,VLOOKUP($F40,all!$E$14:$AD$553,7),"") -> 1.01 | L40: =IF($AE40=1,VLOOKUP($F40,all!$E$14:$AD$553,8),"") -> 0 | M40: =IF($AE40=1,VLOOKUP($F40,all!$E$14:$AD$553,9),"") -> 0 | N40: =IF($AE40=1,VLOOKUP($F40,all!$E$14:$AD$553,10),"") -> 0 | O40: =IF($AE40=1,VLOOKUP($F40,all!$E$14:$AD$553,11),"") -> 0 | P40: =IF($AE40=1,VLOOKUP($F40,all!$E$14:$AD$553,12),"") -> unlim risk | Q40: =IF($AE40=1,VLOOKUP($F40,all!$E$14:$AD$553,13),"") -> 116 | R40: =IF($AE40=1,VLOOKUP($F40,all!$E$14:$AD$553,14),"") -> 153.84 | S40: =IF($AE40=1,VLOOKUP($F40,all!$E$14:$AD$553,15),"") -> 186.16 | T40: =IF($AE40=1,VLOOKUP($F40,all!$E$14:$AD$553,16),"") -> 0.9197506597 | U40: =IF($AE40=1,VLOOKUP($F40,all!$E$14:$AD$553,17),"") -> unlim risk | V40: =IF($AE40=1,VLOOKUP($F40,all!$E$14:$AD$553,18),"") -> unlim risk | W40: =IF($AE40=1,VLOOKUP($F40,all!$E$14:$AD$553,19),"") -> 16792 | X40: =IF($AE40=1,VLOOKUP($F40,all!$E$14:$AD$553,20),"") -> 0.006908051453 | Y40: =IF($AE40=1,VLOOKUP($F40,all!$E$14:$AD$553,21),"") -> 2 | Z40: =IF($AE40=1,VLOOKUP($F40,all!$E$14:$AD$553,22),"") -> 4 | AA40: =IF($AE40=1,VLOOKUP($F40,all!$E$14:$AD$553,23),"") -> 0 | AB40: =IF($AE40=1,VLOOKUP($F40,all!$E$14:$AD$553,24),"") -> 0 | AC40: =IF($AE40=1,VLOOKUP($F40,all!$E$14:$AD$553,25),"") -> 0 | AE40: =COUNTIF(all!$E$14:$E$553,F40) -> 1 | AF40: 5 | AG40: buy under \ | AH40: =$H$7*$J$2*(AH$11-$C$2) -> -8396 | AI40: =$H$7*$J$2*(AI$11-$C$2) -> -7556.4 | AJ40: -6716.8 | AK40: -5877.2 | AL40: -5037.6 | AM40: -4198 | AN40: -3358.4 | AO40: -2518.8 | AP40: -1679.2 | AQ40: -839.6 | AR40: 0 | AS40: 839.6 | AT40: 1679.2 | AU40: 2518.8 | AV40: 3358.4 | AW40: 4198 | AX40: 5037.6 | AY40: 5877.2 | AZ40: 6716.8 | BA40: 7556.4 | BB40: 8396
A41: =IF(OR('Y2'!$W$1=6,('Y2'!$W$1=7)),IF(OFFSET(#REF!,$C$12,0)="?","",OFFSET(#REF!,$C$12,0)),'Y2'!AA34) -> 86.25 | B41: =IF(OR('Y2'!$W$1=6,('Y2'!$W$1=7)),IF(A41="","",MAX(AVERAGE(OFFSET(#REF!,$C$12,0),OFFSET(#REF!,$C$12,0)),0)),'Y2'!AB34) -> 81.4 | C41: =IF(all!$AQ$1=1,all!AR33,IF(all!$AQ$1=2,all!AT33*100,IF(all!$AQ$1=3,all!AV33,all!AX33))) -> 81.54286879 | D41: =IF(OR('Y2'!$W$1=6,('Y2'!$W$1=7)),IF(A41="","",MAX(AVERAGE(OFFSET(#REF!,$C$12,0),OFFSET(#REF!,$C$12,0)),0)),'Y2'!AC34) -> 0.01 | E41: =IF(all!$AP$3=1,all!AS33,IF(all!$AP$3=2,all!AU33*100,IF(all!$AP$3=3,all!AW33,all!AY33))) -> 0 | F41: 8 | G41: =IF($AE41=1,VLOOKUP($F41,all!$E$14:$AD$553,3),"") -> strangle otm /\ (s187.5c+s152.5p) | H41: =IF($AE41=1,VLOOKUP($F41,all!$E$14:$AD$553,4),"") -> 187.5 | I41: =IF($AE41=1,VLOOKUP($F41,all!$E$14:$AD$553,5),"") -> 0.1 | J41: =IF($AE41=1,VLOOKUP($F41,all!$E$14:$AD$553,6),"") -> 152.5 | K41: =IF($AE41=1,VLOOKUP($F41,all!$E$14:$AD$553,7),"") -> 0.8 | L41: =IF($AE41=1,VLOOKUP($F41,all!$E$14:$AD$553,8),"") -> 0 | M41: =IF($AE41=1,VLOOKUP($F41,all!$E$14:$AD$553,9),"") -> 0 | N41: =IF($AE41=1,VLOOKUP($F41,all!$E$14:$AD$553,10),"") -> 0 | O41: =IF($AE41=1,VLOOKUP($F41,all!$E$14:$AD$553,11),"") -> 0 | P41: =IF($AE41=1,VLOOKUP($F41,all!$E$14:$AD$553,12),"") -> unlim risk | Q41: =IF($AE41=1,VLOOKUP($F41,all!$E$14:$AD$553,13),"") -> 90 | R41: =IF($AE41=1,VLOOKUP($F41,all!$E$14:$AD$553,14),"") -> 151.6 | S41: =IF($AE41=1,VLOOKUP($F41,all!$E$14:$AD$553,15),"") -> 188.4 | T41: =IF($AE41=1,VLOOKUP($F41,all!$E$14:$AD$553,16),"") -> 0.9545005265 | U41: =IF($AE41=1,VLOOKUP($F41,all!$E$14:$AD$553,17),"") -> unlim risk | V41: =IF($AE41=1,VLOOKUP($F41,all!$E$14:$AD$553,18),"") -> unlim risk | W41: =IF($AE41=1,VLOOKUP($F41,all!$E$14:$AD$553,19),"") -> 16792 | X41: =IF($AE41=1,VLOOKUP($F41,all!$E$14:$AD$553,20),"") -> 0.005359695093 | Y41: =IF($AE41=1,VLOOKUP($F41,all!$E$14:$AD$553,21),"") -> 2 | Z41: =IF($AE41=1,VLOOKUP($F41,all!$E$14:$AD$553,22),"") -> 4 | AA41: =IF($AE41=1,VLOOKUP($F41,all!$E$14:$AD$553,23),"") -> 0 | AB41: =IF($AE41=1,VLOOKUP($F41,all!$E$14:$AD$553,24),"") -> 0 | AC41: =IF($AE41=1,VLOOKUP($F41,all!$E$14:$AD$553,25),"") -> 0 | AE41: =COUNTIF(all!$E$14:$E$553,F41) -> 1 | AF41: 6 | AG41: sell under / | AH41: =-AH40 -> 8396 | AI41: =-AI40 -> 7556.4 | AJ41: 6716.8 | AK41: 5877.2 | AL41: 5037.6 | AM41: 4198 | AN41: 3358.4 | AO41: 2518.8 | AP41: 1679.2 | AQ41: 839.6 | AR41: 0 | AS41: -839.6 | AT41: -1679.2 | AU41: -2518.8 | AV41: -3358.4 | AW41: -4198 | AX41: -5037.6 | AY41: -5877.2 | AZ41: -6716.8 | BA41: -7556.4 | BB41: -8396
A42: =IF(OR('Y2'!$W$1=6,('Y2'!$W$1=7)),IF(OFFSET(#REF!,$C$12,0)="?","",OFFSET(#REF!,$C$12,0)),'Y2'!AA35) -> 87.5 | B42: =IF(OR('Y2'!$W$1=6,('Y2'!$W$1=7)),IF(A42="","",MAX(AVERAGE(OFFSET(#REF!,$C$12,0),OFFSET(#REF!,$C$12,0)),0)),'Y2'!AB35) -> 79.75 | C42: =IF(all!$AQ$1=1,all!AR34,IF(all!$AQ$1=2,all!AT34*100,IF(all!$AQ$1=3,all!AV34,all!AX34))) -> 80.29350571 | D42: =IF(OR('Y2'!$W$1=6,('Y2'!$W$1=7)),IF(A42="","",MAX(AVERAGE(OFFSET(#REF!,$C$12,0),OFFSET(#REF!,$C$12,0)),0)),'Y2'!AC35) -> 0.01 | E42: =IF(all!$AP$3=1,all!AS34,IF(all!$AP$3=2,all!AU34*100,IF(all!$AP$3=3,all!AW34,all!AY34))) -> 0 | F42: 9 | G42: =IF($AE42=1,VLOOKUP($F42,all!$E$14:$AD$553,3),"") -> strangle otm /\ (s190c+s150p) | H42: =IF($AE42=1,VLOOKUP($F42,all!$E$14:$AD$553,4),"") -> 190 | I42: =IF($AE42=1,VLOOKUP($F42,all!$E$14:$AD$553,5),"") -> 0.07 | J42: =IF($AE42=1,VLOOKUP($F42,all!$E$14:$AD$553,6),"") -> 150 | K42: =IF($AE42=1,VLOOKUP($F42,all!$E$14:$AD$553,7),"") -> 0.57 | L42: =IF($AE42=1,VLOOKUP($F42,all!$E$14:$AD$553,8),"") -> 0 | M42: =IF($AE42=1,VLOOKUP($F42,all!$E$14:$AD$553,9),"") -> 0 | N42: =IF($AE42=1,VLOOKUP($F42,all!$E$14:$AD$553,10),"") -> 0 | O42: =IF($AE42=1,VLOOKUP($F42,all!$E$14:$AD$553,11),"") -> 0 | P42: =IF($AE42=1,VLOOKUP($F42,all!$E$14:$AD$553,12),"") -> unlim risk | Q42: =IF($AE42=1,VLOOKUP($F42,all!$E$14:$AD$553,13),"") -> 64 | R42: =IF($AE42=1,VLOOKUP($F42,all!$E$14:$AD$553,14),"") -> 149.36 | S42: =IF($AE42=1,VLOOKUP($F42,all!$E$14:$AD$553,15),"") -> 190.64 | T42: =IF($AE42=1,VLOOKUP($F42,all!$E$14:$AD$553,16),"") -> 0.9757021939 | U42: =IF($AE42=1,VLOOKUP($F42,all!$E$14:$AD$553,17),"") -> unlim risk | V42: =IF($AE42=1,VLOOKUP($F42,all!$E$14:$AD$553,18),"") -> unlim risk | W42: =IF($AE42=1,VLOOKUP($F42,all!$E$14:$AD$553,19),"") -> 16792 | X42: =IF($AE42=1,VLOOKUP($F42,all!$E$14:$AD$553,20),"") -> 0.003811338733 | Y42: =IF($AE42=1,VLOOKUP($F42,all!$E$14:$AD$553,21),"") -> 2 | Z42: =IF($AE42=1,VLOOKUP($F42,all!$E$14:$AD$553,22),"") -> 4 | AA42: =IF($AE42=1,VLOOKUP($F42,all!$E$14:$AD$553,23),"") -> 0 | AB42: =IF($AE42=1,VLOOKUP($F42,all!$E$14:$AD$553,24),"") -> 0 | AC42: =IF($AE42=1,VLOOKUP($F42,all!$E$14:$AD$553,25),"") -> 0 | AE42: =COUNTIF(all!$E$14:$E$553,F42) -> 1 | AF42: 1 | AG42: one | AH42: =IF($AF$42=0,0,VLOOKUP($AF$42,$AF$36:$BB$41,AH116)) -> -15044 | AI42: =IF($AF$42=0,0,VLOOKUP($AF$42,$AF$36:$BB$41,AI116)) -> -15044 | AJ42: -15044 | AK42: -15044 | AL42: -15044 | AM42: -15044 | AN42: -15044 | AO42: -15044 | AP42: -15044 | AQ42: -15044 | AR42: -15044 | AS42: -15044 | AT42: -15044 | AU42: -15044 | AV42: -15044 | AW42: -15044 | AX42: -15044 | AY42: -15044 | AZ42: -15044 | BA42: -15044 | BB42: -15044
A43: =IF(OR('Y2'!$W$1=6,('Y2'!$W$1=7)),IF(OFFSET(#REF!,$C$12,0)="?","",OFFSET(#REF!,$C$12,0)),'Y2'!AA36) -> 90 | B43: =IF(OR('Y2'!$W$1=6,('Y2'!$W$1=7)),IF(A43="","",MAX(AVERAGE(OFFSET(#REF!,$C$12,0),OFFSET(#REF!,$C$12,0)),0)),'Y2'!AB36) -> 77.35 | C43: =IF(all!$AQ$1=1,all!AR35,IF(all!$AQ$1=2,all!AT35*100,IF(all!$AQ$1=3,all!AV35,all!AX35))) -> 77.79477955 | D43: =IF(OR('Y2'!$W$1=6,('Y2'!$W$1=7)),IF(A43="","",MAX(AVERAGE(OFFSET(#REF!,$C$12,0),OFFSET(#REF!,$C$12,0)),0)),'Y2'!AC36) -> 0.01 | E43: =IF(all!$AP$3=1,all!AS35,IF(all!$AP$3=2,all!AU35*100,IF(all!$AP$3=3,all!AW35,all!AY35))) -> 0 | F43: 10 | G43: =IF($AE43=1,VLOOKUP($F43,all!$E$14:$AD$553,3),"") -> strangle otm /\ (s192.5c+s145p) | H43: =IF($AE43=1,VLOOKUP($F43,all!$E$14:$AD$553,4),"") -> 192.5 | I43: =IF($AE43=1,VLOOKUP($F43,all!$E$14:$AD$553,5),"") -> 0.05 | J43: =IF($AE43=1,VLOOKUP($F43,all!$E$14:$AD$553,6),"") -> 145 | K43: =IF($AE43=1,VLOOKUP($F43,all!$E$14:$AD$553,7),"") -> 0.33 | L43: =IF($AE43=1,VLOOKUP($F43,all!$E$14:$AD$553,8),"") -> 0 | M43: =IF($AE43=1,VLOOKUP($F43,all!$E$14:$AD$553,9),"") -> 0 | N43: =IF($AE43=1,VLOOKUP($F43,all!$E$14:$AD$553,10),"") -> 0 | O43: =IF($AE43=1,VLOOKUP($F43,all!$E$14:$AD$553,11),"") -> 0 | P43: =IF($AE43=1,VLOOKUP($F43,all!$E$14:$AD$553,12),"") -> unlim risk | Q43: =IF($AE43=1,VLOOKUP($F43,all!$E$14:$AD$553,13),"") -> 38 | R43: =IF($AE43=1,VLOOKUP($F43,all!$E$14:$AD$553,14),"") -> 144.62 | S43: =IF($AE43=1,VLOOKUP($F43,all!$E$14:$AD$553,15),"") -> 192.88 | T43: =IF($AE43=1,VLOOKUP($F43,all!$E$14:$AD$553,16),"") -> 0.9920819962 | U43: =IF($AE43=1,VLOOKUP($F43,all!$E$14:$AD$553,17),"") -> unlim risk | V43: =IF($AE43=1,VLOOKUP($F43,all!$E$14:$AD$553,18),"") -> unlim risk | W43: =IF($AE43=1,VLOOKUP($F43,all!$E$14:$AD$553,19),"") -> 16792 | X43: =IF($AE43=1,VLOOKUP($F43,all!$E$14:$AD$553,20),"") -> 0.002262982373 | Y43: =IF($AE43=1,VLOOKUP($F43,all!$E$14:$AD$553,21),"") -> 2 | Z43: =IF($AE43=1,VLOOKUP($F43,all!$E$14:$AD$553,22),"") -> 4 | AA43: =IF($AE43=1,VLOOKUP($F43,all!$E$14:$AD$553,23),"") -> 0 | AB43: =IF($AE43=1,VLOOKUP($F43,all!$E$14:$AD$553,24),"") -> 0 | AC43: =IF($AE43=1,VLOOKUP($F43,all!$E$14:$AD$553,25),"") -> 0 | AE43: =COUNTIF(all!$E$14:$E$553,F43) -> 1
A44: =IF(OR('Y2'!$W$1=6,('Y2'!$W$1=7)),IF(OFFSET(#REF!,$C$12,0)="?","",OFFSET(#REF!,$C$12,0)),'Y2'!AA37) -> 92.5 | B44: =IF(OR('Y2'!$W$1=6,('Y2'!$W$1=7)),IF(A44="","",MAX(AVERAGE(OFFSET(#REF!,$C$12,0),OFFSET(#REF!,$C$12,0)),0)),'Y2'!AB37) -> 75.6 | C44: =IF(all!$AQ$1=1,all!AR36,IF(all!$AQ$1=2,all!AT36*100,IF(all!$AQ$1=3,all!AV36,all!AX36))) -> 75.29605339 | D44: =IF(OR('Y2'!$W$1=6,('Y2'!$W$1=7)),IF(A44="","",MAX(AVERAGE(OFFSET(#REF!,$C$12,0),OFFSET(#REF!,$C$12,0)),0)),'Y2'!AC37) -> 0.01 | E44: =IF(all!$AP$3=1,all!AS36,IF(all!$AP$3=2,all!AU36*100,IF(all!$AP$3=3,all!AW36,all!AY36))) -> 0 | F44: 11 | G44: =IF($AE44=1,VLOOKUP($F44,all!$E$14:$AD$553,3),"") -> strangle otm /\ (s195c+s140p) | H44: =IF($AE44=1,VLOOKUP($F44,all!$E$14:$AD$553,4),"") -> 195 | I44: =IF($AE44=1,VLOOKUP($F44,all!$E$14:$AD$553,5),"") -> 0.04 | J44: =IF($AE44=1,VLOOKUP($F44,all!$E$14:$AD$553,6),"") -> 140 | K44: =IF($AE44=1,VLOOKUP($F44,all!$E$14:$AD$553,7),"") -> 0.2 | L44: =IF($AE44=1,VLOOKUP($F44,all!$E$14:$AD$553,8),"") -> 0 | M44: =IF($AE44=1,VLOOKUP($F44,all!$E$14:$AD$553,9),"") -> 0 | N44: =IF($AE44=1,VLOOKUP($F44,all!$E$14:$AD$553,10),"") -> 0 | O44: =IF($AE44=1,VLOOKUP($F44,all!$E$14:$AD$553,11),"") -> 0 | P44: =IF($AE44=1,VLOOKUP($F44,all!$E$14:$AD$553,12),"") -> unlim risk | Q44: =IF($AE44=1,VLOOKUP($F44,all!$E$14:$AD$553,13),"") -> 24 | R44: =IF($AE44=1,VLOOKUP($F44,all!$E$14:$AD$553,14),"") -> 139.76 | S44: =IF($AE44=1,VLOOKUP($F44,all!$E$14:$AD$553,15),"") -> 195.24 | T44: =IF($AE44=1,VLOOKUP($F44,all!$E$14:$AD$553,16),"") -> 0.9970635185 | U44: =IF($AE44=1,VLOOKUP($F44,all!$E$14:$AD$553,17),"") -> unlim risk | V44: =IF($AE44=1,VLOOKUP($F44,all!$E$14:$AD$553,18),"") -> unlim risk | W44: =IF($AE44=1,VLOOKUP($F44,all!$E$14:$AD$553,19),"") -> 16792 | X44: =IF($AE44=1,VLOOKUP($F44,all!$E$14:$AD$553,20),"") -> 0.001429252025 | Y44: =IF($AE44=1,VLOOKUP($F44,all!$E$14:$AD$553,21),"") -> 2 | Z44: =IF($AE44=1,VLOOKUP($F44,all!$E$14:$AD$553,22),"") -> 4 | AA44: =IF($AE44=1,VLOOKUP($F44,all!$E$14:$AD$553,23),"") -> 0 | AB44: =IF($AE44=1,VLOOKUP($F44,all!$E$14:$AD$553,24),"") -> 0 | AC44: =IF($AE44=1,VLOOKUP($F44,all!$E$14:$AD$553,25),"") -> 0 | AE44: =COUNTIF(all!$E$14:$E$553,F44) -> 1 | AF44: 1 | AG44: buy call _/ | AH44: =$H$8*$J$2*IF($J$8<AH$11,AH$11-$J$8-$K$8,-$K$8) ->  | AI44: =$H$8*$J$2*IF($J$8<AI$11,AI$11-$J$8-$K$8,-$K$8) -> 
A45: =IF(OR('Y2'!$W$1=6,('Y2'!$W$1=7)),IF(OFFSET(#REF!,$C$12,0)="?","",OFFSET(#REF!,$C$12,0)),'Y2'!AA38) -> 95 | B45: =IF(OR('Y2'!$W$1=6,('Y2'!$W$1=7)),IF(A45="","",MAX(AVERAGE(OFFSET(#REF!,$C$12,0),OFFSET(#REF!,$C$12,0)),0)),'Y2'!AB38) -> 72.94 | C45: =IF(all!$AQ$1=1,all!AR37,IF(all!$AQ$1=2,all!AT37*100,IF(all!$AQ$1=3,all!AV37,all!AX37))) -> 72.79732722 | D45: =IF(OR('Y2'!$W$1=6,('Y2'!$W$1=7)),IF(A45="","",MAX(AVERAGE(OFFSET(#REF!,$C$12,0),OFFSET(#REF!,$C$12,0)),0)),'Y2'!AC38) -> 0.01 | E45: =IF(all!$AP$3=1,all!AS37,IF(all!$AP$3=2,all!AU37*100,IF(all!$AP$3=3,all!AW37,all!AY37))) -> 0 | F45: 12 | G45: =IF($AE45=1,VLOOKUP($F45,all!$E$14:$AD$553,3),"") -> strangle itm /\ (s167.5c+s172.5p) | H45: =IF($AE45=1,VLOOKUP($F45,all!$E$14:$AD$553,4),"") -> 167.5 | I45: =IF($AE45=1,VLOOKUP($F45,all!$E$14:$AD$553,5),"") -> 4.6 | J45: =IF($AE45=1,VLOOKUP($F45,all!$E$14:$AD$553,6),"") -> 172.5 | K45: =IF($AE45=1,VLOOKUP($F45,all!$E$14:$AD$553,7),"") -> 6.85 | L45: =IF($AE45=1,VLOOKUP($F45,all!$E$14:$AD$553,8),"") -> 0 | M45: =IF($AE45=1,VLOOKUP($F45,all!$E$14:$AD$553,9),"") -> 0 | N45: =IF($AE45=1,VLOOKUP($F45,all!$E$14:$AD$553,10),"") -> 0 | O45: =IF($AE45=1,VLOOKUP($F45,all!$E$14:$AD$553,11),"") -> 0 | P45: =IF($AE45=1,VLOOKUP($F45,all!$E$14:$AD$553,12),"") -> unlim risk | Q45: =IF($AE45=1,VLOOKUP($F45,all!$E$14:$AD$553,13),"") -> 645 | R45: =IF($AE45=1,VLOOKUP($F45,all!$E$14:$AD$553,14),"") -> 161.05 | S45: =IF($AE45=1,VLOOKUP($F45,all!$E$14:$AD$553,15),"") -> 178.95 | T45: =IF($AE45=1,VLOOKUP($F45,all!$E$14:$AD$553,16),"") -> 0.6614577035 | U45: =IF($AE45=1,VLOOKUP($F45,all!$E$14:$AD$553,17),"") -> unlim risk | V45: =IF($AE45=1,VLOOKUP($F45,all!$E$14:$AD$553,18),"") -> unlim risk | W45: =IF($AE45=1,VLOOKUP($F45,all!$E$14:$AD$553,19),"") -> 16792 | X45: =IF($AE45=1,VLOOKUP($F45,all!$E$14:$AD$553,20),"") -> 0.03841114817 | Y45: =IF($AE45=1,VLOOKUP($F45,all!$E$14:$AD$553,21),"") -> 2 | Z45: =IF($AE45=1,VLOOKUP($F45,all!$E$14:$AD$553,22),"") -> 4 | AA45: =IF($AE45=1,VLOOKUP($F45,all!$E$14:$AD$553,23),"") -> 0 | AB45: =IF($AE45=1,VLOOKUP($F45,all!$E$14:$AD$553,24),"") -> 0 | AC45: =IF($AE45=1,VLOOKUP($F45,all!$E$14:$AD$553,25),"") -> 0 | AE45: =COUNTIF(all!$E$14:$E$553,F45) -> 1 | AF45: 2 | AG45: sell call '''\ | AH45: =-AH44 ->  | AI45: =-AI44 -> 
A46: =IF(OR('Y2'!$W$1=6,('Y2'!$W$1=7)),IF(OFFSET(#REF!,$C$12,0)="?","",OFFSET(#REF!,$C$12,0)),'Y2'!AA39) -> 97.5 | B46: =IF(OR('Y2'!$W$1=6,('Y2'!$W$1=7)),IF(A46="","",MAX(AVERAGE(OFFSET(#REF!,$C$12,0),OFFSET(#REF!,$C$12,0)),0)),'Y2'!AB39) -> 74.15 | C46: =IF(all!$AQ$1=1,all!AR38,IF(all!$AQ$1=2,all!AT38*100,IF(all!$AQ$1=3,all!AV38,all!AX38))) -> 70.29860106 | D46: =IF(OR('Y2'!$W$1=6,('Y2'!$W$1=7)),IF(A46="","",MAX(AVERAGE(OFFSET(#REF!,$C$12,0),OFFSET(#REF!,$C$12,0)),0)),'Y2'!AC39) -> 0.01 | E46: =IF(all!$AP$3=1,all!AS38,IF(all!$AP$3=2,all!AU38*100,IF(all!$AP$3=3,all!AW38,all!AY38))) -> 0 | F46: 13 | G46: =IF($AE46=1,VLOOKUP($F46,all!$E$14:$AD$553,3),"") -> strangle itm /\ (s165c+s175p) | H46: =IF($AE46=1,VLOOKUP($F46,all!$E$14:$AD$553,4),"") -> 165 | I46: =IF($AE46=1,VLOOKUP($F46,all!$E$14:$AD$553,5),"") -> 6.13 | J46: =IF($AE46=1,VLOOKUP($F46,all!$E$14:$AD$553,6),"") -> 175 | K46: =IF($AE46=1,VLOOKUP($F46,all!$E$14:$AD$553,7),"") -> 8.6 | L46: =IF($AE46=1,VLOOKUP($F46,all!$E$14:$AD$553,8),"") -> 0 | M46: =IF($AE46=1,VLOOKUP($F46,all!$E$14:$AD$553,9),"") -> 0 | N46: =IF($AE46=1,VLOOKUP($F46,all!$E$14:$AD$553,10),"") -> 0 | O46: =IF($AE46=1,VLOOKUP($F46,all!$E$14:$AD$553,11),"") -> 0 | P46: =IF($AE46=1,VLOOKUP($F46,all!$E$14:$AD$553,12),"") -> unlim risk | Q46: =IF($AE46=1,VLOOKUP($F46,all!$E$14:$AD$553,13),"") -> 473 | R46: =IF($AE46=1,VLOOKUP($F46,all!$E$14:$AD$553,14),"") -> 160.27 | S46: =IF($AE46=1,VLOOKUP($F46,all!$E$14:$AD$553,15),"") -> 179.73 | T46: =IF($AE46=1,VLOOKUP($F46,all!$E$14:$AD$553,16),"") -> 0.7024117347 | U46: =IF($AE46=1,VLOOKUP($F46,all!$E$14:$AD$553,17),"") -> unlim risk | V46: =IF($AE46=1,VLOOKUP($F46,all!$E$14:$AD$553,18),"") -> unlim risk | W46: =IF($AE46=1,VLOOKUP($F46,all!$E$14:$AD$553,19),"") -> 16792 | X46: =IF($AE46=1,VLOOKUP($F46,all!$E$14:$AD$553,20),"") -> 0.02816817532 | Y46: =IF($AE46=1,VLOOKUP($F46,all!$E$14:$AD$553,21),"") -> 2 | Z46: =IF($AE46=1,VLOOKUP($F46,all!$E$14:$AD$553,22),"") -> 4 | AA46: =IF($AE46=1,VLOOKUP($F46,all!$E$14:$AD$553,23),"") -> 0 | AB46: =IF($AE46=1,VLOOKUP($F46,all!$E$14:$AD$553,24),"") -> 0 | AC46: =IF($AE46=1,VLOOKUP($F46,all!$E$14:$AD$553,25),"") -> 0 | AE46: =COUNTIF(all!$E$14:$E$553,F46) -> 1 | AF46: 3 | AG46: buy put \_ | AH46: =$H$8*$J$2*IF($J$8>AH$11,$J$8-AH$11-$K$8,-$K$8) ->  | AI46: =$H$8*$J$2*IF($J$8>AI$11,$J$8-AI$11-$K$8,-$K$8) -> 
A47: =IF(OR('Y2'!$W$1=6,('Y2'!$W$1=7)),IF(OFFSET(#REF!,$C$12,0)="?","",OFFSET(#REF!,$C$12,0)),'Y2'!AA40) -> 100 | B47: =IF(OR('Y2'!$W$1=6,('Y2'!$W$1=7)),IF(A47="","",MAX(AVERAGE(OFFSET(#REF!,$C$12,0),OFFSET(#REF!,$C$12,0)),0)),'Y2'!AB40) -> 67.7 | C47: =IF(all!$AQ$1=1,all!AR39,IF(all!$AQ$1=2,all!AT39*100,IF(all!$AQ$1=3,all!AV39,all!AX39))) -> 67.7998749 | D47: =IF(OR('Y2'!$W$1=6,('Y2'!$W$1=7)),IF(A47="","",MAX(AVERAGE(OFFSET(#REF!,$C$12,0),OFFSET(#REF!,$C$12,0)),0)),'Y2'!AC40) -> 0.01 | E47: =IF(all!$AP$3=1,all!AS39,IF(all!$AP$3=2,all!AU39*100,IF(all!$AP$3=3,all!AW39,all!AY39))) -> 0 | F47: 14 | G47: =IF($AE47=1,VLOOKUP($F47,all!$E$14:$AD$553,3),"") -> strangle itm /\ (s162.5c+s177.5p) | H47: =IF($AE47=1,VLOOKUP($F47,all!$E$14:$AD$553,4),"") -> 162.5 | I47: =IF($AE47=1,VLOOKUP($F47,all!$E$14:$AD$553,5),"") -> 7.9 | J47: =IF($AE47=1,VLOOKUP($F47,all!$E$14:$AD$553,6),"") -> 177.5 | K47: =IF($AE47=1,VLOOKUP($F47,all!$E$14:$AD$553,7),"") -> 11 | L47: =IF($AE47=1,VLOOKUP($F47,all!$E$14:$AD$553,8),"") -> 0 | M47: =IF($AE47=1,VLOOKUP($F47,all!$E$14:$AD$553,9),"") -> 0 | N47: =IF($AE47=1,VLOOKUP($F47,all!$E$14:$AD$553,10),"") -> 0 | O47: =IF($AE47=1,VLOOKUP($F47,all!$E$14:$AD$553,11),"") -> 0 | P47: =IF($AE47=1,VLOOKUP($F47,all!$E$14:$AD$553,12),"") -> unlim risk | Q47: =IF($AE47=1,VLOOKUP($F47,all!$E$14:$AD$553,13),"") -> 390 | R47: =IF($AE47=1,VLOOKUP($F47,all!$E$14:$AD$553,14),"") -> 158.6 | S47: =IF($AE47=1,VLOOKUP($F47,all!$E$14:$AD$553,15),"") -> 181.4 | T47: =IF($AE47=1,VLOOKUP($F47,all!$E$14:$AD$553,16),"") -> 0.7788879852 | U47: =IF($AE47=1,VLOOKUP($F47,all!$E$14:$AD$553,17),"") -> unlim risk | V47: =IF($AE47=1,VLOOKUP($F47,all!$E$14:$AD$553,18),"") -> unlim risk | W47: =IF($AE47=1,VLOOKUP($F47,all!$E$14:$AD$553,19),"") -> 16792 | X47: =IF($AE47=1,VLOOKUP($F47,all!$E$14:$AD$553,20),"") -> 0.0232253454 | Y47: =IF($AE47=1,VLOOKUP($F47,all!$E$14:$AD$553,21),"") -> 2 | Z47: =IF($AE47=1,VLOOKUP($F47,all!$E$14:$AD$553,22),"") -> 4 | AA47: =IF($AE47=1,VLOOKUP($F47,all!$E$14:$AD$553,23),"") -> 0 | AB47: =IF($AE47=1,VLOOKUP($F47,all!$E$14:$AD$553,24),"") -> 0 | AC47: =IF($AE47=1,VLOOKUP($F47,all!$E$14:$AD$553,25),"") -> 0 | AE47: =COUNTIF(all!$E$14:$E$553,F47) -> 1 | AF47: 4 | AG47: sell put /''' | AH47: =-AH46 ->  | AI47: =-AI46 -> 
A48: =IF(OR('Y2'!$W$1=6,('Y2'!$W$1=7)),IF(OFFSET(#REF!,$C$12,0)="?","",OFFSET(#REF!,$C$12,0)),'Y2'!AA41) -> 102.5 | B48: =IF(OR('Y2'!$W$1=6,('Y2'!$W$1=7)),IF(A48="","",MAX(AVERAGE(OFFSET(#REF!,$C$12,0),OFFSET(#REF!,$C$12,0)),0)),'Y2'!AB41) -> 69.67 | C48: =IF(all!$AQ$1=1,all!AR40,IF(all!$AQ$1=2,all!AT40*100,IF(all!$AQ$1=3,all!AV40,all!AX40))) -> 65.30114873 | D48: =IF(OR('Y2'!$W$1=6,('Y2'!$W$1=7)),IF(A48="","",MAX(AVERAGE(OFFSET(#REF!,$C$12,0),OFFSET(#REF!,$C$12,0)),0)),'Y2'!AC41) -> 0.01 | E48: =IF(all!$AP$3=1,all!AS40,IF(all!$AP$3=2,all!AU40*100,IF(all!$AP$3=3,all!AW40,all!AY40))) -> 0 | F48: 15 | G48: =IF($AE48=1,VLOOKUP($F48,all!$E$14:$AD$553,3),"") -> strangle itm /\ (s160c+s180p) | H48: =IF($AE48=1,VLOOKUP($F48,all!$E$14:$AD$553,4),"") -> 160 | I48: =IF($AE48=1,VLOOKUP($F48,all!$E$14:$AD$553,5),"") -> 9.75 | J48: =IF($AE48=1,VLOOKUP($F48,all!$E$14:$AD$553,6),"") -> 180 | K48: =IF($AE48=1,VLOOKUP($F48,all!$E$14:$AD$553,7),"") -> 13.05 | L48: =IF($AE48=1,VLOOKUP($F48,all!$E$14:$AD$553,8),"") -> 0 | M48: =IF($AE48=1,VLOOKUP($F48,all!$E$14:$AD$553,9),"") -> 0 | N48: =IF($AE48=1,VLOOKUP($F48,all!$E$14:$AD$553,10),"") -> 0 | O48: =IF($AE48=1,VLOOKUP($F48,all!$E$14:$AD$553,11),"") -> 0 | P48: =IF($AE48=1,VLOOKUP($F48,all!$E$14:$AD$553,12),"") -> unlim risk | Q48: =IF($AE48=1,VLOOKUP($F48,all!$E$14:$AD$553,13),"") -> 280 | R48: =IF($AE48=1,VLOOKUP($F48,all!$E$14:$AD$553,14),"") -> 157.2 | S48: =IF($AE48=1,VLOOKUP($F48,all!$E$14:$AD$553,15),"") -> 182.8 | T48: =IF($AE48=1,VLOOKUP($F48,all!$E$14:$AD$553,16),"") -> 0.8315175155 | U48: =IF($AE48=1,VLOOKUP($F48,all!$E$14:$AD$553,17),"") -> unlim risk | V48: =IF($AE48=1,VLOOKUP($F48,all!$E$14:$AD$553,18),"") -> unlim risk | W48: =IF($AE48=1,VLOOKUP($F48,all!$E$14:$AD$553,19),"") -> 16792 | X48: =IF($AE48=1,VLOOKUP($F48,all!$E$14:$AD$553,20),"") -> 0.01667460696 | Y48: =IF($AE48=1,VLOOKUP($F48,all!$E$14:$AD$553,21),"") -> 2 | Z48: =IF($AE48=1,VLOOKUP($F48,all!$E$14:$AD$553,22),"") -> 4 | AA48: =IF($AE48=1,VLOOKUP($F48,all!$E$14:$AD$553,23),"") -> 0 | AB48: =IF($AE48=1,VLOOKUP($F48,all!$E$14:$AD$553,24),"") -> 0 | AC48: =IF($AE48=1,VLOOKUP($F48,all!$E$14:$AD$553,25),"") -> 0 | AE48: =COUNTIF(all!$E$14:$E$553,F48) -> 1 | AF48: 5 | AG48: buy under \ | AH48: =$H$8*$J$2*(AH$11-$C$2) -> 0 | AI48: =$H$8*$J$2*(AI$11-$C$2) -> 0 | AJ48: 0 | AK48: 0 | AL48: 0 | AM48: 0 | AN48: 0 | AO48: 0 | AP48: 0 | AQ48: 0 | AR48: 0 | AS48: 0 | AT48: 0 | AU48: 0 | AV48: 0 | AW48: 0 | AX48: 0 | AY48: 0 | AZ48: 0 | BA48: 0 | BB48: 0
A49: =IF(OR('Y2'!$W$1=6,('Y2'!$W$1=7)),IF(OFFSET(#REF!,$C$12,0)="?","",OFFSET(#REF!,$C$12,0)),'Y2'!AA42) -> 105 | B49: =IF(OR('Y2'!$W$1=6,('Y2'!$W$1=7)),IF(A49="","",MAX(AVERAGE(OFFSET(#REF!,$C$12,0),OFFSET(#REF!,$C$12,0)),0)),'Y2'!AB42) -> 63 | C49: =IF(all!$AQ$1=1,all!AR41,IF(all!$AQ$1=2,all!AT41*100,IF(all!$AQ$1=3,all!AV41,all!AX41))) -> 62.80242258 | D49: =IF(OR('Y2'!$W$1=6,('Y2'!$W$1=7)),IF(A49="","",MAX(AVERAGE(OFFSET(#REF!,$C$12,0),OFFSET(#REF!,$C$12,0)),0)),'Y2'!AC42) -> 0.02 | E49: =IF(all!$AP$3=1,all!AS41,IF(all!$AP$3=2,all!AU41*100,IF(all!$AP$3=3,all!AW41,all!AY41))) -> 0 | F49: 16 | G49: =IF($AE49=1,VLOOKUP($F49,all!$E$14:$AD$553,3),"") -> strangle itm /\ (s157.5c+s182.5p) | H49: =IF($AE49=1,VLOOKUP($F49,all!$E$14:$AD$553,4),"") -> 157.5 | I49: =IF($AE49=1,VLOOKUP($F49,all!$E$14:$AD$553,5),"") -> 11.45 | J49: =IF($AE49=1,VLOOKUP($F49,all!$E$14:$AD$553,6),"") -> 182.5 | K49: =IF($AE49=1,VLOOKUP($F49,all!$E$14:$AD$553,7),"") -> 15.05 | L49: =IF($AE49=1,VLOOKUP($F49,all!$E$14:$AD$553,8),"") -> 0 | M49: =IF($AE49=1,VLOOKUP($F49,all!$E$14:$AD$553,9),"") -> 0 | N49: =IF($AE49=1,VLOOKUP($F49,all!$E$14:$AD$553,10),"") -> 0 | O49: =IF($AE49=1,VLOOKUP($F49,all!$E$14:$AD$553,11),"") -> 0 | P49: =IF($AE49=1,VLOOKUP($F49,all!$E$14:$AD$553,12),"") -> unlim risk | Q49: =IF($AE49=1,VLOOKUP($F49,all!$E$14:$AD$553,13),"") -> 150 | R49: =IF($AE49=1,VLOOKUP($F49,all!$E$14:$AD$553,14),"") -> 156 | S49: =IF($AE49=1,VLOOKUP($F49,all!$E$14:$AD$553,15),"") -> 184 | T49: =IF($AE49=1,VLOOKUP($F49,all!$E$14:$AD$553,16),"") -> 0.8688065421 | U49: =IF($AE49=1,VLOOKUP($F49,all!$E$14:$AD$553,17),"") -> unlim risk | V49: =IF($AE49=1,VLOOKUP($F49,all!$E$14:$AD$553,18),"") -> unlim risk | W49: =IF($AE49=1,VLOOKUP($F49,all!$E$14:$AD$553,19),"") -> 16792 | X49: =IF($AE49=1,VLOOKUP($F49,all!$E$14:$AD$553,20),"") -> 0.008932825155 | Y49: =IF($AE49=1,VLOOKUP($F49,all!$E$14:$AD$553,21),"") -> 2 | Z49: =IF($AE49=1,VLOOKUP($F49,all!$E$14:$AD$553,22),"") -> 4 | AA49: =IF($AE49=1,VLOOKUP($F49,all!$E$14:$AD$553,23),"") -> 0 | AB49: =IF($AE49=1,VLOOKUP($F49,all!$E$14:$AD$553,24),"") -> 0 | AC49: =IF($AE49=1,VLOOKUP($F49,all!$E$14:$AD$553,25),"") -> 0 | AE49: =COUNTIF(all!$E$14:$E$553,F49) -> 1 | AF49: 6 | AG49: sell under / | AH49: =-AH48 -> 0 | AI49: =-AI48 -> 0 | AJ49: 0 | AK49: 0 | AL49: 0 | AM49: 0 | AN49: 0 | AO49: 0 | AP49: 0 | AQ49: 0 | AR49: 0 | AS49: 0 | AT49: 0 | AU49: 0 | AV49: 0 | AW49: 0 | AX49: 0 | AY49: 0 | AZ49: 0 | BA49: 0 | BB49: 0
A50: =IF(OR('Y2'!$W$1=6,('Y2'!$W$1=7)),IF(OFFSET(#REF!,$C$12,0)="?","",OFFSET(#REF!,$C$12,0)),'Y2'!AA43) -> 107.5 | B50: =IF(OR('Y2'!$W$1=6,('Y2'!$W$1=7)),IF(A50="","",MAX(AVERAGE(OFFSET(#REF!,$C$12,0),OFFSET(#REF!,$C$12,0)),0)),'Y2'!AB43) -> 60 | C50: =IF(all!$AQ$1=1,all!AR42,IF(all!$AQ$1=2,all!AT42*100,IF(all!$AQ$1=3,all!AV42,all!AX42))) -> 60.30369641 | D50: =IF(OR('Y2'!$W$1=6,('Y2'!$W$1=7)),IF(A50="","",MAX(AVERAGE(OFFSET(#REF!,$C$12,0),OFFSET(#REF!,$C$12,0)),0)),'Y2'!AC43) -> 0.02 | E50: =IF(all!$AP$3=1,all!AS42,IF(all!$AP$3=2,all!AU42*100,IF(all!$AP$3=3,all!AW42,all!AY42))) -> -6.695055223e-15 | F50: 17 | G50: =IF($AE50=1,VLOOKUP($F50,all!$E$14:$AD$553,3),"") -> strangle itm /\ (s155c+s185p) | H50: =IF($AE50=1,VLOOKUP($F50,all!$E$14:$AD$553,4),"") -> 155 | I50: =IF($AE50=1,VLOOKUP($F50,all!$E$14:$AD$553,5),"") -> 13.49 | J50: =IF($AE50=1,VLOOKUP($F50,all!$E$14:$AD$553,6),"") -> 185 | K50: =IF($AE50=1,VLOOKUP($F50,all!$E$14:$AD$553,7),"") -> 17.45 | L50: =IF($AE50=1,VLOOKUP($F50,all!$E$14:$AD$553,8),"") -> 0 | M50: =IF($AE50=1,VLOOKUP($F50,all!$E$14:$AD$553,9),"") -> 0 | N50: =IF($AE50=1,VLOOKUP($F50,all!$E$14:$AD$553,10),"") -> 0 | O50: =IF($AE50=1,VLOOKUP($F50,all!$E$14:$AD$553,11),"") -> 0 | P50: =IF($AE50=1,VLOOKUP($F50,all!$E$14:$AD$553,12),"") -> unlim risk | Q50: =IF($AE50=1,VLOOKUP($F50,all!$E$14:$AD$553,13),"") -> 94 | R50: =IF($AE50=1,VLOOKUP($F50,all!$E$14:$AD$553,14),"") -> 154.06 | S50: =IF($AE50=1,VLOOKUP($F50,all!$E$14:$AD$553,15),"") -> 185.94 | T50: =IF($AE50=1,VLOOKUP($F50,all!$E$14:$AD$553,16),"") -> 0.9154220576 | U50: =IF($AE50=1,VLOOKUP($F50,all!$E$14:$AD$553,17),"") -> unlim risk | V50: =IF($AE50=1,VLOOKUP($F50,all!$E$14:$AD$553,18),"") -> unlim risk | W50: =IF($AE50=1,VLOOKUP($F50,all!$E$14:$AD$553,19),"") -> 16792 | X50: =IF($AE50=1,VLOOKUP($F50,all!$E$14:$AD$553,20),"") -> 0.005597903764 | Y50: =IF($AE50=1,VLOOKUP($F50,all!$E$14:$AD$553,21),"") -> 2 | Z50: =IF($AE50=1,VLOOKUP($F50,all!$E$14:$AD$553,22),"") -> 4 | AA50: =IF($AE50=1,VLOOKUP($F50,all!$E$14:$AD$553,23),"") -> 0 | AB50: =IF($AE50=1,VLOOKUP($F50,all!$E$14:$AD$553,24),"") -> 0 | AC50: =IF($AE50=1,VLOOKUP($F50,all!$E$14:$AD$553,25),"") -> 0 | AE50: =COUNTIF(all!$E$14:$E$553,F50) -> 1 | AG50: one | AH50: =IF($AF$50=0,0,VLOOKUP($AF$50,$AF$44:$BB$49,AH116)) -> 0 | AI50: =IF($AF$50=0,0,VLOOKUP($AF$50,$AF$44:$BB$49,AI116)) -> 0 | AJ50: 0 | AK50: 0 | AL50: 0 | AM50: 0 | AN50: 0 | AO50: 0 | AP50: 0 | AQ50: 0 | AR50: 0 | AS50: 0 | AT50: 0 | AU50: 0 | AV50: 0 | AW50: 0 | AX50: 0 | AY50: 0 | AZ50: 0 | BA50: 0 | BB50: 0
A51: =IF(OR('Y2'!$W$1=6,('Y2'!$W$1=7)),IF(OFFSET(#REF!,$C$12,0)="?","",OFFSET(#REF!,$C$12,0)),'Y2'!AA44) -> 110 | B51: =IF(OR('Y2'!$W$1=6,('Y2'!$W$1=7)),IF(A51="","",MAX(AVERAGE(OFFSET(#REF!,$C$12,0),OFFSET(#REF!,$C$12,0)),0)),'Y2'!AB44) -> 57.46 | C51: =IF(all!$AQ$1=1,all!AR43,IF(all!$AQ$1=2,all!AT43*100,IF(all!$AQ$1=3,all!AV43,all!AX43))) -> 57.80497024 | D51: =IF(OR('Y2'!$W$1=6,('Y2'!$W$1=7)),IF(A51="","",MAX(AVERAGE(OFFSET(#REF!,$C$12,0),OFFSET(#REF!,$C$12,0)),0)),'Y2'!AC44) -> 0.02 | E51: =IF(all!$AP$3=1,all!AS43,IF(all!$AP$3=2,all!AU43*100,IF(all!$AP$3=3,all!AW43,all!AY43))) -> -5.661460627e-15 | F51: 18 | G51: =IF($AE51=1,VLOOKUP($F51,all!$E$14:$AD$553,3),"") -> strangle itm /\ (s152.5c+s187.5p) | H51: =IF($AE51=1,VLOOKUP($F51,all!$E$14:$AD$553,4),"") -> 152.5 | I51: =IF($AE51=1,VLOOKUP($F51,all!$E$14:$AD$553,5),"") -> 15.8 | J51: =IF($AE51=1,VLOOKUP($F51,all!$E$14:$AD$553,6),"") -> 187.5 | K51: =IF($AE51=1,VLOOKUP($F51,all!$E$14:$AD$553,7),"") -> 20.85 | L51: =IF($AE51=1,VLOOKUP($F51,all!$E$14:$AD$553,8),"") -> 0 | M51: =IF($AE51=1,VLOOKUP($F51,all!$E$14:$AD$553,9),"") -> 0 | N51: =IF($AE51=1,VLOOKUP($F51,all!$E$14:$AD$553,10),"") -> 0 | O51: =IF($AE51=1,VLOOKUP($F51,all!$E$14:$AD$553,11),"") -> 0 | P51: =IF($AE51=1,VLOOKUP($F51,all!$E$14:$AD$553,12),"") -> unlim risk | Q51: =IF($AE51=1,VLOOKUP($F51,all!$E$14:$AD$553,13),"") -> 165 | R51: =IF($AE51=1,VLOOKUP($F51,all!$E$14:$AD$553,14),"") -> 150.85 | S51: =IF($AE51=1,VLOOKUP($F51,all!$E$14:$AD$553,15),"") -> 189.15 | T51: =IF($AE51=1,VLOOKUP($F51,all!$E$14:$AD$553,16),"") -> 0.9628728059 | U51: =IF($AE51=1,VLOOKUP($F51,all!$E$14:$AD$553,17),"") -> unlim risk | V51: =IF($AE51=1,VLOOKUP($F51,all!$E$14:$AD$553,18),"") -> unlim risk | W51: =IF($AE51=1,VLOOKUP($F51,all!$E$14:$AD$553,19),"") -> 16792 | X51: =IF($AE51=1,VLOOKUP($F51,all!$E$14:$AD$553,20),"") -> 0.00982610767 | Y51: =IF($AE51=1,VLOOKUP($F51,all!$E$14:$AD$553,21),"") -> 2 | Z51: =IF($AE51=1,VLOOKUP($F51,all!$E$14:$AD$553,22),"") -> 4 | AA51: =IF($AE51=1,VLOOKUP($F51,all!$E$14:$AD$553,23),"") -> 0 | AB51: =IF($AE51=1,VLOOKUP($F51,all!$E$14:$AD$553,24),"") -> 0 | AC51: =IF($AE51=1,VLOOKUP($F51,all!$E$14:$AD$553,25),"") -> 0 | AE51: =COUNTIF(all!$E$14:$E$553,F51) -> 1
A52: =IF(OR('Y2'!$W$1=6,('Y2'!$W$1=7)),IF(OFFSET(#REF!,$C$12,0)="?","",OFFSET(#REF!,$C$12,0)),'Y2'!AA45) -> 112.5 | B52: =IF(OR('Y2'!$W$1=6,('Y2'!$W$1=7)),IF(A52="","",MAX(AVERAGE(OFFSET(#REF!,$C$12,0),OFFSET(#REF!,$C$12,0)),0)),'Y2'!AB45) -> 54.8 | C52: =IF(all!$AQ$1=1,all!AR44,IF(all!$AQ$1=2,all!AT44*100,IF(all!$AQ$1=3,all!AV44,all!AX44))) -> 55.30624408 | D52: =IF(OR('Y2'!$W$1=6,('Y2'!$W$1=7)),IF(A52="","",MAX(AVERAGE(OFFSET(#REF!,$C$12,0),OFFSET(#REF!,$C$12,0)),0)),'Y2'!AC45) -> 0.03 | E52: =IF(all!$AP$3=1,all!AS44,IF(all!$AP$3=2,all!AU44*100,IF(all!$AP$3=3,all!AW44,all!AY44))) -> 5.20615768e-14 | F52: 19 | G52: =IF($AE52=1,VLOOKUP($F52,all!$E$14:$AD$553,3),"") -> strangle itm /\ (s150c+s190p) | H52: =IF($AE52=1,VLOOKUP($F52,all!$E$14:$AD$553,4),"") -> 150 | I52: =IF($AE52=1,VLOOKUP($F52,all!$E$14:$AD$553,5),"") -> 18.3 | J52: =IF($AE52=1,VLOOKUP($F52,all!$E$14:$AD$553,6),"") -> 190 | K52: =IF($AE52=1,VLOOKUP($F52,all!$E$14:$AD$553,7),"") -> 22.91 | L52: =IF($AE52=1,VLOOKUP($F52,all!$E$14:$AD$553,8),"") -> 0 | M52: =IF($AE52=1,VLOOKUP($F52,all!$E$14:$AD$553,9),"") -> 0 | N52: =IF($AE52=1,VLOOKUP($F52,all!$E$14:$AD$553,10),"") -> 0 | O52: =IF($AE52=1,VLOOKUP($F52,all!$E$14:$AD$553,11),"") -> 0 | P52: =IF($AE52=1,VLOOKUP($F52,all!$E$14:$AD$553,12),"") -> unlim risk | Q52: =IF($AE52=1,VLOOKUP($F52,all!$E$14:$AD$553,13),"") -> 121 | R52: =IF($AE52=1,VLOOKUP($F52,all!$E$14:$AD$553,14),"") -> 148.79 | S52: =IF($AE52=1,VLOOKUP($F52,all!$E$14:$AD$553,15),"") -> 191.21 | T52: =IF($AE52=1,VLOOKUP($F52,all!$E$14:$AD$553,16),"") -> 0.9794841383 | U52: =IF($AE52=1,VLOOKUP($F52,all!$E$14:$AD$553,17),"") -> unlim risk | V52: =IF($AE52=1,VLOOKUP($F52,all!$E$14:$AD$553,18),"") -> unlim risk | W52: =IF($AE52=1,VLOOKUP($F52,all!$E$14:$AD$553,19),"") -> 16792 | X52: =IF($AE52=1,VLOOKUP($F52,all!$E$14:$AD$553,20),"") -> 0.007205812292 | Y52: =IF($AE52=1,VLOOKUP($F52,all!$E$14:$AD$553,21),"") -> 2 | Z52: =IF($AE52=1,VLOOKUP($F52,all!$E$14:$AD$553,22),"") -> 4 | AA52: =IF($AE52=1,VLOOKUP($F52,all!$E$14:$AD$553,23),"") -> 0 | AB52: =IF($AE52=1,VLOOKUP($F52,all!$E$14:$AD$553,24),"") -> 0 | AC52: =IF($AE52=1,VLOOKUP($F52,all!$E$14:$AD$553,25),"") -> 0 | AE52: =COUNTIF(all!$E$14:$E$553,F52) -> 1 | AF52: 1 | AG52: ` | AH52: =$H$9*$J$2*IF($J$9<AH$11,AH$11-$J$9-$K$9,-$K$9) ->  | AI52: =$H$9*$J$2*IF($J$9<AI$11,AI$11-$J$9-$K$9,-$K$9) -> 
A53: =IF(OR('Y2'!$W$1=6,('Y2'!$W$1=7)),IF(OFFSET(#REF!,$C$12,0)="?","",OFFSET(#REF!,$C$12,0)),'Y2'!AA46) -> 115 | B53: =IF(OR('Y2'!$W$1=6,('Y2'!$W$1=7)),IF(A53="","",MAX(AVERAGE(OFFSET(#REF!,$C$12,0),OFFSET(#REF!,$C$12,0)),0)),'Y2'!AB46) -> 51.84 | C53: =IF(all!$AQ$1=1,all!AR45,IF(all!$AQ$1=2,all!AT45*100,IF(all!$AQ$1=3,all!AV45,all!AX45))) -> 52.80751792 | D53: =IF(OR('Y2'!$W$1=6,('Y2'!$W$1=7)),IF(A53="","",MAX(AVERAGE(OFFSET(#REF!,$C$12,0),OFFSET(#REF!,$C$12,0)),0)),'Y2'!AC46) -> 0.03 | E53: =IF(all!$AP$3=1,all!AS45,IF(all!$AP$3=2,all!AU45*100,IF(all!$AP$3=3,all!AW45,all!AY45))) -> 1.225724182e-12 | F53: 20 | G53: =IF($AE53=1,VLOOKUP($F53,all!$E$14:$AD$553,3),"") -> strangle itm /\ (s145c+s192.5p) | H53: =IF($AE53=1,VLOOKUP($F53,all!$E$14:$AD$553,4),"") -> 145 | I53: =IF($AE53=1,VLOOKUP($F53,all!$E$14:$AD$553,5),"") -> 22.79 | J53: =IF($AE53=1,VLOOKUP($F53,all!$E$14:$AD$553,6),"") -> 192.5 | K53: =IF($AE53=1,VLOOKUP($F53,all!$E$14:$AD$553,7),"") -> 25.45 | L53: =IF($AE53=1,VLOOKUP($F53,all!$E$14:$AD$553,8),"") -> 0 | M53: =IF($AE53=1,VLOOKUP($F53,all!$E$14:$AD$553,9),"") -> 0 | N53: =IF($AE53=1,VLOOKUP($F53,all!$E$14:$AD$553,10),"") -> 0 | O53: =IF($AE53=1,VLOOKUP($F53,all!$E$14:$AD$553,11),"") -> 0 | P53: =IF($AE53=1,VLOOKUP($F53,all!$E$14:$AD$553,12),"") -> unlim risk | Q53: =IF($AE53=1,VLOOKUP($F53,all!$E$14:$AD$553,13),"") -> 74 | R53: =IF($AE53=1,VLOOKUP($F53,all!$E$14:$AD$553,14),"") -> 144.26 | S53: =IF($AE53=1,VLOOKUP($F53,all!$E$14:$AD$553,15),"") -> 193.24 | T53: =IF($AE53=1,VLOOKUP($F53,all!$E$14:$AD$553,16),"") -> 0.9929433328 | U53: =IF($AE53=1,VLOOKUP($F53,all!$E$14:$AD$553,17),"") -> unlim risk | V53: =IF($AE53=1,VLOOKUP($F53,all!$E$14:$AD$553,18),"") -> unlim risk | W53: =IF($AE53=1,VLOOKUP($F53,all!$E$14:$AD$553,19),"") -> 16792 | X53: =IF($AE53=1,VLOOKUP($F53,all!$E$14:$AD$553,20),"") -> 0.00440686041 | Y53: =IF($AE53=1,VLOOKUP($F53,all!$E$14:$AD$553,21),"") -> 2 | Z53: =IF($AE53=1,VLOOKUP($F53,all!$E$14:$AD$553,22),"") -> 4 | AA53: =IF($AE53=1,VLOOKUP($F53,all!$E$14:$AD$553,23),"") -> 0 | AB53: =IF($AE53=1,VLOOKUP($F53,all!$E$14:$AD$553,24),"") -> 0 | AC53: =IF($AE53=1,VLOOKUP($F53,all!$E$14:$AD$553,25),"") -> 0 | AE53: =COUNTIF(all!$E$14:$E$553,F53) -> 1 | AF53: 2 | AG53: sell call '''\ | AH53: =-AH52 ->  | AI53: =-AI52 -> 
A54: =IF(OR('Y2'!$W$1=6,('Y2'!$W$1=7)),"",'Y2'!AA47) -> 117.5 | B54: =IF(OR('Y2'!$W$1=6,('Y2'!$W$1=7)),"",'Y2'!AB47) -> 49.5 | C54: =IF(all!$AQ$1=1,all!AR46,IF(all!$AQ$1=2,all!AT46*100,IF(all!$AQ$1=3,all!AV46,all!AX46))) -> 50.30879174 | D54: =IF(OR('Y2'!$W$1=6,('Y2'!$W$1=7)),"",'Y2'!AC47) -> 0.04 | E54: =IF(all!$AP$3=1,all!AS46,IF(all!$AP$3=2,all!AU46*100,IF(all!$AP$3=3,all!AW46,all!AY46))) -> 2.097088584e-11 | F54: 21 | G54: =IF($AE54=1,VLOOKUP($F54,all!$E$14:$AD$553,3),"") -> strangle itm /\ (s140c+s195p) | H54: =IF($AE54=1,VLOOKUP($F54,all!$E$14:$AD$553,4),"") -> 140 | I54: =IF($AE54=1,VLOOKUP($F54,all!$E$14:$AD$553,5),"") -> 28 | J54: =IF($AE54=1,VLOOKUP($F54,all!$E$14:$AD$553,6),"") -> 195 | K54: =IF($AE54=1,VLOOKUP($F54,all!$E$14:$AD$553,7),"") -> 27.8 | L54: =IF($AE54=1,VLOOKUP($F54,all!$E$14:$AD$553,8),"") -> 0 | M54: =IF($AE54=1,VLOOKUP($F54,all!$E$14:$AD$553,9),"") -> 0 | N54: =IF($AE54=1,VLOOKUP($F54,all!$E$14:$AD$553,10),"") -> 0 | O54: =IF($AE54=1,VLOOKUP($F54,all!$E$14:$AD$553,11),"") -> 0 | P54: =IF($AE54=1,VLOOKUP($F54,all!$E$14:$AD$553,12),"") -> unlim risk | Q54: =IF($AE54=1,VLOOKUP($F54,all!$E$14:$AD$553,13),"") -> 80 | R54: =IF($AE54=1,VLOOKUP($F54,all!$E$14:$AD$553,14),"") -> 139.2 | S54: =IF($AE54=1,VLOOKUP($F54,all!$E$14:$AD$553,15),"") -> 195.8 | T54: =IF($AE54=1,VLOOKUP($F54,all!$E$14:$AD$553,16),"") -> 0.997540699 | U54: =IF($AE54=1,VLOOKUP($F54,all!$E$14:$AD$553,17),"") -> unlim risk | V54: =IF($AE54=1,VLOOKUP($F54,all!$E$14:$AD$553,18),"") -> unlim risk | W54: =IF($AE54=1,VLOOKUP($F54,all!$E$14:$AD$553,19),"") -> 16792 | X54: =IF($AE54=1,VLOOKUP($F54,all!$E$14:$AD$553,20),"") -> 0.004764173416 | Y54: =IF($AE54=1,VLOOKUP($F54,all!$E$14:$AD$553,21),"") -> 2 | Z54: =IF($AE54=1,VLOOKUP($F54,all!$E$14:$AD$553,22),"") -> 4 | AA54: =IF($AE54=1,VLOOKUP($F54,all!$E$14:$AD$553,23),"") -> 0 | AB54: =IF($AE54=1,VLOOKUP($F54,all!$E$14:$AD$553,24),"") -> 0 | AC54: =IF($AE54=1,VLOOKUP($F54,all!$E$14:$AD$553,25),"") -> 0 | AE54: =COUNTIF(all!$E$14:$E$553,F54) -> 1 | AF54: 3 | AG54: buy put \_ | AH54: =$H$9*$J$2*IF($J$9>AH$11,$J$9-AH$11-$K$9,-$K$9) ->  | AI54: =$H$9*$J$2*IF($J$9>AI$11,$J$9-AI$11-$K$9,-$K$9) -> 
A55: =IF(OR('Y2'!$W$1=6,('Y2'!$W$1=7)),"",'Y2'!AA48) -> 120 | B55: =IF(OR('Y2'!$W$1=6,('Y2'!$W$1=7)),"",'Y2'!AB48) -> 47.45 | C55: =IF(all!$AQ$1=1,all!AR47,IF(all!$AQ$1=2,all!AT47*100,IF(all!$AQ$1=3,all!AV47,all!AX47))) -> 47.81006558 | D55: =IF(OR('Y2'!$W$1=6,('Y2'!$W$1=7)),"",'Y2'!AC48) -> 0.05 | E55: =IF(all!$AP$3=1,all!AS47,IF(all!$AP$3=2,all!AU47*100,IF(all!$AP$3=3,all!AW47,all!AY47))) -> 2.908506599e-10 | F55: 22 | G55: =IF($AE55=1,VLOOKUP($F55,all!$E$14:$AD$553,3),"") -> ratio call --^\ itm-b (b160c+2s172.5c) (neutral) | H55: =IF($AE55=1,VLOOKUP($F55,all!$E$14:$AD$553,4),"") -> 160 | I55: =IF($AE55=1,VLOOKUP($F55,all!$E$14:$AD$553,5),"") -> 9.75 | J55: =IF($AE55=1,VLOOKUP($F55,all!$E$14:$AD$553,6),"") -> 172.5 | K55: =IF($AE55=1,VLOOKUP($F55,all!$E$14:$AD$553,7),"") -> 2.21 | L55: =IF($AE55=1,VLOOKUP($F55,all!$E$14:$AD$553,8),"") -> 0 | M55: =IF($AE55=1,VLOOKUP($F55,all!$E$14:$AD$553,9),"") -> 0 | N55: =IF($AE55=1,VLOOKUP($F55,all!$E$14:$AD$553,10),"") -> 0 | O55: =IF($AE55=1,VLOOKUP($F55,all!$E$14:$AD$553,11),"") -> 0 | P55: =IF($AE55=1,VLOOKUP($F55,all!$E$14:$AD$553,12),"") -> unlim risk | Q55: =IF($AE55=1,VLOOKUP($F55,all!$E$14:$AD$553,13),"") -> 717 | R55: =IF($AE55=1,VLOOKUP($F55,all!$E$14:$AD$553,14),"") -> 165.33 | S55: =IF($AE55=1,VLOOKUP($F55,all!$E$14:$AD$553,15),"") -> 179.67 | T55: =IF($AE55=1,VLOOKUP($F55,all!$E$14:$AD$553,16),"") -> 0.5083835971 | U55: =IF($AE55=1,VLOOKUP($F55,all!$E$14:$AD$553,17),"") -> unlim risk | V55: =IF($AE55=1,VLOOKUP($F55,all!$E$14:$AD$553,18),"") -> unlim risk | W55: =IF($AE55=1,VLOOKUP($F55,all!$E$14:$AD$553,19),"") -> 1417 | X55: =IF($AE55=1,VLOOKUP($F55,all!$E$14:$AD$553,20),"") -> 0.5059985886 | Y55: =IF($AE55=1,VLOOKUP($F55,all!$E$14:$AD$553,21),"") -> 1 | Z55: =IF($AE55=1,VLOOKUP($F55,all!$E$14:$AD$553,22),"") -> 2 | AA55: =IF($AE55=1,VLOOKUP($F55,all!$E$14:$AD$553,23),"") -> 0 | AB55: =IF($AE55=1,VLOOKUP($F55,all!$E$14:$AD$553,24),"") -> 0 | AC55: =IF($AE55=1,VLOOKUP($F55,all!$E$14:$AD$553,25),"") -> x | AE55: =COUNTIF(all!$E$14:$E$553,F55) -> 1 | AF55: 4 | AG55: sell put /''' | AH55: =-AH54 ->  | AI55: =-AI54 -> 
A56: =IF(OR('Y2'!$W$1=6,('Y2'!$W$1=7)),"",'Y2'!AA49) -> 122.5 | B56: =IF(OR('Y2'!$W$1=6,('Y2'!$W$1=7)),"",'Y2'!AB49) -> 44.37 | C56: =IF(all!$AQ$1=1,all!AR48,IF(all!$AQ$1=2,all!AT48*100,IF(all!$AQ$1=3,all!AV48,all!AX48))) -> 45.31133942 | D56: =IF(OR('Y2'!$W$1=6,('Y2'!$W$1=7)),"",'Y2'!AC49) -> 0.07 | E56: =IF(all!$AP$3=1,all!AS48,IF(all!$AP$3=2,all!AU48*100,IF(all!$AP$3=3,all!AW48,all!AY48))) -> 3.31701014e-09 | F56: 23 | G56: =IF($AE56=1,VLOOKUP($F56,all!$E$14:$AD$553,3),"") -> ratio call --^\ itm-b (b160c+2s175c) (neutral) | H56: =IF($AE56=1,VLOOKUP($F56,all!$E$14:$AD$553,4),"") -> 160 | I56: =IF($AE56=1,VLOOKUP($F56,all!$E$14:$AD$553,5),"") -> 9.75 | J56: =IF($AE56=1,VLOOKUP($F56,all!$E$14:$AD$553,6),"") -> 175 | K56: =IF($AE56=1,VLOOKUP($F56,all!$E$14:$AD$553,7),"") -> 1.4 | L56: =IF($AE56=1,VLOOKUP($F56,all!$E$14:$AD$553,8),"") -> 0 | M56: =IF($AE56=1,VLOOKUP($F56,all!$E$14:$AD$553,9),"") -> 0 | N56: =IF($AE56=1,VLOOKUP($F56,all!$E$14:$AD$553,10),"") -> 0 | O56: =IF($AE56=1,VLOOKUP($F56,all!$E$14:$AD$553,11),"") -> 0 | P56: =IF($AE56=1,VLOOKUP($F56,all!$E$14:$AD$553,12),"") -> unlim risk | Q56: =IF($AE56=1,VLOOKUP($F56,all!$E$14:$AD$553,13),"") -> 805 | R56: =IF($AE56=1,VLOOKUP($F56,all!$E$14:$AD$553,14),"") -> 166.95 | S56: =IF($AE56=1,VLOOKUP($F56,all!$E$14:$AD$553,15),"") -> 183.05 | T56: =IF($AE56=1,VLOOKUP($F56,all!$E$14:$AD$553,16),"") -> 0.4878558264 | U56: =IF($AE56=1,VLOOKUP($F56,all!$E$14:$AD$553,17),"") -> unlim risk | V56: =IF($AE56=1,VLOOKUP($F56,all!$E$14:$AD$553,18),"") -> unlim risk | W56: =IF($AE56=1,VLOOKUP($F56,all!$E$14:$AD$553,19),"") -> 1255 | X56: =IF($AE56=1,VLOOKUP($F56,all!$E$14:$AD$553,20),"") -> 0.6414342629 | Y56: =IF($AE56=1,VLOOKUP($F56,all!$E$14:$AD$553,21),"") -> 1 | Z56: =IF($AE56=1,VLOOKUP($F56,all!$E$14:$AD$553,22),"") -> 2 | AA56: =IF($AE56=1,VLOOKUP($F56,all!$E$14:$AD$553,23),"") -> 0 | AB56: =IF($AE56=1,VLOOKUP($F56,all!$E$14:$AD$553,24),"") -> 0 | AC56: =IF($AE56=1,VLOOKUP($F56,all!$E$14:$AD$553,25),"") -> x | AE56: =COUNTIF(all!$E$14:$E$553,F56) -> 1 | AF56: 5 | AG56: buy under \ | AH56: =$H$9*$J$2*(AH$11-$C$2) -> 0 | AI56: =$H$9*$J$2*(AI$11-$C$2) -> 0 | AJ56: 0 | AK56: 0 | AL56: 0 | AM56: 0 | AN56: 0 | AO56: 0 | AP56: 0 | AQ56: 0 | AR56: 0 | AS56: 0 | AT56: 0 | AU56: 0 | AV56: 0 | AW56: 0 | AX56: 0 | AY56: 0 | AZ56: 0 | BA56: 0 | BB56: 0
A57: =IF(OR('Y2'!$W$1=6,('Y2'!$W$1=7)),"",'Y2'!AA50) -> 125 | B57: =IF(OR('Y2'!$W$1=6,('Y2'!$W$1=7)),"",'Y2'!AB50) -> 42.35 | C57: =IF(all!$AQ$1=1,all!AR49,IF(all!$AQ$1=2,all!AT49*100,IF(all!$AQ$1=3,all!AV49,all!AX49))) -> 42.81261329 | D57: =IF(OR('Y2'!$W$1=6,('Y2'!$W$1=7)),"",'Y2'!AC50) -> 0.07 | E57: =IF(all!$AP$3=1,all!AS49,IF(all!$AP$3=2,all!AU49*100,IF(all!$AP$3=3,all!AW49,all!AY49))) -> 3.146364045e-08 | F57: 24 | G57: =IF($AE57=1,VLOOKUP($F57,all!$E$14:$AD$553,3),"") -> ratio call --^\ itm-b (b160c+2s177.5c) (neutral) | H57: =IF($AE57=1,VLOOKUP($F57,all!$E$14:$AD$553,4),"") -> 160 | I57: =IF($AE57=1,VLOOKUP($F57,all!$E$14:$AD$553,5),"") -> 9.75 | J57: =IF($AE57=1,VLOOKUP($F57,all!$E$14:$AD$553,6),"") -> 177.5 | K57: =IF($AE57=1,VLOOKUP($F57,all!$E$14:$AD$553,7),"") -> 0.84 | L57: =IF($AE57=1,VLOOKUP($F57,all!$E$14:$AD$553,8),"") -> 0 | M57: =IF($AE57=1,VLOOKUP($F57,all!$E$14:$AD$553,9),"") -> 0 | N57: =IF($AE57=1,VLOOKUP($F57,all!$E$14:$AD$553,10),"") -> 0 | O57: =IF($AE57=1,VLOOKUP($F57,all!$E$14:$AD$553,11),"") -> 0 | P57: =IF($AE57=1,VLOOKUP($F57,all!$E$14:$AD$553,12),"") -> unlim risk | Q57: =IF($AE57=1,VLOOKUP($F57,all!$E$14:$AD$553,13),"") -> 943 | R57: =IF($AE57=1,VLOOKUP($F57,all!$E$14:$AD$553,14),"") -> 168.07 | S57: =IF($AE57=1,VLOOKUP($F57,all!$E$14:$AD$553,15),"") -> 186.93 | T57: =IF($AE57=1,VLOOKUP($F57,all!$E$14:$AD$553,16),"") -> 0.4699843355 | U57: =IF($AE57=1,VLOOKUP($F57,all!$E$14:$AD$553,17),"") -> unlim risk | V57: =IF($AE57=1,VLOOKUP($F57,all!$E$14:$AD$553,18),"") -> unlim risk | W57: =IF($AE57=1,VLOOKUP($F57,all!$E$14:$AD$553,19),"") -> 1143 | X57: =IF($AE57=1,VLOOKUP($F57,all!$E$14:$AD$553,20),"") -> 0.8250218723 | Y57: =IF($AE57=1,VLOOKUP($F57,all!$E$14:$AD$553,21),"") -> 1 | Z57: =IF($AE57=1,VLOOKUP($F57,all!$E$14:$AD$553,22),"") -> 2 | AA57: =IF($AE57=1,VLOOKUP($F57,all!$E$14:$AD$553,23),"") -> 0 | AB57: =IF($AE57=1,VLOOKUP($F57,all!$E$14:$AD$553,24),"") -> 0 | AC57: =IF($AE57=1,VLOOKUP($F57,all!$E$14:$AD$553,25),"") -> x | AE57: =COUNTIF(all!$E$14:$E$553,F57) -> 1 | AF57: 6 | AG57: sell under / | AH57: =-AH56 -> 0 | AI57: =-AI56 -> 0 | AJ57: 0 | AK57: 0 | AL57: 0 | AM57: 0 | AN57: 0 | AO57: 0 | AP57: 0 | AQ57: 0 | AR57: 0 | AS57: 0 | AT57: 0 | AU57: 0 | AV57: 0 | AW57: 0 | AX57: 0 | AY57: 0 | AZ57: 0 | BA57: 0 | BB57: 0
A58: =IF(OR('Y2'!$W$1=6,('Y2'!$W$1=7)),"",'Y2'!AA51) -> 130 | B58: =IF(OR('Y2'!$W$1=6,('Y2'!$W$1=7)),"",'Y2'!AB51) -> 38.1 | C58: =IF(all!$AQ$1=1,all!AR50,IF(all!$AQ$1=2,all!AT50*100,IF(all!$AQ$1=3,all!AV50,all!AX50))) -> 37.81516263 | D58: =IF(OR('Y2'!$W$1=6,('Y2'!$W$1=7)),"",'Y2'!AC51) -> 0.1 | E58: =IF(all!$AP$3=1,all!AS50,IF(all!$AP$3=2,all!AU50*100,IF(all!$AP$3=3,all!AW50,all!AY50))) -> 1.698273001e-06 | F58: 25 | G58: =IF($AE58=1,VLOOKUP($F58,all!$E$14:$AD$553,3),"") -> ratio call --^\ itm-b (b162.5c+2s172.5c) (neutral) | H58: =IF($AE58=1,VLOOKUP($F58,all!$E$14:$AD$553,4),"") -> 162.5 | I58: =IF($AE58=1,VLOOKUP($F58,all!$E$14:$AD$553,5),"") -> 7.9 | J58: =IF($AE58=1,VLOOKUP($F58,all!$E$14:$AD$553,6),"") -> 172.5 | K58: =IF($AE58=1,VLOOKUP($F58,all!$E$14:$AD$553,7),"") -> 2.21 | L58: =IF($AE58=1,VLOOKUP($F58,all!$E$14:$AD$553,8),"") -> 0 | M58: =IF($AE58=1,VLOOKUP($F58,all!$E$14:$AD$553,9),"") -> 0 | N58: =IF($AE58=1,VLOOKUP($F58,all!$E$14:$AD$553,10),"") -> 0 | O58: =IF($AE58=1,VLOOKUP($F58,all!$E$14:$AD$553,11),"") -> 0 | P58: =IF($AE58=1,VLOOKUP($F58,all!$E$14:$AD$553,12),"") -> unlim risk | Q58: =IF($AE58=1,VLOOKUP($F58,all!$E$14:$AD$553,13),"") -> 652 | R58: =IF($AE58=1,VLOOKUP($F58,all!$E$14:$AD$553,14),"") -> 165.98 | S58: =IF($AE58=1,VLOOKUP($F58,all!$E$14:$AD$553,15),"") -> 179.02 | T58: =IF($AE58=1,VLOOKUP($F58,all!$E$14:$AD$553,16),"") -> 0.4675457881 | U58: =IF($AE58=1,VLOOKUP($F58,all!$E$14:$AD$553,17),"") -> unlim risk | V58: =IF($AE58=1,VLOOKUP($F58,all!$E$14:$AD$553,18),"") -> unlim risk | W58: =IF($AE58=1,VLOOKUP($F58,all!$E$14:$AD$553,19),"") -> 1232 | X58: =IF($AE58=1,VLOOKUP($F58,all!$E$14:$AD$553,20),"") -> 0.5292207792 | Y58: =IF($AE58=1,VLOOKUP($F58,all!$E$14:$AD$553,21),"") -> 1 | Z58: =IF($AE58=1,VLOOKUP($F58,all!$E$14:$AD$553,22),"") -> 2 | AA58: =IF($AE58=1,VLOOKUP($F58,all!$E$14:$AD$553,23),"") -> 0 | AB58: =IF($AE58=1,VLOOKUP($F58,all!$E$14:$AD$553,24),"") -> 0 | AC58: =IF($AE58=1,VLOOKUP($F58,all!$E$14:$AD$553,25),"") -> x | AE58: =COUNTIF(all!$E$14:$E$553,F58) -> 1 | AG58: one | AH58: =IF($AF$58=0,0,VLOOKUP($AF$58,$AF$52:$BB$57,AH116)) -> 0 | AI58: =IF($AF$58=0,0,VLOOKUP($AF$58,$AF$52:$BB$57,AI116)) -> 0 | AJ58: 0 | AK58: 0 | AL58: 0 | AM58: 0 | AN58: 0 | AO58: 0 | AP58: 0 | AQ58: 0 | AR58: 0 | AS58: 0 | AT58: 0 | AU58: 0 | AV58: 0 | AW58: 0 | AX58: 0 | AY58: 0 | AZ58: 0 | BA58: 0 | BB58: 0
A59: =IF(OR('Y2'!$W$1=6,('Y2'!$W$1=7)),"",'Y2'!AA52) -> 135 | B59: =IF(OR('Y2'!$W$1=6,('Y2'!$W$1=7)),"",'Y2'!AB52) -> 32.45 | C59: =IF(all!$AQ$1=1,all!AR51,IF(all!$AQ$1=2,all!AT51*100,IF(all!$AQ$1=3,all!AV51,all!AX51))) -> 32.81775803 | D59: =IF(OR('Y2'!$W$1=6,('Y2'!$W$1=7)),"",'Y2'!AC52) -> 0.13 | E59: =IF(all!$AP$3=1,all!AS51,IF(all!$AP$3=2,all!AU51*100,IF(all!$AP$3=3,all!AW51,all!AY51))) -> 4.942767524e-05 | F59: 26 | G59: =IF($AE59=1,VLOOKUP($F59,all!$E$14:$AD$553,3),"") -> ratio call --^\ itm-b (b162.5c+2s175c) (neutral) | H59: =IF($AE59=1,VLOOKUP($F59,all!$E$14:$AD$553,4),"") -> 162.5 | I59: =IF($AE59=1,VLOOKUP($F59,all!$E$14:$AD$553,5),"") -> 7.9 | J59: =IF($AE59=1,VLOOKUP($F59,all!$E$14:$AD$553,6),"") -> 175 | K59: =IF($AE59=1,VLOOKUP($F59,all!$E$14:$AD$553,7),"") -> 1.4 | L59: =IF($AE59=1,VLOOKUP($F59,all!$E$14:$AD$553,8),"") -> 0 | M59: =IF($AE59=1,VLOOKUP($F59,all!$E$14:$AD$553,9),"") -> 0 | N59: =IF($AE59=1,VLOOKUP($F59,all!$E$14:$AD$553,10),"") -> 0 | O59: =IF($AE59=1,VLOOKUP($F59,all!$E$14:$AD$553,11),"") -> 0 | P59: =IF($AE59=1,VLOOKUP($F59,all!$E$14:$AD$553,12),"") -> unlim risk | Q59: =IF($AE59=1,VLOOKUP($F59,all!$E$14:$AD$553,13),"") -> 740 | R59: =IF($AE59=1,VLOOKUP($F59,all!$E$14:$AD$553,14),"") -> 167.6 | S59: =IF($AE59=1,VLOOKUP($F59,all!$E$14:$AD$553,15),"") -> 182.4 | T59: =IF($AE59=1,VLOOKUP($F59,all!$E$14:$AD$553,16),"") -> 0.4514824247 | U59: =IF($AE59=1,VLOOKUP($F59,all!$E$14:$AD$553,17),"") -> unlim risk | V59: =IF($AE59=1,VLOOKUP($F59,all!$E$14:$AD$553,18),"") -> unlim risk | W59: =IF($AE59=1,VLOOKUP($F59,all!$E$14:$AD$553,19),"") -> 1070 | X59: =IF($AE59=1,VLOOKUP($F59,all!$E$14:$AD$553,20),"") -> 0.691588785 | Y59: =IF($AE59=1,VLOOKUP($F59,all!$E$14:$AD$553,21),"") -> 1 | Z59: =IF($AE59=1,VLOOKUP($F59,all!$E$14:$AD$553,22),"") -> 2 | AA59: =IF($AE59=1,VLOOKUP($F59,all!$E$14:$AD$553,23),"") -> 0 | AB59: =IF($AE59=1,VLOOKUP($F59,all!$E$14:$AD$553,24),"") -> 0 | AC59: =IF($AE59=1,VLOOKUP($F59,all!$E$14:$AD$553,25),"") -> x | AE59: =COUNTIF(all!$E$14:$E$553,F59) -> 1
A60: =IF(OR('Y2'!$W$1=6,('Y2'!$W$1=7)),"",'Y2'!AA53) -> 140 | B60: =IF(OR('Y2'!$W$1=6,('Y2'!$W$1=7)),"",'Y2'!AB53) -> 28 | C60: =IF(all!$AQ$1=1,all!AR52,IF(all!$AQ$1=2,all!AT52*100,IF(all!$AQ$1=3,all!AV52,all!AX52))) -> 27.82108766 | D60: =IF(OR('Y2'!$W$1=6,('Y2'!$W$1=7)),"",'Y2'!AC53) -> 0.2 | E60: =IF(all!$AP$3=1,all!AS52,IF(all!$AP$3=2,all!AU52*100,IF(all!$AP$3=3,all!AW52,all!AY52))) -> 0.0008313805101 | F60: 27 | G60: =IF($AE60=1,VLOOKUP($F60,all!$E$14:$AD$553,3),"") -> ratio call --^\ itm-b (b162.5c+2s177.5c) (neutral) | H60: =IF($AE60=1,VLOOKUP($F60,all!$E$14:$AD$553,4),"") -> 162.5 | I60: =IF($AE60=1,VLOOKUP($F60,all!$E$14:$AD$553,5),"") -> 7.9 | J60: =IF($AE60=1,VLOOKUP($F60,all!$E$14:$AD$553,6),"") -> 177.5 | K60: =IF($AE60=1,VLOOKUP($F60,all!$E$14:$AD$553,7),"") -> 0.84 | L60: =IF($AE60=1,VLOOKUP($F60,all!$E$14:$AD$553,8),"") -> 0 | M60: =IF($AE60=1,VLOOKUP($F60,all!$E$14:$AD$553,9),"") -> 0 | N60: =IF($AE60=1,VLOOKUP($F60,all!$E$14:$AD$553,10),"") -> 0 | O60: =IF($AE60=1,VLOOKUP($F60,all!$E$14:$AD$553,11),"") -> 0 | P60: =IF($AE60=1,VLOOKUP($F60,all!$E$14:$AD$553,12),"") -> unlim risk | Q60: =IF($AE60=1,VLOOKUP($F60,all!$E$14:$AD$553,13),"") -> 878 | R60: =IF($AE60=1,VLOOKUP($F60,all!$E$14:$AD$553,14),"") -> 168.72 | S60: =IF($AE60=1,VLOOKUP($F60,all!$E$14:$AD$553,15),"") -> 186.28 | T60: =IF($AE60=1,VLOOKUP($F60,all!$E$14:$AD$553,16),"") -> 0.4376786972 | U60: =IF($AE60=1,VLOOKUP($F60,all!$E$14:$AD$553,17),"") -> unlim risk | V60: =IF($AE60=1,VLOOKUP($F60,all!$E$14:$AD$553,18),"") -> unlim risk | W60: =IF($AE60=1,VLOOKUP($F60,all!$E$14:$AD$553,19),"") -> 958 | X60: =IF($AE60=1,VLOOKUP($F60,all!$E$14:$AD$553,20),"") -> 0.9164926931 | Y60: =IF($AE60=1,VLOOKUP($F60,all!$E$14:$AD$553,21),"") -> 1 | Z60: =IF($AE60=1,VLOOKUP($F60,all!$E$14:$AD$553,22),"") -> 2 | AA60: =IF($AE60=1,VLOOKUP($F60,all!$E$14:$AD$553,23),"") -> 0 | AB60: =IF($AE60=1,VLOOKUP($F60,all!$E$14:$AD$553,24),"") -> 0 | AC60: =IF($AE60=1,VLOOKUP($F60,all!$E$14:$AD$553,25),"") -> x | AE60: =COUNTIF(all!$E$14:$E$553,F60) -> 1
A61: =IF(OR('Y2'!$W$1=6,('Y2'!$W$1=7)),"",'Y2'!AA54) -> 145 | B61: =IF(OR('Y2'!$W$1=6,('Y2'!$W$1=7)),"",'Y2'!AB54) -> 22.79 | C61: =IF(all!$AQ$1=1,all!AR53,IF(all!$AQ$1=2,all!AT53*100,IF(all!$AQ$1=3,all!AV53,all!AX53))) -> 22.83140955 | D61: =IF(OR('Y2'!$W$1=6,('Y2'!$W$1=7)),"",'Y2'!AC54) -> 0.33 | E61: =IF(all!$AP$3=1,all!AS53,IF(all!$AP$3=2,all!AU53*100,IF(all!$AP$3=3,all!AW53,all!AY53))) -> 0.008605595212 | F61: 28 | G61: =IF($AE61=1,VLOOKUP($F61,all!$E$14:$AD$553,3),"") -> ratio call --^\ itm-b (b165c+2s172.5c) (neutral) | H61: =IF($AE61=1,VLOOKUP($F61,all!$E$14:$AD$553,4),"") -> 165 | I61: =IF($AE61=1,VLOOKUP($F61,all!$E$14:$AD$553,5),"") -> 6.13 | J61: =IF($AE61=1,VLOOKUP($F61,all!$E$14:$AD$553,6),"") -> 172.5 | K61: =IF($AE61=1,VLOOKUP($F61,all!$E$14:$AD$553,7),"") -> 2.21 | L61: =IF($AE61=1,VLOOKUP($F61,all!$E$14:$AD$553,8),"") -> 0 | M61: =IF($AE61=1,VLOOKUP($F61,all!$E$14:$AD$553,9),"") -> 0 | N61: =IF($AE61=1,VLOOKUP($F61,all!$E$14:$AD$553,10),"") -> 0 | O61: =IF($AE61=1,VLOOKUP($F61,all!$E$14:$AD$553,11),"") -> 0 | P61: =IF($AE61=1,VLOOKUP($F61,all!$E$14:$AD$553,12),"") -> unlim risk | Q61: =IF($AE61=1,VLOOKUP($F61,all!$E$14:$AD$553,13),"") -> 579 | R61: =IF($AE61=1,VLOOKUP($F61,all!$E$14:$AD$553,14),"") -> 166.71 | S61: =IF($AE61=1,VLOOKUP($F61,all!$E$14:$AD$553,15),"") -> 178.29 | T61: =IF($AE61=1,VLOOKUP($F61,all!$E$14:$AD$553,16),"") -> 0.4199712285 | U61: =IF($AE61=1,VLOOKUP($F61,all!$E$14:$AD$553,17),"") -> unlim risk | V61: =IF($AE61=1,VLOOKUP($F61,all!$E$14:$AD$553,18),"") -> unlim risk | W61: =IF($AE61=1,VLOOKUP($F61,all!$E$14:$AD$553,19),"") -> 1055 | X61: =IF($AE61=1,VLOOKUP($F61,all!$E$14:$AD$553,20),"") -> 0.5488151659 | Y61: =IF($AE61=1,VLOOKUP($F61,all!$E$14:$AD$553,21),"") -> 1 | Z61: =IF($AE61=1,VLOOKUP($F61,all!$E$14:$AD$553,22),"") -> 2 | AA61: =IF($AE61=1,VLOOKUP($F61,all!$E$14:$AD$553,23),"") -> 0 | AB61: =IF($AE61=1,VLOOKUP($F61,all!$E$14:$AD$553,24),"") -> 0 | AC61: =IF($AE61=1,VLOOKUP($F61,all!$E$14:$AD$553,25),"") -> x | AE61: =COUNTIF(all!$E$14:$E$553,F61) -> 1
A62: =IF(OR('Y2'!$W$1=6,('Y2'!$W$1=7)),"",'Y2'!AA55) -> 150 | B62: =IF(OR('Y2'!$W$1=6,('Y2'!$W$1=7)),"",'Y2'!AB55) -> 18.3 | C62: =IF(all!$AQ$1=1,all!AR54,IF(all!$AQ$1=2,all!AT54*100,IF(all!$AQ$1=3,all!AV54,all!AX54))) -> 17.88343847 | D62: =IF(OR('Y2'!$W$1=6,('Y2'!$W$1=7)),"",'Y2'!AC55) -> 0.57 | E62: =IF(all!$AP$3=1,all!AS54,IF(all!$AP$3=2,all!AU54*100,IF(all!$AP$3=3,all!AW54,all!AY54))) -> 0.0580868511 | F62: 29 | G62: =IF($AE62=1,VLOOKUP($F62,all!$E$14:$AD$553,3),"") -> ratio call --^\ itm-b (b165c+2s175c) (neutral) | H62: =IF($AE62=1,VLOOKUP($F62,all!$E$14:$AD$553,4),"") -> 165 | I62: =IF($AE62=1,VLOOKUP($F62,all!$E$14:$AD$553,5),"") -> 6.13 | J62: =IF($AE62=1,VLOOKUP($F62,all!$E$14:$AD$553,6),"") -> 175 | K62: =IF($AE62=1,VLOOKUP($F62,all!$E$14:$AD$553,7),"") -> 1.4 | L62: =IF($AE62=1,VLOOKUP($F62,all!$E$14:$AD$553,8),"") -> 0 | M62: =IF($AE62=1,VLOOKUP($F62,all!$E$14:$AD$553,9),"") -> 0 | N62: =IF($AE62=1,VLOOKUP($F62,all!$E$14:$AD$553,10),"") -> 0 | O62: =IF($AE62=1,VLOOKUP($F62,all!$E$14:$AD$553,11),"") -> 0 | P62: =IF($AE62=1,VLOOKUP($F62,all!$E$14:$AD$553,12),"") -> unlim risk | Q62: =IF($AE62=1,VLOOKUP($F62,all!$E$14:$AD$553,13),"") -> 667 | R62: =IF($AE62=1,VLOOKUP($F62,all!$E$14:$AD$553,14),"") -> 168.33 | S62: =IF($AE62=1,VLOOKUP($F62,all!$E$14:$AD$553,15),"") -> 181.67 | T62: =IF($AE62=1,VLOOKUP($F62,all!$E$14:$AD$553,16),"") -> 0.4096655011 | U62: =IF($AE62=1,VLOOKUP($F62,all!$E$14:$AD$553,17),"") -> unlim risk | V62: =IF($AE62=1,VLOOKUP($F62,all!$E$14:$AD$553,18),"") -> unlim risk | W62: =IF($AE62=1,VLOOKUP($F62,all!$E$14:$AD$553,19),"") -> 893 | X62: =IF($AE62=1,VLOOKUP($F62,all!$E$14:$AD$553,20),"") -> 0.7469204927 | Y62: =IF($AE62=1,VLOOKUP($F62,all!$E$14:$AD$553,21),"") -> 1 | Z62: =IF($AE62=1,VLOOKUP($F62,all!$E$14:$AD$553,22),"") -> 2 | AA62: =IF($AE62=1,VLOOKUP($F62,all!$E$14:$AD$553,23),"") -> 0 | AB62: =IF($AE62=1,VLOOKUP($F62,all!$E$14:$AD$553,24),"") -> 0 | AC62: =IF($AE62=1,VLOOKUP($F62,all!$E$14:$AD$553,25),"") -> x | AE62: =COUNTIF(all!$E$14:$E$553,F62) -> 1
A63: =IF(OR('Y2'!$W$1=6,('Y2'!$W$1=7)),"",'Y2'!AA56) -> 152.5 | B63: =IF(OR('Y2'!$W$1=6,('Y2'!$W$1=7)),"",'Y2'!AB56) -> 15.8 | C63: =IF(all!$AQ$1=1,all!AR55,IF(all!$AQ$1=2,all!AT55*100,IF(all!$AQ$1=3,all!AV55,all!AX55))) -> 15.45740131 | D63: =IF(OR('Y2'!$W$1=6,('Y2'!$W$1=7)),"",'Y2'!AC56) -> 0.8 | E63: =IF(all!$AP$3=1,all!AS55,IF(all!$AP$3=2,all!AU55*100,IF(all!$AP$3=3,all!AW55,all!AY55))) -> 0.1307758427 | F63: 30 | G63: =IF($AE63=1,VLOOKUP($F63,all!$E$14:$AD$553,3),"") -> ratio call --^\ itm-b (b165c+2s177.5c) (neutral) | H63: =IF($AE63=1,VLOOKUP($F63,all!$E$14:$AD$553,4),"") -> 165 | I63: =IF($AE63=1,VLOOKUP($F63,all!$E$14:$AD$553,5),"") -> 6.13 | J63: =IF($AE63=1,VLOOKUP($F63,all!$E$14:$AD$553,6),"") -> 177.5 | K63: =IF($AE63=1,VLOOKUP($F63,all!$E$14:$AD$553,7),"") -> 0.84 | L63: =IF($AE63=1,VLOOKUP($F63,all!$E$14:$AD$553,8),"") -> 0 | M63: =IF($AE63=1,VLOOKUP($F63,all!$E$14:$AD$553,9),"") -> 0 | N63: =IF($AE63=1,VLOOKUP($F63,all!$E$14:$AD$553,10),"") -> 0 | O63: =IF($AE63=1,VLOOKUP($F63,all!$E$14:$AD$553,11),"") -> 0 | P63: =IF($AE63=1,VLOOKUP($F63,all!$E$14:$AD$553,12),"") -> unlim risk | Q63: =IF($AE63=1,VLOOKUP($F63,all!$E$14:$AD$553,13),"") -> 805 | R63: =IF($AE63=1,VLOOKUP($F63,all!$E$14:$AD$553,14),"") -> 169.45 | S63: =IF($AE63=1,VLOOKUP($F63,all!$E$14:$AD$553,15),"") -> 185.55 | T63: =IF($AE63=1,VLOOKUP($F63,all!$E$14:$AD$553,16),"") -> 0.4011247174 | U63: =IF($AE63=1,VLOOKUP($F63,all!$E$14:$AD$553,17),"") -> unlim risk | V63: =IF($AE63=1,VLOOKUP($F63,all!$E$14:$AD$553,18),"") -> unlim risk | W63: =IF($AE63=1,VLOOKUP($F63,all!$E$14:$AD$553,19),"") -> 781 | X63: =IF($AE63=1,VLOOKUP($F63,all!$E$14:$AD$553,20),"") -> 1.030729834 | Y63: =IF($AE63=1,VLOOKUP($F63,all!$E$14:$AD$553,21),"") -> 1 | Z63: =IF($AE63=1,VLOOKUP($F63,all!$E$14:$AD$553,22),"") -> 2 | AA63: =IF($AE63=1,VLOOKUP($F63,all!$E$14:$AD$553,23),"") -> 0 | AB63: =IF($AE63=1,VLOOKUP($F63,all!$E$14:$AD$553,24),"") -> 0 | AC63: =IF($AE63=1,VLOOKUP($F63,all!$E$14:$AD$553,25),"") -> x | AE63: =COUNTIF(all!$E$14:$E$553,F63) -> 1 | AH63: PL AT CURRENT | AL63: =S2 -> 2022-08-28T09:32:01.130
A64: =IF(OR('Y2'!$W$1=6,('Y2'!$W$1=7)),"",'Y2'!AA57) -> 155 | B64: =IF(OR('Y2'!$W$1=6,('Y2'!$W$1=7)),"",'Y2'!AB57) -> 13.49 | C64: =IF(all!$AQ$1=1,all!AR56,IF(all!$AQ$1=2,all!AT56*100,IF(all!$AQ$1=3,all!AV56,all!AX56))) -> 13.09787729 | D64: =IF(OR('Y2'!$W$1=6,('Y2'!$W$1=7)),"",'Y2'!AC57) -> 1.01 | E64: =IF(all!$AP$3=1,all!AS56,IF(all!$AP$3=2,all!AU56*100,IF(all!$AP$3=3,all!AW56,all!AY56))) -> 0.2699779893 | F64: 31 | G64: =IF($AE64=1,VLOOKUP($F64,all!$E$14:$AD$553,3),"") -> ratio call --^\ itm-b (b167.5c+2s172.5c) (neutral) | H64: =IF($AE64=1,VLOOKUP($F64,all!$E$14:$AD$553,4),"") -> 167.5 | I64: =IF($AE64=1,VLOOKUP($F64,all!$E$14:$AD$553,5),"") -> 4.6 | J64: =IF($AE64=1,VLOOKUP($F64,all!$E$14:$AD$553,6),"") -> 172.5 | K64: =IF($AE64=1,VLOOKUP($F64,all!$E$14:$AD$553,7),"") -> 2.21 | L64: =IF($AE64=1,VLOOKUP($F64,all!$E$14:$AD$553,8),"") -> 0 | M64: =IF($AE64=1,VLOOKUP($F64,all!$E$14:$AD$553,9),"") -> 0 | N64: =IF($AE64=1,VLOOKUP($F64,all!$E$14:$AD$553,10),"") -> 0 | O64: =IF($AE64=1,VLOOKUP($F64,all!$E$14:$AD$553,11),"") -> 0 | P64: =IF($AE64=1,VLOOKUP($F64,all!$E$14:$AD$553,12),"") -> unlim risk | Q64: =IF($AE64=1,VLOOKUP($F64,all!$E$14:$AD$553,13),"") -> 482 | R64: =IF($AE64=1,VLOOKUP($F64,all!$E$14:$AD$553,14),"") -> 167.68 | S64: =IF($AE64=1,VLOOKUP($F64,all!$E$14:$AD$553,15),"") -> 177.32 | T64: =IF($AE64=1,VLOOKUP($F64,all!$E$14:$AD$553,16),"") -> 0.3542302693 | U64: =IF($AE64=1,VLOOKUP($F64,all!$E$14:$AD$553,17),"") -> unlim risk | V64: =IF($AE64=1,VLOOKUP($F64,all!$E$14:$AD$553,18),"") -> unlim risk | W64: =IF($AE64=1,VLOOKUP($F64,all!$E$14:$AD$553,19),"") -> 902 | X64: =IF($AE64=1,VLOOKUP($F64,all!$E$14:$AD$553,20),"") -> 0.534368071 | Y64: =IF($AE64=1,VLOOKUP($F64,all!$E$14:$AD$553,21),"") -> 1 | Z64: =IF($AE64=1,VLOOKUP($F64,all!$E$14:$AD$553,22),"") -> 2 | AA64: =IF($AE64=1,VLOOKUP($F64,all!$E$14:$AD$553,23),"") -> 0 | AB64: =IF($AE64=1,VLOOKUP($F64,all!$E$14:$AD$553,24),"") -> 0 | AC64: =IF($AE64=1,VLOOKUP($F64,all!$E$14:$AD$553,25),"") -> x | AE64: =COUNTIF(all!$E$14:$E$553,F64) -> 1 | AH64: =AH11 -> 83.96 | AI64: =AI11 -> 92.356 | AJ64: =AJ11 -> 100.752 | AK64: 109.148 | AL64: 117.544 | AM64: 125.94 | AN64: 134.336 | AO64: 142.732 | AP64: 151.128 | AQ64: 159.524 | AR64: 167.92 | AS64: 176.316 | AT64: 184.712 | AU64: 193.108 | AV64: 201.504 | AW64: 209.9 | AX64: 218.296 | AY64: 226.692 | AZ64: 235.088 | BA64: 243.484 | BB64: 251.88
A65: =IF(OR('Y2'!$W$1=6,('Y2'!$W$1=7)),"",'Y2'!AA58) -> 157.5 | B65: =IF(OR('Y2'!$W$1=6,('Y2'!$W$1=7)),"",'Y2'!AB58) -> 11.45 | C65: =IF(all!$AQ$1=1,all!AR57,IF(all!$AQ$1=2,all!AT57*100,IF(all!$AQ$1=3,all!AV57,all!AX57))) -> 10.84353874 | D65: =IF(OR('Y2'!$W$1=6,('Y2'!$W$1=7)),"",'Y2'!AC58) -> 1.36 | E65: =IF(all!$AP$3=1,all!AS57,IF(all!$AP$3=2,all!AU57*100,IF(all!$AP$3=3,all!AW57,all!AY57))) -> 0.5143655658 | F65: 32 | G65: =IF($AE65=1,VLOOKUP($F65,all!$E$14:$AD$553,3),"") -> ratio call --^\ itm-b (b167.5c+2s175c) (neutral) | H65: =IF($AE65=1,VLOOKUP($F65,all!$E$14:$AD$553,4),"") -> 167.5 | I65: =IF($AE65=1,VLOOKUP($F65,all!$E$14:$AD$553,5),"") -> 4.6 | J65: =IF($AE65=1,VLOOKUP($F65,all!$E$14:$AD$553,6),"") -> 175 | K65: =IF($AE65=1,VLOOKUP($F65,all!$E$14:$AD$553,7),"") -> 1.4 | L65: =IF($AE65=1,VLOOKUP($F65,all!$E$14:$AD$553,8),"") -> 0 | M65: =IF($AE65=1,VLOOKUP($F65,all!$E$14:$AD$553,9),"") -> 0 | N65: =IF($AE65=1,VLOOKUP($F65,all!$E$14:$AD$553,10),"") -> 0 | O65: =IF($AE65=1,VLOOKUP($F65,all!$E$14:$AD$553,11),"") -> 0 | P65: =IF($AE65=1,VLOOKUP($F65,all!$E$14:$AD$553,12),"") -> unlim risk | Q65: =IF($AE65=1,VLOOKUP($F65,all!$E$14:$AD$553,13),"") -> 570 | R65: =IF($AE65=1,VLOOKUP($F65,all!$E$14:$AD$553,14),"") -> 169.3 | S65: =IF($AE65=1,VLOOKUP($F65,all!$E$14:$AD$553,15),"") -> 180.7 | T65: =IF($AE65=1,VLOOKUP($F65,all!$E$14:$AD$553,16),"") -> 0.3527288947 | U65: =IF($AE65=1,VLOOKUP($F65,all!$E$14:$AD$553,17),"") -> unlim risk | V65: =IF($AE65=1,VLOOKUP($F65,all!$E$14:$AD$553,18),"") -> unlim risk | W65: =IF($AE65=1,VLOOKUP($F65,all!$E$14:$AD$553,19),"") -> 740 | X65: =IF($AE65=1,VLOOKUP($F65,all!$E$14:$AD$553,20),"") -> 0.7702702703 | Y65: =IF($AE65=1,VLOOKUP($F65,all!$E$14:$AD$553,21),"") -> 1 | Z65: =IF($AE65=1,VLOOKUP($F65,all!$E$14:$AD$553,22),"") -> 2 | AA65: =IF($AE65=1,VLOOKUP($F65,all!$E$14:$AD$553,23),"") -> 0 | AB65: =IF($AE65=1,VLOOKUP($F65,all!$E$14:$AD$553,24),"") -> 0 | AC65: =IF($AE65=1,VLOOKUP($F65,all!$E$14:$AD$553,25),"") -> x | AE65: =COUNTIF(all!$E$14:$E$553,F65) -> 1 | AF65: 1 | AG65: buy call | AH65: =IF($K$4="",0,$H$4*$J$2*(PB("C",AH$64+0.00001,$J$4,MAX($I$4-$AL$63,0.00001)/365,$C$6,$D$6,$M$4)-$K$4)) -> -17698.95764 | AI65: =IF($K$4="",0,$H$4*$J$2*(PB("C",AI$64+0.00001,$J$4,MAX($I$4-$AL$63,0.00001)/365,$C$6,$D$6,$M$4)-$K$4)) -> -17697.6152 | AJ65: -17695.09501 | AK65: -17690.74727 | AL65: -17683.74738 | AM65: -17673.10446 | AN65: -17657.68089 | AO65: -17636.21999 | AP65: -17607.37882 | AQ65: -17569.76342 | AR65: -17521.96379 | AS65: -17462.58681 | AT65: -17390.28571 | AU65: -17303.78527 | AV65: -17201.90232 | AW65: -17083.56145 | AX65: -16947.80626 | AY65: -16793.80632 | AZ65: -16620.86054 | BA65: -16428.39721 | BB65: -16215.97156
A66: =IF(OR('Y2'!$W$1=6,('Y2'!$W$1=7)),"",'Y2'!AA59) -> 160 | B66: =IF(OR('Y2'!$W$1=6,('Y2'!$W$1=7)),"",'Y2'!AB59) -> 9.75 | C66: =IF(all!$AQ$1=1,all!AR58,IF(all!$AQ$1=2,all!AT58*100,IF(all!$AQ$1=3,all!AV58,all!AX58))) -> 8.740575849 | D66: =IF(OR('Y2'!$W$1=6,('Y2'!$W$1=7)),"",'Y2'!AC59) -> 1.85 | E66: =IF(all!$AP$3=1,all!AS58,IF(all!$AP$3=2,all!AU58*100,IF(all!$AP$3=3,all!AW58,all!AY58))) -> 0.9101288723 | F66: 33 | G66: =IF($AE66=1,VLOOKUP($F66,all!$E$14:$AD$553,3),"") -> ratio call --^\ itm-b (b167.5c+2s177.5c) (neutral) | H66: =IF($AE66=1,VLOOKUP($F66,all!$E$14:$AD$553,4),"") -> 167.5 | I66: =IF($AE66=1,VLOOKUP($F66,all!$E$14:$AD$553,5),"") -> 4.6 | J66: =IF($AE66=1,VLOOKUP($F66,all!$E$14:$AD$553,6),"") -> 177.5 | K66: =IF($AE66=1,VLOOKUP($F66,all!$E$14:$AD$553,7),"") -> 0.84 | L66: =IF($AE66=1,VLOOKUP($F66,all!$E$14:$AD$553,8),"") -> 0 | M66: =IF($AE66=1,VLOOKUP($F66,all!$E$14:$AD$553,9),"") -> 0 | N66: =IF($AE66=1,VLOOKUP($F66,all!$E$14:$AD$553,10),"") -> 0 | O66: =IF($AE66=1,VLOOKUP($F66,all!$E$14:$AD$553,11),"") -> 0 | P66: =IF($AE66=1,VLOOKUP($F66,all!$E$14:$AD$553,12),"") -> unlim risk | Q66: =IF($AE66=1,VLOOKUP($F66,all!$E$14:$AD$553,13),"") -> 708 | R66: =IF($AE66=1,VLOOKUP($F66,all!$E$14:$AD$553,14),"") -> 170.42 | S66: =IF($AE66=1,VLOOKUP($F66,all!$E$14:$AD$553,15),"") -> 184.58 | T66: =IF($AE66=1,VLOOKUP($F66,all!$E$14:$AD$553,16),"") -> 0.3523025089 | U66: =IF($AE66=1,VLOOKUP($F66,all!$E$14:$AD$553,17),"") -> unlim risk | V66: =IF($AE66=1,VLOOKUP($F66,all!$E$14:$AD$553,18),"") -> unlim risk | W66: =IF($AE66=1,VLOOKUP($F66,all!$E$14:$AD$553,19),"") -> 628 | X66: =IF($AE66=1,VLOOKUP($F66,all!$E$14:$AD$553,20),"") -> 1.127388535 | Y66: =IF($AE66=1,VLOOKUP($F66,all!$E$14:$AD$553,21),"") -> 1 | Z66: =IF($AE66=1,VLOOKUP($F66,all!$E$14:$AD$553,22),"") -> 2 | AA66: =IF($AE66=1,VLOOKUP($F66,all!$E$14:$AD$553,23),"") -> 0 | AB66: =IF($AE66=1,VLOOKUP($F66,all!$E$14:$AD$553,24),"") -> 0 | AC66: =IF($AE66=1,VLOOKUP($F66,all!$E$14:$AD$553,25),"") -> x | AE66: =COUNTIF(all!$E$14:$E$553,F66) -> 1 | AF66: 2 | AG66: sell call | AH66: =-AH65 -> 17698.95764 | AI66: =-AI65 -> 17697.6152 | AJ66: 17695.09501 | AK66: 17690.74727 | AL66: 17683.74738 | AM66: 17673.10446 | AN66: 17657.68089 | AO66: 17636.21999 | AP66: 17607.37882 | AQ66: 17569.76342 | AR66: 17521.96379 | AS66: 17462.58681 | AT66: 17390.28571 | AU66: 17303.78527 | AV66: 17201.90232 | AW66: 17083.56145 | AX66: 16947.80626 | AY66: 16793.80632 | AZ66: 16620.86054 | BA66: 16428.39721 | BB66: 16215.97156
A67: =IF(OR('Y2'!$W$1=6,('Y2'!$W$1=7)),"",'Y2'!AA60) -> 162.5 | B67: =IF(OR('Y2'!$W$1=6,('Y2'!$W$1=7)),"",'Y2'!AB60) -> 7.9 | C67: =IF(all!$AQ$1=1,all!AR59,IF(all!$AQ$1=2,all!AT59*100,IF(all!$AQ$1=3,all!AV59,all!AX59))) -> 6.836681436 | D67: =IF(OR('Y2'!$W$1=6,('Y2'!$W$1=7)),"",'Y2'!AC60) -> 2.45 | E67: =IF(all!$AP$3=1,all!AS59,IF(all!$AP$3=2,all!AU59*100,IF(all!$AP$3=3,all!AW59,all!AY59))) -> 1.504960601 | F67: 34 | G67: =IF($AE67=1,VLOOKUP($F67,all!$E$14:$AD$553,3),"") -> ratio call --^\ itm-b (b170c+2s172.5c) (neutral) | H67: =IF($AE67=1,VLOOKUP($F67,all!$E$14:$AD$553,4),"") -> 170 | I67: =IF($AE67=1,VLOOKUP($F67,all!$E$14:$AD$553,5),"") -> 3.3 | J67: =IF($AE67=1,VLOOKUP($F67,all!$E$14:$AD$553,6),"") -> 172.5 | K67: =IF($AE67=1,VLOOKUP($F67,all!$E$14:$AD$553,7),"") -> 2.21 | L67: =IF($AE67=1,VLOOKUP($F67,all!$E$14:$AD$553,8),"") -> 0 | M67: =IF($AE67=1,VLOOKUP($F67,all!$E$14:$AD$553,9),"") -> 0 | N67: =IF($AE67=1,VLOOKUP($F67,all!$E$14:$AD$553,10),"") -> 0 | O67: =IF($AE67=1,VLOOKUP($F67,all!$E$14:$AD$553,11),"") -> 0 | P67: =IF($AE67=1,VLOOKUP($F67,all!$E$14:$AD$553,12),"") -> unlim risk | Q67: =IF($AE67=1,VLOOKUP($F67,all!$E$14:$AD$553,13),"") -> 362 | R67: =IF($AE67=1,VLOOKUP($F67,all!$E$14:$AD$553,14),"") -> 0.0001 | S67: =IF($AE67=1,VLOOKUP($F67,all!$E$14:$AD$553,15),"") -> 176.12 | T67: =IF($AE67=1,VLOOKUP($F67,all!$E$14:$AD$553,16),"") -> 0.8115793004 | U67: =IF($AE67=1,VLOOKUP($F67,all!$E$14:$AD$553,17),"") -> unlim risk | V67: =IF($AE67=1,VLOOKUP($F67,all!$E$14:$AD$553,18),"") -> unlim risk | W67: =IF($AE67=1,VLOOKUP($F67,all!$E$14:$AD$553,19),"") -> 772 | X67: =IF($AE67=1,VLOOKUP($F67,all!$E$14:$AD$553,20),"") -> 0.4689119171 | Y67: =IF($AE67=1,VLOOKUP($F67,all!$E$14:$AD$553,21),"") -> 1 | Z67: =IF($AE67=1,VLOOKUP($F67,all!$E$14:$AD$553,22),"") -> 2 | AA67: =IF($AE67=1,VLOOKUP($F67,all!$E$14:$AD$553,23),"") -> 0 | AB67: =IF($AE67=1,VLOOKUP($F67,all!$E$14:$AD$553,24),"") -> 0 | AC67: =IF($AE67=1,VLOOKUP($F67,all!$E$14:$AD$553,25),"") -> x | AE67: =COUNTIF(all!$E$14:$E$553,F67) -> 1 | AF67: 3 | AG67: buy put | AH67: =IF($K$4="",0,$H$4*$J$2*(PB("P",AH$64+0.00001,$J$4,MAX($I$4-$AL$63,0.00001)/365,$C$6,$D$6,$M$4)-$K$4)) -> 10894.7425 | AI67: =IF($K$4="",0,$H$4*$J$2*(PB("P",AI$64+0.00001,$J$4,MAX($I$4-$AL$63,0.00001)/365,$C$6,$D$6,$M$4)-$K$4)) -> 10057.34034 | AJ67: 9221.115918 | AK67: 8386.719044 | AL67: 7554.974334 | AM67: 6726.872648 | AN67: 5903.551604 | AO67: 5086.267904 | AP67: 4276.364465 | AQ67: 3475.235254 | AR67: 2684.290275 | AS67: 1904.922651 | AT67: 1138.479145 | AU67: 386.2349758 | AV67: -350.6266752 | AW67: -1071.030414 | AX67: -1774.019828 | AY67: -2458.764502 | AZ67: -3124.563322 | BA67: -3770.844604 | BB67: -4397.163561
A68: =IF(OR('Y2'!$W$1=6,('Y2'!$W$1=7)),"",'Y2'!AA61) -> 165 | B68: =IF(OR('Y2'!$W$1=6,('Y2'!$W$1=7)),"",'Y2'!AB61) -> 6.13 | C68: =IF(all!$AQ$1=1,all!AR60,IF(all!$AQ$1=2,all!AT60*100,IF(all!$AQ$1=3,all!AV60,all!AX60))) -> 5.172944516 | D68: =IF(OR('Y2'!$W$1=6,('Y2'!$W$1=7)),"",'Y2'!AC61) -> 3.26 | E68: =IF(all!$AP$3=1,all!AS60,IF(all!$AP$3=2,all!AU60*100,IF(all!$AP$3=3,all!AW60,all!AY60))) -> 2.339949885 | F68: 35 | G68: =IF($AE68=1,VLOOKUP($F68,all!$E$14:$AD$553,3),"") -> ratio call --^\ itm-b (b170c+2s175c) (neutral) | H68: =IF($AE68=1,VLOOKUP($F68,all!$E$14:$AD$553,4),"") -> 170 | I68: =IF($AE68=1,VLOOKUP($F68,all!$E$14:$AD$553,5),"") -> 3.3 | J68: =IF($AE68=1,VLOOKUP($F68,all!$E$14:$AD$553,6),"") -> 175 | K68: =IF($AE68=1,VLOOKUP($F68,all!$E$14:$AD$553,7),"") -> 1.4 | L68: =IF($AE68=1,VLOOKUP($F68,all!$E$14:$AD$553,8),"") -> 0 | M68: =IF($AE68=1,VLOOKUP($F68,all!$E$14:$AD$553,9),"") -> 0 | N68: =IF($AE68=1,VLOOKUP($F68,all!$E$14:$AD$553,10),"") -> 0 | O68: =IF($AE68=1,VLOOKUP($F68,all!$E$14:$AD$553,11),"") -> 0 | P68: =IF($AE68=1,VLOOKUP($F68,all!$E$14:$AD$553,12),"") -> unlim risk | Q68: =IF($AE68=1,VLOOKUP($F68,all!$E$14:$AD$553,13),"") -> 450 | R68: =IF($AE68=1,VLOOKUP($F68,all!$E$14:$AD$553,14),"") -> 170.5 | S68: =IF($AE68=1,VLOOKUP($F68,all!$E$14:$AD$553,15),"") -> 179.5 | T68: =IF($AE68=1,VLOOKUP($F68,all!$E$14:$AD$553,16),"") -> 0.2805196643 | U68: =IF($AE68=1,VLOOKUP($F68,all!$E$14:$AD$553,17),"") -> unlim risk | V68: =IF($AE68=1,VLOOKUP($F68,all!$E$14:$AD$553,18),"") -> unlim risk | W68: =IF($AE68=1,VLOOKUP($F68,all!$E$14:$AD$553,19),"") -> 610 | X68: =IF($AE68=1,VLOOKUP($F68,all!$E$14:$AD$553,20),"") -> 0.737704918 | Y68: =IF($AE68=1,VLOOKUP($F68,all!$E$14:$AD$553,21),"") -> 1 | Z68: =IF($AE68=1,VLOOKUP($F68,all!$E$14:$AD$553,22),"") -> 2 | AA68: =IF($AE68=1,VLOOKUP($F68,all!$E$14:$AD$553,23),"") -> 0 | AB68: =IF($AE68=1,VLOOKUP($F68,all!$E$14:$AD$553,24),"") -> 0 | AC68: =IF($AE68=1,VLOOKUP($F68,all!$E$14:$AD$553,25),"") -> x | AE68: =COUNTIF(all!$E$14:$E$553,F68) -> 1 | AF68: 4 | AG68: sell put | AH68: =-AH67 -> -10894.7425 | AI68: =-AI67 -> -10057.34034 | AJ68: -9221.115918 | AK68: -8386.719044 | AL68: -7554.974334 | AM68: -6726.872648 | AN68: -5903.551604 | AO68: -5086.267904 | AP68: -4276.364465 | AQ68: -3475.235254 | AR68: -2684.290275 | AS68: -1904.922651 | AT68: -1138.479145 | AU68: -386.2349758 | AV68: 350.6266752 | AW68: 1071.030414 | AX68: 1774.019828 | AY68: 2458.764502 | AZ68: 3124.563322 | BA68: 3770.844604 | BB68: 4397.163561
A69: =IF(OR('Y2'!$W$1=6,('Y2'!$W$1=7)),"",'Y2'!AA62) -> 167.5 | B69: =IF(OR('Y2'!$W$1=6,('Y2'!$W$1=7)),"",'Y2'!AB62) -> 4.6 | C69: =IF(all!$AQ$1=1,all!AR61,IF(all!$AQ$1=2,all!AT61*100,IF(all!$AQ$1=3,all!AV61,all!AX61))) -> 3.776067678 | D69: =IF(OR('Y2'!$W$1=6,('Y2'!$W$1=7)),"",'Y2'!AC62) -> 4.25 | E69: =IF(all!$AP$3=1,all!AS61,IF(all!$AP$3=2,all!AU61*100,IF(all!$AP$3=3,all!AW61,all!AY61))) -> 3.441799164 | F69: 36 | G69: =IF($AE69=1,VLOOKUP($F69,all!$E$14:$AD$553,3),"") -> ratio call --^\ itm-b (b170c+2s177.5c) (neutral) | H69: =IF($AE69=1,VLOOKUP($F69,all!$E$14:$AD$553,4),"") -> 170 | I69: =IF($AE69=1,VLOOKUP($F69,all!$E$14:$AD$553,5),"") -> 3.3 | J69: =IF($AE69=1,VLOOKUP($F69,all!$E$14:$AD$553,6),"") -> 177.5 | K69: =IF($AE69=1,VLOOKUP($F69,all!$E$14:$AD$553,7),"") -> 0.84 | L69: =IF($AE69=1,VLOOKUP($F69,all!$E$14:$AD$553,8),"") -> 0 | M69: =IF($AE69=1,VLOOKUP($F69,all!$E$14:$AD$553,9),"") -> 0 | N69: =IF($AE69=1,VLOOKUP($F69,all!$E$14:$AD$553,10),"") -> 0 | O69: =IF($AE69=1,VLOOKUP($F69,all!$E$14:$AD$553,11),"") -> 0 | P69: =IF($AE69=1,VLOOKUP($F69,all!$E$14:$AD$553,12),"") -> unlim risk | Q69: =IF($AE69=1,VLOOKUP($F69,all!$E$14:$AD$553,13),"") -> 588 | R69: =IF($AE69=1,VLOOKUP($F69,all!$E$14:$AD$553,14),"") -> 171.62 | S69: =IF($AE69=1,VLOOKUP($F69,all!$E$14:$AD$553,15),"") -> 183.38 | T69: =IF($AE69=1,VLOOKUP($F69,all!$E$14:$AD$553,16),"") -> 0.2918229701 | U69: =IF($AE69=1,VLOOKUP($F69,all!$E$14:$AD$553,17),"") -> unlim risk | V69: =IF($AE69=1,VLOOKUP($F69,all!$E$14:$AD$553,18),"") -> unlim risk | W69: =IF($AE69=1,VLOOKUP($F69,all!$E$14:$AD$553,19),"") -> 498 | X69: =IF($AE69=1,VLOOKUP($F69,all!$E$14:$AD$553,20),"") -> 1.180722892 | Y69: =IF($AE69=1,VLOOKUP($F69,all!$E$14:$AD$553,21),"") -> 1 | Z69: =IF($AE69=1,VLOOKUP($F69,all!$E$14:$AD$553,22),"") -> 2 | AA69: =IF($AE69=1,VLOOKUP($F69,all!$E$14:$AD$553,23),"") -> 0 | AB69: =IF($AE69=1,VLOOKUP($F69,all!$E$14:$AD$553,24),"") -> 0 | AC69: =IF($AE69=1,VLOOKUP($F69,all!$E$14:$AD$553,25),"") -> x | AE69: =COUNTIF(all!$E$14:$E$553,F69) -> 1 | AF69: 5 | AG69: buy under | AH69: =AH16 -> -8396 | AI69: =AI16 -> -7556.4 | AJ69: -6716.8 | AK69: -5877.2 | AL69: -5037.6 | AM69: -4198 | AN69: -3358.4 | AO69: -2518.8 | AP69: -1679.2 | AQ69: -839.6 | AR69: 0 | AS69: 839.6 | AT69: 1679.2 | AU69: 2518.8 | AV69: 3358.4 | AW69: 4198 | AX69: 5037.6 | AY69: 5877.2 | AZ69: 6716.8 | BA69: 7556.4 | BB69: 8396 | BI69: =IF(A77="",0,PB("C",$C$2,A77,($D$2-NOW())/365,$C$6,$D$6,$B$6)) -> 0.07022412833 | BJ69: =IF(A77="",0,PB("P",$C$2,A77,($D$2-NOW())/365,$C$6,$D$6,$B$6)) -> 19.72576495
A70: =IF(OR('Y2'!$W$1=6,('Y2'!$W$1=7)),"",'Y2'!AA63) -> 170 | B70: =IF(OR('Y2'!$W$1=6,('Y2'!$W$1=7)),"",'Y2'!AB63) -> 3.3 | C70: =IF(all!$AQ$1=1,all!AR62,IF(all!$AQ$1=2,all!AT62*100,IF(all!$AQ$1=3,all!AV62,all!AX62))) -> 2.653194297 | D70: =IF(OR('Y2'!$W$1=6,('Y2'!$W$1=7)),"",'Y2'!AC63) -> 5.45 | E70: =IF(all!$AP$3=1,all!AS62,IF(all!$AP$3=2,all!AU62*100,IF(all!$AP$3=3,all!AW62,all!AY62))) -> 4.81765206 | F70: 37 | G70: =IF($AE70=1,VLOOKUP($F70,all!$E$14:$AD$553,3),"") -> ratio put /`-- itm-b (b185p+2s172.5p) (neutral) | H70: =IF($AE70=1,VLOOKUP($F70,all!$E$14:$AD$553,4),"") -> 185 | I70: =IF($AE70=1,VLOOKUP($F70,all!$E$14:$AD$553,5),"") -> 17.45 | J70: =IF($AE70=1,VLOOKUP($F70,all!$E$14:$AD$553,6),"") -> 172.5 | K70: =IF($AE70=1,VLOOKUP($F70,all!$E$14:$AD$553,7),"") -> 6.85 | L70: =IF($AE70=1,VLOOKUP($F70,all!$E$14:$AD$553,8),"") -> 0 | M70: =IF($AE70=1,VLOOKUP($F70,all!$E$14:$AD$553,9),"") -> 0 | N70: =IF($AE70=1,VLOOKUP($F70,all!$E$14:$AD$553,10),"") -> 0 | O70: =IF($AE70=1,VLOOKUP($F70,all!$E$14:$AD$553,11),"") -> 0 | P70: =IF($AE70=1,VLOOKUP($F70,all!$E$14:$AD$553,12),"") -> unlim risk | Q70: =IF($AE70=1,VLOOKUP($F70,all!$E$14:$AD$553,13),"") -> 875 | R70: =IF($AE70=1,VLOOKUP($F70,all!$E$14:$AD$553,14),"") -> 163.75 | S70: =IF($AE70=1,VLOOKUP($F70,all!$E$14:$AD$553,15),"") -> 181.25 | T70: =IF($AE70=1,VLOOKUP($F70,all!$E$14:$AD$553,16),"") -> 0.6010304344 | U70: =IF($AE70=1,VLOOKUP($F70,all!$E$14:$AD$553,17),"") -> unlim risk | V70: =IF($AE70=1,VLOOKUP($F70,all!$E$14:$AD$553,18),"") -> unlim risk | W70: =IF($AE70=1,VLOOKUP($F70,all!$E$14:$AD$553,19),"") -> 3115 | X70: =IF($AE70=1,VLOOKUP($F70,all!$E$14:$AD$553,20),"") -> 0.2808988764 | Y70: =IF($AE70=1,VLOOKUP($F70,all!$E$14:$AD$553,21),"") -> 3 | Z70: =IF($AE70=1,VLOOKUP($F70,all!$E$14:$AD$553,22),"") -> 4 | AA70: =IF($AE70=1,VLOOKUP($F70,all!$E$14:$AD$553,23),"") -> 0 | AB70: =IF($AE70=1,VLOOKUP($F70,all!$E$14:$AD$553,24),"") -> 0 | AC70: =IF($AE70=1,VLOOKUP($F70,all!$E$14:$AD$553,25),"") -> x | AE70: =COUNTIF(all!$E$14:$E$553,F70) -> 1 | AF70: 6 | AG70: sell under | AH70: =AH17 -> 8396 | AI70: =AI17 -> 7556.4 | AJ70: 6716.8 | AK70: 5877.2 | AL70: 5037.6 | AM70: 4198 | AN70: 3358.4 | AO70: 2518.8 | AP70: 1679.2 | AQ70: 839.6 | AR70: 0 | AS70: -839.6 | AT70: -1679.2 | AU70: -2518.8 | AV70: -3358.4 | AW70: -4198 | AX70: -5037.6 | AY70: -5877.2 | AZ70: -6716.8 | BA70: -7556.4 | BB70: -8396 | BI70: 0.03532416882 | BJ70: 22.18959115
A71: =IF(OR('Y2'!$W$1=6,('Y2'!$W$1=7)),"",'Y2'!AA64) -> 172.5 | B71: =IF(OR('Y2'!$W$1=6,('Y2'!$W$1=7)),"",'Y2'!AB64) -> 2.21 | C71: =IF(all!$AQ$1=1,all!AR63,IF(all!$AQ$1=2,all!AT63*100,IF(all!$AQ$1=3,all!AV63,all!AX63))) -> 1.791292603 | D71: =IF(OR('Y2'!$W$1=6,('Y2'!$W$1=7)),"",'Y2'!AC64) -> 6.85 | E71: =IF(all!$AP$3=1,all!AS63,IF(all!$AP$3=2,all!AU63*100,IF(all!$AP$3=3,all!AW63,all!AY63))) -> 6.454476436 | F71: 38 | G71: =IF($AE71=1,VLOOKUP($F71,all!$E$14:$AD$553,3),"") -> ratio put /`-- itm-b (b185p+2s170p) (neutral) | H71: =IF($AE71=1,VLOOKUP($F71,all!$E$14:$AD$553,4),"") -> 185 | I71: =IF($AE71=1,VLOOKUP($F71,all!$E$14:$AD$553,5),"") -> 17.45 | J71: =IF($AE71=1,VLOOKUP($F71,all!$E$14:$AD$553,6),"") -> 170 | K71: =IF($AE71=1,VLOOKUP($F71,all!$E$14:$AD$553,7),"") -> 5.45 | L71: =IF($AE71=1,VLOOKUP($F71,all!$E$14:$AD$553,8),"") -> 0 | M71: =IF($AE71=1,VLOOKUP($F71,all!$E$14:$AD$553,9),"") -> 0 | N71: =IF($AE71=1,VLOOKUP($F71,all!$E$14:$AD$553,10),"") -> 0 | O71: =IF($AE71=1,VLOOKUP($F71,all!$E$14:$AD$553,11),"") -> 0 | P71: =IF($AE71=1,VLOOKUP($F71,all!$E$14:$AD$553,12),"") -> unlim risk | Q71: =IF($AE71=1,VLOOKUP($F71,all!$E$14:$AD$553,13),"") -> 845 | R71: =IF($AE71=1,VLOOKUP($F71,all!$E$14:$AD$553,14),"") -> 161.55 | S71: =IF($AE71=1,VLOOKUP($F71,all!$E$14:$AD$553,15),"") -> 178.45 | T71: =IF($AE71=1,VLOOKUP($F71,all!$E$14:$AD$553,16),"") -> 0.6334582972 | U71: =IF($AE71=1,VLOOKUP($F71,all!$E$14:$AD$553,17),"") -> unlim risk | V71: =IF($AE71=1,VLOOKUP($F71,all!$E$14:$AD$553,18),"") -> unlim risk | W71: =IF($AE71=1,VLOOKUP($F71,all!$E$14:$AD$553,19),"") -> 2835 | X71: =IF($AE71=1,VLOOKUP($F71,all!$E$14:$AD$553,20),"") -> 0.2980599647 | Y71: =IF($AE71=1,VLOOKUP($F71,all!$E$14:$AD$553,21),"") -> 3 | Z71: =IF($AE71=1,VLOOKUP($F71,all!$E$14:$AD$553,22),"") -> 4 | AA71: =IF($AE71=1,VLOOKUP($F71,all!$E$14:$AD$553,23),"") -> 0 | AB71: =IF($AE71=1,VLOOKUP($F71,all!$E$14:$AD$553,24),"") -> 0 | AC71: =IF($AE71=1,VLOOKUP($F71,all!$E$14:$AD$553,25),"") -> x | AE71: =COUNTIF(all!$E$14:$E$553,F71) -> 1 | AF71: =AF18 -> 1 | AG71: one | AH71: =IF($AF$71=0,0,VLOOKUP($AF$71,$AF$65:$BB$70,AH116)) -> -17698.95764 | AI71: =IF($AF$71=0,0,VLOOKUP($AF$71,$AF$65:$BB$70,AI116)) -> -17697.6152 | AJ71: -17695.09501 | AK71: -17690.74727 | AL71: -17683.74738 | AM71: -17673.10446 | AN71: -17657.68089 | AO71: -17636.21999 | AP71: -17607.37882 | AQ71: -17569.76342 | AR71: -17521.96379 | AS71: -17462.58681 | AT71: -17390.28571 | AU71: -17303.78527 | AV71: -17201.90232 | AW71: -17083.56145 | AX71: -16947.80626 | AY71: -16793.80632 | AZ71: -16620.86054 | BA71: -16428.39721 | BB71: -16215.97156 | BI71: 0.01705845234 | BJ71: 24.67005159
A72: =IF(OR('Y2'!$W$1=6,('Y2'!$W$1=7)),"",'Y2'!AA65) -> 175 | B72: =IF(OR('Y2'!$W$1=6,('Y2'!$W$1=7)),"",'Y2'!AB65) -> 1.4 | C72: =IF(all!$AQ$1=1,all!AR64,IF(all!$AQ$1=2,all!AT64*100,IF(all!$AQ$1=3,all!AV64,all!AX64))) -> 1.160560918 | D72: =IF(OR('Y2'!$W$1=6,('Y2'!$W$1=7)),"",'Y2'!AC65) -> 8.6 | E72: =IF(all!$AP$3=1,all!AS64,IF(all!$AP$3=2,all!AU64*100,IF(all!$AP$3=3,all!AW64,all!AY64))) -> 8.322470917 | F72: 39 | G72: =IF($AE72=1,VLOOKUP($F72,all!$E$14:$AD$553,3),"") -> ratio put /`-- itm-b (b185p+2s167.5p) (neutral) | H72: =IF($AE72=1,VLOOKUP($F72,all!$E$14:$AD$553,4),"") -> 185 | I72: =IF($AE72=1,VLOOKUP($F72,all!$E$14:$AD$553,5),"") -> 17.45 | J72: =IF($AE72=1,VLOOKUP($F72,all!$E$14:$AD$553,6),"") -> 167.5 | K72: =IF($AE72=1,VLOOKUP($F72,all!$E$14:$AD$553,7),"") -> 4.25 | L72: =IF($AE72=1,VLOOKUP($F72,all!$E$14:$AD$553,8),"") -> 0 | M72: =IF($AE72=1,VLOOKUP($F72,all!$E$14:$AD$553,9),"") -> 0 | N72: =IF($AE72=1,VLOOKUP($F72,all!$E$14:$AD$553,10),"") -> 0 | O72: =IF($AE72=1,VLOOKUP($F72,all!$E$14:$AD$553,11),"") -> 0 | P72: =IF($AE72=1,VLOOKUP($F72,all!$E$14:$AD$553,12),"") -> unlim risk | Q72: =IF($AE72=1,VLOOKUP($F72,all!$E$14:$AD$553,13),"") -> 855 | R72: =IF($AE72=1,VLOOKUP($F72,all!$E$14:$AD$553,14),"") -> 158.95 | S72: =IF($AE72=1,VLOOKUP($F72,all!$E$14:$AD$553,15),"") -> 176.05 | T72: =IF($AE72=1,VLOOKUP($F72,all!$E$14:$AD$553,16),"") -> 0.6551396176 | U72: =IF($AE72=1,VLOOKUP($F72,all!$E$14:$AD$553,17),"") -> unlim risk | V72: =IF($AE72=1,VLOOKUP($F72,all!$E$14:$AD$553,18),"") -> unlim risk | W72: =IF($AE72=1,VLOOKUP($F72,all!$E$14:$AD$553,19),"") -> 2595 | X72: =IF($AE72=1,VLOOKUP($F72,all!$E$14:$AD$553,20),"") -> 0.3294797688 | Y72: =IF($AE72=1,VLOOKUP($F72,all!$E$14:$AD$553,21),"") -> 3 | Z72: =IF($AE72=1,VLOOKUP($F72,all!$E$14:$AD$553,22),"") -> 4 | AA72: =IF($AE72=1,VLOOKUP($F72,all!$E$14:$AD$553,23),"") -> 0 | AB72: =IF($AE72=1,VLOOKUP($F72,all!$E$14:$AD$553,24),"") -> 0 | AC72: =IF($AE72=1,VLOOKUP($F72,all!$E$14:$AD$553,25),"") -> x | AE72: =COUNTIF(all!$E$14:$E$553,F72) -> 1 | BI72: 0.007914822528 | BJ72: 27.15963412
A73: =IF(OR('Y2'!$W$1=6,('Y2'!$W$1=7)),"",'Y2'!AA66) -> 177.5 | B73: =IF(OR('Y2'!$W$1=6,('Y2'!$W$1=7)),"",'Y2'!AB66) -> 0.84 | C73: =IF(all!$AQ$1=1,all!AR65,IF(all!$AQ$1=2,all!AT65*100,IF(all!$AQ$1=3,all!AV65,all!AX65))) -> 0.7209612862 | D73: =IF(OR('Y2'!$W$1=6,('Y2'!$W$1=7)),"",'Y2'!AC66) -> 11 | E73: =IF(all!$AP$3=1,all!AS65,IF(all!$AP$3=2,all!AU65*100,IF(all!$AP$3=3,all!AW65,all!AY65))) -> 10.38159744 | F73: 40 | G73: =IF($AE73=1,VLOOKUP($F73,all!$E$14:$AD$553,3),"") -> ratio put /`-- itm-b (b182.5p+2s172.5p) (neutral) | H73: =IF($AE73=1,VLOOKUP($F73,all!$E$14:$AD$553,4),"") -> 182.5 | I73: =IF($AE73=1,VLOOKUP($F73,all!$E$14:$AD$553,5),"") -> 15.05 | J73: =IF($AE73=1,VLOOKUP($F73,all!$E$14:$AD$553,6),"") -> 172.5 | K73: =IF($AE73=1,VLOOKUP($F73,all!$E$14:$AD$553,7),"") -> 6.85 | L73: =IF($AE73=1,VLOOKUP($F73,all!$E$14:$AD$553,8),"") -> 0 | M73: =IF($AE73=1,VLOOKUP($F73,all!$E$14:$AD$553,9),"") -> 0 | N73: =IF($AE73=1,VLOOKUP($F73,all!$E$14:$AD$553,10),"") -> 0 | O73: =IF($AE73=1,VLOOKUP($F73,all!$E$14:$AD$553,11),"") -> 0 | P73: =IF($AE73=1,VLOOKUP($F73,all!$E$14:$AD$553,12),"") -> unlim risk | Q73: =IF($AE73=1,VLOOKUP($F73,all!$E$14:$AD$553,13),"") -> 865 | R73: =IF($AE73=1,VLOOKUP($F73,all!$E$14:$AD$553,14),"") -> 163.85 | S73: =IF($AE73=1,VLOOKUP($F73,all!$E$14:$AD$553,15),"") -> 181.15 | T73: =IF($AE73=1,VLOOKUP($F73,all!$E$14:$AD$553,16),"") -> 0.595461588 | U73: =IF($AE73=1,VLOOKUP($F73,all!$E$14:$AD$553,17),"") -> unlim risk | V73: =IF($AE73=1,VLOOKUP($F73,all!$E$14:$AD$553,18),"") -> unlim risk | W73: =IF($AE73=1,VLOOKUP($F73,all!$E$14:$AD$553,19),"") -> 2875 | X73: =IF($AE73=1,VLOOKUP($F73,all!$E$14:$AD$553,20),"") -> 0.3008695652 | Y73: =IF($AE73=1,VLOOKUP($F73,all!$E$14:$AD$553,21),"") -> 3 | Z73: =IF($AE73=1,VLOOKUP($F73,all!$E$14:$AD$553,22),"") -> 4 | AA73: =IF($AE73=1,VLOOKUP($F73,all!$E$14:$AD$553,23),"") -> 0 | AB73: =IF($AE73=1,VLOOKUP($F73,all!$E$14:$AD$553,24),"") -> 0 | AC73: =IF($AE73=1,VLOOKUP($F73,all!$E$14:$AD$553,25),"") -> x | AE73: =COUNTIF(all!$E$14:$E$553,F73) -> 1 | AF73: 1 | AG73: buy call | AH73: =IF($K$5="",0,$H$5*$J$2*(PB("C",AH$64+0.00001,$J$5,MAX($I$5-$AL$63,0.00001)/365,$C$6,$D$6,$M$5)-$K$5)) -> -16389.31618 | AI73: =IF($K$5="",0,$H$5*$J$2*(PB("C",AI$64+0.00001,$J$5,MAX($I$5-$AL$63,0.00001)/365,$C$6,$D$6,$M$5)-$K$5)) -> -16388.40076 | AJ73: -16386.64483 | AK73: -16383.55549 | AL73: -16378.49119 | AM73: -16370.66222 | AN73: -16359.14061 | AO73: -16342.87789 | AP73: -16320.72862 | AQ73: -16291.47751 | AR73: -16253.868 | AS73: -16206.63062 | AT73: -16148.50969 | AU73: -16078.28734 | AV73: -15994.80434 | AW73: -15896.97728 | AX73: -15783.81209 | AY73: -15654.41406 | AZ73: -15507.9945 | BA73: -15343.87442 | BB73: -15161.48568 | BI73: 0.003531543782 | BJ73: 29.65397701
A74: =IF(OR('Y2'!$W$1=6,('Y2'!$W$1=7)),"",'Y2'!AA67) -> 180 | B74: =IF(OR('Y2'!$W$1=6,('Y2'!$W$1=7)),"",'Y2'!AB67) -> 0.49 | C74: =IF(all!$AQ$1=1,all!AR66,IF(all!$AQ$1=2,all!AT66*100,IF(all!$AQ$1=3,all!AV66,all!AX66))) -> 0.4292478585 | D74: =IF(OR('Y2'!$W$1=6,('Y2'!$W$1=7)),"",'Y2'!AC67) -> 13.05 | E74: =IF(all!$AP$3=1,all!AS66,IF(all!$AP$3=2,all!AU66*100,IF(all!$AP$3=3,all!AW66,all!AY66))) -> 12.58861017 | F74: 41 | G74: =IF($AE74=1,VLOOKUP($F74,all!$E$14:$AD$553,3),"") -> ratio put /`-- itm-b (b182.5p+2s170p) (neutral) | H74: =IF($AE74=1,VLOOKUP($F74,all!$E$14:$AD$553,4),"") -> 182.5 | I74: =IF($AE74=1,VLOOKUP($F74,all!$E$14:$AD$553,5),"") -> 15.05 | J74: =IF($AE74=1,VLOOKUP($F74,all!$E$14:$AD$553,6),"") -> 170 | K74: =IF($AE74=1,VLOOKUP($F74,all!$E$14:$AD$553,7),"") -> 5.45 | L74: =IF($AE74=1,VLOOKUP($F74,all!$E$14:$AD$553,8),"") -> 0 | M74: =IF($AE74=1,VLOOKUP($F74,all!$E$14:$AD$553,9),"") -> 0 | N74: =IF($AE74=1,VLOOKUP($F74,all!$E$14:$AD$553,10),"") -> 0 | O74: =IF($AE74=1,VLOOKUP($F74,all!$E$14:$AD$553,11),"") -> 0 | P74: =IF($AE74=1,VLOOKUP($F74,all!$E$14:$AD$553,12),"") -> unlim risk | Q74: =IF($AE74=1,VLOOKUP($F74,all!$E$14:$AD$553,13),"") -> 835 | R74: =IF($AE74=1,VLOOKUP($F74,all!$E$14:$AD$553,14),"") -> 161.65 | S74: =IF($AE74=1,VLOOKUP($F74,all!$E$14:$AD$553,15),"") -> 178.35 | T74: =IF($AE74=1,VLOOKUP($F74,all!$E$14:$AD$553,16),"") -> 0.627696237 | U74: =IF($AE74=1,VLOOKUP($F74,all!$E$14:$AD$553,17),"") -> unlim risk | V74: =IF($AE74=1,VLOOKUP($F74,all!$E$14:$AD$553,18),"") -> unlim risk | W74: =IF($AE74=1,VLOOKUP($F74,all!$E$14:$AD$553,19),"") -> 2595 | X74: =IF($AE74=1,VLOOKUP($F74,all!$E$14:$AD$553,20),"") -> 0.3217726397 | Y74: =IF($AE74=1,VLOOKUP($F74,all!$E$14:$AD$553,21),"") -> 3 | Z74: =IF($AE74=1,VLOOKUP($F74,all!$E$14:$AD$553,22),"") -> 4 | AA74: =IF($AE74=1,VLOOKUP($F74,all!$E$14:$AD$553,23),"") -> 0 | AB74: =IF($AE74=1,VLOOKUP($F74,all!$E$14:$AD$553,24),"") -> 0 | AC74: =IF($AE74=1,VLOOKUP($F74,all!$E$14:$AD$553,25),"") -> x | AE74: =COUNTIF(all!$E$14:$E$553,F74) -> 1 | AF74: 2 | AG74: sell call | AH74: =-AH73 -> 16389.31618 | AI74: =-AI73 -> 16388.40076 | AJ74: 16386.64483 | AK74: 16383.55549 | AL74: 16378.49119 | AM74: 16370.66222 | AN74: 16359.14061 | AO74: 16342.87789 | AP74: 16320.72862 | AQ74: 16291.47751 | AR74: 16253.868 | AS74: 16206.63062 | AT74: 16148.50969 | AU74: 16078.28734 | AV74: 15994.80434 | AW74: 15896.97728 | AX74: 15783.81209 | AY74: 15654.41406 | AZ74: 15507.9945 | BA74: 15343.87442 | BB74: 15161.48568 | BI74: 0.001516787984 | BJ74: 32.15068841
A75: =IF(OR('Y2'!$W$1=6,('Y2'!$W$1=7)),"",'Y2'!AA68) -> 182.5 | B75: =IF(OR('Y2'!$W$1=6,('Y2'!$W$1=7)),"",'Y2'!AB68) -> 0.28 | C75: =IF(all!$AQ$1=1,all!AR67,IF(all!$AQ$1=2,all!AT67*100,IF(all!$AQ$1=3,all!AV67,all!AX67))) -> 0.2449106547 | D75: =IF(OR('Y2'!$W$1=6,('Y2'!$W$1=7)),"",'Y2'!AC68) -> 15.05 | E75: =IF(all!$AP$3=1,all!AS67,IF(all!$AP$3=2,all!AU67*100,IF(all!$AP$3=3,all!AW67,all!AY67))) -> 14.90299914 | F75: 42 | G75: =IF($AE75=1,VLOOKUP($F75,all!$E$14:$AD$553,3),"") -> ratio put /`-- itm-b (b182.5p+2s167.5p) (neutral) | H75: =IF($AE75=1,VLOOKUP($F75,all!$E$14:$AD$553,4),"") -> 182.5 | I75: =IF($AE75=1,VLOOKUP($F75,all!$E$14:$AD$553,5),"") -> 15.05 | J75: =IF($AE75=1,VLOOKUP($F75,all!$E$14:$AD$553,6),"") -> 167.5 | K75: =IF($AE75=1,VLOOKUP($F75,all!$E$14:$AD$553,7),"") -> 4.25 | L75: =IF($AE75=1,VLOOKUP($F75,all!$E$14:$AD$553,8),"") -> 0 | M75: =IF($AE75=1,VLOOKUP($F75,all!$E$14:$AD$553,9),"") -> 0 | N75: =IF($AE75=1,VLOOKUP($F75,all!$E$14:$AD$553,10),"") -> 0 | O75: =IF($AE75=1,VLOOKUP($F75,all!$E$14:$AD$553,11),"") -> 0 | P75: =IF($AE75=1,VLOOKUP($F75,all!$E$14:$AD$553,12),"") -> unlim risk | Q75: =IF($AE75=1,VLOOKUP($F75,all!$E$14:$AD$553,13),"") -> 845 | R75: =IF($AE75=1,VLOOKUP($F75,all!$E$14:$AD$553,14),"") -> 159.05 | S75: =IF($AE75=1,VLOOKUP($F75,all!$E$14:$AD$553,15),"") -> 175.95 | T75: =IF($AE75=1,VLOOKUP($F75,all!$E$14:$AD$553,16),"") -> 0.6494770017 | U75: =IF($AE75=1,VLOOKUP($F75,all!$E$14:$AD$553,17),"") -> unlim risk | V75: =IF($AE75=1,VLOOKUP($F75,all!$E$14:$AD$553,18),"") -> unlim risk | W75: =IF($AE75=1,VLOOKUP($F75,all!$E$14:$AD$553,19),"") -> 2355 | X75: =IF($AE75=1,VLOOKUP($F75,all!$E$14:$AD$553,20),"") -> 0.3588110403 | Y75: =IF($AE75=1,VLOOKUP($F75,all!$E$14:$AD$553,21),"") -> 3 | Z75: =IF($AE75=1,VLOOKUP($F75,all!$E$14:$AD$553,22),"") -> 4 | AA75: =IF($AE75=1,VLOOKUP($F75,all!$E$14:$AD$553,23),"") -> 0 | AB75: =IF($AE75=1,VLOOKUP($F75,all!$E$14:$AD$553,24),"") -> 0 | AC75: =IF($AE75=1,VLOOKUP($F75,all!$E$14:$AD$553,25),"") -> x | AE75: =COUNTIF(all!$E$14:$E$553,F75) -> 1 | AF75: 3 | AG75: buy put | AH75: =IF($K$5="",0,$H$5*$J$2*(PB("P",AH$64+0.00001,$J$5,MAX($I$5-$AL$63,0.00001)/365,$C$6,$D$6,$M$5)-$K$5)) -> 14203.36489 | AI75: =IF($K$5="",0,$H$5*$J$2*(PB("P",AI$64+0.00001,$J$5,MAX($I$5-$AL$63,0.00001)/365,$C$6,$D$6,$M$5)-$K$5)) -> 13365.5357 | AJ75: 12528.54702 | AK75: 11692.89176 | AL75: 10859.21145 | AM75: 10028.29581 | AN75: 9201.072817 | AO75: 8378.59093 | AP75: 7561.995591 | AQ75: 6752.502096 | AR75: 5951.366999 | AS75: 5159.859769 | AT75: 4379.236096 | AU75: 3610.713839 | AV75: 2855.452231 | AW75: 2114.534688 | AX75: 1388.955268 | AY75: 679.6086899 | AZ75: -12.71635193 | BA75: -687.3408833 | BB75: -1343.696749 | BI75: 0.0002505534303 | BJ75: 37.1468745
A76: =IF(OR('Y2'!$W$1=6,('Y2'!$W$1=7)),"",'Y2'!AA69) -> 185 | B76: =IF(OR('Y2'!$W$1=6,('Y2'!$W$1=7)),"",'Y2'!AB69) -> 0.15 | C76: =IF(all!$AQ$1=1,all!AR68,IF(all!$AQ$1=2,all!AT68*100,IF(all!$AQ$1=3,all!AV68,all!AX68))) -> 0.133930342 | D76: =IF(OR('Y2'!$W$1=6,('Y2'!$W$1=7)),"",'Y2'!AC69) -> 17.45 | E76: =IF(all!$AP$3=1,all!AS68,IF(all!$AP$3=2,all!AU68*100,IF(all!$AP$3=3,all!AW68,all!AY68))) -> 17.29074499 | F76: 43 | G76: =IF($AE76=1,VLOOKUP($F76,all!$E$14:$AD$553,3),"") -> ratio put /`-- itm-b (b180p+2s172.5p) (netural) | H76: =IF($AE76=1,VLOOKUP($F76,all!$E$14:$AD$553,4),"") -> 180 | I76: =IF($AE76=1,VLOOKUP($F76,all!$E$14:$AD$553,5),"") -> 13.05 | J76: =IF($AE76=1,VLOOKUP($F76,all!$E$14:$AD$553,6),"") -> 172.5 | K76: =IF($AE76=1,VLOOKUP($F76,all!$E$14:$AD$553,7),"") -> 6.85 | L76: =IF($AE76=1,VLOOKUP($F76,all!$E$14:$AD$553,8),"") -> 0 | M76: =IF($AE76=1,VLOOKUP($F76,all!$E$14:$AD$553,9),"") -> 0 | N76: =IF($AE76=1,VLOOKUP($F76,all!$E$14:$AD$553,10),"") -> 0 | O76: =IF($AE76=1,VLOOKUP($F76,all!$E$14:$AD$553,11),"") -> 0 | P76: =IF($AE76=1,VLOOKUP($F76,all!$E$14:$AD$553,12),"") -> unlim risk | Q76: =IF($AE76=1,VLOOKUP($F76,all!$E$14:$AD$553,13),"") -> 815 | R76: =IF($AE76=1,VLOOKUP($F76,all!$E$14:$AD$553,14),"") -> 164.35 | S76: =IF($AE76=1,VLOOKUP($F76,all!$E$14:$AD$553,15),"") -> 1679.2 | T76: =IF($AE76=1,VLOOKUP($F76,all!$E$14:$AD$553,16),"") -> 0.6548010287 | U76: =IF($AE76=1,VLOOKUP($F76,all!$E$14:$AD$553,17),"") -> unlim risk | V76: =IF($AE76=1,VLOOKUP($F76,all!$E$14:$AD$553,18),"") -> unlim risk | W76: =IF($AE76=1,VLOOKUP($F76,all!$E$14:$AD$553,19),"") -> 2675 | X76: =IF($AE76=1,VLOOKUP($F76,all!$E$14:$AD$553,20),"") -> 0.3046728972 | Y76: =IF($AE76=1,VLOOKUP($F76,all!$E$14:$AD$553,21),"") -> 3 | Z76: =IF($AE76=1,VLOOKUP($F76,all!$E$14:$AD$553,22),"") -> 4 | AA76: =IF($AE76=1,VLOOKUP($F76,all!$E$14:$AD$553,23),"") -> 0 | AB76: =IF($AE76=1,VLOOKUP($F76,all!$E$14:$AD$553,24),"") -> 0 | AC76: =IF($AE76=1,VLOOKUP($F76,all!$E$14:$AD$553,25),"") -> x | AE76: =COUNTIF(all!$E$14:$E$553,F76) -> 1 | AF76: 4 | AG76: sell put | AH76: =-AH75 -> -14203.36489 | AI76: =-AI75 -> -13365.5357 | AJ76: -12528.54702 | AK76: -11692.89176 | AL76: -10859.21145 | AM76: -10028.29581 | AN76: -9201.072817 | AO76: -8378.59093 | AP76: -7561.995591 | AQ76: -6752.502096 | AR76: -5951.366999 | AS76: -5159.859769 | AT76: -4379.236096 | AU76: -3610.713839 | AV76: -2855.452231 | AW76: -2114.534688 | AX76: -1388.955268 | AY76: -679.6086899 | AZ76: 12.71635193 | BA76: 687.3408833 | BB76: 1343.696749 | BI76: 3.597030548e-05 | BJ76: 42.14411225
A77: =IF(OR('Y2'!$W$1=6,('Y2'!$W$1=7)),"",'Y2'!AA70) -> 187.5 | B77: =IF(OR('Y2'!$W$1=6,('Y2'!$W$1=7)),"",'Y2'!AB70) -> 0.1 | C77: =IF(all!$AQ$1=1,all!AR69,IF(all!$AQ$1=2,all!AT69*100,IF(all!$AQ$1=3,all!AV69,all!AX69))) -> 0.07022413262 | D77: =IF(OR('Y2'!$W$1=6,('Y2'!$W$1=7)),"",'Y2'!AC70) -> 20.85 | E77: =IF(all!$AP$3=1,all!AS69,IF(all!$AP$3=2,all!AU69*100,IF(all!$AP$3=3,all!AW69,all!AY69))) -> 19.72576494 | F77: 44 | G77: =IF($AE77=1,VLOOKUP($F77,all!$E$14:$AD$553,3),"") -> ratio put /`-- itm-b (b180p+2s170p) (netural) | H77: =IF($AE77=1,VLOOKUP($F77,all!$E$14:$AD$553,4),"") -> 180 | I77: =IF($AE77=1,VLOOKUP($F77,all!$E$14:$AD$553,5),"") -> 13.05 | J77: =IF($AE77=1,VLOOKUP($F77,all!$E$14:$AD$553,6),"") -> 170 | K77: =IF($AE77=1,VLOOKUP($F77,all!$E$14:$AD$553,7),"") -> 5.45 | L77: =IF($AE77=1,VLOOKUP($F77,all!$E$14:$AD$553,8),"") -> 0 | M77: =IF($AE77=1,VLOOKUP($F77,all!$E$14:$AD$553,9),"") -> 0 | N77: =IF($AE77=1,VLOOKUP($F77,all!$E$14:$AD$553,10),"") -> 0 | O77: =IF($AE77=1,VLOOKUP($F77,all!$E$14:$AD$553,11),"") -> 0 | P77: =IF($AE77=1,VLOOKUP($F77,all!$E$14:$AD$553,12),"") -> unlim risk | Q77: =IF($AE77=1,VLOOKUP($F77,all!$E$14:$AD$553,13),"") -> 785 | R77: =IF($AE77=1,VLOOKUP($F77,all!$E$14:$AD$553,14),"") -> 162.15 | S77: =IF($AE77=1,VLOOKUP($F77,all!$E$14:$AD$553,15),"") -> 177.85 | T77: =IF($AE77=1,VLOOKUP($F77,all!$E$14:$AD$553,16),"") -> 0.5980847094 | U77: =IF($AE77=1,VLOOKUP($F77,all!$E$14:$AD$553,17),"") -> unlim risk | V77: =IF($AE77=1,VLOOKUP($F77,all!$E$14:$AD$553,18),"") -> unlim risk | W77: =IF($AE77=1,VLOOKUP($F77,all!$E$14:$AD$553,19),"") -> 2395 | X77: =IF($AE77=1,VLOOKUP($F77,all!$E$14:$AD$553,20),"") -> 0.3277661795 | Y77: =IF($AE77=1,VLOOKUP($F77,all!$E$14:$AD$553,21),"") -> 3 | Z77: =IF($AE77=1,VLOOKUP($F77,all!$E$14:$AD$553,22),"") -> 4 | AA77: =IF($AE77=1,VLOOKUP($F77,all!$E$14:$AD$553,23),"") -> 0 | AB77: =IF($AE77=1,VLOOKUP($F77,all!$E$14:$AD$553,24),"") -> 0 | AC77: =IF($AE77=1,VLOOKUP($F77,all!$E$14:$AD$553,25),"") -> x | AE77: =COUNTIF(all!$E$14:$E$553,F77) -> 1 | AF77: 5 | AG77: buy under | AH77: =AH24 -> -8396 | AI77: =AI24 -> -7556.4 | AJ77: -6716.8 | AK77: -5877.2 | AL77: -5037.6 | AM77: -4198 | AN77: -3358.4 | AO77: -2518.8 | AP77: -1679.2 | AQ77: -839.6 | AR77: 0 | AS77: 839.6 | AT77: 1679.2 | AU77: 2518.8 | AV77: 3358.4 | AW77: 4198 | AX77: 5037.6 | AY77: 5877.2 | AZ77: 6716.8 | BA77: 7556.4 | BB77: 8396 | BI77: 4.525575075e-06 | BJ77: 47.14153313
A78: =IF(OR('Y2'!$W$1=6,('Y2'!$W$1=7)),"",'Y2'!AA71) -> 190 | B78: =IF(OR('Y2'!$W$1=6,('Y2'!$W$1=7)),"",'Y2'!AB71) -> 0.07 | C78: =IF(all!$AQ$1=1,all!AR70,IF(all!$AQ$1=2,all!AT70*100,IF(all!$AQ$1=3,all!AV70,all!AX70))) -> 0.03532416714 | D78: =IF(OR('Y2'!$W$1=6,('Y2'!$W$1=7)),"",'Y2'!AC71) -> 22.91 | E78: =IF(all!$AP$3=1,all!AS70,IF(all!$AP$3=2,all!AU70*100,IF(all!$AP$3=3,all!AW70,all!AY70))) -> 22.18959115 | F78: 45 | G78: =IF($AE78=1,VLOOKUP($F78,all!$E$14:$AD$553,3),"") -> ratio put /`-- itm-b (b180p+2s167.5p) (netural) | H78: =IF($AE78=1,VLOOKUP($F78,all!$E$14:$AD$553,4),"") -> 180 | I78: =IF($AE78=1,VLOOKUP($F78,all!$E$14:$AD$553,5),"") -> 13.05 | J78: =IF($AE78=1,VLOOKUP($F78,all!$E$14:$AD$553,6),"") -> 167.5 | K78: =IF($AE78=1,VLOOKUP($F78,all!$E$14:$AD$553,7),"") -> 4.25 | L78: =IF($AE78=1,VLOOKUP($F78,all!$E$14:$AD$553,8),"") -> 0 | M78: =IF($AE78=1,VLOOKUP($F78,all!$E$14:$AD$553,9),"") -> 0 | N78: =IF($AE78=1,VLOOKUP($F78,all!$E$14:$AD$553,10),"") -> 0 | O78: =IF($AE78=1,VLOOKUP($F78,all!$E$14:$AD$553,11),"") -> 0 | P78: =IF($AE78=1,VLOOKUP($F78,all!$E$14:$AD$553,12),"") -> unlim risk | Q78: =IF($AE78=1,VLOOKUP($F78,all!$E$14:$AD$553,13),"") -> 795 | R78: =IF($AE78=1,VLOOKUP($F78,all!$E$14:$AD$553,14),"") -> 159.55 | S78: =IF($AE78=1,VLOOKUP($F78,all!$E$14:$AD$553,15),"") -> 175.45 | T78: =IF($AE78=1,VLOOKUP($F78,all!$E$14:$AD$553,16),"") -> 0.6202797418 | U78: =IF($AE78=1,VLOOKUP($F78,all!$E$14:$AD$553,17),"") -> unlim risk | V78: =IF($AE78=1,VLOOKUP($F78,all!$E$14:$AD$553,18),"") -> unlim risk | W78: =IF($AE78=1,VLOOKUP($F78,all!$E$14:$AD$553,19),"") -> 2155 | X78: =IF($AE78=1,VLOOKUP($F78,all!$E$14:$AD$553,20),"") -> 0.3689095128 | Y78: =IF($AE78=1,VLOOKUP($F78,all!$E$14:$AD$553,21),"") -> 3 | Z78: =IF($AE78=1,VLOOKUP($F78,all!$E$14:$AD$553,22),"") -> 4 | AA78: =IF($AE78=1,VLOOKUP($F78,all!$E$14:$AD$553,23),"") -> 0 | AB78: =IF($AE78=1,VLOOKUP($F78,all!$E$14:$AD$553,24),"") -> 0 | AC78: =IF($AE78=1,VLOOKUP($F78,all!$E$14:$AD$553,25),"") -> x | AE78: =COUNTIF(all!$E$14:$E$553,F78) -> 1 | AF78: 6 | AG78: sell under | AH78: =AH25 -> 8396 | AI78: =AI25 -> 7556.4 | AJ78: 6716.8 | AK78: 5877.2 | AL78: 5037.6 | AM78: 4198 | AN78: 3358.4 | AO78: 2518.8 | AP78: 1679.2 | AQ78: 839.6 | AR78: 0 | AS78: -839.6 | AT78: -1679.2 | AU78: -2518.8 | AV78: -3358.4 | AW78: -4198 | AX78: -5037.6 | AY78: -5877.2 | AZ78: -6716.8 | BA78: -7556.4 | BB78: -8396 | BI78: 5.030920348e-07 | BJ78: 52.13898143
A79: =IF(OR('Y2'!$W$1=6,('Y2'!$W$1=7)),"",'Y2'!AA72) -> 192.5 | B79: =IF(OR('Y2'!$W$1=6,('Y2'!$W$1=7)),"",'Y2'!AB72) -> 0.05 | C79: =IF(all!$AQ$1=1,all!AR71,IF(all!$AQ$1=2,all!AT71*100,IF(all!$AQ$1=3,all!AV71,all!AX71))) -> 0.01705845423 | D79: =IF(OR('Y2'!$W$1=6,('Y2'!$W$1=7)),"",'Y2'!AC72) -> 25.45 | E79: =IF(all!$AP$3=1,all!AS71,IF(all!$AP$3=2,all!AU71*100,IF(all!$AP$3=3,all!AW71,all!AY71))) -> 24.67005159 | F79: 46 | G79: =IF($AE79=1,VLOOKUP($F79,all!$E$14:$AD$553,3),"") -> ratio put /`-- itm-b (b177.5p+2s172.5p) (neutral) | H79: =IF($AE79=1,VLOOKUP($F79,all!$E$14:$AD$553,4),"") -> 177.5 | I79: =IF($AE79=1,VLOOKUP($F79,all!$E$14:$AD$553,5),"") -> 11 | J79: =IF($AE79=1,VLOOKUP($F79,all!$E$14:$AD$553,6),"") -> 172.5 | K79: =IF($AE79=1,VLOOKUP($F79,all!$E$14:$AD$553,7),"") -> 6.85 | L79: =IF($AE79=1,VLOOKUP($F79,all!$E$14:$AD$553,8),"") -> 0 | M79: =IF($AE79=1,VLOOKUP($F79,all!$E$14:$AD$553,9),"") -> 0 | N79: =IF($AE79=1,VLOOKUP($F79,all!$E$14:$AD$553,10),"") -> 0 | O79: =IF($AE79=1,VLOOKUP($F79,all!$E$14:$AD$553,11),"") -> 0 | P79: =IF($AE79=1,VLOOKUP($F79,all!$E$14:$AD$553,12),"") -> unlim risk | Q79: =IF($AE79=1,VLOOKUP($F79,all!$E$14:$AD$553,13),"") -> 770 | R79: =IF($AE79=1,VLOOKUP($F79,all!$E$14:$AD$553,14),"") -> 164.8 | S79: =IF($AE79=1,VLOOKUP($F79,all!$E$14:$AD$553,15),"") -> 1679.2 | T79: =IF($AE79=1,VLOOKUP($F79,all!$E$14:$AD$553,16),"") -> 0.6359422034 | U79: =IF($AE79=1,VLOOKUP($F79,all!$E$14:$AD$553,17),"") -> unlim risk | V79: =IF($AE79=1,VLOOKUP($F79,all!$E$14:$AD$553,18),"") -> unlim risk | W79: =IF($AE79=1,VLOOKUP($F79,all!$E$14:$AD$553,19),"") -> 2470 | X79: =IF($AE79=1,VLOOKUP($F79,all!$E$14:$AD$553,20),"") -> 0.3117408907 | Y79: =IF($AE79=1,VLOOKUP($F79,all!$E$14:$AD$553,21),"") -> 3 | Z79: =IF($AE79=1,VLOOKUP($F79,all!$E$14:$AD$553,22),"") -> 4 | AA79: =IF($AE79=1,VLOOKUP($F79,all!$E$14:$AD$553,23),"") -> 0 | AB79: =IF($AE79=1,VLOOKUP($F79,all!$E$14:$AD$553,24),"") -> 0 | AC79: =IF($AE79=1,VLOOKUP($F79,all!$E$14:$AD$553,25),"") -> x | AE79: =COUNTIF(all!$E$14:$E$553,F79) -> 1 | AF79: =AF26 -> 2 | AG79: two | AH79: =IF($AF$79=0,0,VLOOKUP($AF$79,$AF$73:$BB$78,AH116)) -> 16389.31618 | AI79: =IF($AF$79=0,0,VLOOKUP($AF$79,$AF$73:$BB$78,AI116)) -> 16388.40076 | AJ79: 16386.64483 | AK79: 16383.55549 | AL79: 16378.49119 | AM79: 16370.66222 | AN79: 16359.14061 | AO79: 16342.87789 | AP79: 16320.72862 | AQ79: 16291.47751 | AR79: 16253.868 | AS79: 16206.63062 | AT79: 16148.50969 | AU79: 16078.28734 | AV79: 15994.80434 | AW79: 15896.97728 | AX79: 15783.81209 | AY79: 15654.41406 | AZ79: 15507.9945 | BA79: 15343.87442 | BB79: 15161.48568 | BI79: 4.98084229e-08 | BJ79: 57.1364333
A80: =IF(OR('Y2'!$W$1=6,('Y2'!$W$1=7)),"",'Y2'!AA73) -> 195 | B80: =IF(OR('Y2'!$W$1=6,('Y2'!$W$1=7)),"",'Y2'!AB73) -> 0.04 | C80: =IF(all!$AQ$1=1,all!AR72,IF(all!$AQ$1=2,all!AT72*100,IF(all!$AQ$1=3,all!AV72,all!AX72))) -> 0.007914822024 | D80: =IF(OR('Y2'!$W$1=6,('Y2'!$W$1=7)),"",'Y2'!AC73) -> 27.8 | E80: =IF(all!$AP$3=1,all!AS72,IF(all!$AP$3=2,all!AU72*100,IF(all!$AP$3=3,all!AW72,all!AY72))) -> 27.15963413 | F80: 47 | G80: =IF($AE80=1,VLOOKUP($F80,all!$E$14:$AD$553,3),"") -> ratio put /`-- itm-b (b177.5p+2s170p) (neutral) | H80: =IF($AE80=1,VLOOKUP($F80,all!$E$14:$AD$553,4),"") -> 177.5 | I80: =IF($AE80=1,VLOOKUP($F80,all!$E$14:$AD$553,5),"") -> 11 | J80: =IF($AE80=1,VLOOKUP($F80,all!$E$14:$AD$553,6),"") -> 170 | K80: =IF($AE80=1,VLOOKUP($F80,all!$E$14:$AD$553,7),"") -> 5.45 | L80: =IF($AE80=1,VLOOKUP($F80,all!$E$14:$AD$553,8),"") -> 0 | M80: =IF($AE80=1,VLOOKUP($F80,all!$E$14:$AD$553,9),"") -> 0 | N80: =IF($AE80=1,VLOOKUP($F80,all!$E$14:$AD$553,10),"") -> 0 | O80: =IF($AE80=1,VLOOKUP($F80,all!$E$14:$AD$553,11),"") -> 0 | P80: =IF($AE80=1,VLOOKUP($F80,all!$E$14:$AD$553,12),"") -> unlim risk | Q80: =IF($AE80=1,VLOOKUP($F80,all!$E$14:$AD$553,13),"") -> 740 | R80: =IF($AE80=1,VLOOKUP($F80,all!$E$14:$AD$553,14),"") -> 162.6 | S80: =IF($AE80=1,VLOOKUP($F80,all!$E$14:$AD$553,15),"") -> 177.4 | T80: =IF($AE80=1,VLOOKUP($F80,all!$E$14:$AD$553,16),"") -> 0.5703095399 | U80: =IF($AE80=1,VLOOKUP($F80,all!$E$14:$AD$553,17),"") -> unlim risk | V80: =IF($AE80=1,VLOOKUP($F80,all!$E$14:$AD$553,18),"") -> unlim risk | W80: =IF($AE80=1,VLOOKUP($F80,all!$E$14:$AD$553,19),"") -> 2190 | X80: =IF($AE80=1,VLOOKUP($F80,all!$E$14:$AD$553,20),"") -> 0.3378995434 | Y80: =IF($AE80=1,VLOOKUP($F80,all!$E$14:$AD$553,21),"") -> 3 | Z80: =IF($AE80=1,VLOOKUP($F80,all!$E$14:$AD$553,22),"") -> 4 | AA80: =IF($AE80=1,VLOOKUP($F80,all!$E$14:$AD$553,23),"") -> 0 | AB80: =IF($AE80=1,VLOOKUP($F80,all!$E$14:$AD$553,24),"") -> 0 | AC80: =IF($AE80=1,VLOOKUP($F80,all!$E$14:$AD$553,25),"") -> x | AE80: =COUNTIF(all!$E$14:$E$553,F80) -> 1 | BI80: 4.425102566e-09 | BJ80: 62.13388558
A81: =IF(OR('Y2'!$W$1=6,('Y2'!$W$1=7)),"",'Y2'!AA74) -> 197.5 | B81: =IF(OR('Y2'!$W$1=6,('Y2'!$W$1=7)),"",'Y2'!AB74) -> 0.04 | C81: =IF(all!$AQ$1=1,all!AR73,IF(all!$AQ$1=2,all!AT73*100,IF(all!$AQ$1=3,all!AV73,all!AX73))) -> 0.003531544294 | D81: =IF(OR('Y2'!$W$1=6,('Y2'!$W$1=7)),"",'Y2'!AC74) -> 30.3 | E81: =IF(all!$AP$3=1,all!AS73,IF(all!$AP$3=2,all!AU73*100,IF(all!$AP$3=3,all!AW73,all!AY73))) -> 29.653977 | F81: 48 | G81: =IF($AE81=1,VLOOKUP($F81,all!$E$14:$AD$553,3),"") -> ratio put /`-- itm-b (b177.5p+2s167.5p) (neutral) | H81: =IF($AE81=1,VLOOKUP($F81,all!$E$14:$AD$553,4),"") -> 177.5 | I81: =IF($AE81=1,VLOOKUP($F81,all!$E$14:$AD$553,5),"") -> 11 | J81: =IF($AE81=1,VLOOKUP($F81,all!$E$14:$AD$553,6),"") -> 167.5 | K81: =IF($AE81=1,VLOOKUP($F81,all!$E$14:$AD$553,7),"") -> 4.25 | L81: =IF($AE81=1,VLOOKUP($F81,all!$E$14:$AD$553,8),"") -> 0 | M81: =IF($AE81=1,VLOOKUP($F81,all!$E$14:$AD$553,9),"") -> 0 | N81: =IF($AE81=1,VLOOKUP($F81,all!$E$14:$AD$553,10),"") -> 0 | O81: =IF($AE81=1,VLOOKUP($F81,all!$E$14:$AD$553,11),"") -> 0 | P81: =IF($AE81=1,VLOOKUP($F81,all!$E$14:$AD$553,12),"") -> unlim risk | Q81: =IF($AE81=1,VLOOKUP($F81,all!$E$14:$AD$553,13),"") -> 750 | R81: =IF($AE81=1,VLOOKUP($F81,all!$E$14:$AD$553,14),"") -> 160 | S81: =IF($AE81=1,VLOOKUP($F81,all!$E$14:$AD$553,15),"") -> 175 | T81: =IF($AE81=1,VLOOKUP($F81,all!$E$14:$AD$553,16),"") -> 0.5927528665 | U81: =IF($AE81=1,VLOOKUP($F81,all!$E$14:$AD$553,17),"") -> unlim risk | V81: =IF($AE81=1,VLOOKUP($F81,all!$E$14:$AD$553,18),"") -> unlim risk | W81: =IF($AE81=1,VLOOKUP($F81,all!$E$14:$AD$553,19),"") -> 1950 | X81: =IF($AE81=1,VLOOKUP($F81,all!$E$14:$AD$553,20),"") -> 0.3846153846 | Y81: =IF($AE81=1,VLOOKUP($F81,all!$E$14:$AD$553,21),"") -> 3 | Z81: =IF($AE81=1,VLOOKUP($F81,all!$E$14:$AD$553,22),"") -> 4 | AA81: =IF($AE81=1,VLOOKUP($F81,all!$E$14:$AD$553,23),"") -> 0 | AB81: =IF($AE81=1,VLOOKUP($F81,all!$E$14:$AD$553,24),"") -> 0 | AC81: =IF($AE81=1,VLOOKUP($F81,all!$E$14:$AD$553,25),"") -> x | AE81: =COUNTIF(all!$E$14:$E$553,F81) -> 1 | AF81: 1 | AG81: buy call | AH81: =IF($K$6="",0,$H$6*$J$2*(PB("C",AH$64+0.00001,$J$6,MAX($I$6-$AL$63,0.00001)/365,$C$6,$D$6,$M$6)-$K$6)) -> -15043.54698 | AI81: =IF($K$6="",0,$H$6*$J$2*(PB("C",AI$64+0.00001,$J$6,MAX($I$6-$AL$63,0.00001)/365,$C$6,$D$6,$M$6)-$K$6)) -> -15042.9181 | AJ81: -15041.68676 | AK81: -15039.47938 | AL81: -15035.7981 | AM81: -15030.01611 | AN81: -15021.38083 | AO81: -15009.0241 | AP81: -14991.97806 | AQ81: -14969.19517 | AR81: -14939.57069 | AS81: -14901.96623 | AT81: -14855.23285 | AU81: -14798.23297 | AV81: -14729.86022 | AW81: -14649.05669 | AX81: -14554.82749 | AY81: -14446.25238 | AZ81: -14322.49466 | BA81: -14182.80739 | BB81: -14026.53722 | BI81: 3.553157658e-10 | BJ81: 67.1313379
A82: =IF(OR('Y2'!$W$1=6,('Y2'!$W$1=7)),"",'Y2'!AA75) -> 200 | B82: =IF(OR('Y2'!$W$1=6,('Y2'!$W$1=7)),"",'Y2'!AB75) -> 0.03 | C82: =IF(all!$AQ$1=1,all!AR74,IF(all!$AQ$1=2,all!AT74*100,IF(all!$AQ$1=3,all!AV74,all!AX74))) -> 0.001516788108 | D82: =IF(OR('Y2'!$W$1=6,('Y2'!$W$1=7)),"",'Y2'!AC75) -> 32.9 | E82: =IF(all!$AP$3=1,all!AS74,IF(all!$AP$3=2,all!AU74*100,IF(all!$AP$3=3,all!AW74,all!AY74))) -> 32.15068841 | F82: 49 | G82: =IF($AE82=1,VLOOKUP($F82,all!$E$14:$AD$553,3),"") -> ratio put /`-- itm-b (b175p+2s172.5p) (neutral) | H82: =IF($AE82=1,VLOOKUP($F82,all!$E$14:$AD$553,4),"") -> 175 | I82: =IF($AE82=1,VLOOKUP($F82,all!$E$14:$AD$553,5),"") -> 8.6 | J82: =IF($AE82=1,VLOOKUP($F82,all!$E$14:$AD$553,6),"") -> 172.5 | K82: =IF($AE82=1,VLOOKUP($F82,all!$E$14:$AD$553,7),"") -> 6.85 | L82: =IF($AE82=1,VLOOKUP($F82,all!$E$14:$AD$553,8),"") -> 0 | M82: =IF($AE82=1,VLOOKUP($F82,all!$E$14:$AD$553,9),"") -> 0 | N82: =IF($AE82=1,VLOOKUP($F82,all!$E$14:$AD$553,10),"") -> 0 | O82: =IF($AE82=1,VLOOKUP($F82,all!$E$14:$AD$553,11),"") -> 0 | P82: =IF($AE82=1,VLOOKUP($F82,all!$E$14:$AD$553,12),"") -> unlim risk | Q82: =IF($AE82=1,VLOOKUP($F82,all!$E$14:$AD$553,13),"") -> 760 | R82: =IF($AE82=1,VLOOKUP($F82,all!$E$14:$AD$553,14),"") -> 164.9 | S82: =IF($AE82=1,VLOOKUP($F82,all!$E$14:$AD$553,15),"") -> 1679.2 | T82: =IF($AE82=1,VLOOKUP($F82,all!$E$14:$AD$553,16),"") -> 0.6317114086 | U82: =IF($AE82=1,VLOOKUP($F82,all!$E$14:$AD$553,17),"") -> unlim risk | V82: =IF($AE82=1,VLOOKUP($F82,all!$E$14:$AD$553,18),"") -> unlim risk | W82: =IF($AE82=1,VLOOKUP($F82,all!$E$14:$AD$553,19),"") -> 2230 | X82: =IF($AE82=1,VLOOKUP($F82,all!$E$14:$AD$553,20),"") -> 0.3408071749 | Y82: =IF($AE82=1,VLOOKUP($F82,all!$E$14:$AD$553,21),"") -> 3 | Z82: =IF($AE82=1,VLOOKUP($F82,all!$E$14:$AD$553,22),"") -> 4 | AA82: =IF($AE82=1,VLOOKUP($F82,all!$E$14:$AD$553,23),"") -> 0 | AB82: =IF($AE82=1,VLOOKUP($F82,all!$E$14:$AD$553,24),"") -> 0 | AC82: =IF($AE82=1,VLOOKUP($F82,all!$E$14:$AD$553,25),"") -> x | AE82: =COUNTIF(all!$E$14:$E$553,F82) -> 1 | AF82: 2 | AG82: sell call | AH82: =-AH81 -> 15043.54698 | AI82: =-AI81 -> 15042.9181 | AJ82: 15041.68676 | AK82: 15039.47938 | AL82: 15035.7981 | AM82: 15030.01611 | AN82: 15021.38083 | AO82: 15009.0241 | AP82: 14991.97806 | AQ82: 14969.19517 | AR82: 14939.57069 | AS82: 14901.96623 | AT82: 14855.23285 | AU82: 14798.23297 | AV82: 14729.86022 | AW82: 14649.05669 | AX82: 14554.82749 | AY82: 14446.25238 | AZ82: 14322.49466 | BA82: 14182.80739 | BB82: 14026.53722 | BI82: 2.59560181e-11 | BJ82: 72.12879023
A83: =IF(OR('Y2'!$W$1=6,('Y2'!$W$1=7)),"",'Y2'!AA76) -> 205 | B83: =IF(OR('Y2'!$W$1=6,('Y2'!$W$1=7)),"",'Y2'!AB76) -> 0.02 | C83: =IF(all!$AQ$1=1,all!AR75,IF(all!$AQ$1=2,all!AT75*100,IF(all!$AQ$1=3,all!AV75,all!AX75))) -> 0.0002505534686 | D83: =IF(OR('Y2'!$W$1=6,('Y2'!$W$1=7)),"",'Y2'!AC76) -> 37.7 | E83: =IF(all!$AP$3=1,all!AS75,IF(all!$AP$3=2,all!AU75*100,IF(all!$AP$3=3,all!AW75,all!AY75))) -> 37.1468745 | F83: 50 | G83: =IF($AE83=1,VLOOKUP($F83,all!$E$14:$AD$553,3),"") -> ratio put /`-- itm-b (b175p+2s170p) (neutral) | H83: =IF($AE83=1,VLOOKUP($F83,all!$E$14:$AD$553,4),"") -> 175 | I83: =IF($AE83=1,VLOOKUP($F83,all!$E$14:$AD$553,5),"") -> 8.6 | J83: =IF($AE83=1,VLOOKUP($F83,all!$E$14:$AD$553,6),"") -> 170 | K83: =IF($AE83=1,VLOOKUP($F83,all!$E$14:$AD$553,7),"") -> 5.45 | L83: =IF($AE83=1,VLOOKUP($F83,all!$E$14:$AD$553,8),"") -> 0 | M83: =IF($AE83=1,VLOOKUP($F83,all!$E$14:$AD$553,9),"") -> 0 | N83: =IF($AE83=1,VLOOKUP($F83,all!$E$14:$AD$553,10),"") -> 0 | O83: =IF($AE83=1,VLOOKUP($F83,all!$E$14:$AD$553,11),"") -> 0 | P83: =IF($AE83=1,VLOOKUP($F83,all!$E$14:$AD$553,12),"") -> unlim risk | Q83: =IF($AE83=1,VLOOKUP($F83,all!$E$14:$AD$553,13),"") -> 730 | R83: =IF($AE83=1,VLOOKUP($F83,all!$E$14:$AD$553,14),"") -> 162.7 | S83: =IF($AE83=1,VLOOKUP($F83,all!$E$14:$AD$553,15),"") -> 1679.2 | T83: =IF($AE83=1,VLOOKUP($F83,all!$E$14:$AD$553,16),"") -> 0.7208414462 | U83: =IF($AE83=1,VLOOKUP($F83,all!$E$14:$AD$553,17),"") -> unlim risk | V83: =IF($AE83=1,VLOOKUP($F83,all!$E$14:$AD$553,18),"") -> unlim risk | W83: =IF($AE83=1,VLOOKUP($F83,all!$E$14:$AD$553,19),"") -> 1950 | X83: =IF($AE83=1,VLOOKUP($F83,all!$E$14:$AD$553,20),"") -> 0.3743589744 | Y83: =IF($AE83=1,VLOOKUP($F83,all!$E$14:$AD$553,21),"") -> 3 | Z83: =IF($AE83=1,VLOOKUP($F83,all!$E$14:$AD$553,22),"") -> 4 | AA83: =IF($AE83=1,VLOOKUP($F83,all!$E$14:$AD$553,23),"") -> 0 | AB83: =IF($AE83=1,VLOOKUP($F83,all!$E$14:$AD$553,24),"") -> 0 | AC83: =IF($AE83=1,VLOOKUP($F83,all!$E$14:$AD$553,25),"") -> x | AE83: =COUNTIF(all!$E$14:$E$553,F83) -> 1 | AF83: 3 | AG83: buy put | AH83: =IF($K$6="",0,$H$6*$J$2*(PB("P",AH$64+0.00001,$J$6,MAX($I$6-$AL$63,0.00001)/365,$C$6,$D$6,$M$6)-$K$6)) -> 17548.11502 | AI83: =IF($K$6="",0,$H$6*$J$2*(PB("P",AI$64+0.00001,$J$6,MAX($I$6-$AL$63,0.00001)/365,$C$6,$D$6,$M$6)-$K$6)) -> 16709.99929 | AJ83: 15872.48603 | AK83: 15035.94879 | AL83: 14200.88547 | AM83: 13367.92286 | AN83: 12537.81353 | AO83: 11711.42565 | AP83: 10889.72709 | AQ83: 10073.76537 | AR83: 9264.645235 | AS83: 8463.505093 | AT83: 7671.493871 | AU83: 6889.749139 | AV83: 6119.377282 | AW83: 5361.436204 | AX83: 4616.920801 | AY83: 3886.751306 | AZ83: 3171.764419 | BA83: 2472.707079 | BB83: 1790.232639 | BI83: 1.727658221e-12 | BJ83: 77.12624255
A84: =IF(OR('Y2'!$W$1=6,('Y2'!$W$1=7)),"",'Y2'!AA77) -> 210 | B84: =IF(OR('Y2'!$W$1=6,('Y2'!$W$1=7)),"",'Y2'!AB77) -> 0.02 | C84: =IF(all!$AQ$1=1,all!AR76,IF(all!$AQ$1=2,all!AT76*100,IF(all!$AQ$1=3,all!AV76,all!AX76))) -> 3.597029433e-05 | D84: =IF(OR('Y2'!$W$1=6,('Y2'!$W$1=7)),"",'Y2'!AC77) -> 42.4 | E84: =IF(all!$AP$3=1,all!AS76,IF(all!$AP$3=2,all!AU76*100,IF(all!$AP$3=3,all!AW76,all!AY76))) -> 42.14411225 | F84: 51 | G84: =IF($AE84=1,VLOOKUP($F84,all!$E$14:$AD$553,3),"") -> ratio put /`-- itm-b (b175p+2s167.5p) (neutral) | H84: =IF($AE84=1,VLOOKUP($F84,all!$E$14:$AD$553,4),"") -> 175 | I84: =IF($AE84=1,VLOOKUP($F84,all!$E$14:$AD$553,5),"") -> 8.6 | J84: =IF($AE84=1,VLOOKUP($F84,all!$E$14:$AD$553,6),"") -> 167.5 | K84: =IF($AE84=1,VLOOKUP($F84,all!$E$14:$AD$553,7),"") -> 4.25 | L84: =IF($AE84=1,VLOOKUP($F84,all!$E$14:$AD$553,8),"") -> 0 | M84: =IF($AE84=1,VLOOKUP($F84,all!$E$14:$AD$553,9),"") -> 0 | N84: =IF($AE84=1,VLOOKUP($F84,all!$E$14:$AD$553,10),"") -> 0 | O84: =IF($AE84=1,VLOOKUP($F84,all!$E$14:$AD$553,11),"") -> 0 | P84: =IF($AE84=1,VLOOKUP($F84,all!$E$14:$AD$553,12),"") -> unlim risk | Q84: =IF($AE84=1,VLOOKUP($F84,all!$E$14:$AD$553,13),"") -> 740 | R84: =IF($AE84=1,VLOOKUP($F84,all!$E$14:$AD$553,14),"") -> 160.1 | S84: =IF($AE84=1,VLOOKUP($F84,all!$E$14:$AD$553,15),"") -> 174.9 | T84: =IF($AE84=1,VLOOKUP($F84,all!$E$14:$AD$553,16),"") -> 0.5864768576 | U84: =IF($AE84=1,VLOOKUP($F84,all!$E$14:$AD$553,17),"") -> unlim risk | V84: =IF($AE84=1,VLOOKUP($F84,all!$E$14:$AD$553,18),"") -> unlim risk | W84: =IF($AE84=1,VLOOKUP($F84,all!$E$14:$AD$553,19),"") -> 1710 | X84: =IF($AE84=1,VLOOKUP($F84,all!$E$14:$AD$553,20),"") -> 0.432748538 | Y84: =IF($AE84=1,VLOOKUP($F84,all!$E$14:$AD$553,21),"") -> 3 | Z84: =IF($AE84=1,VLOOKUP($F84,all!$E$14:$AD$553,22),"") -> 4 | AA84: =IF($AE84=1,VLOOKUP($F84,all!$E$14:$AD$553,23),"") -> 0 | AB84: =IF($AE84=1,VLOOKUP($F84,all!$E$14:$AD$553,24),"") -> 0 | AC84: =IF($AE84=1,VLOOKUP($F84,all!$E$14:$AD$553,25),"") -> x | AE84: =COUNTIF(all!$E$14:$E$553,F84) -> 1 | AF84: 4 | AG84: sell put | AH84: =-AH83 -> -17548.11502 | AI84: =-AI83 -> -16709.99929 | AJ84: -15872.48603 | AK84: -15035.94879 | AL84: -14200.88547 | AM84: -13367.92286 | AN84: -12537.81353 | AO84: -11711.42565 | AP84: -10889.72709 | AQ84: -10073.76537 | AR84: -9264.645235 | AS84: -8463.505093 | AT84: -7671.493871 | AU84: -6889.749139 | AV84: -6119.377282 | AW84: -5361.436204 | AX84: -4616.920801 | AY84: -3886.751306 | AZ84: -3171.764419 | BA84: -2472.707079 | BB84: -1790.232639 | BI84: 9.022559755e-14 | BJ84: 82.12369488
A85: =IF(OR('Y2'!$W$1=6,('Y2'!$W$1=7)),"",'Y2'!AA78) -> 215 | B85: =IF(OR('Y2'!$W$1=6,('Y2'!$W$1=7)),"",'Y2'!AB78) -> 0.01 | C85: =IF(all!$AQ$1=1,all!AR77,IF(all!$AQ$1=2,all!AT77*100,IF(all!$AQ$1=3,all!AV77,all!AX77))) -> 4.525573399e-06 | D85: =IF(OR('Y2'!$W$1=6,('Y2'!$W$1=7)),"",'Y2'!AC78) -> 47.57 | E85: =IF(all!$AP$3=1,all!AS77,IF(all!$AP$3=2,all!AU77*100,IF(all!$AP$3=3,all!AW77,all!AY77))) -> 47.14153313 | F85: 52 | G85: =IF($AE85=1,VLOOKUP($F85,all!$E$14:$AD$553,3),"") -> ratio put /`-- itm-b (b172.5p+2s170p) (neutral) | H85: =IF($AE85=1,VLOOKUP($F85,all!$E$14:$AD$553,4),"") -> 172.5 | I85: =IF($AE85=1,VLOOKUP($F85,all!$E$14:$AD$553,5),"") -> 6.85 | J85: =IF($AE85=1,VLOOKUP($F85,all!$E$14:$AD$553,6),"") -> 170 | K85: =IF($AE85=1,VLOOKUP($F85,all!$E$14:$AD$553,7),"") -> 5.45 | L85: =IF($AE85=1,VLOOKUP($F85,all!$E$14:$AD$553,8),"") -> 0 | M85: =IF($AE85=1,VLOOKUP($F85,all!$E$14:$AD$553,9),"") -> 0 | N85: =IF($AE85=1,VLOOKUP($F85,all!$E$14:$AD$553,10),"") -> 0 | O85: =IF($AE85=1,VLOOKUP($F85,all!$E$14:$AD$553,11),"") -> 0 | P85: =IF($AE85=1,VLOOKUP($F85,all!$E$14:$AD$553,12),"") -> unlim risk | Q85: =IF($AE85=1,VLOOKUP($F85,all!$E$14:$AD$553,13),"") -> 655 | R85: =IF($AE85=1,VLOOKUP($F85,all!$E$14:$AD$553,14),"") -> 163.45 | S85: =IF($AE85=1,VLOOKUP($F85,all!$E$14:$AD$553,15),"") -> 1679.2 | T85: =IF($AE85=1,VLOOKUP($F85,all!$E$14:$AD$553,16),"") -> 0.6914963623 | U85: =IF($AE85=1,VLOOKUP($F85,all!$E$14:$AD$553,17),"") -> unlim risk | V85: =IF($AE85=1,VLOOKUP($F85,all!$E$14:$AD$553,18),"") -> unlim risk | W85: =IF($AE85=1,VLOOKUP($F85,all!$E$14:$AD$553,19),"") -> 1775 | X85: =IF($AE85=1,VLOOKUP($F85,all!$E$14:$AD$553,20),"") -> 0.3690140845 | Y85: =IF($AE85=1,VLOOKUP($F85,all!$E$14:$AD$553,21),"") -> 3 | Z85: =IF($AE85=1,VLOOKUP($F85,all!$E$14:$AD$553,22),"") -> 4 | AA85: =IF($AE85=1,VLOOKUP($F85,all!$E$14:$AD$553,23),"") -> 0 | AB85: =IF($AE85=1,VLOOKUP($F85,all!$E$14:$AD$553,24),"") -> 0 | AC85: =IF($AE85=1,VLOOKUP($F85,all!$E$14:$AD$553,25),"") -> x | AE85: =COUNTIF(all!$E$14:$E$553,F85) -> 1 | AF85: 5 | AG85: buy under | AH85: =AH32 -> -8396 | AI85: =AI32 -> -7556.4 | AJ85: -6716.8 | AK85: -5877.2 | AL85: -5037.6 | AM85: -4198 | AN85: -3358.4 | AO85: -2518.8 | AP85: -1679.2 | AQ85: -839.6 | AR85: 0 | AS85: 839.6 | AT85: 1679.2 | AU85: 2518.8 | AV85: 3358.4 | AW85: 4198 | AX85: 5037.6 | AY85: 5877.2 | AZ85: 6716.8 | BA85: 7556.4 | BB85: 8396 | BI85: -1.83056655e-15 | BJ85: 92.11859953
A86: =IF(OR('Y2'!$W$1=6,('Y2'!$W$1=7)),"",'Y2'!AA79) -> 220 | B86: =IF(OR('Y2'!$W$1=6,('Y2'!$W$1=7)),"",'Y2'!AB79) -> 0.01 | C86: =IF(all!$AQ$1=1,all!AR78,IF(all!$AQ$1=2,all!AT78*100,IF(all!$AQ$1=3,all!AV78,all!AX78))) -> 5.030919125e-07 | D86: =IF(OR('Y2'!$W$1=6,('Y2'!$W$1=7)),"",'Y2'!AC79) -> 52.06 | E86: =IF(all!$AP$3=1,all!AS78,IF(all!$AP$3=2,all!AU78*100,IF(all!$AP$3=3,all!AW78,all!AY78))) -> 52.13898143 | F86: 53 | G86: =IF($AE86=1,VLOOKUP($F86,all!$E$14:$AD$553,3),"") -> ratio put /`-- itm-b (b172.5p+2s167.5p) (neutral) | H86: =IF($AE86=1,VLOOKUP($F86,all!$E$14:$AD$553,4),"") -> 172.5 | I86: =IF($AE86=1,VLOOKUP($F86,all!$E$14:$AD$553,5),"") -> 6.85 | J86: =IF($AE86=1,VLOOKUP($F86,all!$E$14:$AD$553,6),"") -> 167.5 | K86: =IF($AE86=1,VLOOKUP($F86,all!$E$14:$AD$553,7),"") -> 4.25 | L86: =IF($AE86=1,VLOOKUP($F86,all!$E$14:$AD$553,8),"") -> 0 | M86: =IF($AE86=1,VLOOKUP($F86,all!$E$14:$AD$553,9),"") -> 0 | N86: =IF($AE86=1,VLOOKUP($F86,all!$E$14:$AD$553,10),"") -> 0 | O86: =IF($AE86=1,VLOOKUP($F86,all!$E$14:$AD$553,11),"") -> 0 | P86: =IF($AE86=1,VLOOKUP($F86,all!$E$14:$AD$553,12),"") -> unlim risk | Q86: =IF($AE86=1,VLOOKUP($F86,all!$E$14:$AD$553,13),"") -> 665 | R86: =IF($AE86=1,VLOOKUP($F86,all!$E$14:$AD$553,14),"") -> 160.85 | S86: =IF($AE86=1,VLOOKUP($F86,all!$E$14:$AD$553,15),"") -> 1679.2 | T86: =IF($AE86=1,VLOOKUP($F86,all!$E$14:$AD$553,16),"") -> 0.7873644589 | U86: =IF($AE86=1,VLOOKUP($F86,all!$E$14:$AD$553,17),"") -> unlim risk | V86: =IF($AE86=1,VLOOKUP($F86,all!$E$14:$AD$553,18),"") -> unlim risk | W86: =IF($AE86=1,VLOOKUP($F86,all!$E$14:$AD$553,19),"") -> 1535 | X86: =IF($AE86=1,VLOOKUP($F86,all!$E$14:$AD$553,20),"") -> 0.4332247557 | Y86: =IF($AE86=1,VLOOKUP($F86,all!$E$14:$AD$553,21),"") -> 3 | Z86: =IF($AE86=1,VLOOKUP($F86,all!$E$14:$AD$553,22),"") -> 4 | AA86: =IF($AE86=1,VLOOKUP($F86,all!$E$14:$AD$553,23),"") -> 0 | AB86: =IF($AE86=1,VLOOKUP($F86,all!$E$14:$AD$553,24),"") -> 0 | AC86: =IF($AE86=1,VLOOKUP($F86,all!$E$14:$AD$553,25),"") -> x | AE86: =COUNTIF(all!$E$14:$E$553,F86) -> 1 | AF86: 6 | AG86: sell under | AH86: =AH33 -> 8396 | AI86: =AI33 -> 7556.4 | AJ86: 6716.8 | AK86: 5877.2 | AL86: 5037.6 | AM86: 4198 | AN86: 3358.4 | AO86: 2518.8 | AP86: 1679.2 | AQ86: 839.6 | AR86: 0 | AS86: -839.6 | AT86: -1679.2 | AU86: -2518.8 | AV86: -3358.4 | AW86: -4198 | AX86: -5037.6 | AY86: -5877.2 | AZ86: -6716.8 | BA86: -7556.4 | BB86: -8396 | BI86: 0 | BJ86: 102.1135042
A87: =IF(OR('Y2'!$W$1=6,('Y2'!$W$1=7)),"",'Y2'!AA80) -> 225 | B87: =IF(OR('Y2'!$W$1=6,('Y2'!$W$1=7)),"",'Y2'!AB80) -> 0.01 | C87: =IF(all!$AQ$1=1,all!AR79,IF(all!$AQ$1=2,all!AT79*100,IF(all!$AQ$1=3,all!AV79,all!AX79))) -> 4.980842228e-08 | D87: =IF(OR('Y2'!$W$1=6,('Y2'!$W$1=7)),"",'Y2'!AC80) -> 56.8 | E87: =IF(all!$AP$3=1,all!AS79,IF(all!$AP$3=2,all!AU79*100,IF(all!$AP$3=3,all!AW79,all!AY79))) -> 57.1364333 | F87: 54 | G87: =IF($AE87=1,VLOOKUP($F87,all!$E$14:$AD$553,3),"") -> ratio put /`-- itm-b (b172.5p+2s165p) (neutral) | H87: =IF($AE87=1,VLOOKUP($F87,all!$E$14:$AD$553,4),"") -> 172.5 | I87: =IF($AE87=1,VLOOKUP($F87,all!$E$14:$AD$553,5),"") -> 6.85 | J87: =IF($AE87=1,VLOOKUP($F87,all!$E$14:$AD$553,6),"") -> 165 | K87: =IF($AE87=1,VLOOKUP($F87,all!$E$14:$AD$553,7),"") -> 3.26 | L87: =IF($AE87=1,VLOOKUP($F87,all!$E$14:$AD$553,8),"") -> 0 | M87: =IF($AE87=1,VLOOKUP($F87,all!$E$14:$AD$553,9),"") -> 0 | N87: =IF($AE87=1,VLOOKUP($F87,all!$E$14:$AD$553,10),"") -> 0 | O87: =IF($AE87=1,VLOOKUP($F87,all!$E$14:$AD$553,11),"") -> 0 | P87: =IF($AE87=1,VLOOKUP($F87,all!$E$14:$AD$553,12),"") -> unlim risk | Q87: =IF($AE87=1,VLOOKUP($F87,all!$E$14:$AD$553,13),"") -> 717 | R87: =IF($AE87=1,VLOOKUP($F87,all!$E$14:$AD$553,14),"") -> 157.83 | S87: =IF($AE87=1,VLOOKUP($F87,all!$E$14:$AD$553,15),"") -> 172.17 | T87: =IF($AE87=1,VLOOKUP($F87,all!$E$14:$AD$553,16),"") -> 0.5530657546 | U87: =IF($AE87=1,VLOOKUP($F87,all!$E$14:$AD$553,17),"") -> unlim risk | V87: =IF($AE87=1,VLOOKUP($F87,all!$E$14:$AD$553,18),"") -> unlim risk | W87: =IF($AE87=1,VLOOKUP($F87,all!$E$14:$AD$553,19),"") -> 1337 | X87: =IF($AE87=1,VLOOKUP($F87,all!$E$14:$AD$553,20),"") -> 0.5362752431 | Y87: =IF($AE87=1,VLOOKUP($F87,all!$E$14:$AD$553,21),"") -> 3 | Z87: =IF($AE87=1,VLOOKUP($F87,all!$E$14:$AD$553,22),"") -> 4 | AA87: =IF($AE87=1,VLOOKUP($F87,all!$E$14:$AD$553,23),"") -> 0 | AB87: =IF($AE87=1,VLOOKUP($F87,all!$E$14:$AD$553,24),"") -> 0 | AC87: =IF($AE87=1,VLOOKUP($F87,all!$E$14:$AD$553,25),"") -> x | AE87: =COUNTIF(all!$E$14:$E$553,F87) -> 1 | AF87: =AF34 -> 2 | AG87: three | AH87: =IF($AF$87=0,0,VLOOKUP($AF$87,$AF$81:$BB$86,AH116)) -> 15043.54698 | AI87: =IF($AF$87=0,0,VLOOKUP($AF$87,$AF$81:$BB$86,AI116)) -> 15042.9181 | AJ87: 15041.68676 | AK87: 15039.47938 | AL87: 15035.7981 | AM87: 15030.01611 | AN87: 15021.38083 | AO87: 15009.0241 | AP87: 14991.97806 | AQ87: 14969.19517 | AR87: 14939.57069 | AS87: 14901.96623 | AT87: 14855.23285 | AU87: 14798.23297 | AV87: 14729.86022 | AW87: 14649.05669 | AX87: 14554.82749 | AY87: 14446.25238 | AZ87: 14322.49466 | BA87: 14182.80739 | BB87: 14026.53722 | BI87: 0 | BJ87: 112.1084088
A88: =IF(OR('Y2'!$W$1=6,('Y2'!$W$1=7)),"",'Y2'!AA81) -> 230 | B88: =IF(OR('Y2'!$W$1=6,('Y2'!$W$1=7)),"",'Y2'!AB81) -> 0.01 | C88: =IF(all!$AQ$1=1,all!AR80,IF(all!$AQ$1=2,all!AT80*100,IF(all!$AQ$1=3,all!AV80,all!AX80))) -> 4.425112218e-09 | D88: =IF(OR('Y2'!$W$1=6,('Y2'!$W$1=7)),"",'Y2'!AC81) -> 62.05 | E88: =IF(all!$AP$3=1,all!AS80,IF(all!$AP$3=2,all!AU80*100,IF(all!$AP$3=3,all!AW80,all!AY80))) -> 62.13388558 | F88: 55 | G88: =IF($AE88=1,VLOOKUP($F88,all!$E$14:$AD$553,3),"") -> butterfly call _/\_ (2s172.5c+b160c+b185c) | H88: =IF($AE88=1,VLOOKUP($F88,all!$E$14:$AD$553,4),"") -> 160 | I88: =IF($AE88=1,VLOOKUP($F88,all!$E$14:$AD$553,5),"") -> 9.75 | J88: =IF($AE88=1,VLOOKUP($F88,all!$E$14:$AD$553,6),"") -> 172.5 | K88: =IF($AE88=1,VLOOKUP($F88,all!$E$14:$AD$553,7),"") -> 2.21 | L88: =IF($AE88=1,VLOOKUP($F88,all!$E$14:$AD$553,8),"") -> 185 | M88: =IF($AE88=1,VLOOKUP($F88,all!$E$14:$AD$553,9),"") -> 0.15 | N88: =IF($AE88=1,VLOOKUP($F88,all!$E$14:$AD$553,10),"") -> 0 | O88: =IF($AE88=1,VLOOKUP($F88,all!$E$14:$AD$553,11),"") -> 0 | P88: =IF($AE88=1,VLOOKUP($F88,all!$E$14:$AD$553,12),"") -> 548 | Q88: =IF($AE88=1,VLOOKUP($F88,all!$E$14:$AD$553,13),"") -> 244 | R88: =IF($AE88=1,VLOOKUP($F88,all!$E$14:$AD$553,14),"") -> 165.48 | S88: =IF($AE88=1,VLOOKUP($F88,all!$E$14:$AD$553,15),"") -> 179.52 | T88: =IF($AE88=1,VLOOKUP($F88,all!$E$14:$AD$553,16),"") -> 0.4990928995 | U88: =IF($AE88=1,VLOOKUP($F88,all!$E$14:$AD$553,17),"") -> 0.4452554663 | V88: =IF($AE88=1,VLOOKUP($F88,all!$E$14:$AD$553,18),"") -> 0.2222238417 | W88: =IF($AE88=1,VLOOKUP($F88,all!$E$14:$AD$553,19),"") -> 1417 | X88: =IF($AE88=1,VLOOKUP($F88,all!$E$14:$AD$553,20),"") -> 0.1721947777 | Y88: =IF($AE88=1,VLOOKUP($F88,all!$E$14:$AD$553,21),"") -> 1 | Z88: =IF($AE88=1,VLOOKUP($F88,all!$E$14:$AD$553,22),"") -> 2 | AA88: =IF($AE88=1,VLOOKUP($F88,all!$E$14:$AD$553,23),"") -> 1 | AB88: =IF($AE88=1,VLOOKUP($F88,all!$E$14:$AD$553,24),"") -> 0 | AC88: =IF($AE88=1,VLOOKUP($F88,all!$E$14:$AD$553,25),"") -> x | AE88: =COUNTIF(all!$E$14:$E$553,F88) -> 1 | BI88: 0 | BJ88: 122.1033135
A89: =IF(OR('Y2'!$W$1=6,('Y2'!$W$1=7)),"",'Y2'!AA82) -> 235 | B89: =IF(OR('Y2'!$W$1=6,('Y2'!$W$1=7)),"",'Y2'!AB82) -> 0.01 | C89: =IF(all!$AQ$1=1,all!AR81,IF(all!$AQ$1=2,all!AT81*100,IF(all!$AQ$1=3,all!AV81,all!AX81))) -> 3.553045957e-10 | D89: =IF(OR('Y2'!$W$1=6,('Y2'!$W$1=7)),"",'Y2'!AC82) -> 61 | E89: =IF(all!$AP$3=1,all!AS81,IF(all!$AP$3=2,all!AU81*100,IF(all!$AP$3=3,all!AW81,all!AY81))) -> 67.1313379 | F89: 56 | G89: =IF($AE89=1,VLOOKUP($F89,all!$E$14:$AD$553,3),"") -> butterfly call _/\_ (2s172.5c+b162.5c+b182.5c) | H89: =IF($AE89=1,VLOOKUP($F89,all!$E$14:$AD$553,4),"") -> 162.5 | I89: =IF($AE89=1,VLOOKUP($F89,all!$E$14:$AD$553,5),"") -> 7.9 | J89: =IF($AE89=1,VLOOKUP($F89,all!$E$14:$AD$553,6),"") -> 172.5 | K89: =IF($AE89=1,VLOOKUP($F89,all!$E$14:$AD$553,7),"") -> 2.21 | L89: =IF($AE89=1,VLOOKUP($F89,all!$E$14:$AD$553,8),"") -> 182.5 | M89: =IF($AE89=1,VLOOKUP($F89,all!$E$14:$AD$553,9),"") -> 0.28 | N89: =IF($AE89=1,VLOOKUP($F89,all!$E$14:$AD$553,10),"") -> 0 | O89: =IF($AE89=1,VLOOKUP($F89,all!$E$14:$AD$553,11),"") -> 0 | P89: =IF($AE89=1,VLOOKUP($F89,all!$E$14:$AD$553,12),"") -> 376 | Q89: =IF($AE89=1,VLOOKUP($F89,all!$E$14:$AD$553,13),"") -> 166 | R89: =IF($AE89=1,VLOOKUP($F89,all!$E$14:$AD$553,14),"") -> 166.26 | S89: =IF($AE89=1,VLOOKUP($F89,all!$E$14:$AD$553,15),"") -> 178.74 | T89: =IF($AE89=1,VLOOKUP($F89,all!$E$14:$AD$553,16),"") -> 0.4495040343 | U89: =IF($AE89=1,VLOOKUP($F89,all!$E$14:$AD$553,17),"") -> 0.44148935 | V89: =IF($AE89=1,VLOOKUP($F89,all!$E$14:$AD$553,18),"") -> 0.1984512439 | W89: =IF($AE89=1,VLOOKUP($F89,all!$E$14:$AD$553,19),"") -> 1232 | X89: =IF($AE89=1,VLOOKUP($F89,all!$E$14:$AD$553,20),"") -> 0.1347402597 | Y89: =IF($AE89=1,VLOOKUP($F89,all!$E$14:$AD$553,21),"") -> 1 | Z89: =IF($AE89=1,VLOOKUP($F89,all!$E$14:$AD$553,22),"") -> 2 | AA89: =IF($AE89=1,VLOOKUP($F89,all!$E$14:$AD$553,23),"") -> 1 | AB89: =IF($AE89=1,VLOOKUP($F89,all!$E$14:$AD$553,24),"") -> 0 | AC89: =IF($AE89=1,VLOOKUP($F89,all!$E$14:$AD$553,25),"") -> x | AE89: =COUNTIF(all!$E$14:$E$553,F89) -> 1 | AF89: 1 | AG89: buy call | AH89: =IF($K$7="",0,$H$7*$J$2*(PB("C",AH$64+0.00001,$J$7,MAX($I$7-$AL$63,0.00001)/365,$C$6,$D$6,$M$7)-$K$7)) -> -15043.54698 | AI89: =IF($K$7="",0,$H$7*$J$2*(PB("C",AI$64+0.00001,$J$7,MAX($I$7-$AL$63,0.00001)/365,$C$6,$D$6,$M$7)-$K$7)) -> -15042.9181 | AJ89: -15041.68676 | AK89: -15039.47938 | AL89: -15035.7981 | AM89: -15030.01611 | AN89: -15021.38083 | AO89: -15009.0241 | AP89: -14991.97806 | AQ89: -14969.19517 | AR89: -14939.57069 | AS89: -14901.96623 | AT89: -14855.23285 | AU89: -14798.23297 | AV89: -14729.86022 | AW89: -14649.05669 | AX89: -14554.82749 | AY89: -14446.25238 | AZ89: -14322.49466 | BA89: -14182.80739 | BB89: -14026.53722 | BI89: 0 | BJ89: 132.0982181
A90: =IF(OR('Y2'!$W$1=6,('Y2'!$W$1=7)),"",'Y2'!AA83) -> 240 | B90: =IF(OR('Y2'!$W$1=6,('Y2'!$W$1=7)),"",'Y2'!AB83) -> 0.01 | C90: =IF(all!$AQ$1=1,all!AR82,IF(all!$AQ$1=2,all!AT82*100,IF(all!$AQ$1=3,all!AV82,all!AX82))) -> 2.597464189e-11 | D90: =IF(OR('Y2'!$W$1=6,('Y2'!$W$1=7)),"",'Y2'!AC83) -> 71.65 | E90: =IF(all!$AP$3=1,all!AS82,IF(all!$AP$3=2,all!AU82*100,IF(all!$AP$3=3,all!AW82,all!AY82))) -> 72.12879023 | F90: 57 | G90: =IF($AE90=1,VLOOKUP($F90,all!$E$14:$AD$553,3),"") -> butterfly call _/\_ (2s172.5c+b165c+b180c) | H90: =IF($AE90=1,VLOOKUP($F90,all!$E$14:$AD$553,4),"") -> 165 | I90: =IF($AE90=1,VLOOKUP($F90,all!$E$14:$AD$553,5),"") -> 6.13 | J90: =IF($AE90=1,VLOOKUP($F90,all!$E$14:$AD$553,6),"") -> 172.5 | K90: =IF($AE90=1,VLOOKUP($F90,all!$E$14:$AD$553,7),"") -> 2.21 | L90: =IF($AE90=1,VLOOKUP($F90,all!$E$14:$AD$553,8),"") -> 180 | M90: =IF($AE90=1,VLOOKUP($F90,all!$E$14:$AD$553,9),"") -> 0.49 | N90: =IF($AE90=1,VLOOKUP($F90,all!$E$14:$AD$553,10),"") -> 0 | O90: =IF($AE90=1,VLOOKUP($F90,all!$E$14:$AD$553,11),"") -> 0 | P90: =IF($AE90=1,VLOOKUP($F90,all!$E$14:$AD$553,12),"") -> 220 | Q90: =IF($AE90=1,VLOOKUP($F90,all!$E$14:$AD$553,13),"") -> 72 | R90: =IF($AE90=1,VLOOKUP($F90,all!$E$14:$AD$553,14),"") -> 167.2 | S90: =IF($AE90=1,VLOOKUP($F90,all!$E$14:$AD$553,15),"") -> 177.8 | T90: =IF($AE90=1,VLOOKUP($F90,all!$E$14:$AD$553,16),"") -> 0.3871005837 | U90: =IF($AE90=1,VLOOKUP($F90,all!$E$14:$AD$553,17),"") -> 0.3272727124 | V90: =IF($AE90=1,VLOOKUP($F90,all!$E$14:$AD$553,18),"") -> 0.126687458 | W90: =IF($AE90=1,VLOOKUP($F90,all!$E$14:$AD$553,19),"") -> 1055 | X90: =IF($AE90=1,VLOOKUP($F90,all!$E$14:$AD$553,20),"") -> 0.0682464455 | Y90: =IF($AE90=1,VLOOKUP($F90,all!$E$14:$AD$553,21),"") -> 1 | Z90: =IF($AE90=1,VLOOKUP($F90,all!$E$14:$AD$553,22),"") -> 2 | AA90: =IF($AE90=1,VLOOKUP($F90,all!$E$14:$AD$553,23),"") -> 1 | AB90: =IF($AE90=1,VLOOKUP($F90,all!$E$14:$AD$553,24),"") -> 0 | AC90: =IF($AE90=1,VLOOKUP($F90,all!$E$14:$AD$553,25),"") -> x | AE90: =COUNTIF(all!$E$14:$E$553,F90) -> 1 | AF90: 2 | AG90: sell call | AH90: =-AH89 -> 15043.54698 | AI90: =-AI89 -> 15042.9181 | AJ90: 15041.68676 | AK90: 15039.47938 | AL90: 15035.7981 | AM90: 15030.01611 | AN90: 15021.38083 | AO90: 15009.0241 | AP90: 14991.97806 | AQ90: 14969.19517 | AR90: 14939.57069 | AS90: 14901.96623 | AT90: 14855.23285 | AU90: 14798.23297 | AV90: 14729.86022 | AW90: 14649.05669 | AX90: 14554.82749 | AY90: 14446.25238 | AZ90: 14322.49466 | BA90: 14182.80739 | BB90: 14026.53722 | BI90: 0 | BJ90: 137.0956705
A91: =IF(OR('Y2'!$W$1=6,('Y2'!$W$1=7)),"",'Y2'!AA84) -> 245 | B91: =IF(OR('Y2'!$W$1=6,('Y2'!$W$1=7)),"",'Y2'!AB84) -> 0.01 | C91: =IF(all!$AQ$1=1,all!AR83,IF(all!$AQ$1=2,all!AT83*100,IF(all!$AQ$1=3,all!AV83,all!AX83))) -> 1.727658217e-12 | D91: =IF(OR('Y2'!$W$1=6,('Y2'!$W$1=7)),"",'Y2'!AC84) -> 71.15 | E91: =IF(all!$AP$3=1,all!AS83,IF(all!$AP$3=2,all!AU83*100,IF(all!$AP$3=3,all!AW83,all!AY83))) -> 77.12624255 | F91: 58 | G91: =IF($AE91=1,VLOOKUP($F91,all!$E$14:$AD$553,3),"") -> butterfly call _/\_ (2s172.5c+b167.5c+b177.5c) | H91: =IF($AE91=1,VLOOKUP($F91,all!$E$14:$AD$553,4),"") -> 167.5 | I91: =IF($AE91=1,VLOOKUP($F91,all!$E$14:$AD$553,5),"") -> 4.6 | J91: =IF($AE91=1,VLOOKUP($F91,all!$E$14:$AD$553,6),"") -> 172.5 | K91: =IF($AE91=1,VLOOKUP($F91,all!$E$14:$AD$553,7),"") -> 2.21 | L91: =IF($AE91=1,VLOOKUP($F91,all!$E$14:$AD$553,8),"") -> 177.5 | M91: =IF($AE91=1,VLOOKUP($F91,all!$E$14:$AD$553,9),"") -> 0.84 | N91: =IF($AE91=1,VLOOKUP($F91,all!$E$14:$AD$553,10),"") -> 0 | O91: =IF($AE91=1,VLOOKUP($F91,all!$E$14:$AD$553,11),"") -> 0 | P91: =IF($AE91=1,VLOOKUP($F91,all!$E$14:$AD$553,12),"") -> 102 | Q91: =IF($AE91=1,VLOOKUP($F91,all!$E$14:$AD$553,13),"") -> -60 | R91: =IF($AE91=1,VLOOKUP($F91,all!$E$14:$AD$553,14),"") -> 168.52 | S91: =IF($AE91=1,VLOOKUP($F91,all!$E$14:$AD$553,15),"") -> 176.48 | T91: =IF($AE91=1,VLOOKUP($F91,all!$E$14:$AD$553,16),"") -> 0.2952706736 | U91: =IF($AE91=1,VLOOKUP($F91,all!$E$14:$AD$553,17),"") -> -0.5882352364 | V91: =IF($AE91=1,VLOOKUP($F91,all!$E$14:$AD$553,18),"") -> -0.1736886145 | W91: =IF($AE91=1,VLOOKUP($F91,all!$E$14:$AD$553,19),"") -> 902 | X91: =IF($AE91=1,VLOOKUP($F91,all!$E$14:$AD$553,20),"") -> -0.06651884701 | Y91: =IF($AE91=1,VLOOKUP($F91,all!$E$14:$AD$553,21),"") -> 1 | Z91: =IF($AE91=1,VLOOKUP($F91,all!$E$14:$AD$553,22),"") -> 2 | AA91: =IF($AE91=1,VLOOKUP($F91,all!$E$14:$AD$553,23),"") -> 1 | AB91: =IF($AE91=1,VLOOKUP($F91,all!$E$14:$AD$553,24),"") -> 0 | AC91: =IF($AE91=1,VLOOKUP($F91,all!$E$14:$AD$553,25),"") -> x | AE91: =COUNTIF(all!$E$14:$E$553,F91) -> 1 | AF91: 3 | AG91: buy put | AH91: =IF($K$7="",0,$H$7*$J$2*(PB("P",AH$64+0.00001,$J$7,MAX($I$7-$AL$63,0.00001)/365,$C$6,$D$6,$M$7)-$K$7)) -> 17548.11502 | AI91: =IF($K$7="",0,$H$7*$J$2*(PB("P",AI$64+0.00001,$J$7,MAX($I$7-$AL$63,0.00001)/365,$C$6,$D$6,$M$7)-$K$7)) -> 16709.99929 | AJ91: 15872.48603 | AK91: 15035.94879 | AL91: 14200.88547 | AM91: 13367.92286 | AN91: 12537.81353 | AO91: 11711.42565 | AP91: 10889.72709 | AQ91: 10073.76537 | AR91: 9264.645235 | AS91: 8463.505093 | AT91: 7671.493871 | AU91: 6889.749139 | AV91: 6119.377282 | AW91: 5361.436204 | AX91: 4616.920801 | AY91: 3886.751306 | AZ91: 3171.764419 | BA91: 2472.707079 | BB91: 1790.232639 | BI91: 0 | BJ91: 142.0931228
A92: =IF(OR('Y2'!$W$1=6,('Y2'!$W$1=7)),"",'Y2'!AA85) -> 250 | B92: =IF(OR('Y2'!$W$1=6,('Y2'!$W$1=7)),"",'Y2'!AB85) -> 0.03 | C92: =IF(all!$AQ$1=1,all!AR84,IF(all!$AQ$1=2,all!AT84*100,IF(all!$AQ$1=3,all!AV84,all!AX84))) -> 9.022559769e-14 | D92: =IF(OR('Y2'!$W$1=6,('Y2'!$W$1=7)),"",'Y2'!AC85) -> 82 | E92: =IF(all!$AP$3=1,all!AS84,IF(all!$AP$3=2,all!AU84*100,IF(all!$AP$3=3,all!AW84,all!AY84))) -> 82.12369488 | F92: 59 | G92: =IF($AE92=1,VLOOKUP($F92,all!$E$14:$AD$553,3),"") -> butterfly call _/\_ (2s172.5c+b170c+b175c) | H92: =IF($AE92=1,VLOOKUP($F92,all!$E$14:$AD$553,4),"") -> 170 | I92: =IF($AE92=1,VLOOKUP($F92,all!$E$14:$AD$553,5),"") -> 3.3 | J92: =IF($AE92=1,VLOOKUP($F92,all!$E$14:$AD$553,6),"") -> 172.5 | K92: =IF($AE92=1,VLOOKUP($F92,all!$E$14:$AD$553,7),"") -> 2.21 | L92: =IF($AE92=1,VLOOKUP($F92,all!$E$14:$AD$553,8),"") -> 175 | M92: =IF($AE92=1,VLOOKUP($F92,all!$E$14:$AD$553,9),"") -> 1.4 | N92: =IF($AE92=1,VLOOKUP($F92,all!$E$14:$AD$553,10),"") -> 0 | O92: =IF($AE92=1,VLOOKUP($F92,all!$E$14:$AD$553,11),"") -> 0 | P92: =IF($AE92=1,VLOOKUP($F92,all!$E$14:$AD$553,12),"") -> 28 | Q92: =IF($AE92=1,VLOOKUP($F92,all!$E$14:$AD$553,13),"") -> -236 | R92: =IF($AE92=1,VLOOKUP($F92,all!$E$14:$AD$553,14),"") -> 170.28 | S92: =IF($AE92=1,VLOOKUP($F92,all!$E$14:$AD$553,15),"") -> 174.72 | T92: =IF($AE92=1,VLOOKUP($F92,all!$E$14:$AD$553,16),"") -> 0.1670118332 | U92: =IF($AE92=1,VLOOKUP($F92,all!$E$14:$AD$553,17),"") -> -8.428568418 | V92: =IF($AE92=1,VLOOKUP($F92,all!$E$14:$AD$553,18),"") -> -1.407670663 | W92: =IF($AE92=1,VLOOKUP($F92,all!$E$14:$AD$553,19),"") -> 772 | X92: =IF($AE92=1,VLOOKUP($F92,all!$E$14:$AD$553,20),"") -> -0.3056994819 | Y92: =IF($AE92=1,VLOOKUP($F92,all!$E$14:$AD$553,21),"") -> 1 | Z92: =IF($AE92=1,VLOOKUP($F92,all!$E$14:$AD$553,22),"") -> 2 | AA92: =IF($AE92=1,VLOOKUP($F92,all!$E$14:$AD$553,23),"") -> 1 | AB92: =IF($AE92=1,VLOOKUP($F92,all!$E$14:$AD$553,24),"") -> 0 | AC92: =IF($AE92=1,VLOOKUP($F92,all!$E$14:$AD$553,25),"") -> x | AE92: =COUNTIF(all!$E$14:$E$553,F92) -> 1 | AF92: 4 | AG92: sell put | AH92: =-AH91 -> -17548.11502 | AI92: =-AI91 -> -16709.99929 | AJ92: -15872.48603 | AK92: -15035.94879 | AL92: -14200.88547 | AM92: -13367.92286 | AN92: -12537.81353 | AO92: -11711.42565 | AP92: -10889.72709 | AQ92: -10073.76537 | AR92: -9264.645235 | AS92: -8463.505093 | AT92: -7671.493871 | AU92: -6889.749139 | AV92: -6119.377282 | AW92: -5361.436204 | AX92: -4616.920801 | AY92: -3886.751306 | AZ92: -3171.764419 | BA92: -2472.707079 | BB92: -1790.232639 | BI92: 0 | BJ92: 147.0905751
A93: =IF(OR('Y2'!$W$1=6,('Y2'!$W$1=7)),"",'Y2'!AA86) -> 260 | B93: =IF(OR('Y2'!$W$1=6,('Y2'!$W$1=7)),"",'Y2'!AB86) -> 0.01 | C93: =IF(all!$AQ$1=1,all!AR85,IF(all!$AQ$1=2,all!AT85*100,IF(all!$AQ$1=3,all!AV85,all!AX85))) -> -1.830566551e-15 | D93: =IF(OR('Y2'!$W$1=6,('Y2'!$W$1=7)),"",'Y2'!AC86) -> 85.85 | E93: =IF(all!$AP$3=1,all!AS85,IF(all!$AP$3=2,all!AU85*100,IF(all!$AP$3=3,all!AW85,all!AY85))) -> 92.11859953 | F93: 60 | G93: =IF($AE93=1,VLOOKUP($F93,all!$E$14:$AD$553,3),"") -> butterfly put _/\_ (2s172.5p+b185p+b160p) | H93: =IF($AE93=1,VLOOKUP($F93,all!$E$14:$AD$553,4),"") -> 185 | I93: =IF($AE93=1,VLOOKUP($F93,all!$E$14:$AD$553,5),"") -> 17.45 | J93: =IF($AE93=1,VLOOKUP($F93,all!$E$14:$AD$553,6),"") -> 172.5 | K93: =IF($AE93=1,VLOOKUP($F93,all!$E$14:$AD$553,7),"") -> 6.85 | L93: =IF($AE93=1,VLOOKUP($F93,all!$E$14:$AD$553,8),"") -> 160 | M93: =IF($AE93=1,VLOOKUP($F93,all!$E$14:$AD$553,9),"") -> 1.85 | N93: =IF($AE93=1,VLOOKUP($F93,all!$E$14:$AD$553,10),"") -> 0 | O93: =IF($AE93=1,VLOOKUP($F93,all!$E$14:$AD$553,11),"") -> 0 | P93: =IF($AE93=1,VLOOKUP($F93,all!$E$14:$AD$553,12),"") -> 690 | Q93: =IF($AE93=1,VLOOKUP($F93,all!$E$14:$AD$553,13),"") -> 560 | R93: =IF($AE93=1,VLOOKUP($F93,all!$E$14:$AD$553,14),"") -> 165.6 | S93: =IF($AE93=1,VLOOKUP($F93,all!$E$14:$AD$553,15),"") -> 179.4 | T93: =IF($AE93=1,VLOOKUP($F93,all!$E$14:$AD$553,16),"") -> 0.4916019324 | U93: =IF($AE93=1,VLOOKUP($F93,all!$E$14:$AD$553,17),"") -> 0.8115941911 | V93: =IF($AE93=1,VLOOKUP($F93,all!$E$14:$AD$553,18),"") -> 0.3989812727 | W93: =IF($AE93=1,VLOOKUP($F93,all!$E$14:$AD$553,19),"") -> 3115 | X93: =IF($AE93=1,VLOOKUP($F93,all!$E$14:$AD$553,20),"") -> 0.1797752809 | Y93: =IF($AE93=1,VLOOKUP($F93,all!$E$14:$AD$553,21),"") -> 3 | Z93: =IF($AE93=1,VLOOKUP($F93,all!$E$14:$AD$553,22),"") -> 4 | AA93: =IF($AE93=1,VLOOKUP($F93,all!$E$14:$AD$553,23),"") -> 3 | AB93: =IF($AE93=1,VLOOKUP($F93,all!$E$14:$AD$553,24),"") -> 0 | AC93: =IF($AE93=1,VLOOKUP($F93,all!$E$14:$AD$553,25),"") -> x | AE93: =COUNTIF(all!$E$14:$E$553,F93) -> 1 | AF93: 5 | AG93: buy under | AH93: =AH40 -> -8396 | AI93: =AI40 -> -7556.4 | AJ93: -6716.8 | AK93: -5877.2 | AL93: -5037.6 | AM93: -4198 | AN93: -3358.4 | AO93: -2518.8 | AP93: -1679.2 | AQ93: -839.6 | AR93: 0 | AS93: 839.6 | AT93: 1679.2 | AU93: 2518.8 | AV93: 3358.4 | AW93: 4198 | AX93: 5037.6 | AY93: 5877.2 | AZ93: 6716.8 | BA93: 7556.4 | BB93: 8396 | BI93: 0 | BJ93: 152.0880274
A94: =IF(OR('Y2'!$W$1=6,('Y2'!$W$1=7)),"",'Y2'!AA87) -> 270 | B94: =IF(OR('Y2'!$W$1=6,('Y2'!$W$1=7)),"",'Y2'!AB87) -> 0.01 | C94: =IF(all!$AQ$1=1,all!AR86,IF(all!$AQ$1=2,all!AT86*100,IF(all!$AQ$1=3,all!AV86,all!AX86))) -> 0 | D94: =IF(OR('Y2'!$W$1=6,('Y2'!$W$1=7)),"",'Y2'!AC87) -> 102.55 | E94: =IF(all!$AP$3=1,all!AS86,IF(all!$AP$3=2,all!AU86*100,IF(all!$AP$3=3,all!AW86,all!AY86))) -> 102.1135042 | F94: 61 | G94: =IF($AE94=1,VLOOKUP($F94,all!$E$14:$AD$553,3),"") -> butterfly put _/\_ (2s172.5p+b182.5p+b162.5p) | H94: =IF($AE94=1,VLOOKUP($F94,all!$E$14:$AD$553,4),"") -> 182.5 | I94: =IF($AE94=1,VLOOKUP($F94,all!$E$14:$AD$553,5),"") -> 15.05 | J94: =IF($AE94=1,VLOOKUP($F94,all!$E$14:$AD$553,6),"") -> 172.5 | K94: =IF($AE94=1,VLOOKUP($F94,all!$E$14:$AD$553,7),"") -> 6.85 | L94: =IF($AE94=1,VLOOKUP($F94,all!$E$14:$AD$553,8),"") -> 162.5 | M94: =IF($AE94=1,VLOOKUP($F94,all!$E$14:$AD$553,9),"") -> 2.45 | N94: =IF($AE94=1,VLOOKUP($F94,all!$E$14:$AD$553,10),"") -> 0 | O94: =IF($AE94=1,VLOOKUP($F94,all!$E$14:$AD$553,11),"") -> 0 | P94: =IF($AE94=1,VLOOKUP($F94,all!$E$14:$AD$553,12),"") -> 620 | Q94: =IF($AE94=1,VLOOKUP($F94,all!$E$14:$AD$553,13),"") -> 380 | R94: =IF($AE94=1,VLOOKUP($F94,all!$E$14:$AD$553,14),"") -> 166.3 | S94: =IF($AE94=1,VLOOKUP($F94,all!$E$14:$AD$553,15),"") -> 178.7 | T94: =IF($AE94=1,VLOOKUP($F94,all!$E$14:$AD$553,16),"") -> 0.4469053446 | U94: =IF($AE94=1,VLOOKUP($F94,all!$E$14:$AD$553,17),"") -> 0.6129032159 | V94: =IF($AE94=1,VLOOKUP($F94,all!$E$14:$AD$553,18),"") -> 0.2739097229 | W94: =IF($AE94=1,VLOOKUP($F94,all!$E$14:$AD$553,19),"") -> 2875 | X94: =IF($AE94=1,VLOOKUP($F94,all!$E$14:$AD$553,20),"") -> 0.132173913 | Y94: =IF($AE94=1,VLOOKUP($F94,all!$E$14:$AD$553,21),"") -> 3 | Z94: =IF($AE94=1,VLOOKUP($F94,all!$E$14:$AD$553,22),"") -> 4 | AA94: =IF($AE94=1,VLOOKUP($F94,all!$E$14:$AD$553,23),"") -> 3 | AB94: =IF($AE94=1,VLOOKUP($F94,all!$E$14:$AD$553,24),"") -> 0 | AC94: =IF($AE94=1,VLOOKUP($F94,all!$E$14:$AD$553,25),"") -> x | AE94: =COUNTIF(all!$E$14:$E$553,F94) -> 1 | AF94: 6 | AG94: sell under | AH94: =AH41 -> 8396 | AI94: =AI41 -> 7556.4 | AJ94: 6716.8 | AK94: 5877.2 | AL94: 5037.6 | AM94: 4198 | AN94: 3358.4 | AO94: 2518.8 | AP94: 1679.2 | AQ94: 839.6 | AR94: 0 | AS94: -839.6 | AT94: -1679.2 | AU94: -2518.8 | AV94: -3358.4 | AW94: -4198 | AX94: -5037.6 | AY94: -5877.2 | AZ94: -6716.8 | BA94: -7556.4 | BB94: -8396 | BI94: 0 | BJ94: 157.0854798
A95: =IF(OR('Y2'!$W$1=6,('Y2'!$W$1=7)),"",'Y2'!AA88) -> 280 | B95: =IF(OR('Y2'!$W$1=6,('Y2'!$W$1=7)),"",'Y2'!AB88) -> 0.01 | C95: =IF(all!$AQ$1=1,all!AR87,IF(all!$AQ$1=2,all!AT87*100,IF(all!$AQ$1=3,all!AV87,all!AX87))) -> 0 | D95: =IF(OR('Y2'!$W$1=6,('Y2'!$W$1=7)),"",'Y2'!AC88) -> 111.8 | E95: =IF(all!$AP$3=1,all!AS87,IF(all!$AP$3=2,all!AU87*100,IF(all!$AP$3=3,all!AW87,all!AY87))) -> 112.1084088 | F95: 62 | G95: =IF($AE95=1,VLOOKUP($F95,all!$E$14:$AD$553,3),"") -> butterfly put _/\_ (2s172.5p+b180p+b165p) | H95: =IF($AE95=1,VLOOKUP($F95,all!$E$14:$AD$553,4),"") -> 180 | I95: =IF($AE95=1,VLOOKUP($F95,all!$E$14:$AD$553,5),"") -> 13.05 | J95: =IF($AE95=1,VLOOKUP($F95,all!$E$14:$AD$553,6),"") -> 172.5 | K95: =IF($AE95=1,VLOOKUP($F95,all!$E$14:$AD$553,7),"") -> 6.85 | L95: =IF($AE95=1,VLOOKUP($F95,all!$E$14:$AD$553,8),"") -> 165 | M95: =IF($AE95=1,VLOOKUP($F95,all!$E$14:$AD$553,9),"") -> 3.26 | N95: =IF($AE95=1,VLOOKUP($F95,all!$E$14:$AD$553,10),"") -> 0 | O95: =IF($AE95=1,VLOOKUP($F95,all!$E$14:$AD$553,11),"") -> 0 | P95: =IF($AE95=1,VLOOKUP($F95,all!$E$14:$AD$553,12),"") -> 489 | Q95: =IF($AE95=1,VLOOKUP($F95,all!$E$14:$AD$553,13),"") -> 261 | R95: =IF($AE95=1,VLOOKUP($F95,all!$E$14:$AD$553,14),"") -> 167.61 | S95: =IF($AE95=1,VLOOKUP($F95,all!$E$14:$AD$553,15),"") -> 177.39 | T95: =IF($AE95=1,VLOOKUP($F95,all!$E$14:$AD$553,16),"") -> 0.3590631671 | U95: =IF($AE95=1,VLOOKUP($F95,all!$E$14:$AD$553,17),"") -> 0.5337423204 | V95: =IF($AE95=1,VLOOKUP($F95,all!$E$14:$AD$553,18),"") -> 0.191647208 | W95: =IF($AE95=1,VLOOKUP($F95,all!$E$14:$AD$553,19),"") -> 2675 | X95: =IF($AE95=1,VLOOKUP($F95,all!$E$14:$AD$553,20),"") -> 0.09757009346 | Y95: =IF($AE95=1,VLOOKUP($F95,all!$E$14:$AD$553,21),"") -> 3 | Z95: =IF($AE95=1,VLOOKUP($F95,all!$E$14:$AD$553,22),"") -> 4 | AA95: =IF($AE95=1,VLOOKUP($F95,all!$E$14:$AD$553,23),"") -> 3 | AB95: =IF($AE95=1,VLOOKUP($F95,all!$E$14:$AD$553,24),"") -> 0 | AC95: =IF($AE95=1,VLOOKUP($F95,all!$E$14:$AD$553,25),"") -> x | AE95: =COUNTIF(all!$E$14:$E$553,F95) -> 1 | AF95: =AF42 -> 1 | AG95: four | AH95: =IF($AF$95=0,0,VLOOKUP($AF$95,$AF$89:$BB$94,AH116)) -> -15043.54698 | AI95: =IF($AF$95=0,0,VLOOKUP($AF$95,$AF$89:$BB$94,AI116)) -> -15042.9181 | AJ95: -15041.68676 | AK95: -15039.47938 | AL95: -15035.7981 | AM95: -15030.01611 | AN95: -15021.38083 | AO95: -15009.0241 | AP95: -14991.97806 | AQ95: -14969.19517 | AR95: -14939.57069 | AS95: -14901.96623 | AT95: -14855.23285 | AU95: -14798.23297 | AV95: -14729.86022 | AW95: -14649.05669 | AX95: -14554.82749 | AY95: -14446.25238 | AZ95: -14322.49466 | BA95: -14182.80739 | BB95: -14026.53722 | BI95: 0 | BJ95: 162.0829321
A96: =IF(OR('Y2'!$W$1=6,('Y2'!$W$1=7)),"",'Y2'!AA89) -> 290 | B96: =IF(OR('Y2'!$W$1=6,('Y2'!$W$1=7)),"",'Y2'!AB89) -> 0.01 | C96: =IF(all!$AQ$1=1,all!AR88,IF(all!$AQ$1=2,all!AT88*100,IF(all!$AQ$1=3,all!AV88,all!AX88))) -> 0 | D96: =IF(OR('Y2'!$W$1=6,('Y2'!$W$1=7)),"",'Y2'!AC89) -> 115.55 | E96: =IF(all!$AP$3=1,all!AS88,IF(all!$AP$3=2,all!AU88*100,IF(all!$AP$3=3,all!AW88,all!AY88))) -> 122.1033135 | F96: 63 | G96: =IF($AE96=1,VLOOKUP($F96,all!$E$14:$AD$553,3),"") -> butterfly put _/\_ (2s172.5p+b177.5p+b167.5p) | H96: =IF($AE96=1,VLOOKUP($F96,all!$E$14:$AD$553,4),"") -> 177.5 | I96: =IF($AE96=1,VLOOKUP($F96,all!$E$14:$AD$553,5),"") -> 11 | J96: =IF($AE96=1,VLOOKUP($F96,all!$E$14:$AD$553,6),"") -> 172.5 | K96: =IF($AE96=1,VLOOKUP($F96,all!$E$14:$AD$553,7),"") -> 6.85 | L96: =IF($AE96=1,VLOOKUP($F96,all!$E$14:$AD$553,8),"") -> 167.5 | M96: =IF($AE96=1,VLOOKUP($F96,all!$E$14:$AD$553,9),"") -> 4.25 | N96: =IF($AE96=1,VLOOKUP($F96,all!$E$14:$AD$553,10),"") -> 0 | O96: =IF($AE96=1,VLOOKUP($F96,all!$E$14:$AD$553,11),"") -> 0 | P96: =IF($AE96=1,VLOOKUP($F96,all!$E$14:$AD$553,12),"") -> 345 | Q96: =IF($AE96=1,VLOOKUP($F96,all!$E$14:$AD$553,13),"") -> 155 | R96: =IF($AE96=1,VLOOKUP($F96,all!$E$14:$AD$553,14),"") -> 169.05 | S96: =IF($AE96=1,VLOOKUP($F96,all!$E$14:$AD$553,15),"") -> 175.95 | T96: =IF($AE96=1,VLOOKUP($F96,all!$E$14:$AD$553,16),"") -> 0.2572417332 | U96: =IF($AE96=1,VLOOKUP($F96,all!$E$14:$AD$553,17),"") -> 0.4492753493 | V96: =IF($AE96=1,VLOOKUP($F96,all!$E$14:$AD$553,18),"") -> 0.1155723695 | W96: =IF($AE96=1,VLOOKUP($F96,all!$E$14:$AD$553,19),"") -> 2470 | X96: =IF($AE96=1,VLOOKUP($F96,all!$E$14:$AD$553,20),"") -> 0.06275303644 | Y96: =IF($AE96=1,VLOOKUP($F96,all!$E$14:$AD$553,21),"") -> 3 | Z96: =IF($AE96=1,VLOOKUP($F96,all!$E$14:$AD$553,22),"") -> 4 | AA96: =IF($AE96=1,VLOOKUP($F96,all!$E$14:$AD$553,23),"") -> 3 | AB96: =IF($AE96=1,VLOOKUP($F96,all!$E$14:$AD$553,24),"") -> 0 | AC96: =IF($AE96=1,VLOOKUP($F96,all!$E$14:$AD$553,25),"") -> x | AE96: =COUNTIF(all!$E$14:$E$553,F96) -> 1 | BI96: 0 | BJ96: 167.0803844
A97: =IF(OR('Y2'!$W$1=6,('Y2'!$W$1=7)),"",'Y2'!AA90) -> 300 | B97: =IF(OR('Y2'!$W$1=6,('Y2'!$W$1=7)),"",'Y2'!AB90) -> 0.01 | C97: =IF(all!$AQ$1=1,all!AR89,IF(all!$AQ$1=2,all!AT89*100,IF(all!$AQ$1=3,all!AV89,all!AX89))) -> 0 | D97: =IF(OR('Y2'!$W$1=6,('Y2'!$W$1=7)),"",'Y2'!AC90) -> 132.2 | E97: =IF(all!$AP$3=1,all!AS89,IF(all!$AP$3=2,all!AU89*100,IF(all!$AP$3=3,all!AW89,all!AY89))) -> 132.0982181 | F97: 64 | G97: =IF($AE97=1,VLOOKUP($F97,all!$E$14:$AD$553,3),"") -> butterfly put _/\_ (2s172.5p+b175p+b170p) | H97: =IF($AE97=1,VLOOKUP($F97,all!$E$14:$AD$553,4),"") -> 175 | I97: =IF($AE97=1,VLOOKUP($F97,all!$E$14:$AD$553,5),"") -> 8.6 | J97: =IF($AE97=1,VLOOKUP($F97,all!$E$14:$AD$553,6),"") -> 172.5 | K97: =IF($AE97=1,VLOOKUP($F97,all!$E$14:$AD$553,7),"") -> 6.85 | L97: =IF($AE97=1,VLOOKUP($F97,all!$E$14:$AD$553,8),"") -> 170 | M97: =IF($AE97=1,VLOOKUP($F97,all!$E$14:$AD$553,9),"") -> 5.45 | N97: =IF($AE97=1,VLOOKUP($F97,all!$E$14:$AD$553,10),"") -> 0 | O97: =IF($AE97=1,VLOOKUP($F97,all!$E$14:$AD$553,11),"") -> 0 | P97: =IF($AE97=1,VLOOKUP($F97,all!$E$14:$AD$553,12),"") -> 215 | Q97: =IF($AE97=1,VLOOKUP($F97,all!$E$14:$AD$553,13),"") -> 35 | R97: =IF($AE97=1,VLOOKUP($F97,all!$E$14:$AD$553,14),"") -> 170.35 | S97: =IF($AE97=1,VLOOKUP($F97,all!$E$14:$AD$553,15),"") -> 174.65 | T97: =IF($AE97=1,VLOOKUP($F97,all!$E$14:$AD$553,16),"") -> 0.1618089757 | U97: =IF($AE97=1,VLOOKUP($F97,all!$E$14:$AD$553,17),"") -> 0.1627906901 | V97: =IF($AE97=1,VLOOKUP($F97,all!$E$14:$AD$553,18),"") -> 0.02634099481 | W97: =IF($AE97=1,VLOOKUP($F97,all!$E$14:$AD$553,19),"") -> 2230 | X97: =IF($AE97=1,VLOOKUP($F97,all!$E$14:$AD$553,20),"") -> 0.01569506726 | Y97: =IF($AE97=1,VLOOKUP($F97,all!$E$14:$AD$553,21),"") -> 3 | Z97: =IF($AE97=1,VLOOKUP($F97,all!$E$14:$AD$553,22),"") -> 4 | AA97: =IF($AE97=1,VLOOKUP($F97,all!$E$14:$AD$553,23),"") -> 3 | AB97: =IF($AE97=1,VLOOKUP($F97,all!$E$14:$AD$553,24),"") -> 0 | AC97: =IF($AE97=1,VLOOKUP($F97,all!$E$14:$AD$553,25),"") -> x | AE97: =COUNTIF(all!$E$14:$E$553,F97) -> 1 | AF97: 1 | AG97: buy call | AH97: =IF($K$8="",0,$H$8*$J$2*(PB("C",AH$64+0.00001,$J$8,MAX($I$8-$AL$63,0.00001)/365,$C$6,$D$6,$M$8)-$K$8)) -> 0 | AI97: =IF($K$8="",0,$H$8*$J$2*(PB("C",AI$64+0.00001,$J$8,MAX($I$8-$AL$63,0.00001)/365,$C$6,$D$6,$M$8)-$K$8)) -> 0 | AJ97: 0 | AK97: 0 | AL97: 0 | AM97: 0 | AN97: 0 | AO97: 0 | AP97: 0 | AQ97: 0 | AR97: 0 | AS97: 0 | AT97: 0 | AU97: 0 | AV97: 0 | AW97: 0 | AX97: 0 | AY97: 0 | AZ97: 0 | BA97: 0 | BB97: 0 | BI97: 0 | BJ97: 172.0778367
A98: =IF(OR('Y2'!$W$1=6,('Y2'!$W$1=7)),"",'Y2'!AA91) -> 305 | B98: =IF(OR('Y2'!$W$1=6,('Y2'!$W$1=7)),"",'Y2'!AB91) -> 218 | C98: =IF(all!$AQ$1=1,all!AR90,IF(all!$AQ$1=2,all!AT90*100,IF(all!$AQ$1=3,all!AV90,all!AX90))) -> 0 | D98: =IF(OR('Y2'!$W$1=6,('Y2'!$W$1=7)),"",'Y2'!AC91) -> 29.52 | E98: =IF(all!$AP$3=1,all!AS90,IF(all!$AP$3=2,all!AU90*100,IF(all!$AP$3=3,all!AW90,all!AY90))) -> 137.0956705 | F98: 65 | G98: =IF($AE98=1,VLOOKUP($F98,all!$E$14:$AD$553,3),"") -> calender call 170 | H98: =IF($AE98=1,VLOOKUP($F98,all!$E$14:$AD$553,4),"") -> 170 | I98: =IF($AE98=1,VLOOKUP($F98,all!$E$14:$AD$553,5),"") -> 6.08 | J98: =IF($AE98=1,VLOOKUP($F98,all!$E$14:$AD$553,6),"") -> 170 | K98: =IF($AE98=1,VLOOKUP($F98,all!$E$14:$AD$553,7),"") -> 3.3 | L98: =IF($AE98=1,VLOOKUP($F98,all!$E$14:$AD$553,8),"") -> 0 | M98: =IF($AE98=1,VLOOKUP($F98,all!$E$14:$AD$553,9),"") -> 0 | N98: =IF($AE98=1,VLOOKUP($F98,all!$E$14:$AD$553,10),"") -> 0 | O98: =IF($AE98=1,VLOOKUP($F98,all!$E$14:$AD$553,11),"") -> 0 | P98: =IF($AE98=1,VLOOKUP($F98,all!$E$14:$AD$553,12),"") -> 278 | Q98: =IF($AE98=1,VLOOKUP($F98,all!$E$14:$AD$553,13),"") -> 0 | R98: =IF($AE98=1,VLOOKUP($F98,all!$E$14:$AD$553,14),"") -> 0 | S98: =IF($AE98=1,VLOOKUP($F98,all!$E$14:$AD$553,15),"") -> 0 | T98: =IF($AE98=1,VLOOKUP($F98,all!$E$14:$AD$553,16),"") -> 0 | U98: =IF($AE98=1,VLOOKUP($F98,all!$E$14:$AD$553,17),"") -> 0 | V98: =IF($AE98=1,VLOOKUP($F98,all!$E$14:$AD$553,18),"") -> 0 | W98: =IF($AE98=1,VLOOKUP($F98,all!$E$14:$AD$553,19),"") -> 278 | X98: =IF($AE98=1,VLOOKUP($F98,all!$E$14:$AD$553,20),"") -> 0 | Y98: =IF($AE98=1,VLOOKUP($F98,all!$E$14:$AD$553,21),"") -> 1 | Z98: =IF($AE98=1,VLOOKUP($F98,all!$E$14:$AD$553,22),"") -> 2 | AA98: =IF($AE98=1,VLOOKUP($F98,all!$E$14:$AD$553,23),"") -> 0 | AB98: =IF($AE98=1,VLOOKUP($F98,all!$E$14:$AD$553,24),"") -> 0 | AC98: =IF($AE98=1,VLOOKUP($F98,all!$E$14:$AD$553,25),"") -> c | AE98: =COUNTIF(all!$E$14:$E$553,F98) -> 1 | AF98: 2 | AG98: sell call | AH98: =-AH97 -> 0 | AI98: =-AI97 -> 0 | AJ98: 0 | AK98: 0 | AL98: 0 | AM98: 0 | AN98: 0 | AO98: 0 | AP98: 0 | AQ98: 0 | AR98: 0 | AS98: 0 | AT98: 0 | AU98: 0 | AV98: 0 | AW98: 0 | AX98: 0 | AY98: 0 | AZ98: 0 | BA98: 0 | BB98: 0 | BI98: 0 | BJ98: 177.0752891
A99: =IF(OR('Y2'!$W$1=6,('Y2'!$W$1=7)),"",'Y2'!AA92) -> 310 | B99: =IF(OR('Y2'!$W$1=6,('Y2'!$W$1=7)),"",'Y2'!AB92) -> 215.66 | C99: =IF(all!$AQ$1=1,all!AR91,IF(all!$AQ$1=2,all!AT91*100,IF(all!$AQ$1=3,all!AV91,all!AX91))) -> 0 | D99: =IF(OR('Y2'!$W$1=6,('Y2'!$W$1=7)),"",'Y2'!AC92) -> 25.4 | E99: =IF(all!$AP$3=1,all!AS91,IF(all!$AP$3=2,all!AU91*100,IF(all!$AP$3=3,all!AW91,all!AY91))) -> 142.0931228 | F99: 66 | G99: =IF($AE99=1,VLOOKUP($F99,all!$E$14:$AD$553,3),"") -> calender put 170 | H99: =IF($AE99=1,VLOOKUP($F99,all!$E$14:$AD$553,4),"") -> 170 | I99: =IF($AE99=1,VLOOKUP($F99,all!$E$14:$AD$553,5),"") -> 8.6 | J99: =IF($AE99=1,VLOOKUP($F99,all!$E$14:$AD$553,6),"") -> 170 | K99: =IF($AE99=1,VLOOKUP($F99,all!$E$14:$AD$553,7),"") -> 5.45 | L99: =IF($AE99=1,VLOOKUP($F99,all!$E$14:$AD$553,8),"") -> 0 | M99: =IF($AE99=1,VLOOKUP($F99,all!$E$14:$AD$553,9),"") -> 0 | N99: =IF($AE99=1,VLOOKUP($F99,all!$E$14:$AD$553,10),"") -> 0 | O99: =IF($AE99=1,VLOOKUP($F99,all!$E$14:$AD$553,11),"") -> 0 | P99: =IF($AE99=1,VLOOKUP($F99,all!$E$14:$AD$553,12),"") -> 315 | Q99: =IF($AE99=1,VLOOKUP($F99,all!$E$14:$AD$553,13),"") -> 0 | R99: =IF($AE99=1,VLOOKUP($F99,all!$E$14:$AD$553,14),"") -> 0 | S99: =IF($AE99=1,VLOOKUP($F99,all!$E$14:$AD$553,15),"") -> 0 | T99: =IF($AE99=1,VLOOKUP($F99,all!$E$14:$AD$553,16),"") -> 0 | U99: =IF($AE99=1,VLOOKUP($F99,all!$E$14:$AD$553,17),"") -> 0 | V99: =IF($AE99=1,VLOOKUP($F99,all!$E$14:$AD$553,18),"") -> 0 | W99: =IF($AE99=1,VLOOKUP($F99,all!$E$14:$AD$553,19),"") -> 315 | X99: =IF($AE99=1,VLOOKUP($F99,all!$E$14:$AD$553,20),"") -> 0 | Y99: =IF($AE99=1,VLOOKUP($F99,all!$E$14:$AD$553,21),"") -> 3 | Z99: =IF($AE99=1,VLOOKUP($F99,all!$E$14:$AD$553,22),"") -> 4 | AA99: =IF($AE99=1,VLOOKUP($F99,all!$E$14:$AD$553,23),"") -> 0 | AB99: =IF($AE99=1,VLOOKUP($F99,all!$E$14:$AD$553,24),"") -> 0 | AC99: =IF($AE99=1,VLOOKUP($F99,all!$E$14:$AD$553,25),"") -> c | AE99: =COUNTIF(all!$E$14:$E$553,F99) -> 1 | AF99: 3 | AG99: buy put | AH99: =IF($K$8="",0,$H$8*$J$2*(PB("P",AH$64+0.00001,$J$8,MAX($I$8-$AL$63,0.00001)/365,$C$6,$D$6,$M$8)-$K$8)) -> 0 | AI99: =IF($K$8="",0,$H$8*$J$2*(PB("P",AI$64+0.00001,$J$8,MAX($I$8-$AL$63,0.00001)/365,$C$6,$D$6,$M$8)-$K$8)) -> 0 | AJ99: 0 | AK99: 0 | AL99: 0 | AM99: 0 | AN99: 0 | AO99: 0 | AP99: 0 | AQ99: 0 | AR99: 0 | AS99: 0 | AT99: 0 | AU99: 0 | AV99: 0 | AW99: 0 | AX99: 0 | AY99: 0 | AZ99: 0 | BA99: 0 | BB99: 0 | BI99: 0 | BJ99: 182.0727414
A100: =IF(OR('Y2'!$W$1=6,('Y2'!$W$1=7)),"",'Y2'!AA93) -> 315 | B100: =IF(OR('Y2'!$W$1=6,('Y2'!$W$1=7)),"",'Y2'!AB93) -> 219.4 | C100: =IF(all!$AQ$1=1,all!AR92,IF(all!$AQ$1=2,all!AT92*100,IF(all!$AQ$1=3,all!AV92,all!AX92))) -> 0 | D100: =IF(OR('Y2'!$W$1=6,('Y2'!$W$1=7)),"",'Y2'!AC93) -> 27.92 | E100: =IF(all!$AP$3=1,all!AS92,IF(all!$AP$3=2,all!AU92*100,IF(all!$AP$3=3,all!AW92,all!AY92))) -> 147.0905751 | F100: 67 | G100: =IF($AE100=1,VLOOKUP($F100,all!$E$14:$AD$553,3),"") -> calender call 170 | H100: =IF($AE100=1,VLOOKUP($F100,all!$E$14:$AD$553,4),"") -> 170 | I100: =IF($AE100=1,VLOOKUP($F100,all!$E$14:$AD$553,5),"") -> 8.9 | J100: =IF($AE100=1,VLOOKUP($F100,all!$E$14:$AD$553,6),"") -> 167.5 | K100: =IF($AE100=1,VLOOKUP($F100,all!$E$14:$AD$553,7),"") -> 4.6 | L100: =IF($AE100=1,VLOOKUP($F100,all!$E$14:$AD$553,8),"") -> 0 | M100: =IF($AE100=1,VLOOKUP($F100,all!$E$14:$AD$553,9),"") -> 0 | N100: =IF($AE100=1,VLOOKUP($F100,all!$E$14:$AD$553,10),"") -> 0 | O100: =IF($AE100=1,VLOOKUP($F100,all!$E$14:$AD$553,11),"") -> 0 | P100: =IF($AE100=1,VLOOKUP($F100,all!$E$14:$AD$553,12),"") -> 430 | Q100: =IF($AE100=1,VLOOKUP($F100,all!$E$14:$AD$553,13),"") -> 0 | R100: =IF($AE100=1,VLOOKUP($F100,all!$E$14:$AD$553,14),"") -> 0 | S100: =IF($AE100=1,VLOOKUP($F100,all!$E$14:$AD$553,15),"") -> 0 | T100: =IF($AE100=1,VLOOKUP($F100,all!$E$14:$AD$553,16),"") -> 0 | U100: =IF($AE100=1,VLOOKUP($F100,all!$E$14:$AD$553,17),"") -> 0 | V100: =IF($AE100=1,VLOOKUP($F100,all!$E$14:$AD$553,18),"") -> 0 | W100: =IF($AE100=1,VLOOKUP($F100,all!$E$14:$AD$553,19),"") -> 430 | X100: =IF($AE100=1,VLOOKUP($F100,all!$E$14:$AD$553,20),"") -> 0 | Y100: =IF($AE100=1,VLOOKUP($F100,all!$E$14:$AD$553,21),"") -> 1 | Z100: =IF($AE100=1,VLOOKUP($F100,all!$E$14:$AD$553,22),"") -> 2 | AA100: =IF($AE100=1,VLOOKUP($F100,all!$E$14:$AD$553,23),"") -> 0 | AB100: =IF($AE100=1,VLOOKUP($F100,all!$E$14:$AD$553,24),"") -> 0 | AC100: =IF($AE100=1,VLOOKUP($F100,all!$E$14:$AD$553,25),"") -> c | AE100: =COUNTIF(all!$E$14:$E$553,F100) -> 1 | AF100: 4 | AG100: sell put | AH100: =-AH99 -> 0 | AI100: =-AI99 -> 0 | AJ100: 0 | AK100: 0 | AL100: 0 | AM100: 0 | AN100: 0 | AO100: 0 | AP100: 0 | AQ100: 0 | AR100: 0 | AS100: 0 | AT100: 0 | AU100: 0 | AV100: 0 | AW100: 0 | AX100: 0 | AY100: 0 | AZ100: 0 | BA100: 0 | BB100: 0 | BI100: 0 | BJ100: 192.067646
A101: =IF(OR('Y2'!$W$1=6,('Y2'!$W$1=7)),"",'Y2'!AA94) -> 320 | B101: =IF(OR('Y2'!$W$1=6,('Y2'!$W$1=7)),"",'Y2'!AB94) -> 208 | C101: =IF(all!$AQ$1=1,all!AR93,IF(all!$AQ$1=2,all!AT93*100,IF(all!$AQ$1=3,all!AV93,all!AX93))) -> 0 | D101: =IF(OR('Y2'!$W$1=6,('Y2'!$W$1=7)),"",'Y2'!AC94) -> 29.72 | E101: =IF(all!$AP$3=1,all!AS93,IF(all!$AP$3=2,all!AU93*100,IF(all!$AP$3=3,all!AW93,all!AY93))) -> 152.0880274 | F101: 68 | G101: =IF($AE101=1,VLOOKUP($F101,all!$E$14:$AD$553,3),"") -> calender put 170 | H101: =IF($AE101=1,VLOOKUP($F101,all!$E$14:$AD$553,4),"") -> 170 | I101: =IF($AE101=1,VLOOKUP($F101,all!$E$14:$AD$553,5),"") -> 6.25 | J101: =IF($AE101=1,VLOOKUP($F101,all!$E$14:$AD$553,6),"") -> 167.5 | K101: =IF($AE101=1,VLOOKUP($F101,all!$E$14:$AD$553,7),"") -> 4.25 | L101: =IF($AE101=1,VLOOKUP($F101,all!$E$14:$AD$553,8),"") -> 0 | M101: =IF($AE101=1,VLOOKUP($F101,all!$E$14:$AD$553,9),"") -> 0 | N101: =IF($AE101=1,VLOOKUP($F101,all!$E$14:$AD$553,10),"") -> 0 | O101: =IF($AE101=1,VLOOKUP($F101,all!$E$14:$AD$553,11),"") -> 0 | P101: =IF($AE101=1,VLOOKUP($F101,all!$E$14:$AD$553,12),"") -> 200 | Q101: =IF($AE101=1,VLOOKUP($F101,all!$E$14:$AD$553,13),"") -> 0 | R101: =IF($AE101=1,VLOOKUP($F101,all!$E$14:$AD$553,14),"") -> 0 | S101: =IF($AE101=1,VLOOKUP($F101,all!$E$14:$AD$553,15),"") -> 0 | T101: =IF($AE101=1,VLOOKUP($F101,all!$E$14:$AD$553,16),"") -> 0 | U101: =IF($AE101=1,VLOOKUP($F101,all!$E$14:$AD$553,17),"") -> 0 | V101: =IF($AE101=1,VLOOKUP($F101,all!$E$14:$AD$553,18),"") -> 0 | W101: =IF($AE101=1,VLOOKUP($F101,all!$E$14:$AD$553,19),"") -> 200 | X101: =IF($AE101=1,VLOOKUP($F101,all!$E$14:$AD$553,20),"") -> 0 | Y101: =IF($AE101=1,VLOOKUP($F101,all!$E$14:$AD$553,21),"") -> 3 | Z101: =IF($AE101=1,VLOOKUP($F101,all!$E$14:$AD$553,22),"") -> 4 | AA101: =IF($AE101=1,VLOOKUP($F101,all!$E$14:$AD$553,23),"") -> 0 | AB101: =IF($AE101=1,VLOOKUP($F101,all!$E$14:$AD$553,24),"") -> 0 | AC101: =IF($AE101=1,VLOOKUP($F101,all!$E$14:$AD$553,25),"") -> c | AE101: =COUNTIF(all!$E$14:$E$553,F101) -> 1 | AF101: 5 | AG101: buy under | AH101: =AH48 -> 0 | AI101: =AI48 -> 0 | AJ101: 0 | AK101: 0 | AL101: 0 | AM101: 0 | AN101: 0 | AO101: 0 | AP101: 0 | AQ101: 0 | AR101: 0 | AS101: 0 | AT101: 0 | AU101: 0 | AV101: 0 | AW101: 0 | AX101: 0 | AY101: 0 | AZ101: 0 | BA101: 0 | BB101: 0 | BI101: 0 | BJ101: 202.0625507
A102: =IF(OR('Y2'!$W$1=6,('Y2'!$W$1=7)),"",'Y2'!AA95) -> 325 | B102: =IF(OR('Y2'!$W$1=6,('Y2'!$W$1=7)),"",'Y2'!AB95) -> 210.4 | C102: =IF(all!$AQ$1=1,all!AR94,IF(all!$AQ$1=2,all!AT94*100,IF(all!$AQ$1=3,all!AV94,all!AX94))) -> 0 | D102: =IF(OR('Y2'!$W$1=6,('Y2'!$W$1=7)),"",'Y2'!AC95) -> 29.48 | E102: =IF(all!$AP$3=1,all!AS94,IF(all!$AP$3=2,all!AU94*100,IF(all!$AP$3=3,all!AW94,all!AY94))) -> 157.0854798 | F102: 69 | G102: =IF($AE102=1,VLOOKUP($F102,all!$E$14:$AD$553,3),"") -> calender call 175 | H102: =IF($AE102=1,VLOOKUP($F102,all!$E$14:$AD$553,4),"") -> 175 | I102: =IF($AE102=1,VLOOKUP($F102,all!$E$14:$AD$553,5),"") -> 3.75 | J102: =IF($AE102=1,VLOOKUP($F102,all!$E$14:$AD$553,6),"") -> 172.5 | K102: =IF($AE102=1,VLOOKUP($F102,all!$E$14:$AD$553,7),"") -> 2.21 | L102: =IF($AE102=1,VLOOKUP($F102,all!$E$14:$AD$553,8),"") -> 0 | M102: =IF($AE102=1,VLOOKUP($F102,all!$E$14:$AD$553,9),"") -> 0 | N102: =IF($AE102=1,VLOOKUP($F102,all!$E$14:$AD$553,10),"") -> 0 | O102: =IF($AE102=1,VLOOKUP($F102,all!$E$14:$AD$553,11),"") -> 0 | P102: =IF($AE102=1,VLOOKUP($F102,all!$E$14:$AD$553,12),"") -> 154 | Q102: =IF($AE102=1,VLOOKUP($F102,all!$E$14:$AD$553,13),"") -> 0 | R102: =IF($AE102=1,VLOOKUP($F102,all!$E$14:$AD$553,14),"") -> 0 | S102: =IF($AE102=1,VLOOKUP($F102,all!$E$14:$AD$553,15),"") -> 0 | T102: =IF($AE102=1,VLOOKUP($F102,all!$E$14:$AD$553,16),"") -> 0 | U102: =IF($AE102=1,VLOOKUP($F102,all!$E$14:$AD$553,17),"") -> 0 | V102: =IF($AE102=1,VLOOKUP($F102,all!$E$14:$AD$553,18),"") -> 0 | W102: =IF($AE102=1,VLOOKUP($F102,all!$E$14:$AD$553,19),"") -> 154 | X102: =IF($AE102=1,VLOOKUP($F102,all!$E$14:$AD$553,20),"") -> 0 | Y102: =IF($AE102=1,VLOOKUP($F102,all!$E$14:$AD$553,21),"") -> 1 | Z102: =IF($AE102=1,VLOOKUP($F102,all!$E$14:$AD$553,22),"") -> 2 | AA102: =IF($AE102=1,VLOOKUP($F102,all!$E$14:$AD$553,23),"") -> 0 | AB102: =IF($AE102=1,VLOOKUP($F102,all!$E$14:$AD$553,24),"") -> 0 | AC102: =IF($AE102=1,VLOOKUP($F102,all!$E$14:$AD$553,25),"") -> c | AE102: =COUNTIF(all!$E$14:$E$553,F102) -> 1 | AF102: 6 | AG102: sell under | AH102: =AH49 -> 0 | AI102: =AI49 -> 0 | AJ102: 0 | AK102: 0 | AL102: 0 | AM102: 0 | AN102: 0 | AO102: 0 | AP102: 0 | AQ102: 0 | AR102: 0 | AS102: 0 | AT102: 0 | AU102: 0 | AV102: 0 | AW102: 0 | AX102: 0 | AY102: 0 | AZ102: 0 | BA102: 0 | BB102: 0 | BI102: 0 | BJ102: 212.0574553
A103: =IF(OR('Y2'!$W$1=6,('Y2'!$W$1=7)),"",'Y2'!AA96) -> 330 | B103: =IF(OR('Y2'!$W$1=6,('Y2'!$W$1=7)),"",'Y2'!AB96) -> 202.86 | C103: =IF(all!$AQ$1=1,all!AR95,IF(all!$AQ$1=2,all!AT95*100,IF(all!$AQ$1=3,all!AV95,all!AX95))) -> 0 | D103: =IF(OR('Y2'!$W$1=6,('Y2'!$W$1=7)),"",'Y2'!AC96) -> 31.08 | E103: =IF(all!$AP$3=1,all!AS95,IF(all!$AP$3=2,all!AU95*100,IF(all!$AP$3=3,all!AW95,all!AY95))) -> 162.0829321 | F103: 70 | G103: =IF($AE103=1,VLOOKUP($F103,all!$E$14:$AD$553,3),"") -> calender put 175 | H103: =IF($AE103=1,VLOOKUP($F103,all!$E$14:$AD$553,4),"") -> 175 | I103: =IF($AE103=1,VLOOKUP($F103,all!$E$14:$AD$553,5),"") -> 11.6 | J103: =IF($AE103=1,VLOOKUP($F103,all!$E$14:$AD$553,6),"") -> 172.5 | K103: =IF($AE103=1,VLOOKUP($F103,all!$E$14:$AD$553,7),"") -> 6.85 | L103: =IF($AE103=1,VLOOKUP($F103,all!$E$14:$AD$553,8),"") -> 0 | M103: =IF($AE103=1,VLOOKUP($F103,all!$E$14:$AD$553,9),"") -> 0 | N103: =IF($AE103=1,VLOOKUP($F103,all!$E$14:$AD$553,10),"") -> 0 | O103: =IF($AE103=1,VLOOKUP($F103,all!$E$14:$AD$553,11),"") -> 0 | P103: =IF($AE103=1,VLOOKUP($F103,all!$E$14:$AD$553,12),"") -> 475 | Q103: =IF($AE103=1,VLOOKUP($F103,all!$E$14:$AD$553,13),"") -> 0 | R103: =IF($AE103=1,VLOOKUP($F103,all!$E$14:$AD$553,14),"") -> 0 | S103: =IF($AE103=1,VLOOKUP($F103,all!$E$14:$AD$553,15),"") -> 0 | T103: =IF($AE103=1,VLOOKUP($F103,all!$E$14:$AD$553,16),"") -> 0 | U103: =IF($AE103=1,VLOOKUP($F103,all!$E$14:$AD$553,17),"") -> 0 | V103: =IF($AE103=1,VLOOKUP($F103,all!$E$14:$AD$553,18),"") -> 0 | W103: =IF($AE103=1,VLOOKUP($F103,all!$E$14:$AD$553,19),"") -> 475 | X103: =IF($AE103=1,VLOOKUP($F103,all!$E$14:$AD$553,20),"") -> 0 | Y103: =IF($AE103=1,VLOOKUP($F103,all!$E$14:$AD$553,21),"") -> 3 | Z103: =IF($AE103=1,VLOOKUP($F103,all!$E$14:$AD$553,22),"") -> 4 | AA103: =IF($AE103=1,VLOOKUP($F103,all!$E$14:$AD$553,23),"") -> 0 | AB103: =IF($AE103=1,VLOOKUP($F103,all!$E$14:$AD$553,24),"") -> 0 | AC103: =IF($AE103=1,VLOOKUP($F103,all!$E$14:$AD$553,25),"") -> c | AE103: =COUNTIF(all!$E$14:$E$553,F103) -> 1 | AF103: =AF50 -> 0 | AG103: five | AH103: =IF($AF$103=0,0,VLOOKUP($AF$103,$AF$97:$BB$102,AH116)) -> 0 | AI103: =IF($AF$103=0,0,VLOOKUP($AF$103,$AF$97:$BB$102,AI116)) -> 0 | AJ103: 0 | AK103: 0 | AL103: 0 | AM103: 0 | AN103: 0 | AO103: 0 | AP103: 0 | AQ103: 0 | AR103: 0 | AS103: 0 | AT103: 0 | AU103: 0 | AV103: 0 | AW103: 0 | AX103: 0 | AY103: 0 | AZ103: 0 | BA103: 0 | BB103: 0 | BI103: 0 | BJ103: 222.05236
A104: =IF(OR('Y2'!$W$1=6,('Y2'!$W$1=7)),"",'Y2'!AA97) -> 335 | B104: =IF(OR('Y2'!$W$1=6,('Y2'!$W$1=7)),"",'Y2'!AB97) -> 195 | C104: =IF(all!$AQ$1=1,all!AR96,IF(all!$AQ$1=2,all!AT96*100,IF(all!$AQ$1=3,all!AV96,all!AX96))) -> 0 | D104: =IF(OR('Y2'!$W$1=6,('Y2'!$W$1=7)),"",'Y2'!AC97) -> 33.4 | E104: =IF(all!$AP$3=1,all!AS96,IF(all!$AP$3=2,all!AU96*100,IF(all!$AP$3=3,all!AW96,all!AY96))) -> 167.0803844 | F104: 71 | G104: =IF($AE104=1,VLOOKUP($F104,all!$E$14:$AD$553,3),"") -> calender call 160 | H104: =IF($AE104=1,VLOOKUP($F104,all!$E$14:$AD$553,4),"") -> 160 | I104: =IF($AE104=1,VLOOKUP($F104,all!$E$14:$AD$553,5),"") -> 11.85 | J104: =IF($AE104=1,VLOOKUP($F104,all!$E$14:$AD$553,6),"") -> 165 | K104: =IF($AE104=1,VLOOKUP($F104,all!$E$14:$AD$553,7),"") -> 6.13 | L104: =IF($AE104=1,VLOOKUP($F104,all!$E$14:$AD$553,8),"") -> 0 | M104: =IF($AE104=1,VLOOKUP($F104,all!$E$14:$AD$553,9),"") -> 0 | N104: =IF($AE104=1,VLOOKUP($F104,all!$E$14:$AD$553,10),"") -> 0 | O104: =IF($AE104=1,VLOOKUP($F104,all!$E$14:$AD$553,11),"") -> 0 | P104: =IF($AE104=1,VLOOKUP($F104,all!$E$14:$AD$553,12),"") -> 572 | Q104: =IF($AE104=1,VLOOKUP($F104,all!$E$14:$AD$553,13),"") -> 0 | R104: =IF($AE104=1,VLOOKUP($F104,all!$E$14:$AD$553,14),"") -> 0 | S104: =IF($AE104=1,VLOOKUP($F104,all!$E$14:$AD$553,15),"") -> 0 | T104: =IF($AE104=1,VLOOKUP($F104,all!$E$14:$AD$553,16),"") -> 0 | U104: =IF($AE104=1,VLOOKUP($F104,all!$E$14:$AD$553,17),"") -> 0 | V104: =IF($AE104=1,VLOOKUP($F104,all!$E$14:$AD$553,18),"") -> 0 | W104: =IF($AE104=1,VLOOKUP($F104,all!$E$14:$AD$553,19),"") -> 572 | X104: =IF($AE104=1,VLOOKUP($F104,all!$E$14:$AD$553,20),"") -> 0 | Y104: =IF($AE104=1,VLOOKUP($F104,all!$E$14:$AD$553,21),"") -> 1 | Z104: =IF($AE104=1,VLOOKUP($F104,all!$E$14:$AD$553,22),"") -> 2 | AA104: =IF($AE104=1,VLOOKUP($F104,all!$E$14:$AD$553,23),"") -> 0 | AB104: =IF($AE104=1,VLOOKUP($F104,all!$E$14:$AD$553,24),"") -> 0 | AC104: =IF($AE104=1,VLOOKUP($F104,all!$E$14:$AD$553,25),"") -> c | AE104: =COUNTIF(all!$E$14:$E$553,F104) -> 1 | BI104: 0 | BJ104: 232.0472646
A105: =IF(OR('Y2'!$W$1=6,('Y2'!$W$1=7)),"",'Y2'!AA98) -> 340 | B105: =IF(OR('Y2'!$W$1=6,('Y2'!$W$1=7)),"",'Y2'!AB98) -> 196.5 | C105: =IF(all!$AQ$1=1,all!AR97,IF(all!$AQ$1=2,all!AT97*100,IF(all!$AQ$1=3,all!AV97,all!AX97))) -> 0 | D105: =IF(OR('Y2'!$W$1=6,('Y2'!$W$1=7)),"",'Y2'!AC98) -> 33.6 | E105: =IF(all!$AP$3=1,all!AS97,IF(all!$AP$3=2,all!AU97*100,IF(all!$AP$3=3,all!AW97,all!AY97))) -> 172.0778367 | F105: 72 | G105: =IF($AE105=1,VLOOKUP($F105,all!$E$14:$AD$553,3),"") -> calender put 160 | H105: =IF($AE105=1,VLOOKUP($F105,all!$E$14:$AD$553,4),"") -> 160 | I105: =IF($AE105=1,VLOOKUP($F105,all!$E$14:$AD$553,5),"") -> 4.55 | J105: =IF($AE105=1,VLOOKUP($F105,all!$E$14:$AD$553,6),"") -> 165 | K105: =IF($AE105=1,VLOOKUP($F105,all!$E$14:$AD$553,7),"") -> 3.26 | L105: =IF($AE105=1,VLOOKUP($F105,all!$E$14:$AD$553,8),"") -> 0 | M105: =IF($AE105=1,VLOOKUP($F105,all!$E$14:$AD$553,9),"") -> 0 | N105: =IF($AE105=1,VLOOKUP($F105,all!$E$14:$AD$553,10),"") -> 0 | O105: =IF($AE105=1,VLOOKUP($F105,all!$E$14:$AD$553,11),"") -> 0 | P105: =IF($AE105=1,VLOOKUP($F105,all!$E$14:$AD$553,12),"") -> 129 | Q105: =IF($AE105=1,VLOOKUP($F105,all!$E$14:$AD$553,13),"") -> 0 | R105: =IF($AE105=1,VLOOKUP($F105,all!$E$14:$AD$553,14),"") -> 0 | S105: =IF($AE105=1,VLOOKUP($F105,all!$E$14:$AD$553,15),"") -> 0 | T105: =IF($AE105=1,VLOOKUP($F105,all!$E$14:$AD$553,16),"") -> 0 | U105: =IF($AE105=1,VLOOKUP($F105,all!$E$14:$AD$553,17),"") -> 0 | V105: =IF($AE105=1,VLOOKUP($F105,all!$E$14:$AD$553,18),"") -> 0 | W105: =IF($AE105=1,VLOOKUP($F105,all!$E$14:$AD$553,19),"") -> 129 | X105: =IF($AE105=1,VLOOKUP($F105,all!$E$14:$AD$553,20),"") -> 0 | Y105: =IF($AE105=1,VLOOKUP($F105,all!$E$14:$AD$553,21),"") -> 3 | Z105: =IF($AE105=1,VLOOKUP($F105,all!$E$14:$AD$553,22),"") -> 4 | AA105: =IF($AE105=1,VLOOKUP($F105,all!$E$14:$AD$553,23),"") -> 0 | AB105: =IF($AE105=1,VLOOKUP($F105,all!$E$14:$AD$553,24),"") -> 0 | AC105: =IF($AE105=1,VLOOKUP($F105,all!$E$14:$AD$553,25),"") -> c | AE105: =COUNTIF(all!$E$14:$E$553,F105) -> 1 | AF105: 1 | AG105: buy call | AH105: =IF($K$9="",0,$H$9*$J$2*(PB("C",AH$64+0.00001,$J$9,MAX($I$9-$AL$63,0.00001)/365,$C$6,$D$6,$M$9)-$K$9)) -> 0 | AI105: =IF($K$9="",0,$H$9*$J$2*(PB("C",AI$64+0.00001,$J$9,MAX($I$9-$AL$63,0.00001)/365,$C$6,$D$6,$M$9)-$K$9)) -> 0 | AJ105: 0 | AK105: 0 | AL105: 0 | AM105: 0 | AN105: 0 | AO105: 0 | AP105: 0 | AQ105: 0 | AR105: 0 | AS105: 0 | AT105: 0 | AU105: 0 | AV105: 0 | AW105: 0 | AX105: 0 | AY105: 0 | AZ105: 0 | BA105: 0 | BB105: 0 | BI105: 0 | BJ105: 242.0421693
A106: =IF(OR('Y2'!$W$1=6,('Y2'!$W$1=7)),"",'Y2'!AA99) -> 345 | B106: =IF(OR('Y2'!$W$1=6,('Y2'!$W$1=7)),"",'Y2'!AB99) -> 186.52 | C106: =IF(all!$AQ$1=1,all!AR98,IF(all!$AQ$1=2,all!AT98*100,IF(all!$AQ$1=3,all!AV98,all!AX98))) -> 0 | D106: =IF(OR('Y2'!$W$1=6,('Y2'!$W$1=7)),"",'Y2'!AC99) -> 35.52 | E106: =IF(all!$AP$3=1,all!AS98,IF(all!$AP$3=2,all!AU98*100,IF(all!$AP$3=3,all!AW98,all!AY98))) -> 177.0752891 | F106: 73 | G106: =IF($AE106=1,VLOOKUP($F106,all!$E$14:$AD$553,3),"") -> calender call 160 | H106: =IF($AE106=1,VLOOKUP($F106,all!$E$14:$AD$553,4),"") -> 160 | I106: =IF($AE106=1,VLOOKUP($F106,all!$E$14:$AD$553,5),"") -> 2.28 | J106: =IF($AE106=1,VLOOKUP($F106,all!$E$14:$AD$553,6),"") -> 175 | K106: =IF($AE106=1,VLOOKUP($F106,all!$E$14:$AD$553,7),"") -> 1.4 | L106: =IF($AE106=1,VLOOKUP($F106,all!$E$14:$AD$553,8),"") -> 0 | M106: =IF($AE106=1,VLOOKUP($F106,all!$E$14:$AD$553,9),"") -> 0 | N106: =IF($AE106=1,VLOOKUP($F106,all!$E$14:$AD$553,10),"") -> 0 | O106: =IF($AE106=1,VLOOKUP($F106,all!$E$14:$AD$553,11),"") -> 0 | P106: =IF($AE106=1,VLOOKUP($F106,all!$E$14:$AD$553,12),"") -> 88 | Q106: =IF($AE106=1,VLOOKUP($F106,all!$E$14:$AD$553,13),"") -> 0 | R106: =IF($AE106=1,VLOOKUP($F106,all!$E$14:$AD$553,14),"") -> 0 | S106: =IF($AE106=1,VLOOKUP($F106,all!$E$14:$AD$553,15),"") -> 0 | T106: =IF($AE106=1,VLOOKUP($F106,all!$E$14:$AD$553,16),"") -> 0 | U106: =IF($AE106=1,VLOOKUP($F106,all!$E$14:$AD$553,17),"") -> 0 | V106: =IF($AE106=1,VLOOKUP($F106,all!$E$14:$AD$553,18),"") -> 0 | W106: =IF($AE106=1,VLOOKUP($F106,all!$E$14:$AD$553,19),"") -> 88 | X106: =IF($AE106=1,VLOOKUP($F106,all!$E$14:$AD$553,20),"") -> 0 | Y106: =IF($AE106=1,VLOOKUP($F106,all!$E$14:$AD$553,21),"") -> 1 | Z106: =IF($AE106=1,VLOOKUP($F106,all!$E$14:$AD$553,22),"") -> 2 | AA106: =IF($AE106=1,VLOOKUP($F106,all!$E$14:$AD$553,23),"") -> 0 | AB106: =IF($AE106=1,VLOOKUP($F106,all!$E$14:$AD$553,24),"") -> 0 | AC106: =IF($AE106=1,VLOOKUP($F106,all!$E$14:$AD$553,25),"") -> c | AE106: =COUNTIF(all!$E$14:$E$553,F106) -> 1 | AF106: 2 | AG106: sell call | AH106: =-AH105 -> 0 | AI106: =-AI105 -> 0 | AJ106: 0 | AK106: 0 | AL106: 0 | AM106: 0 | AN106: 0 | AO106: 0 | AP106: 0 | AQ106: 0 | AR106: 0 | AS106: 0 | AT106: 0 | AU106: 0 | AV106: 0 | AW106: 0 | AX106: 0 | AY106: 0 | AZ106: 0 | BA106: 0 | BB106: 0
A107: =IF(OR('Y2'!$W$1=6,('Y2'!$W$1=7)),"",'Y2'!AA100) -> 350 | B107: =IF(OR('Y2'!$W$1=6,('Y2'!$W$1=7)),"",'Y2'!AB100) -> 188.15 | C107: =IF(all!$AQ$1=1,all!AR99,IF(all!$AQ$1=2,all!AT99*100,IF(all!$AQ$1=3,all!AV99,all!AX99))) -> 0 | D107: =IF(OR('Y2'!$W$1=6,('Y2'!$W$1=7)),"",'Y2'!AC100) -> 38.75 | E107: =IF(all!$AP$3=1,all!AS99,IF(all!$AP$3=2,all!AU99*100,IF(all!$AP$3=3,all!AW99,all!AY99))) -> 182.0727414 | F107: 74 | G107: =IF($AE107=1,VLOOKUP($F107,all!$E$14:$AD$553,3),"") -> calender put 160 | H107: =IF($AE107=1,VLOOKUP($F107,all!$E$14:$AD$553,4),"") -> 160 | I107: =IF($AE107=1,VLOOKUP($F107,all!$E$14:$AD$553,5),"") -> 14.97 | J107: =IF($AE107=1,VLOOKUP($F107,all!$E$14:$AD$553,6),"") -> 175 | K107: =IF($AE107=1,VLOOKUP($F107,all!$E$14:$AD$553,7),"") -> 8.6 | L107: =IF($AE107=1,VLOOKUP($F107,all!$E$14:$AD$553,8),"") -> 0 | M107: =IF($AE107=1,VLOOKUP($F107,all!$E$14:$AD$553,9),"") -> 0 | N107: =IF($AE107=1,VLOOKUP($F107,all!$E$14:$AD$553,10),"") -> 0 | O107: =IF($AE107=1,VLOOKUP($F107,all!$E$14:$AD$553,11),"") -> 0 | P107: =IF($AE107=1,VLOOKUP($F107,all!$E$14:$AD$553,12),"") -> 637 | Q107: =IF($AE107=1,VLOOKUP($F107,all!$E$14:$AD$553,13),"") -> 0 | R107: =IF($AE107=1,VLOOKUP($F107,all!$E$14:$AD$553,14),"") -> 0 | S107: =IF($AE107=1,VLOOKUP($F107,all!$E$14:$AD$553,15),"") -> 0 | T107: =IF($AE107=1,VLOOKUP($F107,all!$E$14:$AD$553,16),"") -> 0 | U107: =IF($AE107=1,VLOOKUP($F107,all!$E$14:$AD$553,17),"") -> 0 | V107: =IF($AE107=1,VLOOKUP($F107,all!$E$14:$AD$553,18),"") -> 0 | W107: =IF($AE107=1,VLOOKUP($F107,all!$E$14:$AD$553,19),"") -> 637 | X107: =IF($AE107=1,VLOOKUP($F107,all!$E$14:$AD$553,20),"") -> 0 | Y107: =IF($AE107=1,VLOOKUP($F107,all!$E$14:$AD$553,21),"") -> 3 | Z107: =IF($AE107=1,VLOOKUP($F107,all!$E$14:$AD$553,22),"") -> 4 | AA107: =IF($AE107=1,VLOOKUP($F107,all!$E$14:$AD$553,23),"") -> 0 | AB107: =IF($AE107=1,VLOOKUP($F107,all!$E$14:$AD$553,24),"") -> 0 | AC107: =IF($AE107=1,VLOOKUP($F107,all!$E$14:$AD$553,25),"") -> c | AE107: =COUNTIF(all!$E$14:$E$553,F107) -> 1 | AF107: 3 | AG107: buy put | AH107: =IF($K$9="",0,$H$9*$J$2*(PB("P",AH$64+0.00001,$J$9,MAX($I$9-$AL$63,0.00001)/365,$C$6,$D$6,$M$9)-$K$9)) -> 0 | AI107: =IF($K$9="",0,$H$9*$J$2*(PB("P",AI$64+0.00001,$J$9,MAX($I$9-$AL$63,0.00001)/365,$C$6,$D$6,$M$9)-$K$9)) -> 0 | AJ107: 0 | AK107: 0 | AL107: 0 | AM107: 0 | AN107: 0 | AO107: 0 | AP107: 0 | AQ107: 0 | AR107: 0 | AS107: 0 | AT107: 0 | AU107: 0 | AV107: 0 | AW107: 0 | AX107: 0 | AY107: 0 | AZ107: 0 | BA107: 0 | BB107: 0
A108: =IF(OR('Y2'!$W$1=6,('Y2'!$W$1=7)),"",'Y2'!AA101) -> 360 | B108: =IF(OR('Y2'!$W$1=6,('Y2'!$W$1=7)),"",'Y2'!AB101) -> 182.7 | C108: =IF(all!$AQ$1=1,all!AR100,IF(all!$AQ$1=2,all!AT100*100,IF(all!$AQ$1=3,all!AV100,all!AX100))) -> 0 | D108: =IF(OR('Y2'!$W$1=6,('Y2'!$W$1=7)),"",'Y2'!AC101) -> 42.2 | E108: =IF(all!$AP$3=1,all!AS100,IF(all!$AP$3=2,all!AU100*100,IF(all!$AP$3=3,all!AW100,all!AY100))) -> 192.067646 | F108: 75 | G108: =IF($AE108=1,VLOOKUP($F108,all!$E$14:$AD$553,3),"") -> ueb_box turtle (sac+sIp+bOp) _/``\_ | H108: =IF($AE108=1,VLOOKUP($F108,all!$E$14:$AD$553,4),"") -> 170 | I108: =IF($AE108=1,VLOOKUP($F108,all!$E$14:$AD$553,5),"") -> 3.3 | J108: =IF($AE108=1,VLOOKUP($F108,all!$E$14:$AD$553,6),"") -> 162.5 | K108: =IF($AE108=1,VLOOKUP($F108,all!$E$14:$AD$553,7),"") -> 2.45 | L108: =IF($AE108=1,VLOOKUP($F108,all!$E$14:$AD$553,8),"") -> 177.5 | M108: =IF($AE108=1,VLOOKUP($F108,all!$E$14:$AD$553,9),"") -> 11 | N108: =IF($AE108=1,VLOOKUP($F108,all!$E$14:$AD$553,10),"") -> 0 | O108: =IF($AE108=1,VLOOKUP($F108,all!$E$14:$AD$553,11),"") -> 0 | P108: =IF($AE108=1,VLOOKUP($F108,all!$E$14:$AD$553,12),"") -> 0 | Q108: =IF($AE108=1,VLOOKUP($F108,all!$E$14:$AD$553,13),"") -> 0 | R108: =IF($AE108=1,VLOOKUP($F108,all!$E$14:$AD$553,14),"") -> 0 | S108: =IF($AE108=1,VLOOKUP($F108,all!$E$14:$AD$553,15),"") -> 0 | T108: =IF($AE108=1,VLOOKUP($F108,all!$E$14:$AD$553,16),"") -> 0 | U108: =IF($AE108=1,VLOOKUP($F108,all!$E$14:$AD$553,17),"") -> 0 | V108: =IF($AE108=1,VLOOKUP($F108,all!$E$14:$AD$553,18),"") -> 0 | W108: =IF($AE108=1,VLOOKUP($F108,all!$E$14:$AD$553,19),"") -> -1185 | X108: =IF($AE108=1,VLOOKUP($F108,all!$E$14:$AD$553,20),"") -> 0 | Y108: =IF($AE108=1,VLOOKUP($F108,all!$E$14:$AD$553,21),"") -> 2 | Z108: =IF($AE108=1,VLOOKUP($F108,all!$E$14:$AD$553,22),"") -> 3 | AA108: =IF($AE108=1,VLOOKUP($F108,all!$E$14:$AD$553,23),"") -> 4 | AB108: =IF($AE108=1,VLOOKUP($F108,all!$E$14:$AD$553,24),"") -> 0 | AC108: =IF($AE108=1,VLOOKUP($F108,all!$E$14:$AD$553,25),"") -> 0 | AE108: =COUNTIF(all!$E$14:$E$553,F108) -> 1 | AF108: 4 | AG108: sell put | AH108: =-AH107 -> 0 | AI108: =-AI107 -> 0 | AJ108: 0 | AK108: 0 | AL108: 0 | AM108: 0 | AN108: 0 | AO108: 0 | AP108: 0 | AQ108: 0 | AR108: 0 | AS108: 0 | AT108: 0 | AU108: 0 | AV108: 0 | AW108: 0 | AX108: 0 | AY108: 0 | AZ108: 0 | BA108: 0 | BB108: 0
A109: =IF(OR('Y2'!$W$1=6,('Y2'!$W$1=7)),"",'Y2'!AA102) -> 370 | B109: =IF(OR('Y2'!$W$1=6,('Y2'!$W$1=7)),"",'Y2'!AB102) -> 177 | C109: =IF(all!$AQ$1=1,all!AR101,IF(all!$AQ$1=2,all!AT101*100,IF(all!$AQ$1=3,all!AV101,all!AX101))) -> 0 | D109: =IF(OR('Y2'!$W$1=6,('Y2'!$W$1=7)),"",'Y2'!AC102) -> 42.84 | E109: =IF(all!$AP$3=1,all!AS101,IF(all!$AP$3=2,all!AU101*100,IF(all!$AP$3=3,all!AW101,all!AY101))) -> 202.0625507 | F109: 76 | G109: =IF($AE109=1,VLOOKUP($F109,all!$E$14:$AD$553,3),"") -> nec_delta neutral call (bu+2sac) /\ | H109: =IF($AE109=1,VLOOKUP($F109,all!$E$14:$AD$553,4),"") -> 0 | I109: =IF($AE109=1,VLOOKUP($F109,all!$E$14:$AD$553,5),"") -> 0 | J109: =IF($AE109=1,VLOOKUP($F109,all!$E$14:$AD$553,6),"") -> 170 | K109: =IF($AE109=1,VLOOKUP($F109,all!$E$14:$AD$553,7),"") -> 3.3 | L109: =IF($AE109=1,VLOOKUP($F109,all!$E$14:$AD$553,8),"") -> 0 | M109: =IF($AE109=1,VLOOKUP($F109,all!$E$14:$AD$553,9),"") -> 0 | N109: =IF($AE109=1,VLOOKUP($F109,all!$E$14:$AD$553,10),"") -> 0 | O109: =IF($AE109=1,VLOOKUP($F109,all!$E$14:$AD$553,11),"") -> 0 | P109: =IF($AE109=1,VLOOKUP($F109,all!$E$14:$AD$553,12),"") -> 0 | Q109: =IF($AE109=1,VLOOKUP($F109,all!$E$14:$AD$553,13),"") -> 0 | R109: =IF($AE109=1,VLOOKUP($F109,all!$E$14:$AD$553,14),"") -> 0 | S109: =IF($AE109=1,VLOOKUP($F109,all!$E$14:$AD$553,15),"") -> 0 | T109: =IF($AE109=1,VLOOKUP($F109,all!$E$14:$AD$553,16),"") -> 0 | U109: =IF($AE109=1,VLOOKUP($F109,all!$E$14:$AD$553,17),"") -> 0 | V109: =IF($AE109=1,VLOOKUP($F109,all!$E$14:$AD$553,18),"") -> 0 | W109: =IF($AE109=1,VLOOKUP($F109,all!$E$14:$AD$553,19),"") -> 16132 | X109: =IF($AE109=1,VLOOKUP($F109,all!$E$14:$AD$553,20),"") -> 0 | Y109: =IF($AE109=1,VLOOKUP($F109,all!$E$14:$AD$553,21),"") -> 5 | Z109: =IF($AE109=1,VLOOKUP($F109,all!$E$14:$AD$553,22),"") -> 2 | AA109: =IF($AE109=1,VLOOKUP($F109,all!$E$14:$AD$553,23),"") -> 0 | AB109: =IF($AE109=1,VLOOKUP($F109,all!$E$14:$AD$553,24),"") -> 0 | AC109: =IF($AE109=1,VLOOKUP($F109,all!$E$14:$AD$553,25),"") -> x | AE109: =COUNTIF(all!$E$14:$E$553,F109) -> 1 | AF109: 5 | AG109: buy under | AH109: =AH56 -> 0 | AI109: =AI56 -> 0 | AJ109: 0 | AK109: 0 | AL109: 0 | AM109: 0 | AN109: 0 | AO109: 0 | AP109: 0 | AQ109: 0 | AR109: 0 | AS109: 0 | AT109: 0 | AU109: 0 | AV109: 0 | AW109: 0 | AX109: 0 | AY109: 0 | AZ109: 0 | BA109: 0 | BB109: 0
A110: =IF(OR('Y2'!$W$1=6,('Y2'!$W$1=7)),"",'Y2'!AA103) -> 380 | B110: =IF(OR('Y2'!$W$1=6,('Y2'!$W$1=7)),"",'Y2'!AB103) -> 169.34 | C110: =IF(all!$AQ$1=1,all!AR102,IF(all!$AQ$1=2,all!AT102*100,IF(all!$AQ$1=3,all!AV102,all!AX102))) -> 0 | D110: =IF(OR('Y2'!$W$1=6,('Y2'!$W$1=7)),"",'Y2'!AC103) -> 48.64 | E110: =IF(all!$AP$3=1,all!AS102,IF(all!$AP$3=2,all!AU102*100,IF(all!$AP$3=3,all!AW102,all!AY102))) -> 212.0574553 | F110: 77 | G110: =IF($AE110=1,VLOOKUP($F110,all!$E$14:$AD$553,3),"") -> nep_delta neutral put (su+2sap) /\ | H110: =IF($AE110=1,VLOOKUP($F110,all!$E$14:$AD$553,4),"") -> 0 | I110: =IF($AE110=1,VLOOKUP($F110,all!$E$14:$AD$553,5),"") -> 0 | J110: =IF($AE110=1,VLOOKUP($F110,all!$E$14:$AD$553,6),"") -> 170 | K110: =IF($AE110=1,VLOOKUP($F110,all!$E$14:$AD$553,7),"") -> 5.45 | L110: =IF($AE110=1,VLOOKUP($F110,all!$E$14:$AD$553,8),"") -> 0 | M110: =IF($AE110=1,VLOOKUP($F110,all!$E$14:$AD$553,9),"") -> 0 | N110: =IF($AE110=1,VLOOKUP($F110,all!$E$14:$AD$553,10),"") -> 0 | O110: =IF($AE110=1,VLOOKUP($F110,all!$E$14:$AD$553,11),"") -> 0 | P110: =IF($AE110=1,VLOOKUP($F110,all!$E$14:$AD$553,12),"") -> 0 | Q110: =IF($AE110=1,VLOOKUP($F110,all!$E$14:$AD$553,13),"") -> 0 | R110: =IF($AE110=1,VLOOKUP($F110,all!$E$14:$AD$553,14),"") -> 0 | S110: =IF($AE110=1,VLOOKUP($F110,all!$E$14:$AD$553,15),"") -> 0 | T110: =IF($AE110=1,VLOOKUP($F110,all!$E$14:$AD$553,16),"") -> 0 | U110: =IF($AE110=1,VLOOKUP($F110,all!$E$14:$AD$553,17),"") -> 0 | V110: =IF($AE110=1,VLOOKUP($F110,all!$E$14:$AD$553,18),"") -> 0 | W110: =IF($AE110=1,VLOOKUP($F110,all!$E$14:$AD$553,19),"") -> 15702 | X110: =IF($AE110=1,VLOOKUP($F110,all!$E$14:$AD$553,20),"") -> 0 | Y110: =IF($AE110=1,VLOOKUP($F110,all!$E$14:$AD$553,21),"") -> 6 | Z110: =IF($AE110=1,VLOOKUP($F110,all!$E$14:$AD$553,22),"") -> 4 | AA110: =IF($AE110=1,VLOOKUP($F110,all!$E$14:$AD$553,23),"") -> 0 | AB110: =IF($AE110=1,VLOOKUP($F110,all!$E$14:$AD$553,24),"") -> 0 | AC110: =IF($AE110=1,VLOOKUP($F110,all!$E$14:$AD$553,25),"") -> x | AE110: =COUNTIF(all!$E$14:$E$553,F110) -> 1 | AF110: 6 | AG110: sell under | AH110: =AH57 -> 0 | AI110: =AI57 -> 0 | AJ110: 0 | AK110: 0 | AL110: 0 | AM110: 0 | AN110: 0 | AO110: 0 | AP110: 0 | AQ110: 0 | AR110: 0 | AS110: 0 | AT110: 0 | AU110: 0 | AV110: 0 | AW110: 0 | AX110: 0 | AY110: 0 | AZ110: 0 | BA110: 0 | BB110: 0
A111: =IF(OR('Y2'!$W$1=6,('Y2'!$W$1=7)),"",'Y2'!AA104) -> 390 | B111: =IF(OR('Y2'!$W$1=6,('Y2'!$W$1=7)),"",'Y2'!AB104) -> 163.9 | C111: =IF(all!$AQ$1=1,all!AR103,IF(all!$AQ$1=2,all!AT103*100,IF(all!$AQ$1=3,all!AV103,all!AX103))) -> 0 | D111: =IF(OR('Y2'!$W$1=6,('Y2'!$W$1=7)),"",'Y2'!AC104) -> 52.72 | E111: =IF(all!$AP$3=1,all!AS103,IF(all!$AP$3=2,all!AU103*100,IF(all!$AP$3=3,all!AW103,all!AY103))) -> 222.05236 | F111: 78 | G111: =IF($AE111=1,VLOOKUP($F111,all!$E$14:$AD$553,3),"") -> nfc_christmas call (bic+soc+sOc) --'\ | H111: =IF($AE111=1,VLOOKUP($F111,all!$E$14:$AD$553,4),"") -> 165 | I111: =IF($AE111=1,VLOOKUP($F111,all!$E$14:$AD$553,5),"") -> 6.13 | J111: =IF($AE111=1,VLOOKUP($F111,all!$E$14:$AD$553,6),"") -> 172.5 | K111: =IF($AE111=1,VLOOKUP($F111,all!$E$14:$AD$553,7),"") -> 2.21 | L111: =IF($AE111=1,VLOOKUP($F111,all!$E$14:$AD$553,8),"") -> 175 | M111: =IF($AE111=1,VLOOKUP($F111,all!$E$14:$AD$553,9),"") -> 1.4 | N111: =IF($AE111=1,VLOOKUP($F111,all!$E$14:$AD$553,10),"") -> 0 | O111: =IF($AE111=1,VLOOKUP($F111,all!$E$14:$AD$553,11),"") -> 0 | P111: =IF($AE111=1,VLOOKUP($F111,all!$E$14:$AD$553,12),"") -> 0 | Q111: =IF($AE111=1,VLOOKUP($F111,all!$E$14:$AD$553,13),"") -> 0 | R111: =IF($AE111=1,VLOOKUP($F111,all!$E$14:$AD$553,14),"") -> 0 | S111: =IF($AE111=1,VLOOKUP($F111,all!$E$14:$AD$553,15),"") -> 0 | T111: =IF($AE111=1,VLOOKUP($F111,all!$E$14:$AD$553,16),"") -> 0 | U111: =IF($AE111=1,VLOOKUP($F111,all!$E$14:$AD$553,17),"") -> 0 | V111: =IF($AE111=1,VLOOKUP($F111,all!$E$14:$AD$553,18),"") -> 0 | W111: =IF($AE111=1,VLOOKUP($F111,all!$E$14:$AD$553,19),"") -> 252 | X111: =IF($AE111=1,VLOOKUP($F111,all!$E$14:$AD$553,20),"") -> 0 | Y111: =IF($AE111=1,VLOOKUP($F111,all!$E$14:$AD$553,21),"") -> 1 | Z111: =IF($AE111=1,VLOOKUP($F111,all!$E$14:$AD$553,22),"") -> 2 | AA111: =IF($AE111=1,VLOOKUP($F111,all!$E$14:$AD$553,23),"") -> 2 | AB111: =IF($AE111=1,VLOOKUP($F111,all!$E$14:$AD$553,24),"") -> 0 | AC111: =IF($AE111=1,VLOOKUP($F111,all!$E$14:$AD$553,25),"") -> 0 | AE111: =COUNTIF(all!$E$14:$E$553,F111) -> 1 | AF111: =AF58 -> 0 | AG111: six | AH111: =IF($AF$111=0,0,VLOOKUP($AF$111,$AF$105:$BB$110,AH116)) -> 0 | AI111: =IF($AF$111=0,0,VLOOKUP($AF$111,$AF$105:$BB$110,AI116)) -> 0 | AJ111: 0 | AK111: 0 | AL111: 0 | AM111: 0 | AN111: 0 | AO111: 0 | AP111: 0 | AQ111: 0 | AR111: 0 | AS111: 0 | AT111: 0 | AU111: 0 | AV111: 0 | AW111: 0 | AX111: 0 | AY111: 0 | AZ111: 0 | BA111: 0 | BB111: 0
A112: =IF(OR('Y2'!$W$1=6,('Y2'!$W$1=7)),"",'Y2'!AA105) -> 400 | B112: =IF(OR('Y2'!$W$1=6,('Y2'!$W$1=7)),"",'Y2'!AB105) -> 157 | C112: =IF(all!$AQ$1=1,all!AR104,IF(all!$AQ$1=2,all!AT104*100,IF(all!$AQ$1=3,all!AV104,all!AX104))) -> 0 | D112: =IF(OR('Y2'!$W$1=6,('Y2'!$W$1=7)),"",'Y2'!AC105) -> 56.85 | E112: =IF(all!$AP$3=1,all!AS104,IF(all!$AP$3=2,all!AU104*100,IF(all!$AP$3=3,all!AW104,all!AY104))) -> 232.0472646 | F112: 79 | G112: =IF($AE112=1,VLOOKUP($F112,all!$E$14:$AD$553,3),"") -> nfp_christmas put (bip+sop+sOp) /`-- | H112: =IF($AE112=1,VLOOKUP($F112,all!$E$14:$AD$553,4),"") -> 175 | I112: =IF($AE112=1,VLOOKUP($F112,all!$E$14:$AD$553,5),"") -> 8.6 | J112: =IF($AE112=1,VLOOKUP($F112,all!$E$14:$AD$553,6),"") -> 165 | K112: =IF($AE112=1,VLOOKUP($F112,all!$E$14:$AD$553,7),"") -> 3.26 | L112: =IF($AE112=1,VLOOKUP($F112,all!$E$14:$AD$553,8),"") -> 162.5 | M112: =IF($AE112=1,VLOOKUP($F112,all!$E$14:$AD$553,9),"") -> 2.45 | N112: =IF($AE112=1,VLOOKUP($F112,all!$E$14:$AD$553,10),"") -> 0 | O112: =IF($AE112=1,VLOOKUP($F112,all!$E$14:$AD$553,11),"") -> 0 | P112: =IF($AE112=1,VLOOKUP($F112,all!$E$14:$AD$553,12),"") -> 0 | Q112: =IF($AE112=1,VLOOKUP($F112,all!$E$14:$AD$553,13),"") -> 0 | R112: =IF($AE112=1,VLOOKUP($F112,all!$E$14:$AD$553,14),"") -> 0 | S112: =IF($AE112=1,VLOOKUP($F112,all!$E$14:$AD$553,15),"") -> 0 | T112: =IF($AE112=1,VLOOKUP($F112,all!$E$14:$AD$553,16),"") -> 0 | U112: =IF($AE112=1,VLOOKUP($F112,all!$E$14:$AD$553,17),"") -> 0 | V112: =IF($AE112=1,VLOOKUP($F112,all!$E$14:$AD$553,18),"") -> 0 | W112: =IF($AE112=1,VLOOKUP($F112,all!$E$14:$AD$553,19),"") -> 289 | X112: =IF($AE112=1,VLOOKUP($F112,all!$E$14:$AD$553,20),"") -> 0 | Y112: =IF($AE112=1,VLOOKUP($F112,all!$E$14:$AD$553,21),"") -> 3 | Z112: =IF($AE112=1,VLOOKUP($F112,all!$E$14:$AD$553,22),"") -> 4 | AA112: =IF($AE112=1,VLOOKUP($F112,all!$E$14:$AD$553,23),"") -> 4 | AB112: =IF($AE112=1,VLOOKUP($F112,all!$E$14:$AD$553,24),"") -> 0 | AC112: =IF($AE112=1,VLOOKUP($F112,all!$E$14:$AD$553,25),"") -> 0 | AE112: =COUNTIF(all!$E$14:$E$553,F112) -> 1 | AG112: TOTAL | AH112: =ROUND(AH71+AH79+AH87+AH95+AH103+AH111,1) -> -1309.6 | AI112: =ROUND(AI71+AI79+AI87+AI95+AI103+AI111,1) -> -1309.2 | AJ112: -1308.5 | AK112: -1307.2 | AL112: -1305.3 | AM112: -1302.4 | AN112: -1298.5 | AO112: -1293.3 | AP112: -1286.7 | AQ112: -1278.3 | AR112: -1268.1 | AS112: -1256 | AT112: -1241.8 | AU112: -1225.5 | AV112: -1207.1 | AW112: -1186.6 | AX112: -1164 | AY112: -1139.4 | AZ112: -1112.9 | BA112: -1084.5 | BB112: -1054.5
A113: =IF(OR('Y2'!$W$1=6,('Y2'!$W$1=7)),"",'Y2'!AA106) -> 410 | B113: =IF(OR('Y2'!$W$1=6,('Y2'!$W$1=7)),"",'Y2'!AB106) -> 150.44 | C113: =IF(all!$AQ$1=1,all!AR105,IF(all!$AQ$1=2,all!AT105*100,IF(all!$AQ$1=3,all!AV105,all!AX105))) -> 0 | D113: =IF(OR('Y2'!$W$1=6,('Y2'!$W$1=7)),"",'Y2'!AC106) -> 60.75 | E113: =IF(all!$AP$3=1,all!AS105,IF(all!$AP$3=2,all!AU105*100,IF(all!$AP$3=3,all!AW105,all!AY105))) -> 242.0421693 | F113: 80 | G113: =IF($AE113=1,VLOOKUP($F113,all!$E$14:$AD$553,3),"") -> nfb_cr iron condor2 (bOOc+sOc+sOp+bOOp) _/'''\_ | H113: =IF($AE113=1,VLOOKUP($F113,all!$E$14:$AD$553,4),"") -> 180 | I113: =IF($AE113=1,VLOOKUP($F113,all!$E$14:$AD$553,5),"") -> 0.49 | J113: =IF($AE113=1,VLOOKUP($F113,all!$E$14:$AD$553,6),"") -> 175 | K113: =IF($AE113=1,VLOOKUP($F113,all!$E$14:$AD$553,7),"") -> 1.4 | L113: =IF($AE113=1,VLOOKUP($F113,all!$E$14:$AD$553,8),"") -> 165 | M113: =IF($AE113=1,VLOOKUP($F113,all!$E$14:$AD$553,9),"") -> 3.26 | N113: =IF($AE113=1,VLOOKUP($F113,all!$E$14:$AD$553,10),"") -> 160 | O113: =IF($AE113=1,VLOOKUP($F113,all!$E$14:$AD$553,11),"") -> 1.85 | P113: =IF($AE113=1,VLOOKUP($F113,all!$E$14:$AD$553,12),"") -> 0 | Q113: =IF($AE113=1,VLOOKUP($F113,all!$E$14:$AD$553,13),"") -> 0 | R113: =IF($AE113=1,VLOOKUP($F113,all!$E$14:$AD$553,14),"") -> 0 | S113: =IF($AE113=1,VLOOKUP($F113,all!$E$14:$AD$553,15),"") -> 0 | T113: =IF($AE113=1,VLOOKUP($F113,all!$E$14:$AD$553,16),"") -> 0 | U113: =IF($AE113=1,VLOOKUP($F113,all!$E$14:$AD$553,17),"") -> 0 | V113: =IF($AE113=1,VLOOKUP($F113,all!$E$14:$AD$553,18),"") -> 0 | W113: =IF($AE113=1,VLOOKUP($F113,all!$E$14:$AD$553,19),"") -> 97.68 | X113: =IF($AE113=1,VLOOKUP($F113,all!$E$14:$AD$553,20),"") -> 0 | Y113: =IF($AE113=1,VLOOKUP($F113,all!$E$14:$AD$553,21),"") -> 1 | Z113: =IF($AE113=1,VLOOKUP($F113,all!$E$14:$AD$553,22),"") -> 2 | AA113: =IF($AE113=1,VLOOKUP($F113,all!$E$14:$AD$553,23),"") -> 4 | AB113: =IF($AE113=1,VLOOKUP($F113,all!$E$14:$AD$553,24),"") -> 3 | AC113: =IF($AE113=1,VLOOKUP($F113,all!$E$14:$AD$553,25),"") -> 0 | AE113: =COUNTIF(all!$E$14:$E$553,F113) -> 1 | AG113: TOTALb4 | AH113: =IF($Q$1=1,AH112,IF($P$10<0,0,AH112/$P$10)) -> -1309.6 | AI113: =IF($Q$1=1,AI112,IF($P$10<0,0,AI112/$P$10)) -> -1309.2 | AJ113: -1308.5 | AK113: -1307.2 | AL113: -1305.3 | AM113: -1302.4 | AN113: -1298.5 | AO113: -1293.3 | AP113: -1286.7 | AQ113: -1278.3 | AR113: -1268.1 | AS113: -1256 | AT113: -1241.8 | AU113: -1225.5 | AV113: -1207.1 | AW113: -1186.6 | AX113: -1164 | AY113: -1139.4 | AZ113: -1112.9 | BA113: -1084.5 | BB113: -1054.5
F114: 81 | G114: =IF($AE114=1,VLOOKUP($F114,all!$E$14:$AD$553,3),"") -> nfb_cr iron condor (bOc+soc+sop+bOp) _/'''\_ | H114: =IF($AE114=1,VLOOKUP($F114,all!$E$14:$AD$553,4),"") -> 175 | I114: =IF($AE114=1,VLOOKUP($F114,all!$E$14:$AD$553,5),"") -> 1.4 | J114: =IF($AE114=1,VLOOKUP($F114,all!$E$14:$AD$553,6),"") -> 172.5 | K114: =IF($AE114=1,VLOOKUP($F114,all!$E$14:$AD$553,7),"") -> 2.21 | L114: =IF($AE114=1,VLOOKUP($F114,all!$E$14:$AD$553,8),"") -> 167.5 | M114: =IF($AE114=1,VLOOKUP($F114,all!$E$14:$AD$553,9),"") -> 4.25 | N114: =IF($AE114=1,VLOOKUP($F114,all!$E$14:$AD$553,10),"") -> 165 | O114: =IF($AE114=1,VLOOKUP($F114,all!$E$14:$AD$553,11),"") -> 3.26 | P114: =IF($AE114=1,VLOOKUP($F114,all!$E$14:$AD$553,12),"") -> 0 | Q114: =IF($AE114=1,VLOOKUP($F114,all!$E$14:$AD$553,13),"") -> 0 | R114: =IF($AE114=1,VLOOKUP($F114,all!$E$14:$AD$553,14),"") -> 0 | S114: =IF($AE114=1,VLOOKUP($F114,all!$E$14:$AD$553,15),"") -> 0 | T114: =IF($AE114=1,VLOOKUP($F114,all!$E$14:$AD$553,16),"") -> 0 | U114: =IF($AE114=1,VLOOKUP($F114,all!$E$14:$AD$553,17),"") -> 0 | V114: =IF($AE114=1,VLOOKUP($F114,all!$E$14:$AD$553,18),"") -> 0 | W114: =IF($AE114=1,VLOOKUP($F114,all!$E$14:$AD$553,19),"") -> -180 | X114: =IF($AE114=1,VLOOKUP($F114,all!$E$14:$AD$553,20),"") -> 0 | Y114: =IF($AE114=1,VLOOKUP($F114,all!$E$14:$AD$553,21),"") -> 1 | Z114: =IF($AE114=1,VLOOKUP($F114,all!$E$14:$AD$553,22),"") -> 2 | AA114: =IF($AE114=1,VLOOKUP($F114,all!$E$14:$AD$553,23),"") -> 4 | AB114: =IF($AE114=1,VLOOKUP($F114,all!$E$14:$AD$553,24),"") -> 3 | AC114: =IF($AE114=1,VLOOKUP($F114,all!$E$14:$AD$553,25),"") -> 0 | AE114: =COUNTIF(all!$E$14:$E$553,F114) -> 1 | AG114: total expire | AH114: =AH18+AH26+AH34+AH42+AH50+AH58 -> -1310 | AI114: =AI18+AI26+AI34+AI42+AI50+AI58 -> -1310 | AJ114: -1310 | AK114: -1310 | AL114: -1310 | AM114: -1310 | AN114: -1310 | AO114: -1310 | AP114: -1310 | AQ114: -1310 | AR114: -1310 | AS114: -1310 | AT114: -1310 | AU114: -1310 | AV114: -1310 | AW114: -1310 | AX114: -1310 | AY114: -1310 | AZ114: -1310 | BA114: -1310 | BB114: -1310
D115: expire | E115: fut symb | F115: 82 | G115: =IF($AE115=1,VLOOKUP($F115,all!$E$14:$AD$553,3),"") -> SC /\ (tv max) + SP(tv max) | H115: =IF($AE115=1,VLOOKUP($F115,all!$E$14:$AD$553,4),"") -> 315 | I115: =IF($AE115=1,VLOOKUP($F115,all!$E$14:$AD$553,5),"") -> 219.4 | J115: =IF($AE115=1,VLOOKUP($F115,all!$E$14:$AD$553,6),"") -> 167.5 | K115: =IF($AE115=1,VLOOKUP($F115,all!$E$14:$AD$553,7),"") -> 4.25 | L115: =IF($AE115=1,VLOOKUP($F115,all!$E$14:$AD$553,8),"") -> 0 | M115: =IF($AE115=1,VLOOKUP($F115,all!$E$14:$AD$553,9),"") -> 0 | N115: =IF($AE115=1,VLOOKUP($F115,all!$E$14:$AD$553,10),"") -> 0 | O115: =IF($AE115=1,VLOOKUP($F115,all!$E$14:$AD$553,11),"") -> 0 | P115: =IF($AE115=1,VLOOKUP($F115,all!$E$14:$AD$553,12),"") -> 0 | Q115: =IF($AE115=1,VLOOKUP($F115,all!$E$14:$AD$553,13),"") -> 0 | R115: =IF($AE115=1,VLOOKUP($F115,all!$E$14:$AD$553,14),"") -> 0 | S115: =IF($AE115=1,VLOOKUP($F115,all!$E$14:$AD$553,15),"") -> 0 | T115: =IF($AE115=1,VLOOKUP($F115,all!$E$14:$AD$553,16),"") -> 0 | U115: =IF($AE115=1,VLOOKUP($F115,all!$E$14:$AD$553,17),"") -> 0 | V115: =IF($AE115=1,VLOOKUP($F115,all!$E$14:$AD$553,18),"") -> 0 | W115: =IF($AE115=1,VLOOKUP($F115,all!$E$14:$AD$553,19),"") -> -22365 | X115: =IF($AE115=1,VLOOKUP($F115,all!$E$14:$AD$553,20),"") -> 0 | Y115: =IF($AE115=1,VLOOKUP($F115,all!$E$14:$AD$553,21),"") -> 2 | Z115: =IF($AE115=1,VLOOKUP($F115,all!$E$14:$AD$553,22),"") -> 4 | AA115: =IF($AE115=1,VLOOKUP($F115,all!$E$14:$AD$553,23),"") -> 0 | AB115: =IF($AE115=1,VLOOKUP($F115,all!$E$14:$AD$553,24),"") -> 0 | AC115: =IF($AE115=1,VLOOKUP($F115,all!$E$14:$AD$553,25),"") -> 0 | AE115: =COUNTIF(all!$E$14:$E$553,F115) -> 1
A116: 2ND MONTH OPTION CHAIN | D116: 2022-10-21 | F116: 83 | G116: =IF($AE116=1,VLOOKUP($F116,all!$E$14:$AD$553,3),"") -> nfb_cr iron condor3 (bOOc+sOc+sOp+bOOp) _/'''\_ | H116: =IF($AE116=1,VLOOKUP($F116,all!$E$14:$AD$553,4),"") -> 185 | I116: =IF($AE116=1,VLOOKUP($F116,all!$E$14:$AD$553,5),"") -> 0.15 | J116: =IF($AE116=1,VLOOKUP($F116,all!$E$14:$AD$553,6),"") -> 180 | K116: =IF($AE116=1,VLOOKUP($F116,all!$E$14:$AD$553,7),"") -> 0.49 | L116: =IF($AE116=1,VLOOKUP($F116,all!$E$14:$AD$553,8),"") -> 160 | M116: =IF($AE116=1,VLOOKUP($F116,all!$E$14:$AD$553,9),"") -> 1.85 | N116: =IF($AE116=1,VLOOKUP($F116,all!$E$14:$AD$553,10),"") -> 155 | O116: =IF($AE116=1,VLOOKUP($F116,all!$E$14:$AD$553,11),"") -> 1.01 | P116: =IF($AE116=1,VLOOKUP($F116,all!$E$14:$AD$553,12),"") -> 0 | Q116: =IF($AE116=1,VLOOKUP($F116,all!$E$14:$AD$553,13),"") -> 0 | R116: =IF($AE116=1,VLOOKUP($F116,all!$E$14:$AD$553,14),"") -> 0 | S116: =IF($AE116=1,VLOOKUP($F116,all!$E$14:$AD$553,15),"") -> 0 | T116: =IF($AE116=1,VLOOKUP($F116,all!$E$14:$AD$553,16),"") -> 0 | U116: =IF($AE116=1,VLOOKUP($F116,all!$E$14:$AD$553,17),"") -> 0 | V116: =IF($AE116=1,VLOOKUP($F116,all!$E$14:$AD$553,18),"") -> 0 | W116: =IF($AE116=1,VLOOKUP($F116,all!$E$14:$AD$553,19),"") -> 98.82 | X116: =IF($AE116=1,VLOOKUP($F116,all!$E$14:$AD$553,20),"") -> 0 | Y116: =IF($AE116=1,VLOOKUP($F116,all!$E$14:$AD$553,21),"") -> 1 | Z116: =IF($AE116=1,VLOOKUP($F116,all!$E$14:$AD$553,22),"") -> 2 | AA116: =IF($AE116=1,VLOOKUP($F116,all!$E$14:$AD$553,23),"") -> 4 | AB116: =IF($AE116=1,VLOOKUP($F116,all!$E$14:$AD$553,24),"") -> 3 | AC116: =IF($AE116=1,VLOOKUP($F116,all!$E$14:$AD$553,25),"") -> 0 | AE116: =COUNTIF(all!$E$14:$E$553,F116) -> 1 | AH116: 3 | AI116: 4 | AJ116: 5 | AK116: 6 | AL116: 7 | AM116: 8 | AN116: 9 | AO116: 10 | AP116: 11 | AQ116: 12 | AR116: 13 | AS116: 14 | AT116: 15 | AU116: 16 | AV116: 17 | AW116: 18 | AX116: 19 | AY116: 20 | AZ116: 21 | BA116: 22 | BB116: 23
A117: STRIKE | B117: CALLS | D117: PUTS | F117: 84 | G117: =IF($AE117=1,VLOOKUP($F117,all!$E$14:$AD$553,3),"") -> nfb_cr iron condor4(bOOc+sOc+sOp+bOOp) _/'''\_ | H117: =IF($AE117=1,VLOOKUP($F117,all!$E$14:$AD$553,4),"") -> 195 | I117: =IF($AE117=1,VLOOKUP($F117,all!$E$14:$AD$553,5),"") -> 0.04 | J117: =IF($AE117=1,VLOOKUP($F117,all!$E$14:$AD$553,6),"") -> 185 | K117: =IF($AE117=1,VLOOKUP($F117,all!$E$14:$AD$553,7),"") -> 0.15 | L117: =IF($AE117=1,VLOOKUP($F117,all!$E$14:$AD$553,8),"") -> 160 | M117: =IF($AE117=1,VLOOKUP($F117,all!$E$14:$AD$553,9),"") -> 1.85 | N117: =IF($AE117=1,VLOOKUP($F117,all!$E$14:$AD$553,10),"") -> 155 | O117: =IF($AE117=1,VLOOKUP($F117,all!$E$14:$AD$553,11),"") -> 1.01 | P117: =IF($AE117=1,VLOOKUP($F117,all!$E$14:$AD$553,12),"") -> 0 | Q117: =IF($AE117=1,VLOOKUP($F117,all!$E$14:$AD$553,13),"") -> 0 | R117: =IF($AE117=1,VLOOKUP($F117,all!$E$14:$AD$553,14),"") -> 0 | S117: =IF($AE117=1,VLOOKUP($F117,all!$E$14:$AD$553,15),"") -> 0 | T117: =IF($AE117=1,VLOOKUP($F117,all!$E$14:$AD$553,16),"") -> 0 | U117: =IF($AE117=1,VLOOKUP($F117,all!$E$14:$AD$553,17),"") -> 0 | V117: =IF($AE117=1,VLOOKUP($F117,all!$E$14:$AD$553,18),"") -> 0 | W117: =IF($AE117=1,VLOOKUP($F117,all!$E$14:$AD$553,19),"") -> 99.05 | X117: =IF($AE117=1,VLOOKUP($F117,all!$E$14:$AD$553,20),"") -> 0 | Y117: =IF($AE117=1,VLOOKUP($F117,all!$E$14:$AD$553,21),"") -> 1 | Z117: =IF($AE117=1,VLOOKUP($F117,all!$E$14:$AD$553,22),"") -> 2 | AA117: =IF($AE117=1,VLOOKUP($F117,all!$E$14:$AD$553,23),"") -> 4 | AB117: =IF($AE117=1,VLOOKUP($F117,all!$E$14:$AD$553,24),"") -> 3 | AC117: =IF($AE117=1,VLOOKUP($F117,all!$E$14:$AD$553,25),"") -> 0 | AE117: =COUNTIF(all!$E$14:$E$553,F117) -> 1
B118: prem | D118: prem | F118: 85 | G118: =IF($AE118=1,VLOOKUP($F118,all!$E$14:$AD$553,3),"") -> butterfly call _/'''\_ (b160c+s165c + s175c+b180c) | H118: =IF($AE118=1,VLOOKUP($F118,all!$E$14:$AD$553,4),"") -> 160 | I118: =IF($AE118=1,VLOOKUP($F118,all!$E$14:$AD$553,5),"") -> 9.75 | J118: =IF($AE118=1,VLOOKUP($F118,all!$E$14:$AD$553,6),"") -> 165 | K118: =IF($AE118=1,VLOOKUP($F118,all!$E$14:$AD$553,7),"") -> 6.13 | L118: =IF($AE118=1,VLOOKUP($F118,all!$E$14:$AD$553,8),"") -> 175 | M118: =IF($AE118=1,VLOOKUP($F118,all!$E$14:$AD$553,9),"") -> 1.4 | N118: =IF($AE118=1,VLOOKUP($F118,all!$E$14:$AD$553,10),"") -> 180 | O118: =IF($AE118=1,VLOOKUP($F118,all!$E$14:$AD$553,11),"") -> 0.49 | P118: =IF($AE118=1,VLOOKUP($F118,all!$E$14:$AD$553,12),"") -> 0 | Q118: =IF($AE118=1,VLOOKUP($F118,all!$E$14:$AD$553,13),"") -> 0 | R118: =IF($AE118=1,VLOOKUP($F118,all!$E$14:$AD$553,14),"") -> 0 | S118: =IF($AE118=1,VLOOKUP($F118,all!$E$14:$AD$553,15),"") -> 0 | T118: =IF($AE118=1,VLOOKUP($F118,all!$E$14:$AD$553,16),"") -> 0 | U118: =IF($AE118=1,VLOOKUP($F118,all!$E$14:$AD$553,17),"") -> 0 | V118: =IF($AE118=1,VLOOKUP($F118,all!$E$14:$AD$553,18),"") -> 0 | W118: =IF($AE118=1,VLOOKUP($F118,all!$E$14:$AD$553,19),"") -> 102.71 | X118: =IF($AE118=1,VLOOKUP($F118,all!$E$14:$AD$553,20),"") -> 0 | Y118: =IF($AE118=1,VLOOKUP($F118,all!$E$14:$AD$553,21),"") -> 1 | Z118: =IF($AE118=1,VLOOKUP($F118,all!$E$14:$AD$553,22),"") -> 2 | AA118: =IF($AE118=1,VLOOKUP($F118,all!$E$14:$AD$553,23),"") -> 2 | AB118: =IF($AE118=1,VLOOKUP($F118,all!$E$14:$AD$553,24),"") -> 1 | AC118: =IF($AE118=1,VLOOKUP($F118,all!$E$14:$AD$553,25),"") -> 0 | AE118: =COUNTIF(all!$E$14:$E$553,F118) -> 1
A119: =IF(OR('Y2'!$W$1=6,('Y2'!$W$1=7)),#REF!,'Y2'!AA114) -> 50 | B119: =IF(OR('Y2'!$W$1=6,('Y2'!$W$1=7)),IF(#REF!="","",AVERAGE(#REF!)),'Y2'!AB114) -> 119.7 | D119: =IF(OR('Y2'!$W$1=6,('Y2'!$W$1=7)),IF(#REF!="","",AVERAGE(#REF!)),'Y2'!AC114) -> 0.01 | F119: 86 | G119: =IF($AE119=1,VLOOKUP($F119,all!$E$14:$AD$553,3),"") -> butterfly put _/'''\_ (s165p+b160p + b175p+s180p) | H119: =IF($AE119=1,VLOOKUP($F119,all!$E$14:$AD$553,4),"") -> 165 | I119: =IF($AE119=1,VLOOKUP($F119,all!$E$14:$AD$553,5),"") -> 3.26 | J119: =IF($AE119=1,VLOOKUP($F119,all!$E$14:$AD$553,6),"") -> 160 | K119: =IF($AE119=1,VLOOKUP($F119,all!$E$14:$AD$553,7),"") -> 1.85 | L119: =IF($AE119=1,VLOOKUP($F119,all!$E$14:$AD$553,8),"") -> 175 | M119: =IF($AE119=1,VLOOKUP($F119,all!$E$14:$AD$553,9),"") -> 8.6 | N119: =IF($AE119=1,VLOOKUP($F119,all!$E$14:$AD$553,10),"") -> 180 | O119: =IF($AE119=1,VLOOKUP($F119,all!$E$14:$AD$553,11),"") -> 13.05 | P119: =IF($AE119=1,VLOOKUP($F119,all!$E$14:$AD$553,12),"") -> 0 | Q119: =IF($AE119=1,VLOOKUP($F119,all!$E$14:$AD$553,13),"") -> 0 | R119: =IF($AE119=1,VLOOKUP($F119,all!$E$14:$AD$553,14),"") -> 0 | S119: =IF($AE119=1,VLOOKUP($F119,all!$E$14:$AD$553,15),"") -> 0 | T119: =IF($AE119=1,VLOOKUP($F119,all!$E$14:$AD$553,16),"") -> 0 | U119: =IF($AE119=1,VLOOKUP($F119,all!$E$14:$AD$553,17),"") -> 0 | V119: =IF($AE119=1,VLOOKUP($F119,all!$E$14:$AD$553,18),"") -> 0 | W119: =IF($AE119=1,VLOOKUP($F119,all!$E$14:$AD$553,19),"") -> 105.86 | X119: =IF($AE119=1,VLOOKUP($F119,all!$E$14:$AD$553,20),"") -> 0 | Y119: =IF($AE119=1,VLOOKUP($F119,all!$E$14:$AD$553,21),"") -> 4 | Z119: =IF($AE119=1,VLOOKUP($F119,all!$E$14:$AD$553,22),"") -> 3 | AA119: =IF($AE119=1,VLOOKUP($F119,all!$E$14:$AD$553,23),"") -> 4 | AB119: =IF($AE119=1,VLOOKUP($F119,all!$E$14:$AD$553,24),"") -> 3 | AC119: =IF($AE119=1,VLOOKUP($F119,all!$E$14:$AD$553,25),"") -> 0 | AE119: =COUNTIF(all!$E$14:$E$553,F119) -> 1
A120: =IF(OR('Y2'!$W$1=6,('Y2'!$W$1=7)),#REF!,'Y2'!AA115) -> 60 | B120: =IF(OR('Y2'!$W$1=6,('Y2'!$W$1=7)),IF(#REF!="","",AVERAGE(#REF!)),'Y2'!AB115) -> 106.75 | D120: =IF(OR('Y2'!$W$1=6,('Y2'!$W$1=7)),IF(#REF!="","",AVERAGE(#REF!)),'Y2'!AC115) -> 0.01 | F120: 87 | G120: =IF($AE120=1,VLOOKUP($F120,all!$E$14:$AD$553,3),"") -> nfb_dr butterfly (bIc+sic+sip+bIp) _/'''\_ | H120: =IF($AE120=1,VLOOKUP($F120,all!$E$14:$AD$553,4),"") -> 155 | I120: =IF($AE120=1,VLOOKUP($F120,all!$E$14:$AD$553,5),"") -> 13.49 | J120: =IF($AE120=1,VLOOKUP($F120,all!$E$14:$AD$553,6),"") -> 160 | K120: =IF($AE120=1,VLOOKUP($F120,all!$E$14:$AD$553,7),"") -> 9.75 | L120: =IF($AE120=1,VLOOKUP($F120,all!$E$14:$AD$553,8),"") -> 180 | M120: =IF($AE120=1,VLOOKUP($F120,all!$E$14:$AD$553,9),"") -> 13.05 | N120: =IF($AE120=1,VLOOKUP($F120,all!$E$14:$AD$553,10),"") -> 175 | O120: =IF($AE120=1,VLOOKUP($F120,all!$E$14:$AD$553,11),"") -> 8.6 | P120: =IF($AE120=1,VLOOKUP($F120,all!$E$14:$AD$553,12),"") -> 0 | Q120: =IF($AE120=1,VLOOKUP($F120,all!$E$14:$AD$553,13),"") -> 0 | R120: =IF($AE120=1,VLOOKUP($F120,all!$E$14:$AD$553,14),"") -> 0 | S120: =IF($AE120=1,VLOOKUP($F120,all!$E$14:$AD$553,15),"") -> 0 | T120: =IF($AE120=1,VLOOKUP($F120,all!$E$14:$AD$553,16),"") -> 0 | U120: =IF($AE120=1,VLOOKUP($F120,all!$E$14:$AD$553,17),"") -> 0 | V120: =IF($AE120=1,VLOOKUP($F120,all!$E$14:$AD$553,18),"") -> 0 | W120: =IF($AE120=1,VLOOKUP($F120,all!$E$14:$AD$553,19),"") -> 99.29 | X120: =IF($AE120=1,VLOOKUP($F120,all!$E$14:$AD$553,20),"") -> 0 | Y120: =IF($AE120=1,VLOOKUP($F120,all!$E$14:$AD$553,21),"") -> 1 | Z120: =IF($AE120=1,VLOOKUP($F120,all!$E$14:$AD$553,22),"") -> 2 | AA120: =IF($AE120=1,VLOOKUP($F120,all!$E$14:$AD$553,23),"") -> 3 | AB120: =IF($AE120=1,VLOOKUP($F120,all!$E$14:$AD$553,24),"") -> 4 | AC120: =IF($AE120=1,VLOOKUP($F120,all!$E$14:$AD$553,25),"") -> 0 | AE120: =COUNTIF(all!$E$14:$E$553,F120) -> 1
A121: =IF(OR('Y2'!$W$1=6,('Y2'!$W$1=7)),#REF!,'Y2'!AA116) -> 70 | B121: =IF(OR('Y2'!$W$1=6,('Y2'!$W$1=7)),IF(#REF!="","",AVERAGE(#REF!)),'Y2'!AB116) -> 102.95 | D121: =IF(OR('Y2'!$W$1=6,('Y2'!$W$1=7)),IF(#REF!="","",AVERAGE(#REF!)),'Y2'!AC116) -> 0.01 | F121: 88 | G121: =IF($AE121=1,VLOOKUP($F121,all!$E$14:$AD$553,3),"") ->  | H121: =IF($AE121=1,VLOOKUP($F121,all!$E$14:$AD$553,4),"") ->  | I121: =IF($AE121=1,VLOOKUP($F121,all!$E$14:$AD$553,5),"") ->  | J121: =IF($AE121=1,VLOOKUP($F121,all!$E$14:$AD$553,6),"") ->  | K121: =IF($AE121=1,VLOOKUP($F121,all!$E$14:$AD$553,7),"") ->  | L121: =IF($AE121=1,VLOOKUP($F121,all!$E$14:$AD$553,8),"") ->  | M121: =IF($AE121=1,VLOOKUP($F121,all!$E$14:$AD$553,9),"") ->  | N121: =IF($AE121=1,VLOOKUP($F121,all!$E$14:$AD$553,10),"") ->  | O121: =IF($AE121=1,VLOOKUP($F121,all!$E$14:$AD$553,11),"") ->  | P121: =IF($AE121=1,VLOOKUP($F121,all!$E$14:$AD$553,12),"") ->  | Q121: =IF($AE121=1,VLOOKUP($F121,all!$E$14:$AD$553,13),"") ->  | R121: =IF($AE121=1,VLOOKUP($F121,all!$E$14:$AD$553,14),"") ->  | S121: =IF($AE121=1,VLOOKUP($F121,all!$E$14:$AD$553,15),"") ->  | T121: =IF($AE121=1,VLOOKUP($F121,all!$E$14:$AD$553,16),"") ->  | U121: =IF($AE121=1,VLOOKUP($F121,all!$E$14:$AD$553,17),"") ->  | V121: =IF($AE121=1,VLOOKUP($F121,all!$E$14:$AD$553,18),"") ->  | W121: =IF($AE121=1,VLOOKUP($F121,all!$E$14:$AD$553,19),"") ->  | X121: =IF($AE121=1,VLOOKUP($F121,all!$E$14:$AD$553,20),"") ->  | Y121: =IF($AE121=1,VLOOKUP($F121,all!$E$14:$AD$553,21),"") ->  | Z121: =IF($AE121=1,VLOOKUP($F121,all!$E$14:$AD$553,22),"") ->  | AA121: =IF($AE121=1,VLOOKUP($F121,all!$E$14:$AD$553,23),"") ->  | AB121: =IF($AE121=1,VLOOKUP($F121,all!$E$14:$AD$553,24),"") ->  | AC121: =IF($AE121=1,VLOOKUP($F121,all!$E$14:$AD$553,25),"") ->  | AE121: =COUNTIF(all!$E$14:$E$553,F121) -> 0
A122: =IF(OR('Y2'!$W$1=6,('Y2'!$W$1=7)),#REF!,'Y2'!AA117) -> 75 | B122: =IF(OR('Y2'!$W$1=6,('Y2'!$W$1=7)),IF(#REF!="","",AVERAGE(#REF!)),'Y2'!AB117) -> 97.15 | D122: =IF(OR('Y2'!$W$1=6,('Y2'!$W$1=7)),IF(#REF!="","",AVERAGE(#REF!)),'Y2'!AC117) -> 0.01 | F122: 89 | G122: =IF($AE122=1,VLOOKUP($F122,all!$E$14:$AD$553,3),"") ->  | H122: =IF($AE122=1,VLOOKUP($F122,all!$E$14:$AD$553,4),"") ->  | I122: =IF($AE122=1,VLOOKUP($F122,all!$E$14:$AD$553,5),"") ->  | J122: =IF($AE122=1,VLOOKUP($F122,all!$E$14:$AD$553,6),"") ->  | K122: =IF($AE122=1,VLOOKUP($F122,all!$E$14:$AD$553,7),"") ->  | L122: =IF($AE122=1,VLOOKUP($F122,all!$E$14:$AD$553,8),"") ->  | M122: =IF($AE122=1,VLOOKUP($F122,all!$E$14:$AD$553,9),"") ->  | N122: =IF($AE122=1,VLOOKUP($F122,all!$E$14:$AD$553,10),"") ->  | O122: =IF($AE122=1,VLOOKUP($F122,all!$E$14:$AD$553,11),"") ->  | P122: =IF($AE122=1,VLOOKUP($F122,all!$E$14:$AD$553,12),"") ->  | Q122: =IF($AE122=1,VLOOKUP($F122,all!$E$14:$AD$553,13),"") ->  | R122: =IF($AE122=1,VLOOKUP($F122,all!$E$14:$AD$553,14),"") ->  | S122: =IF($AE122=1,VLOOKUP($F122,all!$E$14:$AD$553,15),"") ->  | T122: =IF($AE122=1,VLOOKUP($F122,all!$E$14:$AD$553,16),"") ->  | U122: =IF($AE122=1,VLOOKUP($F122,all!$E$14:$AD$553,17),"") ->  | V122: =IF($AE122=1,VLOOKUP($F122,all!$E$14:$AD$553,18),"") ->  | W122: =IF($AE122=1,VLOOKUP($F122,all!$E$14:$AD$553,19),"") ->  | X122: =IF($AE122=1,VLOOKUP($F122,all!$E$14:$AD$553,20),"") ->  | Y122: =IF($AE122=1,VLOOKUP($F122,all!$E$14:$AD$553,21),"") ->  | Z122: =IF($AE122=1,VLOOKUP($F122,all!$E$14:$AD$553,22),"") ->  | AA122: =IF($AE122=1,VLOOKUP($F122,all!$E$14:$AD$553,23),"") ->  | AB122: =IF($AE122=1,VLOOKUP($F122,all!$E$14:$AD$553,24),"") ->  | AC122: =IF($AE122=1,VLOOKUP($F122,all!$E$14:$AD$553,25),"") ->  | AE122: =COUNTIF(all!$E$14:$E$553,F122) -> 0
A123: =IF(OR('Y2'!$W$1=6,('Y2'!$W$1=7)),#REF!,'Y2'!AA118) -> 80 | B123: =IF(OR('Y2'!$W$1=6,('Y2'!$W$1=7)),IF(#REF!="","",AVERAGE(#REF!)),'Y2'!AB118) -> 91.1 | D123: =IF(OR('Y2'!$W$1=6,('Y2'!$W$1=7)),IF(#REF!="","",AVERAGE(#REF!)),'Y2'!AC118) -> 0.02 | F123: 90 | G123: =IF($AE123=1,VLOOKUP($F123,all!$E$14:$AD$553,3),"") ->  | H123: =IF($AE123=1,VLOOKUP($F123,all!$E$14:$AD$553,4),"") ->  | I123: =IF($AE123=1,VLOOKUP($F123,all!$E$14:$AD$553,5),"") ->  | J123: =IF($AE123=1,VLOOKUP($F123,all!$E$14:$AD$553,6),"") ->  | K123: =IF($AE123=1,VLOOKUP($F123,all!$E$14:$AD$553,7),"") ->  | L123: =IF($AE123=1,VLOOKUP($F123,all!$E$14:$AD$553,8),"") ->  | M123: =IF($AE123=1,VLOOKUP($F123,all!$E$14:$AD$553,9),"") ->  | N123: =IF($AE123=1,VLOOKUP($F123,all!$E$14:$AD$553,10),"") ->  | O123: =IF($AE123=1,VLOOKUP($F123,all!$E$14:$AD$553,11),"") ->  | P123: =IF($AE123=1,VLOOKUP($F123,all!$E$14:$AD$553,12),"") ->  | Q123: =IF($AE123=1,VLOOKUP($F123,all!$E$14:$AD$553,13),"") ->  | R123: =IF($AE123=1,VLOOKUP($F123,all!$E$14:$AD$553,14),"") ->  | S123: =IF($AE123=1,VLOOKUP($F123,all!$E$14:$AD$553,15),"") ->  | T123: =IF($AE123=1,VLOOKUP($F123,all!$E$14:$AD$553,16),"") ->  | U123: =IF($AE123=1,VLOOKUP($F123,all!$E$14:$AD$553,17),"") ->  | V123: =IF($AE123=1,VLOOKUP($F123,all!$E$14:$AD$553,18),"") ->  | W123: =IF($AE123=1,VLOOKUP($F123,all!$E$14:$AD$553,19),"") ->  | X123: =IF($AE123=1,VLOOKUP($F123,all!$E$14:$AD$553,20),"") ->  | Y123: =IF($AE123=1,VLOOKUP($F123,all!$E$14:$AD$553,21),"") ->  | Z123: =IF($AE123=1,VLOOKUP($F123,all!$E$14:$AD$553,22),"") ->  | AA123: =IF($AE123=1,VLOOKUP($F123,all!$E$14:$AD$553,23),"") ->  | AB123: =IF($AE123=1,VLOOKUP($F123,all!$E$14:$AD$553,24),"") ->  | AC123: =IF($AE123=1,VLOOKUP($F123,all!$E$14:$AD$553,25),"") ->  | AE123: =COUNTIF(all!$E$14:$E$553,F123) -> 0
A124: =IF(OR('Y2'!$W$1=6,('Y2'!$W$1=7)),"",'Y2'!AA119) -> 85 | B124: =IF(OR('Y2'!$W$1=6,('Y2'!$W$1=7)),"",'Y2'!AB119) -> 84.15 | D124: =IF(OR('Y2'!$W$1=6,('Y2'!$W$1=7)),"",'Y2'!AC119) -> 0.03 | F124: 91 | G124: =IF($AE124=1,VLOOKUP($F124,all!$E$14:$AD$553,3),"") ->  | H124: =IF($AE124=1,VLOOKUP($F124,all!$E$14:$AD$553,4),"") ->  | I124: =IF($AE124=1,VLOOKUP($F124,all!$E$14:$AD$553,5),"") ->  | J124: =IF($AE124=1,VLOOKUP($F124,all!$E$14:$AD$553,6),"") ->  | K124: =IF($AE124=1,VLOOKUP($F124,all!$E$14:$AD$553,7),"") ->  | L124: =IF($AE124=1,VLOOKUP($F124,all!$E$14:$AD$553,8),"") ->  | M124: =IF($AE124=1,VLOOKUP($F124,all!$E$14:$AD$553,9),"") ->  | N124: =IF($AE124=1,VLOOKUP($F124,all!$E$14:$AD$553,10),"") ->  | O124: =IF($AE124=1,VLOOKUP($F124,all!$E$14:$AD$553,11),"") ->  | P124: =IF($AE124=1,VLOOKUP($F124,all!$E$14:$AD$553,12),"") ->  | Q124: =IF($AE124=1,VLOOKUP($F124,all!$E$14:$AD$553,13),"") ->  | R124: =IF($AE124=1,VLOOKUP($F124,all!$E$14:$AD$553,14),"") ->  | S124: =IF($AE124=1,VLOOKUP($F124,all!$E$14:$AD$553,15),"") ->  | T124: =IF($AE124=1,VLOOKUP($F124,all!$E$14:$AD$553,16),"") ->  | U124: =IF($AE124=1,VLOOKUP($F124,all!$E$14:$AD$553,17),"") ->  | V124: =IF($AE124=1,VLOOKUP($F124,all!$E$14:$AD$553,18),"") ->  | W124: =IF($AE124=1,VLOOKUP($F124,all!$E$14:$AD$553,19),"") ->  | X124: =IF($AE124=1,VLOOKUP($F124,all!$E$14:$AD$553,20),"") ->  | Y124: =IF($AE124=1,VLOOKUP($F124,all!$E$14:$AD$553,21),"") ->  | Z124: =IF($AE124=1,VLOOKUP($F124,all!$E$14:$AD$553,22),"") ->  | AA124: =IF($AE124=1,VLOOKUP($F124,all!$E$14:$AD$553,23),"") ->  | AB124: =IF($AE124=1,VLOOKUP($F124,all!$E$14:$AD$553,24),"") ->  | AC124: =IF($AE124=1,VLOOKUP($F124,all!$E$14:$AD$553,25),"") ->  | AE124: =COUNTIF(all!$E$14:$E$553,F124) -> 0
A125: =IF(OR('Y2'!$W$1=6,('Y2'!$W$1=7)),"",'Y2'!AA120) -> 90 | B125: =IF(OR('Y2'!$W$1=6,('Y2'!$W$1=7)),"",'Y2'!AB120) -> 79.9 | D125: =IF(OR('Y2'!$W$1=6,('Y2'!$W$1=7)),"",'Y2'!AC120) -> 0.03 | F125: 92 | G125: =IF($AE125=1,VLOOKUP($F125,all!$E$14:$AD$553,3),"") ->  | H125: =IF($AE125=1,VLOOKUP($F125,all!$E$14:$AD$553,4),"") ->  | I125: =IF($AE125=1,VLOOKUP($F125,all!$E$14:$AD$553,5),"") ->  | J125: =IF($AE125=1,VLOOKUP($F125,all!$E$14:$AD$553,6),"") ->  | K125: =IF($AE125=1,VLOOKUP($F125,all!$E$14:$AD$553,7),"") ->  | L125: =IF($AE125=1,VLOOKUP($F125,all!$E$14:$AD$553,8),"") ->  | M125: =IF($AE125=1,VLOOKUP($F125,all!$E$14:$AD$553,9),"") ->  | N125: =IF($AE125=1,VLOOKUP($F125,all!$E$14:$AD$553,10),"") ->  | O125: =IF($AE125=1,VLOOKUP($F125,all!$E$14:$AD$553,11),"") ->  | P125: =IF($AE125=1,VLOOKUP($F125,all!$E$14:$AD$553,12),"") ->  | Q125: =IF($AE125=1,VLOOKUP($F125,all!$E$14:$AD$553,13),"") ->  | R125: =IF($AE125=1,VLOOKUP($F125,all!$E$14:$AD$553,14),"") ->  | S125: =IF($AE125=1,VLOOKUP($F125,all!$E$14:$AD$553,15),"") ->  | T125: =IF($AE125=1,VLOOKUP($F125,all!$E$14:$AD$553,16),"") ->  | U125: =IF($AE125=1,VLOOKUP($F125,all!$E$14:$AD$553,17),"") ->  | V125: =IF($AE125=1,VLOOKUP($F125,all!$E$14:$AD$553,18),"") ->  | W125: =IF($AE125=1,VLOOKUP($F125,all!$E$14:$AD$553,19),"") ->  | X125: =IF($AE125=1,VLOOKUP($F125,all!$E$14:$AD$553,20),"") ->  | Y125: =IF($AE125=1,VLOOKUP($F125,all!$E$14:$AD$553,21),"") ->  | Z125: =IF($AE125=1,VLOOKUP($F125,all!$E$14:$AD$553,22),"") ->  | AA125: =IF($AE125=1,VLOOKUP($F125,all!$E$14:$AD$553,23),"") ->  | AB125: =IF($AE125=1,VLOOKUP($F125,all!$E$14:$AD$553,24),"") ->  | AC125: =IF($AE125=1,VLOOKUP($F125,all!$E$14:$AD$553,25),"") ->  | AE125: =COUNTIF(all!$E$14:$E$553,F125) -> 0
A126: =IF(OR('Y2'!$W$1=6,('Y2'!$W$1=7)),"",'Y2'!AA121) -> 95 | B126: =IF(OR('Y2'!$W$1=6,('Y2'!$W$1=7)),"",'Y2'!AB121) -> 72.95 | D126: =IF(OR('Y2'!$W$1=6,('Y2'!$W$1=7)),"",'Y2'!AC121) -> 0.06 | F126: 93 | G126: =IF($AE126=1,VLOOKUP($F126,all!$E$14:$AD$553,3),"") ->  | H126: =IF($AE126=1,VLOOKUP($F126,all!$E$14:$AD$553,4),"") ->  | I126: =IF($AE126=1,VLOOKUP($F126,all!$E$14:$AD$553,5),"") ->  | J126: =IF($AE126=1,VLOOKUP($F126,all!$E$14:$AD$553,6),"") ->  | K126: =IF($AE126=1,VLOOKUP($F126,all!$E$14:$AD$553,7),"") ->  | L126: =IF($AE126=1,VLOOKUP($F126,all!$E$14:$AD$553,8),"") ->  | M126: =IF($AE126=1,VLOOKUP($F126,all!$E$14:$AD$553,9),"") ->  | N126: =IF($AE126=1,VLOOKUP($F126,all!$E$14:$AD$553,10),"") ->  | O126: =IF($AE126=1,VLOOKUP($F126,all!$E$14:$AD$553,11),"") ->  | P126: =IF($AE126=1,VLOOKUP($F126,all!$E$14:$AD$553,12),"") ->  | Q126: =IF($AE126=1,VLOOKUP($F126,all!$E$14:$AD$553,13),"") ->  | R126: =IF($AE126=1,VLOOKUP($F126,all!$E$14:$AD$553,14),"") ->  | S126: =IF($AE126=1,VLOOKUP($F126,all!$E$14:$AD$553,15),"") ->  | T126: =IF($AE126=1,VLOOKUP($F126,all!$E$14:$AD$553,16),"") ->  | U126: =IF($AE126=1,VLOOKUP($F126,all!$E$14:$AD$553,17),"") ->  | V126: =IF($AE126=1,VLOOKUP($F126,all!$E$14:$AD$553,18),"") ->  | W126: =IF($AE126=1,VLOOKUP($F126,all!$E$14:$AD$553,19),"") ->  | X126: =IF($AE126=1,VLOOKUP($F126,all!$E$14:$AD$553,20),"") ->  | Y126: =IF($AE126=1,VLOOKUP($F126,all!$E$14:$AD$553,21),"") ->  | Z126: =IF($AE126=1,VLOOKUP($F126,all!$E$14:$AD$553,22),"") ->  | AA126: =IF($AE126=1,VLOOKUP($F126,all!$E$14:$AD$553,23),"") ->  | AB126: =IF($AE126=1,VLOOKUP($F126,all!$E$14:$AD$553,24),"") ->  | AC126: =IF($AE126=1,VLOOKUP($F126,all!$E$14:$AD$553,25),"") ->  | AE126: =COUNTIF(all!$E$14:$E$553,F126) -> 0
A127: =IF(OR('Y2'!$W$1=6,('Y2'!$W$1=7)),"",'Y2'!AA122) -> 100 | B127: =IF(OR('Y2'!$W$1=6,('Y2'!$W$1=7)),"",'Y2'!AB122) -> 69.75 | D127: =IF(OR('Y2'!$W$1=6,('Y2'!$W$1=7)),"",'Y2'!AC122) -> 0.08 | F127: 94 | G127: =IF($AE127=1,VLOOKUP($F127,all!$E$14:$AD$553,3),"") ->  | H127: =IF($AE127=1,VLOOKUP($F127,all!$E$14:$AD$553,4),"") ->  | I127: =IF($AE127=1,VLOOKUP($F127,all!$E$14:$AD$553,5),"") ->  | J127: =IF($AE127=1,VLOOKUP($F127,all!$E$14:$AD$553,6),"") ->  | K127: =IF($AE127=1,VLOOKUP($F127,all!$E$14:$AD$553,7),"") ->  | L127: =IF($AE127=1,VLOOKUP($F127,all!$E$14:$AD$553,8),"") ->  | M127: =IF($AE127=1,VLOOKUP($F127,all!$E$14:$AD$553,9),"") ->  | N127: =IF($AE127=1,VLOOKUP($F127,all!$E$14:$AD$553,10),"") ->  | O127: =IF($AE127=1,VLOOKUP($F127,all!$E$14:$AD$553,11),"") ->  | P127: =IF($AE127=1,VLOOKUP($F127,all!$E$14:$AD$553,12),"") ->  | Q127: =IF($AE127=1,VLOOKUP($F127,all!$E$14:$AD$553,13),"") ->  | R127: =IF($AE127=1,VLOOKUP($F127,all!$E$14:$AD$553,14),"") ->  | S127: =IF($AE127=1,VLOOKUP($F127,all!$E$14:$AD$553,15),"") ->  | T127: =IF($AE127=1,VLOOKUP($F127,all!$E$14:$AD$553,16),"") ->  | U127: =IF($AE127=1,VLOOKUP($F127,all!$E$14:$AD$553,17),"") ->  | V127: =IF($AE127=1,VLOOKUP($F127,all!$E$14:$AD$553,18),"") ->  | W127: =IF($AE127=1,VLOOKUP($F127,all!$E$14:$AD$553,19),"") ->  | X127: =IF($AE127=1,VLOOKUP($F127,all!$E$14:$AD$553,20),"") ->  | Y127: =IF($AE127=1,VLOOKUP($F127,all!$E$14:$AD$553,21),"") ->  | Z127: =IF($AE127=1,VLOOKUP($F127,all!$E$14:$AD$553,22),"") ->  | AA127: =IF($AE127=1,VLOOKUP($F127,all!$E$14:$AD$553,23),"") ->  | AB127: =IF($AE127=1,VLOOKUP($F127,all!$E$14:$AD$553,24),"") ->  | AC127: =IF($AE127=1,VLOOKUP($F127,all!$E$14:$AD$553,25),"") ->  | AE127: =COUNTIF(all!$E$14:$E$553,F127) -> 0
A128: =IF(OR('Y2'!$W$1=6,('Y2'!$W$1=7)),"",'Y2'!AA123) -> 105 | B128: =IF(OR('Y2'!$W$1=6,('Y2'!$W$1=7)),"",'Y2'!AB123) -> 63.5 | D128: =IF(OR('Y2'!$W$1=6,('Y2'!$W$1=7)),"",'Y2'!AC123) -> 0.11 | F128: 95 | G128: =IF($AE128=1,VLOOKUP($F128,all!$E$14:$AD$553,3),"") ->  | H128: =IF($AE128=1,VLOOKUP($F128,all!$E$14:$AD$553,4),"") ->  | I128: =IF($AE128=1,VLOOKUP($F128,all!$E$14:$AD$553,5),"") ->  | J128: =IF($AE128=1,VLOOKUP($F128,all!$E$14:$AD$553,6),"") ->  | K128: =IF($AE128=1,VLOOKUP($F128,all!$E$14:$AD$553,7),"") ->  | L128: =IF($AE128=1,VLOOKUP($F128,all!$E$14:$AD$553,8),"") ->  | M128: =IF($AE128=1,VLOOKUP($F128,all!$E$14:$AD$553,9),"") ->  | N128: =IF($AE128=1,VLOOKUP($F128,all!$E$14:$AD$553,10),"") ->  | O128: =IF($AE128=1,VLOOKUP($F128,all!$E$14:$AD$553,11),"") ->  | P128: =IF($AE128=1,VLOOKUP($F128,all!$E$14:$AD$553,12),"") ->  | Q128: =IF($AE128=1,VLOOKUP($F128,all!$E$14:$AD$553,13),"") ->  | R128: =IF($AE128=1,VLOOKUP($F128,all!$E$14:$AD$553,14),"") ->  | S128: =IF($AE128=1,VLOOKUP($F128,all!$E$14:$AD$553,15),"") ->  | T128: =IF($AE128=1,VLOOKUP($F128,all!$E$14:$AD$553,16),"") ->  | U128: =IF($AE128=1,VLOOKUP($F128,all!$E$14:$AD$553,17),"") ->  | V128: =IF($AE128=1,VLOOKUP($F128,all!$E$14:$AD$553,18),"") ->  | W128: =IF($AE128=1,VLOOKUP($F128,all!$E$14:$AD$553,19),"") ->  | X128: =IF($AE128=1,VLOOKUP($F128,all!$E$14:$AD$553,20),"") ->  | Y128: =IF($AE128=1,VLOOKUP($F128,all!$E$14:$AD$553,21),"") ->  | Z128: =IF($AE128=1,VLOOKUP($F128,all!$E$14:$AD$553,22),"") ->  | AA128: =IF($AE128=1,VLOOKUP($F128,all!$E$14:$AD$553,23),"") ->  | AB128: =IF($AE128=1,VLOOKUP($F128,all!$E$14:$AD$553,24),"") ->  | AC128: =IF($AE128=1,VLOOKUP($F128,all!$E$14:$AD$553,25),"") ->  | AE128: =COUNTIF(all!$E$14:$E$553,F128) -> 0
A129: =IF(OR('Y2'!$W$1=6,('Y2'!$W$1=7)),"",'Y2'!AA124) -> 110 | B129: =IF(OR('Y2'!$W$1=6,('Y2'!$W$1=7)),"",'Y2'!AB124) -> 59.35 | D129: =IF(OR('Y2'!$W$1=6,('Y2'!$W$1=7)),"",'Y2'!AC124) -> 0.16 | F129: 96 | G129: =IF($AE129=1,VLOOKUP($F129,all!$E$14:$AD$553,3),"") ->  | H129: =IF($AE129=1,VLOOKUP($F129,all!$E$14:$AD$553,4),"") ->  | I129: =IF($AE129=1,VLOOKUP($F129,all!$E$14:$AD$553,5),"") ->  | J129: =IF($AE129=1,VLOOKUP($F129,all!$E$14:$AD$553,6),"") ->  | K129: =IF($AE129=1,VLOOKUP($F129,all!$E$14:$AD$553,7),"") ->  | L129: =IF($AE129=1,VLOOKUP($F129,all!$E$14:$AD$553,8),"") ->  | M129: =IF($AE129=1,VLOOKUP($F129,all!$E$14:$AD$553,9),"") ->  | N129: =IF($AE129=1,VLOOKUP($F129,all!$E$14:$AD$553,10),"") ->  | O129: =IF($AE129=1,VLOOKUP($F129,all!$E$14:$AD$553,11),"") ->  | P129: =IF($AE129=1,VLOOKUP($F129,all!$E$14:$AD$553,12),"") ->  | Q129: =IF($AE129=1,VLOOKUP($F129,all!$E$14:$AD$553,13),"") ->  | R129: =IF($AE129=1,VLOOKUP($F129,all!$E$14:$AD$553,14),"") ->  | S129: =IF($AE129=1,VLOOKUP($F129,all!$E$14:$AD$553,15),"") ->  | T129: =IF($AE129=1,VLOOKUP($F129,all!$E$14:$AD$553,16),"") ->  | U129: =IF($AE129=1,VLOOKUP($F129,all!$E$14:$AD$553,17),"") ->  | V129: =IF($AE129=1,VLOOKUP($F129,all!$E$14:$AD$553,18),"") ->  | W129: =IF($AE129=1,VLOOKUP($F129,all!$E$14:$AD$553,19),"") ->  | X129: =IF($AE129=1,VLOOKUP($F129,all!$E$14:$AD$553,20),"") ->  | Y129: =IF($AE129=1,VLOOKUP($F129,all!$E$14:$AD$553,21),"") ->  | Z129: =IF($AE129=1,VLOOKUP($F129,all!$E$14:$AD$553,22),"") ->  | AA129: =IF($AE129=1,VLOOKUP($F129,all!$E$14:$AD$553,23),"") ->  | AB129: =IF($AE129=1,VLOOKUP($F129,all!$E$14:$AD$553,24),"") ->  | AC129: =IF($AE129=1,VLOOKUP($F129,all!$E$14:$AD$553,25),"") ->  | AE129: =COUNTIF(all!$E$14:$E$553,F129) -> 0
A130: =IF(OR('Y2'!$W$1=6,('Y2'!$W$1=7)),"",'Y2'!AA125) -> 115 | B130: =IF(OR('Y2'!$W$1=6,('Y2'!$W$1=7)),"",'Y2'!AB125) -> 53.45 | D130: =IF(OR('Y2'!$W$1=6,('Y2'!$W$1=7)),"",'Y2'!AC125) -> 0.2 | F130: 97 | G130: =IF($AE130=1,VLOOKUP($F130,all!$E$14:$AD$553,3),"") ->  | H130: =IF($AE130=1,VLOOKUP($F130,all!$E$14:$AD$553,4),"") ->  | I130: =IF($AE130=1,VLOOKUP($F130,all!$E$14:$AD$553,5),"") ->  | J130: =IF($AE130=1,VLOOKUP($F130,all!$E$14:$AD$553,6),"") ->  | K130: =IF($AE130=1,VLOOKUP($F130,all!$E$14:$AD$553,7),"") ->  | L130: =IF($AE130=1,VLOOKUP($F130,all!$E$14:$AD$553,8),"") ->  | M130: =IF($AE130=1,VLOOKUP($F130,all!$E$14:$AD$553,9),"") ->  | N130: =IF($AE130=1,VLOOKUP($F130,all!$E$14:$AD$553,10),"") ->  | O130: =IF($AE130=1,VLOOKUP($F130,all!$E$14:$AD$553,11),"") ->  | P130: =IF($AE130=1,VLOOKUP($F130,all!$E$14:$AD$553,12),"") ->  | Q130: =IF($AE130=1,VLOOKUP($F130,all!$E$14:$AD$553,13),"") ->  | R130: =IF($AE130=1,VLOOKUP($F130,all!$E$14:$AD$553,14),"") ->  | S130: =IF($AE130=1,VLOOKUP($F130,all!$E$14:$AD$553,15),"") ->  | T130: =IF($AE130=1,VLOOKUP($F130,all!$E$14:$AD$553,16),"") ->  | U130: =IF($AE130=1,VLOOKUP($F130,all!$E$14:$AD$553,17),"") ->  | V130: =IF($AE130=1,VLOOKUP($F130,all!$E$14:$AD$553,18),"") ->  | W130: =IF($AE130=1,VLOOKUP($F130,all!$E$14:$AD$553,19),"") ->  | X130: =IF($AE130=1,VLOOKUP($F130,all!$E$14:$AD$553,20),"") ->  | Y130: =IF($AE130=1,VLOOKUP($F130,all!$E$14:$AD$553,21),"") ->  | Z130: =IF($AE130=1,VLOOKUP($F130,all!$E$14:$AD$553,22),"") ->  | AA130: =IF($AE130=1,VLOOKUP($F130,all!$E$14:$AD$553,23),"") ->  | AB130: =IF($AE130=1,VLOOKUP($F130,all!$E$14:$AD$553,24),"") ->  | AC130: =IF($AE130=1,VLOOKUP($F130,all!$E$14:$AD$553,25),"") ->  | AE130: =COUNTIF(all!$E$14:$E$553,F130) -> 0
A131: =IF(OR('Y2'!$W$1=6,('Y2'!$W$1=7)),"",'Y2'!AA126) -> 120 | B131: =IF(OR('Y2'!$W$1=6,('Y2'!$W$1=7)),"",'Y2'!AB126) -> 49.05 | D131: =IF(OR('Y2'!$W$1=6,('Y2'!$W$1=7)),"",'Y2'!AC126) -> 0.3 | F131: 98 | G131: =IF($AE131=1,VLOOKUP($F131,all!$E$14:$AD$553,3),"") ->  | H131: =IF($AE131=1,VLOOKUP($F131,all!$E$14:$AD$553,4),"") ->  | I131: =IF($AE131=1,VLOOKUP($F131,all!$E$14:$AD$553,5),"") ->  | J131: =IF($AE131=1,VLOOKUP($F131,all!$E$14:$AD$553,6),"") ->  | K131: =IF($AE131=1,VLOOKUP($F131,all!$E$14:$AD$553,7),"") ->  | L131: =IF($AE131=1,VLOOKUP($F131,all!$E$14:$AD$553,8),"") ->  | M131: =IF($AE131=1,VLOOKUP($F131,all!$E$14:$AD$553,9),"") ->  | N131: =IF($AE131=1,VLOOKUP($F131,all!$E$14:$AD$553,10),"") ->  | O131: =IF($AE131=1,VLOOKUP($F131,all!$E$14:$AD$553,11),"") ->  | P131: =IF($AE131=1,VLOOKUP($F131,all!$E$14:$AD$553,12),"") ->  | Q131: =IF($AE131=1,VLOOKUP($F131,all!$E$14:$AD$553,13),"") ->  | R131: =IF($AE131=1,VLOOKUP($F131,all!$E$14:$AD$553,14),"") ->  | S131: =IF($AE131=1,VLOOKUP($F131,all!$E$14:$AD$553,15),"") ->  | T131: =IF($AE131=1,VLOOKUP($F131,all!$E$14:$AD$553,16),"") ->  | U131: =IF($AE131=1,VLOOKUP($F131,all!$E$14:$AD$553,17),"") ->  | V131: =IF($AE131=1,VLOOKUP($F131,all!$E$14:$AD$553,18),"") ->  | W131: =IF($AE131=1,VLOOKUP($F131,all!$E$14:$AD$553,19),"") ->  | X131: =IF($AE131=1,VLOOKUP($F131,all!$E$14:$AD$553,20),"") ->  | Y131: =IF($AE131=1,VLOOKUP($F131,all!$E$14:$AD$553,21),"") ->  | Z131: =IF($AE131=1,VLOOKUP($F131,all!$E$14:$AD$553,22),"") ->  | AA131: =IF($AE131=1,VLOOKUP($F131,all!$E$14:$AD$553,23),"") ->  | AB131: =IF($AE131=1,VLOOKUP($F131,all!$E$14:$AD$553,24),"") ->  | AC131: =IF($AE131=1,VLOOKUP($F131,all!$E$14:$AD$553,25),"") ->  | AE131: =COUNTIF(all!$E$14:$E$553,F131) -> 0
A132: =IF(OR('Y2'!$W$1=6,('Y2'!$W$1=7)),"",'Y2'!AA127) -> 125 | B132: =IF(OR('Y2'!$W$1=6,('Y2'!$W$1=7)),"",'Y2'!AB127) -> 45.13 | D132: =IF(OR('Y2'!$W$1=6,('Y2'!$W$1=7)),"",'Y2'!AC127) -> 0.42 | F132: 99 | G132: =IF($AE132=1,VLOOKUP($F132,all!$E$14:$AD$553,3),"") ->  | H132: =IF($AE132=1,VLOOKUP($F132,all!$E$14:$AD$553,4),"") ->  | I132: =IF($AE132=1,VLOOKUP($F132,all!$E$14:$AD$553,5),"") ->  | J132: =IF($AE132=1,VLOOKUP($F132,all!$E$14:$AD$553,6),"") ->  | K132: =IF($AE132=1,VLOOKUP($F132,all!$E$14:$AD$553,7),"") ->  | L132: =IF($AE132=1,VLOOKUP($F132,all!$E$14:$AD$553,8),"") ->  | M132: =IF($AE132=1,VLOOKUP($F132,all!$E$14:$AD$553,9),"") ->  | N132: =IF($AE132=1,VLOOKUP($F132,all!$E$14:$AD$553,10),"") ->  | O132: =IF($AE132=1,VLOOKUP($F132,all!$E$14:$AD$553,11),"") ->  | P132: =IF($AE132=1,VLOOKUP($F132,all!$E$14:$AD$553,12),"") ->  | Q132: =IF($AE132=1,VLOOKUP($F132,all!$E$14:$AD$553,13),"") ->  | R132: =IF($AE132=1,VLOOKUP($F132,all!$E$14:$AD$553,14),"") ->  | S132: =IF($AE132=1,VLOOKUP($F132,all!$E$14:$AD$553,15),"") ->  | T132: =IF($AE132=1,VLOOKUP($F132,all!$E$14:$AD$553,16),"") ->  | U132: =IF($AE132=1,VLOOKUP($F132,all!$E$14:$AD$553,17),"") ->  | V132: =IF($AE132=1,VLOOKUP($F132,all!$E$14:$AD$553,18),"") ->  | W132: =IF($AE132=1,VLOOKUP($F132,all!$E$14:$AD$553,19),"") ->  | X132: =IF($AE132=1,VLOOKUP($F132,all!$E$14:$AD$553,20),"") ->  | Y132: =IF($AE132=1,VLOOKUP($F132,all!$E$14:$AD$553,21),"") ->  | Z132: =IF($AE132=1,VLOOKUP($F132,all!$E$14:$AD$553,22),"") ->  | AA132: =IF($AE132=1,VLOOKUP($F132,all!$E$14:$AD$553,23),"") ->  | AB132: =IF($AE132=1,VLOOKUP($F132,all!$E$14:$AD$553,24),"") ->  | AC132: =IF($AE132=1,VLOOKUP($F132,all!$E$14:$AD$553,25),"") ->  | AE132: =COUNTIF(all!$E$14:$E$553,F132) -> 0
A133: =IF(OR('Y2'!$W$1=6,('Y2'!$W$1=7)),"",'Y2'!AA128) -> 130 | B133: =IF(OR('Y2'!$W$1=6,('Y2'!$W$1=7)),"",'Y2'!AB128) -> 38.3 | D133: =IF(OR('Y2'!$W$1=6,('Y2'!$W$1=7)),"",'Y2'!AC128) -> 0.6 | F133: 100 | G133: =IF($AE133=1,VLOOKUP($F133,all!$E$14:$AD$553,3),"") ->  | H133: =IF($AE133=1,VLOOKUP($F133,all!$E$14:$AD$553,4),"") ->  | I133: =IF($AE133=1,VLOOKUP($F133,all!$E$14:$AD$553,5),"") ->  | J133: =IF($AE133=1,VLOOKUP($F133,all!$E$14:$AD$553,6),"") ->  | K133: =IF($AE133=1,VLOOKUP($F133,all!$E$14:$AD$553,7),"") ->  | L133: =IF($AE133=1,VLOOKUP($F133,all!$E$14:$AD$553,8),"") ->  | M133: =IF($AE133=1,VLOOKUP($F133,all!$E$14:$AD$553,9),"") ->  | N133: =IF($AE133=1,VLOOKUP($F133,all!$E$14:$AD$553,10),"") ->  | O133: =IF($AE133=1,VLOOKUP($F133,all!$E$14:$AD$553,11),"") ->  | P133: =IF($AE133=1,VLOOKUP($F133,all!$E$14:$AD$553,12),"") ->  | Q133: =IF($AE133=1,VLOOKUP($F133,all!$E$14:$AD$553,13),"") ->  | R133: =IF($AE133=1,VLOOKUP($F133,all!$E$14:$AD$553,14),"") ->  | S133: =IF($AE133=1,VLOOKUP($F133,all!$E$14:$AD$553,15),"") ->  | T133: =IF($AE133=1,VLOOKUP($F133,all!$E$14:$AD$553,16),"") ->  | U133: =IF($AE133=1,VLOOKUP($F133,all!$E$14:$AD$553,17),"") ->  | V133: =IF($AE133=1,VLOOKUP($F133,all!$E$14:$AD$553,18),"") ->  | W133: =IF($AE133=1,VLOOKUP($F133,all!$E$14:$AD$553,19),"") ->  | X133: =IF($AE133=1,VLOOKUP($F133,all!$E$14:$AD$553,20),"") ->  | Y133: =IF($AE133=1,VLOOKUP($F133,all!$E$14:$AD$553,21),"") ->  | Z133: =IF($AE133=1,VLOOKUP($F133,all!$E$14:$AD$553,22),"") ->  | AA133: =IF($AE133=1,VLOOKUP($F133,all!$E$14:$AD$553,23),"") ->  | AB133: =IF($AE133=1,VLOOKUP($F133,all!$E$14:$AD$553,24),"") ->  | AC133: =IF($AE133=1,VLOOKUP($F133,all!$E$14:$AD$553,25),"") ->  | AE133: =COUNTIF(all!$E$14:$E$553,F133) -> 0
A134: =IF(OR('Y2'!$W$1=6,('Y2'!$W$1=7)),"",'Y2'!AA129) -> 135 | B134: =IF(OR('Y2'!$W$1=6,('Y2'!$W$1=7)),"",'Y2'!AB129) -> 33.09 | D134: =IF(OR('Y2'!$W$1=6,('Y2'!$W$1=7)),"",'Y2'!AC129) -> 0.83 | F134: 101 | G134: =IF($AE134=1,VLOOKUP($F134,all!$E$14:$AD$553,3),"") ->  | H134: =IF($AE134=1,VLOOKUP($F134,all!$E$14:$AD$553,4),"") ->  | I134: =IF($AE134=1,VLOOKUP($F134,all!$E$14:$AD$553,5),"") ->  | J134: =IF($AE134=1,VLOOKUP($F134,all!$E$14:$AD$553,6),"") ->  | K134: =IF($AE134=1,VLOOKUP($F134,all!$E$14:$AD$553,7),"") ->  | L134: =IF($AE134=1,VLOOKUP($F134,all!$E$14:$AD$553,8),"") ->  | M134: =IF($AE134=1,VLOOKUP($F134,all!$E$14:$AD$553,9),"") ->  | N134: =IF($AE134=1,VLOOKUP($F134,all!$E$14:$AD$553,10),"") ->  | O134: =IF($AE134=1,VLOOKUP($F134,all!$E$14:$AD$553,11),"") ->  | P134: =IF($AE134=1,VLOOKUP($F134,all!$E$14:$AD$553,12),"") ->  | Q134: =IF($AE134=1,VLOOKUP($F134,all!$E$14:$AD$553,13),"") ->  | R134: =IF($AE134=1,VLOOKUP($F134,all!$E$14:$AD$553,14),"") ->  | S134: =IF($AE134=1,VLOOKUP($F134,all!$E$14:$AD$553,15),"") ->  | T134: =IF($AE134=1,VLOOKUP($F134,all!$E$14:$AD$553,16),"") ->  | U134: =IF($AE134=1,VLOOKUP($F134,all!$E$14:$AD$553,17),"") ->  | V134: =IF($AE134=1,VLOOKUP($F134,all!$E$14:$AD$553,18),"") ->  | W134: =IF($AE134=1,VLOOKUP($F134,all!$E$14:$AD$553,19),"") ->  | X134: =IF($AE134=1,VLOOKUP($F134,all!$E$14:$AD$553,20),"") ->  | Y134: =IF($AE134=1,VLOOKUP($F134,all!$E$14:$AD$553,21),"") ->  | Z134: =IF($AE134=1,VLOOKUP($F134,all!$E$14:$AD$553,22),"") ->  | AA134: =IF($AE134=1,VLOOKUP($F134,all!$E$14:$AD$553,23),"") ->  | AB134: =IF($AE134=1,VLOOKUP($F134,all!$E$14:$AD$553,24),"") ->  | AC134: =IF($AE134=1,VLOOKUP($F134,all!$E$14:$AD$553,25),"") ->  | AE134: =COUNTIF(all!$E$14:$E$553,F134) -> 0
A135: =IF(OR('Y2'!$W$1=6,('Y2'!$W$1=7)),"",'Y2'!AA130) -> 140 | B135: =IF(OR('Y2'!$W$1=6,('Y2'!$W$1=7)),"",'Y2'!AB130) -> 29.3 | D135: =IF(OR('Y2'!$W$1=6,('Y2'!$W$1=7)),"",'Y2'!AC130) -> 1.16 | F135: 102 | G135: =IF($AE135=1,VLOOKUP($F135,all!$E$14:$AD$553,3),"") ->  | H135: =IF($AE135=1,VLOOKUP($F135,all!$E$14:$AD$553,4),"") ->  | I135: =IF($AE135=1,VLOOKUP($F135,all!$E$14:$AD$553,5),"") ->  | J135: =IF($AE135=1,VLOOKUP($F135,all!$E$14:$AD$553,6),"") ->  | K135: =IF($AE135=1,VLOOKUP($F135,all!$E$14:$AD$553,7),"") ->  | L135: =IF($AE135=1,VLOOKUP($F135,all!$E$14:$AD$553,8),"") ->  | M135: =IF($AE135=1,VLOOKUP($F135,all!$E$14:$AD$553,9),"") ->  | N135: =IF($AE135=1,VLOOKUP($F135,all!$E$14:$AD$553,10),"") ->  | O135: =IF($AE135=1,VLOOKUP($F135,all!$E$14:$AD$553,11),"") ->  | P135: =IF($AE135=1,VLOOKUP($F135,all!$E$14:$AD$553,12),"") ->  | Q135: =IF($AE135=1,VLOOKUP($F135,all!$E$14:$AD$553,13),"") ->  | R135: =IF($AE135=1,VLOOKUP($F135,all!$E$14:$AD$553,14),"") ->  | S135: =IF($AE135=1,VLOOKUP($F135,all!$E$14:$AD$553,15),"") ->  | T135: =IF($AE135=1,VLOOKUP($F135,all!$E$14:$AD$553,16),"") ->  | U135: =IF($AE135=1,VLOOKUP($F135,all!$E$14:$AD$553,17),"") ->  | V135: =IF($AE135=1,VLOOKUP($F135,all!$E$14:$AD$553,18),"") ->  | W135: =IF($AE135=1,VLOOKUP($F135,all!$E$14:$AD$553,19),"") ->  | X135: =IF($AE135=1,VLOOKUP($F135,all!$E$14:$AD$553,20),"") ->  | Y135: =IF($AE135=1,VLOOKUP($F135,all!$E$14:$AD$553,21),"") ->  | Z135: =IF($AE135=1,VLOOKUP($F135,all!$E$14:$AD$553,22),"") ->  | AA135: =IF($AE135=1,VLOOKUP($F135,all!$E$14:$AD$553,23),"") ->  | AB135: =IF($AE135=1,VLOOKUP($F135,all!$E$14:$AD$553,24),"") ->  | AC135: =IF($AE135=1,VLOOKUP($F135,all!$E$14:$AD$553,25),"") ->  | AE135: =COUNTIF(all!$E$14:$E$553,F135) -> 0
A136: =IF(OR('Y2'!$W$1=6,('Y2'!$W$1=7)),"",'Y2'!AA131) -> 145 | B136: =IF(OR('Y2'!$W$1=6,('Y2'!$W$1=7)),"",'Y2'!AB131) -> 23.85 | D136: =IF(OR('Y2'!$W$1=6,('Y2'!$W$1=7)),"",'Y2'!AC131) -> 1.64 | F136: 103 | G136: =IF($AE136=1,VLOOKUP($F136,all!$E$14:$AD$553,3),"") ->  | H136: =IF($AE136=1,VLOOKUP($F136,all!$E$14:$AD$553,4),"") ->  | I136: =IF($AE136=1,VLOOKUP($F136,all!$E$14:$AD$553,5),"") ->  | J136: =IF($AE136=1,VLOOKUP($F136,all!$E$14:$AD$553,6),"") ->  | K136: =IF($AE136=1,VLOOKUP($F136,all!$E$14:$AD$553,7),"") ->  | L136: =IF($AE136=1,VLOOKUP($F136,all!$E$14:$AD$553,8),"") ->  | M136: =IF($AE136=1,VLOOKUP($F136,all!$E$14:$AD$553,9),"") ->  | N136: =IF($AE136=1,VLOOKUP($F136,all!$E$14:$AD$553,10),"") ->  | O136: =IF($AE136=1,VLOOKUP($F136,all!$E$14:$AD$553,11),"") ->  | P136: =IF($AE136=1,VLOOKUP($F136,all!$E$14:$AD$553,12),"") ->  | Q136: =IF($AE136=1,VLOOKUP($F136,all!$E$14:$AD$553,13),"") ->  | R136: =IF($AE136=1,VLOOKUP($F136,all!$E$14:$AD$553,14),"") ->  | S136: =IF($AE136=1,VLOOKUP($F136,all!$E$14:$AD$553,15),"") ->  | T136: =IF($AE136=1,VLOOKUP($F136,all!$E$14:$AD$553,16),"") ->  | U136: =IF($AE136=1,VLOOKUP($F136,all!$E$14:$AD$553,17),"") ->  | V136: =IF($AE136=1,VLOOKUP($F136,all!$E$14:$AD$553,18),"") ->  | W136: =IF($AE136=1,VLOOKUP($F136,all!$E$14:$AD$553,19),"") ->  | X136: =IF($AE136=1,VLOOKUP($F136,all!$E$14:$AD$553,20),"") ->  | Y136: =IF($AE136=1,VLOOKUP($F136,all!$E$14:$AD$553,21),"") ->  | Z136: =IF($AE136=1,VLOOKUP($F136,all!$E$14:$AD$553,22),"") ->  | AA136: =IF($AE136=1,VLOOKUP($F136,all!$E$14:$AD$553,23),"") ->  | AB136: =IF($AE136=1,VLOOKUP($F136,all!$E$14:$AD$553,24),"") ->  | AC136: =IF($AE136=1,VLOOKUP($F136,all!$E$14:$AD$553,25),"") ->  | AE136: =COUNTIF(all!$E$14:$E$553,F136) -> 0
A137: =IF(OR('Y2'!$W$1=6,('Y2'!$W$1=7)),"",'Y2'!AA132) -> 150 | B137: =IF(OR('Y2'!$W$1=6,('Y2'!$W$1=7)),"",'Y2'!AB132) -> 20 | D137: =IF(OR('Y2'!$W$1=6,('Y2'!$W$1=7)),"",'Y2'!AC132) -> 2.45 | F137: 104 | G137: =IF($AE137=1,VLOOKUP($F137,all!$E$14:$AD$553,3),"") ->  | H137: =IF($AE137=1,VLOOKUP($F137,all!$E$14:$AD$553,4),"") ->  | I137: =IF($AE137=1,VLOOKUP($F137,all!$E$14:$AD$553,5),"") ->  | J137: =IF($AE137=1,VLOOKUP($F137,all!$E$14:$AD$553,6),"") ->  | K137: =IF($AE137=1,VLOOKUP($F137,all!$E$14:$AD$553,7),"") ->  | L137: =IF($AE137=1,VLOOKUP($F137,all!$E$14:$AD$553,8),"") ->  | M137: =IF($AE137=1,VLOOKUP($F137,all!$E$14:$AD$553,9),"") ->  | N137: =IF($AE137=1,VLOOKUP($F137,all!$E$14:$AD$553,10),"") ->  | O137: =IF($AE137=1,VLOOKUP($F137,all!$E$14:$AD$553,11),"") ->  | P137: =IF($AE137=1,VLOOKUP($F137,all!$E$14:$AD$553,12),"") ->  | Q137: =IF($AE137=1,VLOOKUP($F137,all!$E$14:$AD$553,13),"") ->  | R137: =IF($AE137=1,VLOOKUP($F137,all!$E$14:$AD$553,14),"") ->  | S137: =IF($AE137=1,VLOOKUP($F137,all!$E$14:$AD$553,15),"") ->  | T137: =IF($AE137=1,VLOOKUP($F137,all!$E$14:$AD$553,16),"") ->  | U137: =IF($AE137=1,VLOOKUP($F137,all!$E$14:$AD$553,17),"") ->  | V137: =IF($AE137=1,VLOOKUP($F137,all!$E$14:$AD$553,18),"") ->  | W137: =IF($AE137=1,VLOOKUP($F137,all!$E$14:$AD$553,19),"") ->  | X137: =IF($AE137=1,VLOOKUP($F137,all!$E$14:$AD$553,20),"") ->  | Y137: =IF($AE137=1,VLOOKUP($F137,all!$E$14:$AD$553,21),"") ->  | Z137: =IF($AE137=1,VLOOKUP($F137,all!$E$14:$AD$553,22),"") ->  | AA137: =IF($AE137=1,VLOOKUP($F137,all!$E$14:$AD$553,23),"") ->  | AB137: =IF($AE137=1,VLOOKUP($F137,all!$E$14:$AD$553,24),"") ->  | AC137: =IF($AE137=1,VLOOKUP($F137,all!$E$14:$AD$553,25),"") ->  | AE137: =COUNTIF(all!$E$14:$E$553,F137) -> 0
A138: =IF(OR('Y2'!$W$1=6,('Y2'!$W$1=7)),"",'Y2'!AA133) -> 155 | B138: =IF(OR('Y2'!$W$1=6,('Y2'!$W$1=7)),"",'Y2'!AB133) -> 15.6 | D138: =IF(OR('Y2'!$W$1=6,('Y2'!$W$1=7)),"",'Y2'!AC133) -> 3.43 | F138: 105 | G138: =IF($AE138=1,VLOOKUP($F138,all!$E$14:$AD$553,3),"") ->  | H138: =IF($AE138=1,VLOOKUP($F138,all!$E$14:$AD$553,4),"") ->  | I138: =IF($AE138=1,VLOOKUP($F138,all!$E$14:$AD$553,5),"") ->  | J138: =IF($AE138=1,VLOOKUP($F138,all!$E$14:$AD$553,6),"") ->  | K138: =IF($AE138=1,VLOOKUP($F138,all!$E$14:$AD$553,7),"") ->  | L138: =IF($AE138=1,VLOOKUP($F138,all!$E$14:$AD$553,8),"") ->  | M138: =IF($AE138=1,VLOOKUP($F138,all!$E$14:$AD$553,9),"") ->  | N138: =IF($AE138=1,VLOOKUP($F138,all!$E$14:$AD$553,10),"") ->  | O138: =IF($AE138=1,VLOOKUP($F138,all!$E$14:$AD$553,11),"") ->  | P138: =IF($AE138=1,VLOOKUP($F138,all!$E$14:$AD$553,12),"") ->  | Q138: =IF($AE138=1,VLOOKUP($F138,all!$E$14:$AD$553,13),"") ->  | R138: =IF($AE138=1,VLOOKUP($F138,all!$E$14:$AD$553,14),"") ->  | S138: =IF($AE138=1,VLOOKUP($F138,all!$E$14:$AD$553,15),"") ->  | T138: =IF($AE138=1,VLOOKUP($F138,all!$E$14:$AD$553,16),"") ->  | U138: =IF($AE138=1,VLOOKUP($F138,all!$E$14:$AD$553,17),"") ->  | V138: =IF($AE138=1,VLOOKUP($F138,all!$E$14:$AD$553,18),"") ->  | W138: =IF($AE138=1,VLOOKUP($F138,all!$E$14:$AD$553,19),"") ->  | X138: =IF($AE138=1,VLOOKUP($F138,all!$E$14:$AD$553,20),"") ->  | Y138: =IF($AE138=1,VLOOKUP($F138,all!$E$14:$AD$553,21),"") ->  | Z138: =IF($AE138=1,VLOOKUP($F138,all!$E$14:$AD$553,22),"") ->  | AA138: =IF($AE138=1,VLOOKUP($F138,all!$E$14:$AD$553,23),"") ->  | AB138: =IF($AE138=1,VLOOKUP($F138,all!$E$14:$AD$553,24),"") ->  | AC138: =IF($AE138=1,VLOOKUP($F138,all!$E$14:$AD$553,25),"") ->  | AE138: =COUNTIF(all!$E$14:$E$553,F138) -> 0
A139: =IF(OR('Y2'!$W$1=6,('Y2'!$W$1=7)),"",'Y2'!AA134) -> 160 | B139: =IF(OR('Y2'!$W$1=6,('Y2'!$W$1=7)),"",'Y2'!AB134) -> 11.85 | D139: =IF(OR('Y2'!$W$1=6,('Y2'!$W$1=7)),"",'Y2'!AC134) -> 4.55 | F139: 106 | G139: =IF($AE139=1,VLOOKUP($F139,all!$E$14:$AD$553,3),"") ->  | H139: =IF($AE139=1,VLOOKUP($F139,all!$E$14:$AD$553,4),"") ->  | I139: =IF($AE139=1,VLOOKUP($F139,all!$E$14:$AD$553,5),"") ->  | J139: =IF($AE139=1,VLOOKUP($F139,all!$E$14:$AD$553,6),"") ->  | K139: =IF($AE139=1,VLOOKUP($F139,all!$E$14:$AD$553,7),"") ->  | L139: =IF($AE139=1,VLOOKUP($F139,all!$E$14:$AD$553,8),"") ->  | M139: =IF($AE139=1,VLOOKUP($F139,all!$E$14:$AD$553,9),"") ->  | N139: =IF($AE139=1,VLOOKUP($F139,all!$E$14:$AD$553,10),"") ->  | O139: =IF($AE139=1,VLOOKUP($F139,all!$E$14:$AD$553,11),"") ->  | P139: =IF($AE139=1,VLOOKUP($F139,all!$E$14:$AD$553,12),"") ->  | Q139: =IF($AE139=1,VLOOKUP($F139,all!$E$14:$AD$553,13),"") ->  | R139: =IF($AE139=1,VLOOKUP($F139,all!$E$14:$AD$553,14),"") ->  | S139: =IF($AE139=1,VLOOKUP($F139,all!$E$14:$AD$553,15),"") ->  | T139: =IF($AE139=1,VLOOKUP($F139,all!$E$14:$AD$553,16),"") ->  | U139: =IF($AE139=1,VLOOKUP($F139,all!$E$14:$AD$553,17),"") ->  | V139: =IF($AE139=1,VLOOKUP($F139,all!$E$14:$AD$553,18),"") ->  | W139: =IF($AE139=1,VLOOKUP($F139,all!$E$14:$AD$553,19),"") ->  | X139: =IF($AE139=1,VLOOKUP($F139,all!$E$14:$AD$553,20),"") ->  | Y139: =IF($AE139=1,VLOOKUP($F139,all!$E$14:$AD$553,21),"") ->  | Z139: =IF($AE139=1,VLOOKUP($F139,all!$E$14:$AD$553,22),"") ->  | AA139: =IF($AE139=1,VLOOKUP($F139,all!$E$14:$AD$553,23),"") ->  | AB139: =IF($AE139=1,VLOOKUP($F139,all!$E$14:$AD$553,24),"") ->  | AC139: =IF($AE139=1,VLOOKUP($F139,all!$E$14:$AD$553,25),"") ->  | AE139: =COUNTIF(all!$E$14:$E$553,F139) -> 0
A140: =IF(OR('Y2'!$W$1=6,('Y2'!$W$1=7)),"",'Y2'!AA135) -> 165 | B140: =IF(OR('Y2'!$W$1=6,('Y2'!$W$1=7)),"",'Y2'!AB135) -> 8.9 | D140: =IF(OR('Y2'!$W$1=6,('Y2'!$W$1=7)),"",'Y2'!AC135) -> 6.25 | F140: 107 | G140: =IF($AE140=1,VLOOKUP($F140,all!$E$14:$AD$553,3),"") ->  | H140: =IF($AE140=1,VLOOKUP($F140,all!$E$14:$AD$553,4),"") ->  | I140: =IF($AE140=1,VLOOKUP($F140,all!$E$14:$AD$553,5),"") ->  | J140: =IF($AE140=1,VLOOKUP($F140,all!$E$14:$AD$553,6),"") ->  | K140: =IF($AE140=1,VLOOKUP($F140,all!$E$14:$AD$553,7),"") ->  | L140: =IF($AE140=1,VLOOKUP($F140,all!$E$14:$AD$553,8),"") ->  | M140: =IF($AE140=1,VLOOKUP($F140,all!$E$14:$AD$553,9),"") ->  | N140: =IF($AE140=1,VLOOKUP($F140,all!$E$14:$AD$553,10),"") ->  | O140: =IF($AE140=1,VLOOKUP($F140,all!$E$14:$AD$553,11),"") ->  | P140: =IF($AE140=1,VLOOKUP($F140,all!$E$14:$AD$553,12),"") ->  | Q140: =IF($AE140=1,VLOOKUP($F140,all!$E$14:$AD$553,13),"") ->  | R140: =IF($AE140=1,VLOOKUP($F140,all!$E$14:$AD$553,14),"") ->  | S140: =IF($AE140=1,VLOOKUP($F140,all!$E$14:$AD$553,15),"") ->  | T140: =IF($AE140=1,VLOOKUP($F140,all!$E$14:$AD$553,16),"") ->  | U140: =IF($AE140=1,VLOOKUP($F140,all!$E$14:$AD$553,17),"") ->  | V140: =IF($AE140=1,VLOOKUP($F140,all!$E$14:$AD$553,18),"") ->  | W140: =IF($AE140=1,VLOOKUP($F140,all!$E$14:$AD$553,19),"") ->  | X140: =IF($AE140=1,VLOOKUP($F140,all!$E$14:$AD$553,20),"") ->  | Y140: =IF($AE140=1,VLOOKUP($F140,all!$E$14:$AD$553,21),"") ->  | Z140: =IF($AE140=1,VLOOKUP($F140,all!$E$14:$AD$553,22),"") ->  | AA140: =IF($AE140=1,VLOOKUP($F140,all!$E$14:$AD$553,23),"") ->  | AB140: =IF($AE140=1,VLOOKUP($F140,all!$E$14:$AD$553,24),"") ->  | AC140: =IF($AE140=1,VLOOKUP($F140,all!$E$14:$AD$553,25),"") ->  | AE140: =COUNTIF(all!$E$14:$E$553,F140) -> 0
A141: =IF(OR('Y2'!$W$1=6,('Y2'!$W$1=7)),"",'Y2'!AA136) -> 170 | B141: =IF(OR('Y2'!$W$1=6,('Y2'!$W$1=7)),"",'Y2'!AB136) -> 6.08 | D141: =IF(OR('Y2'!$W$1=6,('Y2'!$W$1=7)),"",'Y2'!AC136) -> 8.6 | F141: 108 | G141: =IF($AE141=1,VLOOKUP($F141,all!$E$14:$AD$553,3),"") ->  | H141: =IF($AE141=1,VLOOKUP($F141,all!$E$14:$AD$553,4),"") ->  | I141: =IF($AE141=1,VLOOKUP($F141,all!$E$14:$AD$553,5),"") ->  | J141: =IF($AE141=1,VLOOKUP($F141,all!$E$14:$AD$553,6),"") ->  | K141: =IF($AE141=1,VLOOKUP($F141,all!$E$14:$AD$553,7),"") ->  | L141: =IF($AE141=1,VLOOKUP($F141,all!$E$14:$AD$553,8),"") ->  | M141: =IF($AE141=1,VLOOKUP($F141,all!$E$14:$AD$553,9),"") ->  | N141: =IF($AE141=1,VLOOKUP($F141,all!$E$14:$AD$553,10),"") ->  | O141: =IF($AE141=1,VLOOKUP($F141,all!$E$14:$AD$553,11),"") ->  | P141: =IF($AE141=1,VLOOKUP($F141,all!$E$14:$AD$553,12),"") ->  | Q141: =IF($AE141=1,VLOOKUP($F141,all!$E$14:$AD$553,13),"") ->  | R141: =IF($AE141=1,VLOOKUP($F141,all!$E$14:$AD$553,14),"") ->  | S141: =IF($AE141=1,VLOOKUP($F141,all!$E$14:$AD$553,15),"") ->  | T141: =IF($AE141=1,VLOOKUP($F141,all!$E$14:$AD$553,16),"") ->  | U141: =IF($AE141=1,VLOOKUP($F141,all!$E$14:$AD$553,17),"") ->  | V141: =IF($AE141=1,VLOOKUP($F141,all!$E$14:$AD$553,18),"") ->  | W141: =IF($AE141=1,VLOOKUP($F141,all!$E$14:$AD$553,19),"") ->  | X141: =IF($AE141=1,VLOOKUP($F141,all!$E$14:$AD$553,20),"") ->  | Y141: =IF($AE141=1,VLOOKUP($F141,all!$E$14:$AD$553,21),"") ->  | Z141: =IF($AE141=1,VLOOKUP($F141,all!$E$14:$AD$553,22),"") ->  | AA141: =IF($AE141=1,VLOOKUP($F141,all!$E$14:$AD$553,23),"") ->  | AB141: =IF($AE141=1,VLOOKUP($F141,all!$E$14:$AD$553,24),"") ->  | AC141: =IF($AE141=1,VLOOKUP($F141,all!$E$14:$AD$553,25),"") ->  | AE141: =COUNTIF(all!$E$14:$E$553,F141) -> 0
A142: =IF(OR('Y2'!$W$1=6,('Y2'!$W$1=7)),"",'Y2'!AA137) -> 175 | B142: =IF(OR('Y2'!$W$1=6,('Y2'!$W$1=7)),"",'Y2'!AB137) -> 3.75 | D142: =IF(OR('Y2'!$W$1=6,('Y2'!$W$1=7)),"",'Y2'!AC137) -> 11.6 | F142: 109 | G142: =IF($AE142=1,VLOOKUP($F142,all!$E$14:$AD$553,3),"") ->  | H142: =IF($AE142=1,VLOOKUP($F142,all!$E$14:$AD$553,4),"") ->  | I142: =IF($AE142=1,VLOOKUP($F142,all!$E$14:$AD$553,5),"") ->  | J142: =IF($AE142=1,VLOOKUP($F142,all!$E$14:$AD$553,6),"") ->  | K142: =IF($AE142=1,VLOOKUP($F142,all!$E$14:$AD$553,7),"") ->  | L142: =IF($AE142=1,VLOOKUP($F142,all!$E$14:$AD$553,8),"") ->  | M142: =IF($AE142=1,VLOOKUP($F142,all!$E$14:$AD$553,9),"") ->  | N142: =IF($AE142=1,VLOOKUP($F142,all!$E$14:$AD$553,10),"") ->  | O142: =IF($AE142=1,VLOOKUP($F142,all!$E$14:$AD$553,11),"") ->  | P142: =IF($AE142=1,VLOOKUP($F142,all!$E$14:$AD$553,12),"") ->  | Q142: =IF($AE142=1,VLOOKUP($F142,all!$E$14:$AD$553,13),"") ->  | R142: =IF($AE142=1,VLOOKUP($F142,all!$E$14:$AD$553,14),"") ->  | S142: =IF($AE142=1,VLOOKUP($F142,all!$E$14:$AD$553,15),"") ->  | T142: =IF($AE142=1,VLOOKUP($F142,all!$E$14:$AD$553,16),"") ->  | U142: =IF($AE142=1,VLOOKUP($F142,all!$E$14:$AD$553,17),"") ->  | V142: =IF($AE142=1,VLOOKUP($F142,all!$E$14:$AD$553,18),"") ->  | W142: =IF($AE142=1,VLOOKUP($F142,all!$E$14:$AD$553,19),"") ->  | X142: =IF($AE142=1,VLOOKUP($F142,all!$E$14:$AD$553,20),"") ->  | Y142: =IF($AE142=1,VLOOKUP($F142,all!$E$14:$AD$553,21),"") ->  | Z142: =IF($AE142=1,VLOOKUP($F142,all!$E$14:$AD$553,22),"") ->  | AA142: =IF($AE142=1,VLOOKUP($F142,all!$E$14:$AD$553,23),"") ->  | AB142: =IF($AE142=1,VLOOKUP($F142,all!$E$14:$AD$553,24),"") ->  | AC142: =IF($AE142=1,VLOOKUP($F142,all!$E$14:$AD$553,25),"") ->  | AE142: =COUNTIF(all!$E$14:$E$553,F142) -> 0
A143: =IF(OR('Y2'!$W$1=6,('Y2'!$W$1=7)),"",'Y2'!AA138) -> 180 | B143: =IF(OR('Y2'!$W$1=6,('Y2'!$W$1=7)),"",'Y2'!AB138) -> 2.28 | D143: =IF(OR('Y2'!$W$1=6,('Y2'!$W$1=7)),"",'Y2'!AC138) -> 14.97 | F143: 110 | G143: =IF($AE143=1,VLOOKUP($F143,all!$E$14:$AD$553,3),"") ->  | H143: =IF($AE143=1,VLOOKUP($F143,all!$E$14:$AD$553,4),"") ->  | I143: =IF($AE143=1,VLOOKUP($F143,all!$E$14:$AD$553,5),"") ->  | J143: =IF($AE143=1,VLOOKUP($F143,all!$E$14:$AD$553,6),"") ->  | K143: =IF($AE143=1,VLOOKUP($F143,all!$E$14:$AD$553,7),"") ->  | L143: =IF($AE143=1,VLOOKUP($F143,all!$E$14:$AD$553,8),"") ->  | M143: =IF($AE143=1,VLOOKUP($F143,all!$E$14:$AD$553,9),"") ->  | N143: =IF($AE143=1,VLOOKUP($F143,all!$E$14:$AD$553,10),"") ->  | O143: =IF($AE143=1,VLOOKUP($F143,all!$E$14:$AD$553,11),"") ->  | P143: =IF($AE143=1,VLOOKUP($F143,all!$E$14:$AD$553,12),"") ->  | Q143: =IF($AE143=1,VLOOKUP($F143,all!$E$14:$AD$553,13),"") ->  | R143: =IF($AE143=1,VLOOKUP($F143,all!$E$14:$AD$553,14),"") ->  | S143: =IF($AE143=1,VLOOKUP($F143,all!$E$14:$AD$553,15),"") ->  | T143: =IF($AE143=1,VLOOKUP($F143,all!$E$14:$AD$553,16),"") ->  | U143: =IF($AE143=1,VLOOKUP($F143,all!$E$14:$AD$553,17),"") ->  | V143: =IF($AE143=1,VLOOKUP($F143,all!$E$14:$AD$553,18),"") ->  | W143: =IF($AE143=1,VLOOKUP($F143,all!$E$14:$AD$553,19),"") ->  | X143: =IF($AE143=1,VLOOKUP($F143,all!$E$14:$AD$553,20),"") ->  | Y143: =IF($AE143=1,VLOOKUP($F143,all!$E$14:$AD$553,21),"") ->  | Z143: =IF($AE143=1,VLOOKUP($F143,all!$E$14:$AD$553,22),"") ->  | AA143: =IF($AE143=1,VLOOKUP($F143,all!$E$14:$AD$553,23),"") ->  | AB143: =IF($AE143=1,VLOOKUP($F143,all!$E$14:$AD$553,24),"") ->  | AC143: =IF($AE143=1,VLOOKUP($F143,all!$E$14:$AD$553,25),"") ->  | AE143: =COUNTIF(all!$E$14:$E$553,F143) -> 0
A144: =IF(OR('Y2'!$W$1=6,('Y2'!$W$1=7)),"",'Y2'!AA139) -> 185 | B144: =IF(OR('Y2'!$W$1=6,('Y2'!$W$1=7)),"",'Y2'!AB139) -> 1.22 | D144: =IF(OR('Y2'!$W$1=6,('Y2'!$W$1=7)),"",'Y2'!AC139) -> 19.03 | F144: 111 | G144: =IF($AE144=1,VLOOKUP($F144,all!$E$14:$AD$553,3),"") ->  | H144: =IF($AE144=1,VLOOKUP($F144,all!$E$14:$AD$553,4),"") ->  | I144: =IF($AE144=1,VLOOKUP($F144,all!$E$14:$AD$553,5),"") ->  | J144: =IF($AE144=1,VLOOKUP($F144,all!$E$14:$AD$553,6),"") ->  | K144: =IF($AE144=1,VLOOKUP($F144,all!$E$14:$AD$553,7),"") ->  | L144: =IF($AE144=1,VLOOKUP($F144,all!$E$14:$AD$553,8),"") ->  | M144: =IF($AE144=1,VLOOKUP($F144,all!$E$14:$AD$553,9),"") ->  | N144: =IF($AE144=1,VLOOKUP($F144,all!$E$14:$AD$553,10),"") ->  | O144: =IF($AE144=1,VLOOKUP($F144,all!$E$14:$AD$553,11),"") ->  | P144: =IF($AE144=1,VLOOKUP($F144,all!$E$14:$AD$553,12),"") ->  | Q144: =IF($AE144=1,VLOOKUP($F144,all!$E$14:$AD$553,13),"") ->  | R144: =IF($AE144=1,VLOOKUP($F144,all!$E$14:$AD$553,14),"") ->  | S144: =IF($AE144=1,VLOOKUP($F144,all!$E$14:$AD$553,15),"") ->  | T144: =IF($AE144=1,VLOOKUP($F144,all!$E$14:$AD$553,16),"") ->  | U144: =IF($AE144=1,VLOOKUP($F144,all!$E$14:$AD$553,17),"") ->  | V144: =IF($AE144=1,VLOOKUP($F144,all!$E$14:$AD$553,18),"") ->  | W144: =IF($AE144=1,VLOOKUP($F144,all!$E$14:$AD$553,19),"") ->  | X144: =IF($AE144=1,VLOOKUP($F144,all!$E$14:$AD$553,20),"") ->  | Y144: =IF($AE144=1,VLOOKUP($F144,all!$E$14:$AD$553,21),"") ->  | Z144: =IF($AE144=1,VLOOKUP($F144,all!$E$14:$AD$553,22),"") ->  | AA144: =IF($AE144=1,VLOOKUP($F144,all!$E$14:$AD$553,23),"") ->  | AB144: =IF($AE144=1,VLOOKUP($F144,all!$E$14:$AD$553,24),"") ->  | AC144: =IF($AE144=1,VLOOKUP($F144,all!$E$14:$AD$553,25),"") ->  | AE144: =COUNTIF(all!$E$14:$E$553,F144) -> 0
A145: =IF(OR('Y2'!$W$1=6,('Y2'!$W$1=7)),"",'Y2'!AA140) -> 190 | B145: =IF(OR('Y2'!$W$1=6,('Y2'!$W$1=7)),"",'Y2'!AB140) -> 0.67 | D145: =IF(OR('Y2'!$W$1=6,('Y2'!$W$1=7)),"",'Y2'!AC140) -> 23.27 | F145: 112 | G145: =IF($AE145=1,VLOOKUP($F145,all!$E$14:$AD$553,3),"") ->  | H145: =IF($AE145=1,VLOOKUP($F145,all!$E$14:$AD$553,4),"") ->  | I145: =IF($AE145=1,VLOOKUP($F145,all!$E$14:$AD$553,5),"") ->  | J145: =IF($AE145=1,VLOOKUP($F145,all!$E$14:$AD$553,6),"") ->  | K145: =IF($AE145=1,VLOOKUP($F145,all!$E$14:$AD$553,7),"") ->  | L145: =IF($AE145=1,VLOOKUP($F145,all!$E$14:$AD$553,8),"") ->  | M145: =IF($AE145=1,VLOOKUP($F145,all!$E$14:$AD$553,9),"") ->  | N145: =IF($AE145=1,VLOOKUP($F145,all!$E$14:$AD$553,10),"") ->  | O145: =IF($AE145=1,VLOOKUP($F145,all!$E$14:$AD$553,11),"") ->  | P145: =IF($AE145=1,VLOOKUP($F145,all!$E$14:$AD$553,12),"") ->  | Q145: =IF($AE145=1,VLOOKUP($F145,all!$E$14:$AD$553,13),"") ->  | R145: =IF($AE145=1,VLOOKUP($F145,all!$E$14:$AD$553,14),"") ->  | S145: =IF($AE145=1,VLOOKUP($F145,all!$E$14:$AD$553,15),"") ->  | T145: =IF($AE145=1,VLOOKUP($F145,all!$E$14:$AD$553,16),"") ->  | U145: =IF($AE145=1,VLOOKUP($F145,all!$E$14:$AD$553,17),"") ->  | V145: =IF($AE145=1,VLOOKUP($F145,all!$E$14:$AD$553,18),"") ->  | W145: =IF($AE145=1,VLOOKUP($F145,all!$E$14:$AD$553,19),"") ->  | X145: =IF($AE145=1,VLOOKUP($F145,all!$E$14:$AD$553,20),"") ->  | Y145: =IF($AE145=1,VLOOKUP($F145,all!$E$14:$AD$553,21),"") ->  | Z145: =IF($AE145=1,VLOOKUP($F145,all!$E$14:$AD$553,22),"") ->  | AA145: =IF($AE145=1,VLOOKUP($F145,all!$E$14:$AD$553,23),"") ->  | AB145: =IF($AE145=1,VLOOKUP($F145,all!$E$14:$AD$553,24),"") ->  | AC145: =IF($AE145=1,VLOOKUP($F145,all!$E$14:$AD$553,25),"") ->  | AE145: =COUNTIF(all!$E$14:$E$553,F145) -> 0
A146: =IF(OR('Y2'!$W$1=6,('Y2'!$W$1=7)),"",'Y2'!AA141) -> 195 | B146: =IF(OR('Y2'!$W$1=6,('Y2'!$W$1=7)),"",'Y2'!AB141) -> 0.36 | D146: =IF(OR('Y2'!$W$1=6,('Y2'!$W$1=7)),"",'Y2'!AC141) -> 27.65 | F146: 113 | G146: =IF($AE146=1,VLOOKUP($F146,all!$E$14:$AD$553,3),"") ->  | H146: =IF($AE146=1,VLOOKUP($F146,all!$E$14:$AD$553,4),"") ->  | I146: =IF($AE146=1,VLOOKUP($F146,all!$E$14:$AD$553,5),"") ->  | J146: =IF($AE146=1,VLOOKUP($F146,all!$E$14:$AD$553,6),"") ->  | K146: =IF($AE146=1,VLOOKUP($F146,all!$E$14:$AD$553,7),"") ->  | L146: =IF($AE146=1,VLOOKUP($F146,all!$E$14:$AD$553,8),"") ->  | M146: =IF($AE146=1,VLOOKUP($F146,all!$E$14:$AD$553,9),"") ->  | N146: =IF($AE146=1,VLOOKUP($F146,all!$E$14:$AD$553,10),"") ->  | O146: =IF($AE146=1,VLOOKUP($F146,all!$E$14:$AD$553,11),"") ->  | P146: =IF($AE146=1,VLOOKUP($F146,all!$E$14:$AD$553,12),"") ->  | Q146: =IF($AE146=1,VLOOKUP($F146,all!$E$14:$AD$553,13),"") ->  | R146: =IF($AE146=1,VLOOKUP($F146,all!$E$14:$AD$553,14),"") ->  | S146: =IF($AE146=1,VLOOKUP($F146,all!$E$14:$AD$553,15),"") ->  | T146: =IF($AE146=1,VLOOKUP($F146,all!$E$14:$AD$553,16),"") ->  | U146: =IF($AE146=1,VLOOKUP($F146,all!$E$14:$AD$553,17),"") ->  | V146: =IF($AE146=1,VLOOKUP($F146,all!$E$14:$AD$553,18),"") ->  | W146: =IF($AE146=1,VLOOKUP($F146,all!$E$14:$AD$553,19),"") ->  | X146: =IF($AE146=1,VLOOKUP($F146,all!$E$14:$AD$553,20),"") ->  | Y146: =IF($AE146=1,VLOOKUP($F146,all!$E$14:$AD$553,21),"") ->  | Z146: =IF($AE146=1,VLOOKUP($F146,all!$E$14:$AD$553,22),"") ->  | AA146: =IF($AE146=1,VLOOKUP($F146,all!$E$14:$AD$553,23),"") ->  | AB146: =IF($AE146=1,VLOOKUP($F146,all!$E$14:$AD$553,24),"") ->  | AC146: =IF($AE146=1,VLOOKUP($F146,all!$E$14:$AD$553,25),"") ->  | AE146: =COUNTIF(all!$E$14:$E$553,F146) -> 0
A147: =IF(OR('Y2'!$W$1=6,('Y2'!$W$1=7)),"",'Y2'!AA142) -> 200 | B147: =IF(OR('Y2'!$W$1=6,('Y2'!$W$1=7)),"",'Y2'!AB142) -> 0.19 | D147: =IF(OR('Y2'!$W$1=6,('Y2'!$W$1=7)),"",'Y2'!AC142) -> 31.79 | F147: 114 | G147: =IF($AE147=1,VLOOKUP($F147,all!$E$14:$AD$553,3),"") ->  | H147: =IF($AE147=1,VLOOKUP($F147,all!$E$14:$AD$553,4),"") ->  | I147: =IF($AE147=1,VLOOKUP($F147,all!$E$14:$AD$553,5),"") ->  | J147: =IF($AE147=1,VLOOKUP($F147,all!$E$14:$AD$553,6),"") ->  | K147: =IF($AE147=1,VLOOKUP($F147,all!$E$14:$AD$553,7),"") ->  | L147: =IF($AE147=1,VLOOKUP($F147,all!$E$14:$AD$553,8),"") ->  | M147: =IF($AE147=1,VLOOKUP($F147,all!$E$14:$AD$553,9),"") ->  | N147: =IF($AE147=1,VLOOKUP($F147,all!$E$14:$AD$553,10),"") ->  | O147: =IF($AE147=1,VLOOKUP($F147,all!$E$14:$AD$553,11),"") ->  | P147: =IF($AE147=1,VLOOKUP($F147,all!$E$14:$AD$553,12),"") ->  | Q147: =IF($AE147=1,VLOOKUP($F147,all!$E$14:$AD$553,13),"") ->  | R147: =IF($AE147=1,VLOOKUP($F147,all!$E$14:$AD$553,14),"") ->  | S147: =IF($AE147=1,VLOOKUP($F147,all!$E$14:$AD$553,15),"") ->  | T147: =IF($AE147=1,VLOOKUP($F147,all!$E$14:$AD$553,16),"") ->  | U147: =IF($AE147=1,VLOOKUP($F147,all!$E$14:$AD$553,17),"") ->  | V147: =IF($AE147=1,VLOOKUP($F147,all!$E$14:$AD$553,18),"") ->  | W147: =IF($AE147=1,VLOOKUP($F147,all!$E$14:$AD$553,19),"") ->  | X147: =IF($AE147=1,VLOOKUP($F147,all!$E$14:$AD$553,20),"") ->  | Y147: =IF($AE147=1,VLOOKUP($F147,all!$E$14:$AD$553,21),"") ->  | Z147: =IF($AE147=1,VLOOKUP($F147,all!$E$14:$AD$553,22),"") ->  | AA147: =IF($AE147=1,VLOOKUP($F147,all!$E$14:$AD$553,23),"") ->  | AB147: =IF($AE147=1,VLOOKUP($F147,all!$E$14:$AD$553,24),"") ->  | AC147: =IF($AE147=1,VLOOKUP($F147,all!$E$14:$AD$553,25),"") ->  | AE147: =COUNTIF(all!$E$14:$E$553,F147) -> 0
A148: =IF(OR('Y2'!$W$1=6,('Y2'!$W$1=7)),"",'Y2'!AA143) -> 205 | B148: =IF(OR('Y2'!$W$1=6,('Y2'!$W$1=7)),"",'Y2'!AB143) -> 0.13 | D148: =IF(OR('Y2'!$W$1=6,('Y2'!$W$1=7)),"",'Y2'!AC143) -> 37.62 | F148: 115 | G148: =IF($AE148=1,VLOOKUP($F148,all!$E$14:$AD$553,3),"") ->  | H148: =IF($AE148=1,VLOOKUP($F148,all!$E$14:$AD$553,4),"") ->  | I148: =IF($AE148=1,VLOOKUP($F148,all!$E$14:$AD$553,5),"") ->  | J148: =IF($AE148=1,VLOOKUP($F148,all!$E$14:$AD$553,6),"") ->  | K148: =IF($AE148=1,VLOOKUP($F148,all!$E$14:$AD$553,7),"") ->  | L148: =IF($AE148=1,VLOOKUP($F148,all!$E$14:$AD$553,8),"") ->  | M148: =IF($AE148=1,VLOOKUP($F148,all!$E$14:$AD$553,9),"") ->  | N148: =IF($AE148=1,VLOOKUP($F148,all!$E$14:$AD$553,10),"") ->  | O148: =IF($AE148=1,VLOOKUP($F148,all!$E$14:$AD$553,11),"") ->  | P148: =IF($AE148=1,VLOOKUP($F148,all!$E$14:$AD$553,12),"") ->  | Q148: =IF($AE148=1,VLOOKUP($F148,all!$E$14:$AD$553,13),"") ->  | R148: =IF($AE148=1,VLOOKUP($F148,all!$E$14:$AD$553,14),"") ->  | S148: =IF($AE148=1,VLOOKUP($F148,all!$E$14:$AD$553,15),"") ->  | T148: =IF($AE148=1,VLOOKUP($F148,all!$E$14:$AD$553,16),"") ->  | U148: =IF($AE148=1,VLOOKUP($F148,all!$E$14:$AD$553,17),"") ->  | V148: =IF($AE148=1,VLOOKUP($F148,all!$E$14:$AD$553,18),"") ->  | W148: =IF($AE148=1,VLOOKUP($F148,all!$E$14:$AD$553,19),"") ->  | X148: =IF($AE148=1,VLOOKUP($F148,all!$E$14:$AD$553,20),"") ->  | Y148: =IF($AE148=1,VLOOKUP($F148,all!$E$14:$AD$553,21),"") ->  | Z148: =IF($AE148=1,VLOOKUP($F148,all!$E$14:$AD$553,22),"") ->  | AA148: =IF($AE148=1,VLOOKUP($F148,all!$E$14:$AD$553,23),"") ->  | AB148: =IF($AE148=1,VLOOKUP($F148,all!$E$14:$AD$553,24),"") ->  | AC148: =IF($AE148=1,VLOOKUP($F148,all!$E$14:$AD$553,25),"") ->  | AE148: =COUNTIF(all!$E$14:$E$553,F148) -> 0
A149: =IF(OR('Y2'!$W$1=6,('Y2'!$W$1=7)),"",'Y2'!AA144) -> 210 | B149: =IF(OR('Y2'!$W$1=6,('Y2'!$W$1=7)),"",'Y2'!AB144) -> 0.09 | D149: =IF(OR('Y2'!$W$1=6,('Y2'!$W$1=7)),"",'Y2'!AC144) -> 40.8 | F149: 116 | G149: =IF($AE149=1,VLOOKUP($F149,all!$E$14:$AD$553,3),"") ->  | H149: =IF($AE149=1,VLOOKUP($F149,all!$E$14:$AD$553,4),"") ->  | I149: =IF($AE149=1,VLOOKUP($F149,all!$E$14:$AD$553,5),"") ->  | J149: =IF($AE149=1,VLOOKUP($F149,all!$E$14:$AD$553,6),"") ->  | K149: =IF($AE149=1,VLOOKUP($F149,all!$E$14:$AD$553,7),"") ->  | L149: =IF($AE149=1,VLOOKUP($F149,all!$E$14:$AD$553,8),"") ->  | M149: =IF($AE149=1,VLOOKUP($F149,all!$E$14:$AD$553,9),"") ->  | N149: =IF($AE149=1,VLOOKUP($F149,all!$E$14:$AD$553,10),"") ->  | O149: =IF($AE149=1,VLOOKUP($F149,all!$E$14:$AD$553,11),"") ->  | P149: =IF($AE149=1,VLOOKUP($F149,all!$E$14:$AD$553,12),"") ->  | Q149: =IF($AE149=1,VLOOKUP($F149,all!$E$14:$AD$553,13),"") ->  | R149: =IF($AE149=1,VLOOKUP($F149,all!$E$14:$AD$553,14),"") ->  | S149: =IF($AE149=1,VLOOKUP($F149,all!$E$14:$AD$553,15),"") ->  | T149: =IF($AE149=1,VLOOKUP($F149,all!$E$14:$AD$553,16),"") ->  | U149: =IF($AE149=1,VLOOKUP($F149,all!$E$14:$AD$553,17),"") ->  | V149: =IF($AE149=1,VLOOKUP($F149,all!$E$14:$AD$553,18),"") ->  | W149: =IF($AE149=1,VLOOKUP($F149,all!$E$14:$AD$553,19),"") ->  | X149: =IF($AE149=1,VLOOKUP($F149,all!$E$14:$AD$553,20),"") ->  | Y149: =IF($AE149=1,VLOOKUP($F149,all!$E$14:$AD$553,21),"") ->  | Z149: =IF($AE149=1,VLOOKUP($F149,all!$E$14:$AD$553,22),"") ->  | AA149: =IF($AE149=1,VLOOKUP($F149,all!$E$14:$AD$553,23),"") ->  | AB149: =IF($AE149=1,VLOOKUP($F149,all!$E$14:$AD$553,24),"") ->  | AC149: =IF($AE149=1,VLOOKUP($F149,all!$E$14:$AD$553,25),"") ->  | AE149: =COUNTIF(all!$E$14:$E$553,F149) -> 0
A150: =IF(OR('Y2'!$W$1=6,('Y2'!$W$1=7)),"",'Y2'!AA145) -> 215 | B150: =IF(OR('Y2'!$W$1=6,('Y2'!$W$1=7)),"",'Y2'!AB145) -> 0.05 | D150: =IF(OR('Y2'!$W$1=6,('Y2'!$W$1=7)),"",'Y2'!AC145) -> 42.9 | F150: 117 | G150: =IF($AE150=1,VLOOKUP($F150,all!$E$14:$AD$553,3),"") ->  | H150: =IF($AE150=1,VLOOKUP($F150,all!$E$14:$AD$553,4),"") ->  | I150: =IF($AE150=1,VLOOKUP($F150,all!$E$14:$AD$553,5),"") ->  | J150: =IF($AE150=1,VLOOKUP($F150,all!$E$14:$AD$553,6),"") ->  | K150: =IF($AE150=1,VLOOKUP($F150,all!$E$14:$AD$553,7),"") ->  | L150: =IF($AE150=1,VLOOKUP($F150,all!$E$14:$AD$553,8),"") ->  | M150: =IF($AE150=1,VLOOKUP($F150,all!$E$14:$AD$553,9),"") ->  | N150: =IF($AE150=1,VLOOKUP($F150,all!$E$14:$AD$553,10),"") ->  | O150: =IF($AE150=1,VLOOKUP($F150,all!$E$14:$AD$553,11),"") ->  | P150: =IF($AE150=1,VLOOKUP($F150,all!$E$14:$AD$553,12),"") ->  | Q150: =IF($AE150=1,VLOOKUP($F150,all!$E$14:$AD$553,13),"") ->  | R150: =IF($AE150=1,VLOOKUP($F150,all!$E$14:$AD$553,14),"") ->  | S150: =IF($AE150=1,VLOOKUP($F150,all!$E$14:$AD$553,15),"") ->  | T150: =IF($AE150=1,VLOOKUP($F150,all!$E$14:$AD$553,16),"") ->  | U150: =IF($AE150=1,VLOOKUP($F150,all!$E$14:$AD$553,17),"") ->  | V150: =IF($AE150=1,VLOOKUP($F150,all!$E$14:$AD$553,18),"") ->  | W150: =IF($AE150=1,VLOOKUP($F150,all!$E$14:$AD$553,19),"") ->  | X150: =IF($AE150=1,VLOOKUP($F150,all!$E$14:$AD$553,20),"") ->  | Y150: =IF($AE150=1,VLOOKUP($F150,all!$E$14:$AD$553,21),"") ->  | Z150: =IF($AE150=1,VLOOKUP($F150,all!$E$14:$AD$553,22),"") ->  | AA150: =IF($AE150=1,VLOOKUP($F150,all!$E$14:$AD$553,23),"") ->  | AB150: =IF($AE150=1,VLOOKUP($F150,all!$E$14:$AD$553,24),"") ->  | AC150: =IF($AE150=1,VLOOKUP($F150,all!$E$14:$AD$553,25),"") ->  | AE150: =COUNTIF(all!$E$14:$E$553,F150) -> 0
